Workbook

Sheet Instructions
A1: Project Name: | C1: Reclaim Model - Overview of Program
B2: Hope Bay - Doris Madrid | C2: All users are urged to read the Reclaim Model User Manual - Scroll down for overview description of program.
C3: Important! Reclaim 7.0 works better with no other excel files open.
C4: If other excel files are open ignore run time error and proceed
A5: Reclaim Menu | C5: The default Excel menu bar has an additional tab labelled "Add-Ins" that provides options specific to the Reclaim Model.
B6: Clear | C6: This option deletes all input data, deletes any duplicated elements and blanks out the project name. It also allows for segregation into land costs vs water costs if required.
B7: Duplicate | C7: This option Duplicates components of the project. E.g. if there is more than one Open Pit, use duplicate to add a second Open Pit. Quantities for the new Open Pit are erased, but the Activities and Cost Codes are carried over from the original Open Pit. The new Open Pit subtotal is added to the Summary page.
B8: Unit Costs | C8: This option opens a window of unit costs to provide easy reference. NOTE: the unit cost table has a filter in the 'UNITS' column. You can select to only see a particular unit (eg km) or multiple units (km and m³) or all units.
B9: Print All | C9: This option prints the Summary Worksheet, Unit Cost Worksheet, and the individual component worksheets having non-zero balances. Individual worksheets can be printed directly using standard printing methods, such as Ctl - P.
B10: Quit | C10: Select Quit to exit the program
B11: Help | C11: Redirects user to Instructions worksheet.
A13: WorkSheets
B14: Summary | C14: This worksheet contains a cumulative summary of costs for each component of the project. Associated costs such as engineering and project management are added as a percentage of the component costs.
B15: Components | C15: Costs are derived for individual closure and reclamation activities by multiplying a "quantity" of activity by a "unit cost". An activity can be edited, added, or deleted from worksheet. However, care should be taken not to modify cells that are defined and used elsewhere in the program.
C16: Do not change the content or column width of the first column of each component worksheet.
B17: Unit Costs | C17: This worksheet contains a look up table with costs for typical work associated with each closure and reclamation activity
A19: Limitations | C19: The Reclaim Program will NOT work if the worksheets are changed such that the following requirements are not met. Please review the following prior to modifiying worksheets.
B20: WorkSheet Names | C20: The names of the worksheets must not be changed.
B21: Defined Names | C21: Certain cells have defined names, which must not be changed. Where the cell is named, the name will appear in the "Name Box" to the left of the formula bar.
B22: First line of data | C22: The first line of data for any component worksheet starts on line 4. Do not change the first line of a component worksheet, ie the component name.
B23: Cell A1 | C23: Cell A1 on the component sheet MUST always contain the count of that component for the duplicate function to operate. DO NOT CHANGE.
B24: Adding Lines | C24: You can add lines to components and the unit cost table, as long as they are not the last lines. The last line might fall outside the named ranges. You can check the size of the named range by selecting the name from the drop down box at the top left of the sheet. Usually this box has a cell reference, or a name.
B25: Printing | C25: A component will only be printed if its sub-total is greater than zero. In addition, a component and the summary sheet cannot be printed if there is an error. Printing has been set to print 1 page per component.
A27: Conditions of Use | C27: The Reclamation Cost Estimating Model was prepared to serve as a guide for Government Agencies, mining companies, and others to estimate the cost of mine reclamation. This model is not intended to replace reclamation planning or to be used to determine the activities required to reclaim a site or to dictate how much should be spent on reclamation.
C29: Reclaim was prepared by Brodie Consulting Ltd. on behalf of AANDC. AANDC and Brodie Consulting Ltd. are not responsible for the completeness or accuracy of any reclamation estimate made using this model. The user agrees to check and take responsibility for all aspects of any cost estimate made using this model.
A31: The following table provides guidance as to whether water management and treatment is considered short term or long term. Short term closure activities
A32: may be costed within a component (eg 'Open Pit' or 'Rock Pile') or 'Water Management'. Long term or post-closure water treatment is costed in 'Water Treatment'.
D33: Short Term/ Capital Ex. | E33: Long term/ NPV
A34: Open Pit | C34: flood pit - install/operate pumping system | D34: x
C35: construct diversion ditches | D35: x
C36: treat 1st filling | D36: x
C37: install pump/decant system | D37: x
C38: passive/biological treatment | D38: x
C39: overflow treatment | E39: x
A40: Rock Pile/Heap Leach Facility | C40: construct diversion ditches | D40: x
C41: install groundwater collection system | D41: x
C42: install toe seepage collection system | D42: x
C43: collect and treat groundwater | E43: x
C44: collect and treat seepage (ARD/ML) | E44: x
C45: install passive treatment system | D45: x
C46: operate and maintain passive treatment system | E46: x
C47: operate pump and detoxify heap leach pile (cyanide destruction) | D47: x
A48: Tailings Facility | C48: construct diversion ditches | D48: x
C49: pump supernatant (to pit, U/G) | D49: x
C50: treat supernatant | D50: x
C51: install toe seepage collection system | D51: x
C52: collect and treat seepage (ARD/ML) | E52: x
C53: install passive treatment system | D53: x
C54: operate and maintain passive treatment system | E54: x
A55: U/G Mine | C55: accelerate flooding | D55: x
C56: install seepage collection system | D56: x
C57: install dewatering/pumping system | D57: x
C58: operate seepage/dewatering system (ARD/ML) | E58: x
A59: Water Management | C59: refill lakes
C60: redirect creeks/streams | D60: x
C61: stabilize water management ponds | D61: x
C62: stabilize/close sediment ponds | D62: x
C63: fresh water supply - breach embankment | D63: x
C64: fresh water supply - remove piping system | D64: x
C65: construct water treatment plant | D65: x
C66: construct sludge pond | D66: x
C67: water control in reclamation quarry | D67: x
C68: operate/maintain water treatment plant | E68: x

Sheet Summary
B1: SUMMARY OF COSTS
A3: CAPITAL COSTS | B3: COMPONENT NAME | D3: INAC COST March 2018 | F3: LAND LIABILITY | H3: WATER LIABILITY | I3: TMAC COST (Nov 2017)* | J3: TMAC Nov. 2017 | K3: Cost Difference | L3: PROPOSED COSTS (April 2018) | M3: PROPOSED COST DIFFERENCE
A4: OPEN PIT | B4: =IF(ISBLANK('Open Pit'!$C$1),"",'Open Pit'!$C$1) ->  | D4: =Pit1Total -> 0.0001 | F4: =Pit1LandTotal -> 0 | H4: =Pit1WaterTotal -> 0 | I4: 0 | J4: 0 | K4: =D4-I4 -> 0.0001 | L4: 0 | M4: =D4-L4 -> 0.0001 | N4: =L4-I4 -> 0
A5: UNDERGROUND MINE | B5: =IF(ISBLANK('UG Mine'!$C$1),"",'UG Mine'!$C$1) -> Doris -Madrid | D5: =UG1Total -> 329785.0601 | F5: =UG1LandTotal -> 314809.22 | H5: =UG1WaterTotal -> 14975.84 | I5: ='UG Mine'!V56 -> 303604.0027 | J5: 245455.2708 | K5: 26181.05742 | L5: ='UG Mine'!Y56 -> 303826.4827 | M5: =D5-L5 -> 25958.57742 | N5: 222.48
A6: TAILINGS FACILITY | B6: =IF(ISBLANK(Tailings!$C$1),"",Tailings!$C$1) -> Doris-Madrid Mines | D6: =Tailings1Total -> 20481444.75 | F6: =Tailings1LandTotal -> 10364472.38 | H6: =Tailings1WaterTotal -> 10116972.38 | I6: =Tailings!V86 -> 18851736.87 | J6: 6373304.619 | K6: 1629707.878 | L6: =Tailings!Y86 -> 18851736.87 | M6: 1629707.878 | N6: 0.0001000016928
A7: ROCK PILE | B7: =IF(ISBLANK('Rock Pile'!$C$1),"",'Rock Pile'!$C$1) -> Doris - Madrid | D7: =RP1Total -> 290125.5001 | F7: =RP1LandTotal -> 145062.75 | H7: =RP1WaterTotal -> 145062.75 | I7: ='Rock Pile'!V80 -> 189067.4131 | J7: 12459576.93 | K7: 101058.087 | L7: ='Rock Pile'!Y80 -> 189067.4132 | M7: 101058.0869 | N7: 0.0001000000047
A8: BUILDINGS AND EQUIPMENT | B8: =IF(ISBLANK('Bldgs & Equip'!$C$1),"",'Bldgs & Equip'!$C$1) -> Doris - Madrid | D8: =Bldg1Total -> 14598547.6 | F8: =Bldg1LandTotal -> 7220856.753 | H8: =Bldg1WaterTotal -> 7377690.846 | I8: ='Bldgs & Equip'!V528 -> 13264472.26 | J8: 11648475.15 | K8: 1334075.342 | L8: ='Bldgs & Equip'!Y528 -> 13335404.4 | M8: 1263143.203 | N8: 70932.1394
A9: CHEMICALS AND CONTAMINATED SOIL MANAGEMENT | B9: =IF(ISBLANK(Chemicals!$C$1),"",Chemicals!$C$1) ->  | D9: =Chem1Total -> 3610541.922 | F9: =Chem1LandTotal -> 1727440.961 | H9: =Chem1WaterTotal -> 1883100.961 | I9: =Chemicals!V161 -> 2515824.174 | J9: 2989658.944 | K9: 1094717.747 | L9: =Chemicals!Y161 -> 2565125.571 | M9: 1045416.35 | N9: 49301.39702
A10: SURFACE AND GROUNDWATER MANAGEMENT | B10: =IF(ISBLANK('Water Treatment'!$C$1),"",'Water Treatment'!$C$1) ->  | D10: =Water1Total -> 660058.5421 | F10: - | H10: =Water1Total -> 660058.5421 | I10: ='Water Management'!V80 -> 509665.0018 | J10: 1923414.208 | K10: 150393.5403 | L10: ='Water Management'!Y80 -> 656165.0018 | M10: 3893.540322 | N10: 146500
J11: 277151 | M11: 0
A12: INTERIM CARE AND MAINTENANCE | B12: =IF(ISBLANK(ICM!$C$1),"",ICM!$C$1) ->  | D12: =ICMTotal -> 7119300 | F12: - | H12: =ICMTotal -> 7119300 | I12: =ICM!P24 -> 3098608.667 | J12: 3098608.667 | K12: =D12-I12 -> 4020691.333 | L12: =ICM!S24 -> 3098608.667 | M12: 4020691.333 | N12: =L12-I12 -> 0
B13: SUBTOTAL: Capital Costs | D13: =SUM(D4:D12) -> 47089803.37 | F13: =SUM(F4:F12) -> 19772642.06 | H13: =SUM(H4:H12) -> 27317161.31 | I13: =SUM(I4:I12) -> 38732978.39 | J13: =SUM(J4:J12) -> 39015644.78 | K13: =SUM(K4:K12) -> 8356824.986 | L13: =SUM(L4:L12) -> 38999934.41 | M13: 8089868.969 | N13: =L13-I13 -> 266956.0166
B14: PERCENT OF SUBTOTAL | F14: =IF(F13<0.01,0,F13/D13) -> 0.4198922196 | H14: =IF(H13<0.01,0,H13/D13) -> 0.5801077804 | N14: =L13-I13 -> 266956.0166
A16: INDIRECT COSTS | D16: INAC COST March 2018 | F16: LAND LIABILITY | H16: WATER LIABILITY | I16: TMAC Nov 2017* | J16: TMAC Nov. 2017 | K16: Difference (SRK-INAC) | L16: PROPOSED COSTS (April 2018) | M16: PROPOSED COST DIFFERENCE
A17: MOBILIZATION/DEMOBILIZATION | B17: =IF(ISBLANK(Mobilization!$C$1),"",Mobilization!$C$1) ->  | D17: =MobTotal -> 9805515.714 | F17: =D17*$F$14 -> 4117259.758 | H17: =D17*$H$14 -> 5688255.957 | I17: =Mobilization!Q58 -> 9178098.264 | J17: 2178405.706 | K17: =D17-I17 -> 627417.4506 | L17: =Mobilization!T58 -> 9178098.264 | M17: =D17-L17 -> 627417.4506 | N17: =L17-I17 -> 0
A18: POST-CLOSURE MONITORING AND MAINTENANCE | B18: =IF(ISBLANK(PostClosure!$C$1),"",PostClosure!$C$1) ->  | D18: =PC1Total -> 4350876.502 | F18: =D18*$F$14 -> 1826899.192 | H18: =D18*$H$14 -> 2523977.31 | I18: =PostClosure!S40 -> 1347152.1 | J18: 8069692.595 | K18: 3003724.402 | L18: =PostClosure!S40 -> 1347152.1 | M18: 3003724.402 | N18: 0
A19: ENGINEERING | B19: 0.05 | D19: =B19*$D$13 -> 2354490.169 | F19: =+$F$14*D19 -> 988632.103 | H19: =+$H$14*D19 -> 1365858.066 | I19: 0 | J19: 0 | K19: 2354490.169 | L19: =0.05*L13 -> 1949996.72 | M19: 404493.4485 | N19: 1949996.72
A20: PROJECT MANAGEMENT | B20: 0.05 | D20: 2354490.169 | F20: 988632.103 | H20: 1365858.066 | I20: 1899428.141 | J20: 1899428.141 | K20: 455062.0279 | L20: 1899428.14 | M20: 455062.0287 | N20: -0.0008183766622
A21: HEALTH AND SAFETY PLANS/MONITORING & QA/QC | B21: 0 | D21: 0 | F21: 0 | H21: 0 | I21: 0 | J21: 0 | K21: 0 | L21: ='Rock Pile'!Y93 -> 0 | M21: 0 | N21: 0
A22: BONDING/INSURANCE | B22: 0 | D22: 0 | F22: 0 | H22: 0 | I22: 0 | J22: 0 | K22: 0 | L22: ='Rock Pile'!Y94 -> 0 | M22: 0 | N22: 0
A23: CONTINGENCY | B23: 0.2 | D23: 9417960.675 | F23: 3954528.412 | H23: 5463432.263 | I23: =0.2*I13 -> 7746595.678 | J23: 7803129.021 | K23: 1671364.997 | L23: =0.2*L13 -> 7799986.881 | M23: 1617973.794 | N23: 53391.20333
A24: MARKET PRICE FACTOR ADJUSTMENT | B24: 0 | D24: 0 | F24: 0 | H24: 0 | I24: 0 | J24: 0 | K24: 0 | L24: ='Rock Pile'!Y96 -> 0 | M24: 0 | N24: 0
B25: SUBTOTAL: Indirect Costs | D25: =SUM(D17:D24) -> 28283333.23 | F25: =SUM(F17:F24) -> 11875951.57 | H25: =SUM(H17:H24) -> 16407381.66 | I25: =SUM(I17:I24) -> 20171274.18 | J25: =SUM(J17:J24) -> 19950655.46 | K25: =SUM(K17:K24) -> 8112059.046 | L25: =SUM(L17:L24) -> 22174662.1 | M25: 6108671.124
A27: TOTAL COSTS | D27: =D13+D25 -> 75373136.6 | F27: =F13+F25 -> 31648593.63 | H27: =H13+H25 -> 43724542.98 | I27: 58904252.57 | J27: 58966300.25 | K27: 16468884.03 | L27: 61174596.51 | M27: 14198540.09
I29: * the spreadsheet we re-arranged to match the INAC structure; some Capital Costs were moved to Indirec Costs, causing a difference in Contingency estimate

Sheet CreateDropDown (hidden)
A1: Activity Code | B1: Count | C1: Start Row | D1: End Row
A2: SRK_2.12 | C2: 1094 | D2: =C2+B2-1 -> 
A3: SRK_5.12 | C3: 1122
A4: SRK_7.16 | C4: 1138
A5: SRK_2.30 | C5: 1096
A6: SRK_2.33 | C6: 1108
A7: SRK_2.34 | C7: 1115
A8: SRK_5.18 | C8: 1124
A9: SRK_7.15 | C9: 1133
A10: SRK_2.22 | C10: 480
A11: SRK_3.10 | C11: 263
A12: SRK_10.1 | C12: 1180
A13: SRK_10.5 | C13: 1190
A14: SRK_15.2 | C14: 1263
A15: SRK_1.7 | C15: 15
A16: SRK_14.2 | C16: 19
A17: SRK_18.1 | C17: 93
A18: SRK_2.10 | C18: 23
A19: SRK_19.2 | C19: 366
A20: SRK_1.6 | C20: 829
A21: SRK_12.1 | C21: 836
A22: SRK_12.2 | C22: 840
A23: SRK_12.3 | C23: 844
A24: SRK_13.1 | C24: 851
A25: SRK_13.2 | C25: 861
A26: SRK_13.3 | C26: 866
A27: SRK_19.1 | C27: 87
A28: SRK_1.13 | C28: 98
A29: SRK_1.2 | C29: 116
A30: SRK_1.3 | C30: 134
A31: SRK_2.20 | C31: 154
A32: SRK_2.6 | C32: 1253
A33: SRK_2.21 | C33: 471
A34: SRK_5.11 | C34: 171
A35: SRK_7.17 | C35: 188
A36: SRK_21.4 | C36: 1243
A37: SRK_17.1 | C37: 795
A38: SRK_12.4 | C38: 398
A39: SRK_5.13 | C39: 526
A40: SRK_5.14 | C40: 888
A41: SRK_5.15 | C41: 537
A42: SRK_7.18 | C42: 901
A43: SRK_7.19 | C43: 590
A44: SRK_24.2 | C44: 1220
A45: SRK_24.1 | C45: 1218
A46: SRK_7.20 | C46: 597
A47: SRK_5.23 | C47: 727
A48: SRK_2.18 | C48: 741
A49: SRK_2.1 | C49: 405
A50: SRK_5.8 | C50: 512
A51: SRK_2.9 | C51: 443
A52: SRK_5.5 | C52: 501
A53: SRK_7.6 | C53: 572
A54: SRK_5.10 | C54: 883
A55: SRK_7.9 | C55: 896
A56: SRK_2.5 | C56: 428
A57: SRK_7.8 | C57: 583
A58: SRK_2.11 | C58: 451
A59: SRK_5.9 | C59: 519
A60: SRK_2.17 | C60: 460
A61: SRK_2.19 | C61: 467
A62: SRK_2.8 | C62: 438
A63: SRK_1.4 | C63: 378
A64: SRK_5.7 | C64: 507
A65: SRK_7.4 | C65: 561 | D65: =C65+B65-1 -> 
A66: SRK_2.24 | C66: 489
A67: SRK_2.23 | C67: 485
A68: SRK_2.2 | C68: 413
A69: SRK_2.26 | C69: 744
A70: SRK_1.5 | C70: 385
A71: SRK_1.9 | C71: 392
A72: SRK_2.4 | C72: 420
A73: SRK_3.8 | C73: 876
A74: SRK_1.1 | C74: 953
A75: SRK_1.12 | C75: 949
A76: SRK_3.4 | C76: 1006
A77: SRK_15.1 | C77: 976
A78: SRK_11.1 | C78: 1269
A79: SRK_11.2 | C79: 1230
A80: SRK_11.3 | C80: 1225
A81: SRK_2.16 | C81: 1258
A82: SRK_2.15 | C82: 736
A83: SRK_2.7 | C83: 984
A84: SRK_2.27 | C84: 990
A85: SRK_2.28 | C85: 995
A86: SRK_2.29 | C86: 1003
A87: SRK_16.3 | C87: 1210
A88: SRK_1.11 | C88: 835
A89: SRK_2.32 | C89: 875
A90: SRK_8.25 | C90: 1039
A91: SRK_8.26 | C91: 1040
A92: SRK_8.28 | C92: 1047
A93: SRK_8.29 | C93: 1048
A94: SRK_8.32 | C94: 1061
A95: SRK_8.33 | C95: 1062
A96: SRK_8.35 | C96: 1069
A97: SRK_21.3 | C97: 965
A98: SRK_8.22 | C98: 1021
A99: SRK_8.23 | C99: 1027
A100: SRK_8.24 | C100: 1033
A101: SRK_8.27 | C101: 1041
A102: SRK_8.30 | C102: 1049
A103: SRK_8.31 | C103: 1055
A104: SRK_8.34 | C104: 1063
A105: SRK_4.3 | C105: 957
A106: SRK_3.5 | C106: 1009
A107: SRK_1.14 | C107: 948
A108: SRK_1.8 | C108: 975
A109: SRK_3.1 | C109: 1005
A110: SRK_2.31 | C110: 1004
A111: SRK_21.1 | C111: 972
A112: SRK_15.3 | C112: 982
A113: SRK_16.2 | C113: 983
A114: SRK_10.3 | C114: 1185
A115: SRK_5.22 | C115: 724
A116: SRK_2.13 | C116: 732
A117: SRK_2.14 | C117: 735
A118: SRK_2.35 | C118: 755
A119: SRK_5.3 | C119: 760
A120: SRK_7.3 | C120: 765
A121: SRK_7.12 | C121: 770
A122: SRK_14.3 | C122: 730
A123: SRK_18.3 | C123: 823

Sheet AssignmentSummary (hidden)
A1: Category | B1: Activity | C1: SRK Code | D1: Task | E1: Notes | F1: Ref No. | G1: Lookup | H1: SRK Cost Estimate Reference | I1: Facility Name | J1: Accounted for: | K1: Select Tast | L1: SRK Code (Full)
A2: UG Mine | B2: CONTROL ACCESS | D2: Signs | E2: Doris/Madrid South/Madrid North | F2: 2 | G2: =F2&"_"&A2 -> 2_UG Mine | J2: =COUNTIFS($C:$C,C2) -> 0 | L2: =IFERROR(H2&"."&LEFT(K2,FIND(".",K2)-1),"Assign") -> Assign | M2: =COUNTA(L2:L712) -> 711
A3: UG Mine | B3: CONTROL ACCESS | C3: DM-012 | D3: Backfill portal Doris | E3: DM-012 | F3: 6 | G3: =F3&"_"&A3 -> 6_UG Mine | H3: SRK_2.12 | I3: Doris Portal and Underground Works | J3: 2 | K3: 2. construct portal plug | L3: SRK_2.12.2
A4: UG Mine | B4: CONTROL ACCESS | C4: MN-012 | D4: Backfill Portal Madrid North | E4: MN-012 | F4: 7 | G4: 7_UG Mine | H4: SRK_5.12 | I4: Madrid North Portal and Underground Works | J4: 2 | K4: 2. construct portal plug | L4: SRK_5.12.2
A5: UG Mine | B5: CONTROL ACCESS | C5: MS-016 | D5: Backfill Portal Madrid South | E5: MS-016 | F5: 8 | G5: 8_UG Mine | H5: SRK_7.16 | I5: Madrid South Madrid South Portal and Underground Works | J5: 2 | K5: 2. construct portal plug | L5: SRK_7.16.2
A6: UG Mine | B6: CONTROL ACCESS | C6: DM-030 | D6: Cap Vent Raises | E6: DM-030, DM-033 & DM-034 | F6: 9 | G6: 9_UG Mine | H6: SRK_2.30 | I6: Doris Primary Vent Raise | J6: 8 | K6: 2. Construct a concrete cap (0.5 m thick reinforced concrete) to seal the top | L6: SRK_2.30.2
A7: UG Mine | B7: CONTROL ACCESS | C7: DM-033 | D7: Cap Vent Raises | E7: DM-030, DM-033 & DM-034 | F7: 9 | G7: 9_UG Mine | H7: SRK_2.33 | I7: Doris Connector Vent Raise | J7: 7 | K7: 5. Construct a concrete cap (0.5 m thick reinforced concrete) to seal the top | L7: SRK_2.33.5
A8: UG Mine | B8: CONTROL ACCESS | C8: DM-034 | D8: Cap Vent Raises | E8: DM-030, DM-033 & DM-034 | F8: 9 | G8: 9_UG Mine | H8: SRK_2.34 | I8: Doris Central Vent Raise | J8: 7 | K8: 5. Construct a concrete cap (0.5 m thick reinforced concrete) to seal the top | L8: SRK_2.34.5
A9: UG Mine | B9: CONTROL ACCESS | C9: MN-018 | D9: Cap Vent Raises | E9: MN-018 | F9: 10 | G9: 10_UG Mine | H9: SRK_5.18 | I9: Madrid North Vent Raises | J9: 6 | K9: 2. construct a concrete cap (0.5 m thick reinforced concrete) to seal the top | L9: SRK_5.18.2
A10: UG Mine | B10: CONTROL ACCESS | C10: MS-015 | D10: Cap Vent Raises | E10: MS-015 | F10: 11 | G10: 11_UG Mine | H10: SRK_7.15 | I10: Madrid South Vent Raises | J10: 6 | K10: 2. construct a concrete cap (0.5 m thick reinforced concrete) to seal the top | L10: SRK_7.15.2
A11: UG Mine | B11: REMOVE HAZARDOUS MATERIALS | C11: DM-012 | D11: Remove/decontam. stationary & elect. equip | E11: DM-012, DM-030, DM-033 & DM-034 | F11: 18 | G11: 18_UG Mine | H11: SRK_2.12 | I11: Doris Portal and Underground Works | J11: 2 | K11: 1. remove ducts, pipes, electrical cables | L11: SRK_2.12.1
A12: UG Mine | B12: REMOVE HAZARDOUS MATERIALS | C12: DM-030 | D12: Remove/decontam. stationary & elect. equip | E12: DM-012, DM-030, DM-033 & DM-034 | F12: 18 | G12: 18_UG Mine | H12: SRK_2.30 | I12: Doris Primary Vent Raise | J12: 8 | K12: 1. Remove ducts, pipes, and cables | L12: SRK_2.30.1
A13: UG Mine | B13: REMOVE HAZARDOUS MATERIALS | C13: DM-033 | D13: Remove/decontam. stationary & elect. equip | E13: DM-012, DM-030, DM-033 & DM-034 | F13: 18 | G13: 18_UG Mine | H13: SRK_2.33 | I13: Doris Connector Vent Raise | J13: 7 | K13: 1. Remove ducts, pipes, and cables | L13: SRK_2.33.1
A14: UG Mine | B14: REMOVE HAZARDOUS MATERIALS | C14: DM-034 | D14: Remove/decontam. stationary & elect. equip | E14: DM-012, DM-030, DM-033 & DM-034 | F14: 18 | G14: 18_UG Mine | H14: SRK_2.34 | I14: Doris Central Vent Raise | J14: 7 | K14: 1. Remove ducts, pipes, and cables | L14: SRK_2.34.1
A15: UG Mine | B15: REMOVE HAZARDOUS MATERIALS | C15: DM-022 | D15: Remove/decontam. stationary & elect. equip | E15: Doris remove equipment from underground Mech Shop | F15: 19 | G15: 19_UG Mine | H15: SRK_2.22 | I15: Doris Underground Support Mechanical Shop | J15: 5 | L15: Assign
A16: UG Mine | B16: REMOVE HAZARDOUS MATERIALS | C16: MN-012 | D16: Remove/decontam. stationary & elect. equip | E16: MN-012 & MN-018 | F16: 20 | G16: 20_UG Mine | H16: SRK_5.12 | I16: Madrid North Portal and Underground Works | J16: 2 | K16: 1. remove ducts, pipes, electrical cables | L16: SRK_5.12.1
A17: UG Mine | B17: REMOVE HAZARDOUS MATERIALS | C17: MN-018 | D17: Remove/decontam. stationary & elect. equip | E17: MN-012 & MN-018 | F17: 20 | G17: 20_UG Mine | H17: SRK_5.18 | I17: Madrid North Vent Raises | J17: 6 | K17: 1. remove ducts, pipes, electrical cables | L17: SRK_5.18.1
A18: UG Mine | B18: REMOVE HAZARDOUS MATERIALS | C18: MS-015 | D18: Remove/decontam. stationary & elect. equip | E18: MS-015 & MS-016 | F18: 21 | G18: 21_UG Mine | H18: SRK_7.15 | I18: Madrid South Vent Raises | J18: 6 | K18: 1. remove ducts, pipes, electrical cables | L18: SRK_7.15.1
A19: UG Mine | B19: REMOVE HAZARDOUS MATERIALS | C19: MS-016 | D19: Remove/decontam. stationary & elect. equip | E19: MS-015 & MS-016 | F19: 21 | G19: 21_UG Mine | H19: SRK_7.16 | I19: Madrid South Madrid South Portal and Underground Works | J19: 2 | K19: 1. remove ducts, pipes, electrical cables | L19: SRK_7.16.1
A20: UG Mine | B20: REMOVE HAZARDOUS MATERIALS | C20: DW-010 | D20: Remove misc. haz. mat & explosives | E20: Remove explosives from AWR storage | F20: 23 | G20: 23_UG Mine | H20: SRK_3.10 | I20: Doris-Windy All Weather Road Explosives Storage Facility | J20: 3 | K20: 1. remove all explosives | L20: SRK_3.10.1
A21: UG Mine | B21: REMOVE HAZARDOUS MATERIALS | C21: New | D21: Other | E21: Cargo dock controller removal | F21: 24 | G21: 24_UG Mine | J21: 5 | L21: Assign
A22: Tailings | B22: SPECIALIZED ITEMS | D22: Tailings Impoundment Name: | E22: Doris-Madrid Mines | F22: 1 | G22: 1_Tailings | J22: 0 | L22: Assign
A23: Tailings | B23: COVER TAILINGS | C23: TIA-001 | D23: Grade/shape tailings surface | E23: Windy Development Area Layout work for regrading | F23: 13 | G23: 13_Tailings | H23: SRK_10.1 | I23: TIA Subaerial Tailings Area | J23: 5 | L23: Assign
A24: Tailings | B24: COVER TAILINGS | C24: TIA-005 | D24: Supply & Install geotextile/geosynthetic | E24: TIA-005 placement of NWG for erosion prevention | F24: 17 | G24: 17_Tailings | H24: SRK_10.5 | I24: TIA Shoreline Protection | J24: 3 | K24: 1. Install separation geotextile | L24: SRK_10.5.1
A25: Tailings | B25: COVER TAILINGS | C25: TIA-001 | D25: Rock cover | E25: Prepare rock cover aggregate (drill and blast) TIA-001 | F25: 19 | G25: 19_Tailings | H25: SRK_10.1 | I25: TIA Subaerial Tailings Area | J25: 5 | K25: 1. Produce ROQ (quarry drill&blast) | L25: SRK_10.1.1
A26: Tailings | B26: COVER TAILINGS | C26: TIA-001 | D26: Rock cover | E26: Place 300 mm cover for TIA-001 | F26: 20 | G26: 20_Tailings | H26: SRK_10.1 | I26: TIA Subaerial Tailings Area | J26: 5 | K26: 2. LHDP ROQ to construct 0.3 m cover | L26: SRK_10.1.2
A27: Tailings | B27: COVER TAILINGS | C27: TIA-005 | D27: Rock cover | E27: Install nonwoven geotextile at TIA-005 | F27: 21 | G27: 21_Tailings | H27: SRK_10.5 | I27: TIA Shoreline Protection | J27: 3 | K27: 1. Install separation geotextile | L27: SRK_10.5.1
A28: Tailings | B28: COVER TAILINGS | C28: TIA-005 | D28: Rock cover | E28: Place Rip Rap over NWG at TIA-005 | F28: 22 | G28: 22_Tailings | H28: SRK_10.5 | I28: TIA Shoreline Protection | J28: 3 | K28: 2. Haul and place riprap to prevent erosion | L28: SRK_10.5.2
A29: Tailings | B29: COVER TAILINGS | C29: TIA-001 | D29: Rock cover | E29: Produce and Place Rip Rap in channel | F29: 23 | G29: =F29&"_"&A29 -> 23_Tailings | H29: SRK_10.1 | I29: TIA Subaerial Tailings Area | J29: 5 | K29: 3. Produce additional ROQ for drainage channel armoring | L29: =IFERROR(H29&"."&LEFT(K29,FIND(".",K29)-1),"Assign") -> SRK_10.1.3
A30: Tailings | B30: COVER TAILINGS | C30: TIA-001 | D30: Rock cover | E30: Produce and Place Rip Rap in channel | F30: 23 | G30: 23_Tailings | H30: SRK_10.1 | I30: TIA Subaerial Tailings Area | J30: 5 | K30: 4. LHDP ROQ to construct 0.3 m drainage channel armoring | L30: SRK_10.1.4
A31: Tailings | B31: COVER TAILINGS | C31: WC-011 | D31: Rock cover | E31: Windy Development Area cover | F31: 24 | G31: 24_Tailings | H31: SRK_19.11 | I31: Windy Developed Areas (for regrading) | J31: 4 | K31: 10. Load, Haul, Dump, Place from Quarry D (less than 1 km) | L31: SRK_19.11.10
A32: Tailings | B32: REMOVE TAILINGS DISCHARGE | C32: SR-002 | D32: Pipe | E32: SR-002 tailings pipeline from Doris to TIA | F32: 35 | G32: 35_Tailings | H32: SRK_15.2 | I32: Secondary Road Tailings and Reclaim Water Pipelines | J32: 5 | K32: 1. Cut pipelines into manageable pieces | L32: =IFERROR(H32&"."&LEFT(K32,FIND(".",K32)-1),"Assign") -> SRK_15.2.1
A33: Tailings | B33: CONSTRUCT SEEPAGE COLLECTION POND | C33: PLA-003 | D33: Install Silt Fencing | E33: Patch Lake Devleopment Area | F33: 54 | G33: =F33&"_"&A33 -> 54_Tailings | H33: SRK_18.3 | I33: Patch Lake Developed Areas (for regrading) | J33: 2 | K33: 6. install silt fencing | L33: SRK_18.3.6
A34: Tailings | B34: TREAT SUPERNATANT | C34: New | D34: Supply reagents | F34: 64 | G34: 64_Tailings | J34: 5 | L34: Assign
A35: Rock Pile | B35: STABILIZE SLOPES | C35: RB-007 | D35: Grade Overburden | E35: Roberts Bay Overburden Pile RB-007 | F35: 2 | G35: 2_Rock Pile | H35: SRK_1.7 | I35: Roberts Bay Overburden Pile | J35: 3 | K35: 4. grade for positive drainage | L35: SRK_1.7.4
A36: Rock Pile | B36: STABILIZE SLOPES | C36: Q2-002 | D36: Grade Overburden | E36: Quarry 2 Overburden Pile Q2-002 (slopes to 3:1) | F36: 3 | G36: 3_Rock Pile | H36: SRK_14.2 | I36: Quarry 2 Overburden Pile | J36: 4 | K36: 1. reslope to 3H:1V | L36: SRK_14.2.1
A37: Rock Pile | B37: STABILIZE SLOPES | C37: Q2-002 | D37: Grade Overburden | E37: Quarry 2 Overburden Pile Q2-002 (top) | F37: 4 | G37: 4_Rock Pile | H37: SRK_14.2 | I37: Quarry 2 Overburden Pile | J37: 4 | K37: 2. grade top for positive drainage | L37: SRK_14.2.2
A38: Rock Pile | B38: STABILIZE SLOPES | C38: PLA-001 | D38: Grade Overburden | E38: Patch Lake Tank Farm PLA-001 regrade (dozer) | F38: 5 | G38: 5_Rock Pile | H38: SRK_18.1 | I38: Patch Lake Tank Farm | J38: 6 | K38: 2. regrade spoil piles to ensure positive drainage | L38: SRK_18.1.2
A39: Rock Pile | B39: STABILIZE SLOPES | C39: PLA-001 | D39: Grade Overburden | E39: Patch Lake Tank Farm PLA-001 regrade (excavator) | F39: 6 | G39: 6_Rock Pile | H39: SRK_18.1 | I39: Patch Lake Tank Farm | J39: 6 | K39: 3. regrade spoil piles to ensure positive drainage (with excavator) | L39: SRK_18.1.3
A40: Rock Pile | B40: STABILIZE SLOPES | C40: DW-001 | D40: Grade Overburden | E40: Doris Windy AWR Explosive facility regrade (DW-001) | F40: 7 | G40: 7_Rock Pile | H40: SRK_3.1 | I40: Doris-Windy All Weather Road All weather road | J40: 2 | K40: 4. grade for positive drainage | L40: SRK_3.1.4
A41: Rock Pile | B41: STABILIZE SLOPES | C41: WC-002 | D41: Grade Overburden | E41: Windy camp Regrading Bldg foot prints (WC-002) | F41: 8 | G41: 8_Rock Pile | H41: SRK_19.2 | I41: Windy Accomodation Camp Buildings | J41: 10 | K41: 4. grade for positive drainage | L41: SRK_19.2.4
A42: Rock Pile | B42: STABILIZE SLOPES | C42: RB-006 | D42: Grade Laydown Areas | E42: Roberts bay Laydown Area RB-006 | F42: 9 | G42: 9_Rock Pile | H42: SRK_1.6 | I42: Roberts Bay Laydown Area | J42: 6 | K42: 6. regrade area for positive drainage | L42: SRK_1.6.6
A43: Rock Pile | B43: STABILIZE SLOPES | C43: RP-001 | D43: Grade Laydown Areas | E43: Reagent Pad - Equipment (RP-001) | F43: 10 | G43: =F43&"_"&A43 -> 10_Rock Pile | H43: SRK_12.1 | I43: Reagent Pads Equipment Laydown Area | J43: 3 | K43: 3. regrade area for positive drainage | L43: SRK_12.1.3
A44: Rock Pile | B44: STABILIZE SLOPES | C44: RP-002 | D44: Grade Laydown Areas | E44: Reagent Pad - Material (RP-002) | F44: 11 | G44: 11_Rock Pile | H44: SRK_12.2 | I44: Reagent Pads Materials Laydown Area | J44: 4 | K44: 3. regrade area for positive drainage | L44: SRK_12.2.3
A45: Rock Pile | B45: STABILIZE SLOPES | C45: RP-003 | D45: Grade Laydown Areas | E45: Reagent Pad - ANFO Storage Area (RP-003) | F45: 12 | G45: 12_Rock Pile | H45: SRK_12.3 | I45: Reagent Pads Ammonium Nitrate Storage Area | J45: 6 | K45: 7. regrade area for positive drainage | L45: SRK_12.3.7
A46: Rock Pile | B46: STABILIZE SLOPES | C46: WM-001 | D46: Grade Laydown Areas | E46: Waste Management Landfarm (WM-001) | F46: 13 | G46: 13_Rock Pile | H46: SRK_13.1 | I46: Waste Management Area Land Farm | J46: 14 | K46: 10. regrade area for positive drainage | L46: SRK_13.1.10
A47: Rock Pile | B47: STABILIZE SLOPES | C47: WM-002 | D47: Grade Laydown Areas | E47: Waste Management Batch Plant Pad (WM-002) | F47: 14 | G47: 14_Rock Pile | H47: SRK_13.2 | I47: Waste Management Area Batch Plant Pad | J47: 4 | K47: 5. regrade area for positive drainage | L47: SRK_13.2.5
A48: Rock Pile | B48: STABILIZE SLOPES | C48: WM-003 | D48: Grade Laydown Areas | E48: Waste Management Burn Pan Pad (WM-003) | F48: 15 | G48: 15_Rock Pile | H48: SRK_13.3 | I48: Waste Management Area Burn Pan | J48: 4 | K48: 5. regrade area for positive drainage | L48: SRK_13.3.5
A49: Rock Pile | B49: STABILIZE SLOPES | C49: WC-001 | D49: Buttress | E49: Windy Tank Farm (WC-001) | F49: 18 | G49: 18_Rock Pile | H49: SRK_19.1 | I49: Windy Tank Farm | J49: 4 | K49: 3. place rockfill buttress on slope near tank farm | L49: SRK_19.1.3
A50: Rock Pile | B50: ROCK COVER | C50: PLA-001 | D50: Other | E50: Patch Lake Tank Farm PLA-001 cover 1m | F50: 30 | G50: 30_Rock Pile | H50: SRK_18.1 | I50: Patch Lake Tank Farm | J50: 6 | K50: 5. cover area with 1 m thermal rock cover | L50: SRK_18.1.5
A51: Rock Pile | B51: HEAP LEACH SEEPAGE TREATMENT - Cyanide Detox | C51: New | D51: Equipment maintenance and parts | F51: 61 | G51: 61_Rock Pile | J51: 5 | L51: Assign
A52: Chemicals | B52: BUILDING DECONTAMINATION & CONSOLIDATION OF HAZARDOUS MATERIALS | C52: RB-013 | D52: Drain residual fuel from tanks | E52: RB-013, RB-002, RB-003, & DM-020 | F52: 3 | G52: 3_Chemicals | H52: SRK_1.13 | I52: Roberts Bay 10ML Fuel Storage Facility | J52: 15 | K52: 1. drain residual fuel | L52: SRK_1.13.1
A53: Chemicals | B53: BUILDING DECONTAMINATION & CONSOLIDATION OF HAZARDOUS MATERIALS | C53: RB-002 | D53: Drain residual fuel from tanks | E53: RB-013, RB-002, RB-003, & DM-020 | F53: 3 | G53: 3_Chemicals | H53: SRK_1.2 | I53: Roberts Bay 20 ML Tank Farm | J53: 17 | K53: 1. drain residual fuel | L53: SRK_1.2.1
A54: Chemicals | B54: BUILDING DECONTAMINATION & CONSOLIDATION OF HAZARDOUS MATERIALS | C54: RB-003 | D54: Drain residual fuel from tanks | E54: RB-013, RB-002, RB-003, & DM-020 | F54: 3 | G54: 3_Chemicals | H54: SRK_1.3 | I54: Roberts Bay Quarry 1 - 5 ML Tank Farm | J54: 17 | K54: 1. drain residual fuel | L54: SRK_1.3.1
A55: Chemicals | B55: BUILDING DECONTAMINATION & CONSOLIDATION OF HAZARDOUS MATERIALS | C55: DM-020 | D55: Drain residual fuel from tanks | E55: RB-013, RB-002, RB-003, & DM-020 | F55: 3 | G55: 3_Chemicals | H55: SRK_2.20 | I55: Doris Tank Farm | J55: 17 | K55: 1. drain residual fuel | L55: SRK_2.20.1
A56: Chemicals | B56: BUILDING DECONTAMINATION & CONSOLIDATION OF HAZARDOUS MATERIALS | C56: RB-003 | D56: Drain, clean and crush empty drums | E56: RB-003 | F56: 4 | G56: =F56&"_"&A56 -> 4_Chemicals | H56: SRK_1.3 | I56: Roberts Bay Quarry 1 - 5 ML Tank Farm | J56: 17 | K56: 10. drain and wash empty fuel drums | L56: =IFERROR(H56&"."&LEFT(K56,FIND(".",K56)-1),"Assign") -> SRK_1.3.10
A57: Chemicals | B57: BUILDING DECONTAMINATION & CONSOLIDATION OF HAZARDOUS MATERIALS | C57: RB-003 | D57: Drain, clean and crush empty drums | E57: RB-003 | F57: 4 | G57: 4_Chemicals | H57: SRK_1.3 | I57: Roberts Bay Quarry 1 - 5 ML Tank Farm | J57: 17 | K57: 11. crush empty fuel drums | L57: SRK_1.3.11
A58: Chemicals | B58: BUILDING DECONTAMINATION & CONSOLIDATION OF HAZARDOUS MATERIALS | C58: DM-006 | D58: Removal of Doris fresh water pipeline | E58: DM-006 decommission | F58: 5 | G58: 5_Chemicals | H58: SRK_2.6 | I58: Doris Fresh Water Pipelines | J58: 4 | K58: 2. decommission electrical (heat tracing) | L58: SRK_2.6.2
A59: Chemicals | B59: BUILDING DECONTAMINATION & CONSOLIDATION OF HAZARDOUS MATERIALS | C59: DM-006 | D59: Removal of Doris fresh water pipeline | E59: DM-006 dismantle | F59: 6 | G59: 6_Chemicals | H59: SRK_2.6 | I59: Doris Fresh Water Pipelines | J59: 4 | K59: 1. cut pipelines into manageable pieces | L59: SRK_2.6.1
A60: Chemicals | B60: BUILDING DECONTAMINATION & CONSOLIDATION OF HAZARDOUS MATERIALS | C60: DM-006 | D60: Removal of Doris fresh water pipeline | E60: DM-006 load, haul & tip debris to Q3 landfill | F60: 7 | G60: =F60&"_"&A60 -> 7_Chemicals | H60: SRK_2.6 | I60: Doris Fresh Water Pipelines | J60: 4 | K60: 4. load debris into containers for transport | L60: =IFERROR(H60&"."&LEFT(K60,FIND(".",K60)-1),"Assign") -> SRK_2.6.4
A61: Chemicals | B61: BUILDING DECONTAMINATION & CONSOLIDATION OF HAZARDOUS MATERIALS | C61: DM-006 | D61: Removal of Doris fresh water pipeline | E61: DM-006 load, haul & tip debris to Q3 landfill | F61: 7 | G61: =F61&"_"&A61 -> 7_Chemicals | H61: SRK_2.6 | I61: Doris Fresh Water Pipelines | J61: 4 | K61: 5. haul debris to quarry 3 landfill | L61: =IFERROR(H61&"."&LEFT(K61,FIND(".",K61)-1),"Assign") -> SRK_2.6.5
A62: Chemicals | B62: BUILDING DECONTAMINATION & CONSOLIDATION OF HAZARDOUS MATERIALS | C62: SR-002 | D62: Removal of Secondary Road Tailings and Reclaim water pipeline | E62: SR-002 decommission | F62: 8 | G62: 8_Chemicals | H62: SRK_15.2 | I62: Secondary Road Tailings and Reclaim Water Pipelines | J62: 5 | K62: 2. decommission electrical (heat tracing) | L62: SRK_15.2.2
A63: Chemicals | B63: BUILDING DECONTAMINATION & CONSOLIDATION OF HAZARDOUS MATERIALS | C63: SR-002 | D63: Removal of Secondary Road Tailings and Reclaim water pipeline | E63: SR-002 dismantle | F63: 9 | G63: 9_Chemicals | H63: SRK_15.2 | I63: Secondary Road Tailings and Reclaim Water Pipelines | J63: 5 | K63: 3. collect electrical cables and controllers and prep for shipping off-site | L63: SRK_15.2.3
A64: Chemicals | B64: BUILDING DECONTAMINATION & CONSOLIDATION OF HAZARDOUS MATERIALS | C64: SR-002 | D64: Removal of Secondary Road Tailings and Reclaim water pipeline | E64: SR-002 load, haul & tip debris to Q3 landfill | F64: 10 | G64: =F64&"_"&A64 -> 10_Chemicals | H64: SRK_15.2 | I64: Secondary Road Tailings and Reclaim Water Pipelines | J64: 5 | K64: 4. Load debris for transport to landfill | L64: =IFERROR(H64&"."&LEFT(K64,FIND(".",K64)-1),"Assign") -> SRK_15.2.4
A65: Chemicals | B65: BUILDING DECONTAMINATION & CONSOLIDATION OF HAZARDOUS MATERIALS | C65: SR-002 | D65: Removal of Secondary Road Tailings and Reclaim water pipeline | E65: SR-002 load, haul & tip debris to Q3 landfill | F65: 10 | G65: 10_Chemicals | H65: SRK_15.2 | I65: Secondary Road Tailings and Reclaim Water Pipelines | J65: 5 | K65: 5. Haul waste to the landfill | L65: SRK_15.2.5
A66: Chemicals | B66: BUILDING DECONTAMINATION & CONSOLIDATION OF HAZARDOUS MATERIALS | C66: DM-030 | D66: Drain residual fuel from tank at vent raise | E66: DM-030 drain tank | F66: 11 | G66: 11_Chemicals | H66: SRK_2.30 | I66: Doris Primary Vent Raise | J66: =COUNTIFS($C:$C,C66) -> 8 | K66: 7. Drain and decommission Enviro Tank | L66: SRK_2.30.7
A67: Chemicals | B67: BUILDING DECONTAMINATION & CONSOLIDATION OF HAZARDOUS MATERIALS | C67: DM-021 | D67: Drain chemicals and reagent from containers | E67: Doris DM-021 | F67: 12 | G67: 12_Chemicals | H67: SRK_2.21 | I67: Doris Process Plant | J67: 9 | K67: 2. Drain chemicals and reagents into containers for shipping off site | L67: SRK_2.21.2
A68: Chemicals | B68: BUILDING DECONTAMINATION & CONSOLIDATION OF HAZARDOUS MATERIALS | D68: Drain chemicals and reagent from containers | E68: Madrid North Concentrator | F68: 13 | G68: 13_Chemicals | H68: SRK_5.21 | I68: Madrid North Concentrator | J68: 0 | K68: 2. Drain chemicals and reagents into containers for shipping off site | L68: SRK_5.21.2
A69: Chemicals | B69: BUILDING DECONTAMINATION & CONSOLIDATION OF HAZARDOUS MATERIALS | C69: RB-013 | D69: Decontaminate bulk fuel storage | E69: Roberts Bay and Doris Tank Farms RB-013, RB-002, RB-003, & DM-020 | F69: 15 | G69: =F69&"_"&A69 -> 15_Chemicals | H69: SRK_1.13 | I69: Roberts Bay 10ML Fuel Storage Facility | J69: 15 | K69: 4. wash tanks | L69: SRK_1.13.4
A70: Chemicals | B70: BUILDING DECONTAMINATION & CONSOLIDATION OF HAZARDOUS MATERIALS | C70: RB-002 | D70: Decontaminate bulk fuel storage | E70: Roberts Bay and Doris Tank Farms RB-013, RB-002, RB-003, & DM-020 | F70: 15 | G70: =F70&"_"&A70 -> 15_Chemicals | H70: SRK_1.2 | I70: Roberts Bay 20 ML Tank Farm | J70: 17 | K70: 4. wash tanks | L70: =IFERROR(H70&"."&LEFT(K70,FIND(".",K70)-1),"Assign") -> SRK_1.2.4
A71: Chemicals | B71: BUILDING DECONTAMINATION & CONSOLIDATION OF HAZARDOUS MATERIALS | C71: RB-003 | D71: Decontaminate bulk fuel storage | E71: Roberts Bay and Doris Tank Farms RB-013, RB-002, RB-003, & DM-020 | F71: 15 | G71: 15_Chemicals | H71: SRK_1.3 | I71: Roberts Bay Quarry 1 - 5 ML Tank Farm | J71: 17 | K71: 4. wash tanks | L71: SRK_1.3.4
A72: Chemicals | B72: BUILDING DECONTAMINATION & CONSOLIDATION OF HAZARDOUS MATERIALS | C72: DM-020 | D72: Decontaminate bulk fuel storage | E72: Roberts Bay and Doris Tank Farms RB-013, RB-002, RB-003, & DM-020 | F72: 15 | G72: 15_Chemicals | H72: SRK_2.20 | I72: Doris Tank Farm | J72: 17 | K72: 4. wash tanks | L72: SRK_2.20.4
A73: Chemicals | B73: BUILDING DECONTAMINATION & CONSOLIDATION OF HAZARDOUS MATERIALS | C73: MN-011 | D73: Decontaminate bulk fuel storage | E73: Madrid North Fuel Storage Facility MN-011 | F73: 16 | G73: 16_Chemicals | H73: SRK_5.11 | I73: Madrid North Fuel Storage Facility | J73: 13 | K73: 4. wash tanks | L73: SRK_5.11.4
A74: Chemicals | B74: BUILDING DECONTAMINATION & CONSOLIDATION OF HAZARDOUS MATERIALS | C74: MS-017 | D74: Decontaminate bulk fuel storage | E74: Madrid South Fuel Storage Facility MS-017 | F74: 17 | G74: 17_Chemicals | H74: SRK_7.17 | I74: Madrid South Fuel Storage Facility | J74: 14 | K74: 4. wash tanks | L74: SRK_7.17.4
A75: Chemicals | B75: BUILDING DECONTAMINATION & CONSOLIDATION OF HAZARDOUS MATERIALS | C75: CDR-004 | D75: CDR-004 Cargo Dock Access Road Fuel Transfer Lines | E75: Decommission Pipeline | F75: 18 | G75: 18_Chemicals | H75: SRK_21.4 | I75: Cargo Dock Access Road Fuel Transfer Pipeline | J75: 5 | K75: 1. flush pipeline prior to decommissioning | L75: SRK_21.4.1
A76: Chemicals | B76: BUILDING DECONTAMINATION & CONSOLIDATION OF HAZARDOUS MATERIALS | C76: CDR-004 | D76: CDR-004 Cargo Dock Access Road Fuel Transfer Lines | E76: Dismantle pipeline | F76: 19 | G76: 19_Chemicals | H76: SRK_21.4 | I76: Cargo Dock Access Road Fuel Transfer Pipeline | J76: 5 | K76: 2. cut pipelines into manageable pieces and place in containers for hauling to landfill | L76: SRK_21.4.2
A77: Chemicals | B77: BUILDING DECONTAMINATION & CONSOLIDATION OF HAZARDOUS MATERIALS | C77: CDR-004 | D77: CDR-004 Cargo Dock Access Road Fuel Transfer Lines | E77: Remove electrical equipment | F77: 20 | G77: 20_Chemicals | H77: SRK_21.4 | I77: Cargo Dock Access Road Fuel Transfer Pipeline | J77: 5 | K77: 3. remove electrical cables and controllers | L77: SRK_21.4.3
A78: Chemicals | B78: BUILDING DECONTAMINATION & CONSOLIDATION OF HAZARDOUS MATERIALS | C78: CDR-004 | D78: CDR-004 Cargo Dock Access Road Fuel Transfer Lines | E78: Load, haul and tip debris at Q3 landfill | F78: 21 | G78: =F78&"_"&A78 -> 21_Chemicals | H78: SRK_21.4 | I78: Cargo Dock Access Road Fuel Transfer Pipeline | J78: 5 | K78: 4. load debris into containers for hauling to landfill | L78: =IFERROR(H78&"."&LEFT(K78,FIND(".",K78)-1),"Assign") -> SRK_21.4.4
A79: Chemicals | B79: BUILDING DECONTAMINATION & CONSOLIDATION OF HAZARDOUS MATERIALS | C79: CDR-004 | D79: CDR-004 Cargo Dock Access Road Fuel Transfer Lines | E79: Load, haul and tip debris at Q3 landfill | F79: 21 | G79: 21_Chemicals | H79: SRK_21.4 | I79: Cargo Dock Access Road Fuel Transfer Pipeline | J79: 5 | K79: 5. haul containers to Quarry 3 landfill | L79: SRK_21.4.5
A80: Chemicals | B80: BUILDING DECONTAMINATION & CONSOLIDATION OF HAZARDOUS MATERIALS | C80: CM-001 | D80: Drain Reclaim Pond | E80: CM-001 labour | F80: 22 | G80: 22_Chemicals | H80: SRK_17.1 | I80: Closure - Drain Reclaim Pond | J80: 3 | K80: 1. Pump technician | L80: SRK_17.1.1
A81: Chemicals | B81: BUILDING DECONTAMINATION & CONSOLIDATION OF HAZARDOUS MATERIALS | C81: CM-001 | D81: Drain Reclaim Pond | E81: CM-001 equipment | F81: 23 | G81: =F81&"_"&A81 -> 23_Chemicals | H81: SRK_17.1 | I81: Closure - Drain Reclaim Pond | J81: 3 | K81: 3. Site Services Support &Maintenance | L81: =IFERROR(H81&"."&LEFT(K81,FIND(".",K81)-1),"Assign") -> SRK_17.1.3
A82: Chemicals | B82: BUILDING DECONTAMINATION & CONSOLIDATION OF HAZARDOUS MATERIALS | C82: CM-001 | D82: Drain Reclaim Pond | E82: CM-001 equipment | F82: 23 | G82: 23_Chemicals | H82: SRK_17.1 | I82: Closure - Drain Reclaim Pond | J82: 3 | K82: 4. Spare Parts & Consumables | L82: SRK_17.1.4
A83: Chemicals | B83: BUILDING DECONTAMINATION & CONSOLIDATION OF HAZARDOUS MATERIALS | C83: DM-020 | D83: Liner cleaning | E83: Doris (DM-020, RP-004& WM-001) | F83: 24 | G83: =F83&"_"&A83 -> 24_Chemicals | H83: SRK_2.20 | I83: Doris Tank Farm | J83: 17 | K83: 13. clean liner | L83: SRK_2.20.13
A84: Chemicals | B84: BUILDING DECONTAMINATION & CONSOLIDATION OF HAZARDOUS MATERIALS | C84: RP-004 | D84: Liner cleaning | E84: Doris (DM-020, RP-004& WM-001) | F84: 24 | G84: 24_Chemicals | H84: SRK_12.4 | I84: Reagent Pads Exploration Drilling Support Shop | J84: 6 | K84: 13. clean liner | L84: SRK_12.4.13
A85: Chemicals | B85: BUILDING DECONTAMINATION & CONSOLIDATION OF HAZARDOUS MATERIALS | C85: WM-001 | D85: Liner cleaning | E85: Doris (DM-020, RP-004& WM-001) | F85: 24 | G85: 24_Chemicals | H85: SRK_13.1 | I85: Waste Management Area Land Farm | J85: 14 | K85: 5. clean liner | L85: SRK_13.1.5
A86: Chemicals | B86: BUILDING DECONTAMINATION & CONSOLIDATION OF HAZARDOUS MATERIALS | C86: RB-002 | D86: Liner cleaning | E86: Roberts Bay Q1 Tank farm | F86: 25 | G86: =F86&"_"&A86 -> 25_Chemicals | H86: SRK_1.2 | I86: Roberts Bay 20 ML Tank Farm | J86: 17 | K86: 13. clean liner | L86: SRK_1.2.13
A87: Chemicals | B87: BUILDING DECONTAMINATION & CONSOLIDATION OF HAZARDOUS MATERIALS | C87: RB-003 | D87: Liner cleaning | E87: Roberts Bay Tank Farm | F87: 26 | G87: =F87&"_"&A87 -> 26_Chemicals | H87: SRK_1.3 | I87: Roberts Bay Quarry 1 - 5 ML Tank Farm | J87: 17 | K87: 13. clean liner | L87: SRK_1.3.13
A88: Chemicals | B88: BUILDING DECONTAMINATION & CONSOLIDATION OF HAZARDOUS MATERIALS | C88: MN-011 | D88: Liner cleaning | E88: Madrid North liners (MN-011, -13, -14, & -15) | F88: 27 | G88: 27_Chemicals | H88: SRK_5.11 | I88: Madrid North Fuel Storage Facility | J88: 13 | K88: 13. clean liner | L88: SRK_5.11.13
A89: Chemicals | B89: BUILDING DECONTAMINATION & CONSOLIDATION OF HAZARDOUS MATERIALS | C89: MN-013 | D89: Liner cleaning | E89: Madrid North liners (MN-011, -13, -14, & -15) | F89: 27 | G89: 27_Chemicals | H89: SRK_5.13 | I89: Madrid North Water Storage Tank with Containment | J89: 7 | K89: 8. clean liner | L89: SRK_5.13.8
A90: Chemicals | B90: BUILDING DECONTAMINATION & CONSOLIDATION OF HAZARDOUS MATERIALS | C90: MN-014 | D90: Liner cleaning | E90: Madrid North liners (MN-011, -13, -14, & -15) | F90: 27 | G90: 27_Chemicals | H90: SRK_5.14 | I90: Madrid North Calcium Chloride Laydown | J90: 5 | K90: 4. clean liner | L90: SRK_5.14.4
A91: Chemicals | B91: BUILDING DECONTAMINATION & CONSOLIDATION OF HAZARDOUS MATERIALS | C91: MN-015 | D91: Liner cleaning | E91: Madrid North liners (MN-011, -13, -14, & -15) | F91: 27 | G91: 27_Chemicals | H91: SRK_5.15 | I91: Madrid North Brine Mixing Facility | J91: 5 | K91: 4. clean liner | L91: SRK_5.15.4
A92: Chemicals | B92: BUILDING DECONTAMINATION & CONSOLIDATION OF HAZARDOUS MATERIALS | C92: MS-017 | D92: Liner cleaning | E92: Madrid South liners (MS-017, -018 & -019) | F92: 28 | G92: =F92&"_"&A92 -> 28_Chemicals | H92: SRK_7.17 | I92: Madrid South Fuel Storage Facility | J92: 14 | K92: 13. clean liner | L92: SRK_7.17.13
A93: Chemicals | B93: BUILDING DECONTAMINATION & CONSOLIDATION OF HAZARDOUS MATERIALS | C93: MS-018 | D93: Liner cleaning | E93: Madrid South liners (MS-017, -018 & -019) | F93: 28 | G93: 28_Chemicals | H93: SRK_7.18 | I93: Madrid South Calcium Chloride Laydown | J93: 5 | K93: 4. clean liner | L93: SRK_7.18.4
A94: Chemicals | B94: BUILDING DECONTAMINATION & CONSOLIDATION OF HAZARDOUS MATERIALS | C94: MS-019 | D94: Liner cleaning | E94: Madrid South liners (MS-017, -018 & -019) | F94: 28 | G94: =F94&"_"&A94 -> 28_Chemicals | H94: SRK_7.19 | I94: Madrid South Brine Mixing Facility | J94: 5 | K94: 4. clean liner | L94: SRK_7.19.4
A95: Chemicals | B95: BUILDING DECONTAMINATION & CONSOLIDATION OF HAZARDOUS MATERIALS | C95: DM-021 | D95: Other | E95: Load and Transport drums from Doris Process Plant to Roberts Bay | F95: 32 | G95: =F95&"_"&A95 -> 32_Chemicals | H95: SRK_2.21 | I95: Doris Process Plant | J95: 9 | K95: 9. transport drums to Roberts Bay | L95: SRK_2.21.9
A96: Chemicals | B96: BUILDING DECONTAMINATION & CONSOLIDATION OF HAZARDOUS MATERIALS | C96: MN-009 | D96: Other | E96: Madrid North drums from Concentrator to RB | F96: 33 | G96: =F96&"_"&A96 -> 33_Chemicals | H96: SRK_5.21 | I96: Madrid North Concentrator | J96: 5 | K96: 9. transport drums to Roberts Bay | L96: SRK_5.21.9
A97: Chemicals | B97: HAZARDOUS MATERIALS REMOVAL | C97: RB-002 | D97: Waste fuel | E97: RB-002, RB-013&DM-020 | F97: 37 | G97: 37_Chemicals | H97: SRK_1.2 | I97: Roberts Bay 20 ML Tank Farm | J97: 17 | K97: 1. drain residual fuel | L97: SRK_1.2.1
A98: Chemicals | B98: HAZARDOUS MATERIALS REMOVAL | C98: RB-013 | D98: Waste fuel | E98: RB-002, RB-013&DM-020 | F98: 37 | G98: 37_Chemicals | H98: SRK_1.13 | I98: Roberts Bay 10ML Fuel Storage Facility | J98: 15 | K98: 1. drain residual fuel | L98: SRK_1.13.1
A99: Chemicals | B99: HAZARDOUS MATERIALS REMOVAL | C99: DM-020 | D99: Waste fuel | E99: RB-002, RB-013&DM-020 | F99: 37 | G99: 37_Chemicals | H99: SRK_2.20 | I99: Doris Tank Farm | J99: 17 | K99: 1. drain residual fuel | L99: SRK_2.20.1
A100: Chemicals | B100: HAZARDOUS MATERIALS REMOVAL | C100: MS-017 | D100: Waste fuel | E100: Madrid South MS-017 | F100: 38 | G100: 38_Chemicals | H100: SRK_7.17 | I100: Madrid South Fuel Storage Facility | J100: 14 | K100: 1. drain residual fuel | L100: SRK_7.17.1
A101: Chemicals | B101: HAZARDOUS MATERIALS REMOVAL | C101: MN-011 | D101: Waste fuel | E101: Madrid North MN-011 | F101: 39 | G101: 39_Chemicals | H101: SRK_5.11 | I101: Madrid North Fuel Storage Facility | J101: 13 | K101: 1. drain residual fuel | L101: SRK_5.11.1
A102: Chemicals | B102: HAZARDOUS MATERIALS | C102: WC-009 | D102: Transportation to Roberts Bay | E102: Windy Development Area | F102: 47 | G102: 47_Chemicals | H102: SRK_19.9 | I102: Windy Disposal Off-Site | J102: 4 | L102: Assign
A103: Chemicals | B103: HAZARDOUS MATERIALS | C103: W-002 | D103: Disposal fees | E103: Windy Development Area | F103: 48 | G103: 48_Chemicals | H103: SRK_24.2 | I103: Waste Disposal Off-Site | J103: 3 | L103: Assign
A104: Chemicals | B104: HAZARDOUS MATERIALS | C104: W-001 | D104: Waste Ship Off-site | E104: Hazardous waste liquid and solid | F104: 49 | G104: 49_Chemicals | H104: SRK_24.1 | I104: Waste Ship Off-Site | J104: 3 | K104: 1. Hazardous waste | L104: =IFERROR(H104&"."&LEFT(K104,FIND(".",K104)-1),"Assign") -> SRK_24.1.1
A105: Chemicals | B105: HAZARDOUS MATERIALS | C105: W-001 | D105: Waste Ship Off-site | E105: Hazardous waste liquid and solid | F105: 49 | G105: =F105&"_"&A105 -> 49_Chemicals | H105: SRK_24.1 | I105: Waste Ship Off-Site | J105: 3 | K105: 2. Hazardous solid waste | L105: SRK_24.1.2
A106: Chemicals | B106: HAZARDOUS MATERIALS | C106: W-002 | D106: Waste Disposal | E106: Hazardous Waste allowance | F106: 50 | G106: =F106&"_"&A106 -> 50_Chemicals | H106: SRK_24.2 | I106: Waste Disposal Off-Site | J106: 3 | K106: 1. Hazardous waste | L106: =IFERROR(H106&"."&LEFT(K106,FIND(".",K106)-1),"Assign") -> SRK_24.2.1
A107: Chemicals | B107: HAZARDOUS MATERIALS | C107: W-002 | D107: Waste Disposal | E107: Hazardous Waste allowance | F107: 50 | G107: 50_Chemicals | H107: SRK_24.2 | I107: Waste Disposal Off-Site | J107: 3 | K107: 2. disposal fees at Hay River | L107: SRK_24.2.2
A108: Chemicals | B108: CONTAMINATED SOILS | D108: Contam. soil investigation - Phase 1 | E108: a report for each site | F108: 52 | G108: 52_Chemicals | J108: 0 | L108: Assign
A109: Chemicals | B109: CONTAMINATED SOILS | D109: Contam. soil investigation - Phase 2 | E109: aggregate cost for Doris and Madrid sites | F109: 53 | G109: =F109&"_"&A109 -> 53_Chemicals | J109: 0 | L109: Assign
A110: Chemicals | B110: CONTAMINATED SOIL REMOVAL | C110: RB-013 | D110: Excavate and transport Impacted Soil to Portal | E110: Doris RB-013, RB-002, RB-003, DM-020 & WM-001 (PHC) | F110: 54 | G110: 54_Chemicals | H110: SRK_1.13 | I110: Roberts Bay 10ML Fuel Storage Facility | J110: 15 | K110: 11. load contained contaminated soils into megabags for hauling | L110: =IFERROR(H110&"."&LEFT(K110,FIND(".",K110)-1),"Assign") -> SRK_1.13.11
A111: Chemicals | B111: CONTAMINATED SOIL REMOVAL | C111: RB-013 | D111: Excavate and transport Impacted Soil to Portal | E111: Doris RB-013, RB-002, RB-003, DM-020 & WM-001 (PHC) | F111: 54 | G111: 54_Chemicals | H111: SRK_1.13 | I111: Roberts Bay 10ML Fuel Storage Facility | J111: 15 | K111: 12. haul megabags to Doris | L111: SRK_1.13.12
A112: Chemicals | B112: CONTAMINATED SOIL REMOVAL | C112: RB-002 | D112: Excavate and transport Impacted Soil to Portal | E112: Doris RB-013, RB-002, RB-003, DM-020 & WM-001 (PHC) | F112: 54 | G112: 54_Chemicals | H112: SRK_1.2 | I112: Roberts Bay 20 ML Tank Farm | J112: 17 | K112: 11. load contained contaminated soils into megabags for hauling | L112: SRK_1.2.11
A113: Chemicals | B113: CONTAMINATED SOIL REMOVAL | C113: RB-002 | D113: Excavate and transport Impacted Soil to Portal | E113: Doris RB-013, RB-002, RB-003, DM-020 & WM-001 (PHC) | F113: 54 | G113: 54_Chemicals | H113: SRK_1.2 | I113: Roberts Bay 20 ML Tank Farm | J113: 17 | K113: 12. haul megabags to Doris | L113: SRK_1.2.12
A114: Chemicals | B114: CONTAMINATED SOIL REMOVAL | C114: RB-003 | D114: Excavate and transport Impacted Soil to Portal | E114: Doris RB-013, RB-002, RB-003, DM-020 & WM-001 (PHC) | F114: 54 | G114: 54_Chemicals | H114: SRK_1.3 | I114: Roberts Bay Quarry 1 - 5 ML Tank Farm | J114: 17 | K114: 11. load contained contaminated soils into megabags for hauling | L114: SRK_1.3.11
A115: Chemicals | B115: CONTAMINATED SOIL REMOVAL | C115: RB-003 | D115: Excavate and transport Impacted Soil to Portal | E115: Doris RB-013, RB-002, RB-003, DM-020 & WM-001 (PHC) | F115: 54 | G115: 54_Chemicals | H115: SRK_1.3 | I115: Roberts Bay Quarry 1 - 5 ML Tank Farm | J115: 17 | K115: 12. haul megabags to Doris | L115: SRK_1.3.12
A116: Chemicals | B116: CONTAMINATED SOIL REMOVAL | C116: DM-020 | D116: Excavate and transport Impacted Soil to Portal | E116: Doris RB-013, RB-002, RB-003, DM-020 & WM-001 (PHC) | F116: 54 | G116: 54_Chemicals | H116: SRK_2.20 | I116: Doris Tank Farm | J116: 17 | K116: 11. load contained contaminated soils into megabags for hauling | L116: SRK_2.20.11
A117: Chemicals | B117: CONTAMINATED SOIL REMOVAL | C117: DM-020 | D117: Excavate and transport Impacted Soil to Portal | E117: Doris RB-013, RB-002, RB-003, DM-020 & WM-001 (PHC) | F117: 54 | G117: 54_Chemicals | H117: SRK_2.20 | I117: Doris Tank Farm | J117: 17 | K117: 12. haul megabags to Doris | L117: SRK_2.20.12
A118: Chemicals | B118: CONTAMINATED SOIL REMOVAL | C118: WM-001 | D118: Excavate and transport Impacted Soil to Portal | E118: Doris RB-013, RB-002, RB-003, DM-020 & WM-001 (PHC) | F118: 54 | G118: 54_Chemicals | H118: SRK_13.1 | I118: Waste Management Area Land Farm | J118: 14 | K118: 1. load contained contaminated soils into megabags for hauling | L118: SRK_13.1.1
A119: Chemicals | B119: CONTAMINATED SOIL REMOVAL | C119: WM-001 | D119: Excavate and transport Impacted Soil to Portal | E119: Doris RB-013, RB-002, RB-003, DM-020 & WM-001 (PHC) | F119: 54 | G119: 54_Chemicals | H119: SRK_13.1 | I119: Waste Management Area Land Farm | J119: 14 | K119: 2. haul megabags to Doris underground | L119: SRK_13.1.2
A120: Chemicals | B120: CONTAMINATED SOIL REMOVAL | C120: PLA-004 | D120: Excavate and transport Impacted Soil to Portal | E120: Patch Lake Development Area | F120: 55 | G120: 55_Chemicals | H120: SRK_18.4 | I120: Patch Lake Off-Site Waste Disposal | J120: 1 | K120: 1. hydrocarbon contaminated soil to Madrid underground | L120: SRK_18.4.1
A121: Chemicals | B121: CONTAMINATED SOIL REMOVAL | C121: WC-009 | D121: Excavate and transport Impacted Soil to Portal | E121: Windy Development Area | F121: 56 | G121: =F121&"_"&A121 -> 56_Chemicals | H121: SRK_19.9 | I121: Windy Disposal Off-Site | J121: 4 | L121: Assign
A122: Chemicals | B122: CONTAMINATED SOIL REMOVAL | C122: WM-001 | D122: Excavate and transport Impacted Soil to Portal | E122: Waste Management Area Landfarm | F122: 57 | G122: =F122&"_"&A122 -> 57_Chemicals | H122: SRK_13.1 | I122: Waste Management Area Land Farm | J122: 14 | L122: Assign
A123: Chemicals | B123: CONTAMINATED SOIL REMOVAL | C123: MN-011 | D123: Excavate and transport Impacted Soil to Portal | E123: Madrid North MN-011 (PHC) | F123: 58 | G123: 58_Chemicals | H123: SRK_5.11 | I123: Madrid North Fuel Storage Facility | J123: 13 | K123: 11. load contained contaminated soils into megabags for hauling | L123: SRK_5.11.11
A124: Chemicals | B124: CONTAMINATED SOIL REMOVAL | C124: MN-006 | D124: Excavate and transport Impacted Soil to Portal | E124: Madrid North Portal Pad | F124: 59 | G124: =F124&"_"&A124 -> 59_Chemicals | H124: SRK_5.6 | I124: Madrid North Portal Pad | J124: 2 | K124: 1. load contained contaminated soils into megabags for hauling | L124: SRK_5.6.1
A125: Chemicals | B125: CONTAMINATED SOIL REMOVAL | C125: MN-014 | D125: Excavate and transport Impacted Soil to Portal | E125: Madrid North MN-014 & -015 Madrid South MS-018 & -019(brine) | F125: 60 | G125: 60_Chemicals | H125: SRK_5.14 | I125: Madrid North Calcium Chloride Laydown | J125: 5 | K125: 1. load contained contaminated soils into megabags for hauling | L125: =IFERROR(H125&"."&LEFT(K125,FIND(".",K125)-1),"Assign") -> SRK_5.14.1
A126: Chemicals | B126: CONTAMINATED SOIL REMOVAL | C126: MN-014 | D126: Excavate and transport Impacted Soil to Portal | E126: Madrid North MN-014 & -015 Madrid South MS-018 & -019(brine) | F126: 60 | G126: 60_Chemicals | H126: SRK_5.14 | I126: Madrid North Calcium Chloride Laydown | J126: 5 | K126: 2. haul megabags to Madrid north underground | L126: SRK_5.14.2
A127: Chemicals | B127: CONTAMINATED SOIL REMOVAL | C127: MN-015 | D127: Excavate and transport Impacted Soil to Portal | E127: Madrid North MN-014 & -015 Madrid South MS-018 & -019(brine) | F127: 60 | G127: 60_Chemicals | H127: SRK_5.15 | I127: Madrid North Brine Mixing Facility | J127: 5 | K127: 1. load contained contaminated soils into megabags for hauling | L127: SRK_5.15.1
A128: Chemicals | B128: CONTAMINATED SOIL REMOVAL | C128: MN-015 | D128: Excavate and transport Impacted Soil to Portal | E128: Madrid North MN-014 & -015 Madrid South MS-018 & -019(brine) | F128: 60 | G128: 60_Chemicals | H128: SRK_5.15 | I128: Madrid North Brine Mixing Facility | J128: 5 | K128: 2. haul megabags to Madrid north underground | L128: SRK_5.15.2
A129: Chemicals | B129: CONTAMINATED SOIL REMOVAL | C129: MS-018 | D129: Excavate and transport Impacted Soil to Portal | E129: Madrid North MN-014 & -015 Madrid South MS-018 & -019(brine) | F129: 60 | G129: 60_Chemicals | H129: SRK_7.18 | I129: Madrid South Calcium Chloride Laydown | J129: 5 | K129: 1. load contained contaminated soils into megabags for hauling | L129: SRK_7.18.1
A130: Chemicals | B130: CONTAMINATED SOIL REMOVAL | C130: MS-018 | D130: Excavate and transport Impacted Soil to Portal | E130: Madrid North MN-014 & -015 Madrid South MS-018 & -019(brine) | F130: 60 | G130: 60_Chemicals | H130: SRK_7.18 | I130: Madrid South Calcium Chloride Laydown | J130: =COUNTIFS($C:$C,C130) -> 5 | K130: 2. haul megabags to Madrid north underground | L130: SRK_7.18.2
A131: Chemicals | B131: CONTAMINATED SOIL REMOVAL | C131: MS-019 | D131: Excavate and transport Impacted Soil to Portal | E131: Madrid North MN-014 & -015 Madrid South MS-018 & -019(brine) | F131: 60 | G131: 60_Chemicals | H131: SRK_7.19 | I131: Madrid South Brine Mixing Facility | J131: 5 | K131: 1. load contained contaminated soils into megabags for hauling | L131: SRK_7.19.1
A132: Chemicals | B132: CONTAMINATED SOIL REMOVAL | C132: MS-019 | D132: Excavate and transport Impacted Soil to Portal | E132: Madrid North MN-014 & -015 Madrid South MS-018 & -019(brine) | F132: 60 | G132: 60_Chemicals | H132: SRK_7.19 | I132: Madrid South Brine Mixing Facility | J132: 5 | K132: 2. haul megabags to Madrid north underground | L132: SRK_7.19.2
A133: Chemicals | B133: CONTAMINATED SOIL REMOVAL | C133: MS-017 | D133: Excavate and transport Impacted Soil to Portal | E133: Madrid South MS-017 (PHC) | F133: 61 | G133: 61_Chemicals | H133: SRK_7.17 | I133: Madrid South Fuel Storage Facility | J133: 14 | K133: 1. load contained contaminated soils into megabags for hauling | L133: SRK_7.17.1
A134: Chemicals | B134: CONTAMINATED SOIL REMOVAL | C134: MS-017 | D134: Excavate and transport Impacted Soil to Portal | E134: Madrid South MS-017 (PHC) | F134: 61 | G134: 61_Chemicals | H134: SRK_7.17 | I134: Madrid South Fuel Storage Facility | J134: 14 | K134: 12. haul megabags to Madrid south underground | L134: SRK_7.17.12
A135: Chemicals | B135: CONTAMINATED SOIL REMOVAL | C135: RB-013 | D135: Place hydrocarbon and other impacted soil underground | E135: Doris RB-013, RB-002, RB-003, DM-020 & WM-001 (PHC) | F135: 62 | G135: 62_Chemicals | H135: SRK_1.13 | I135: Roberts Bay 10ML Fuel Storage Facility | J135: 15 | K135: 13. haul megabags to Doris underground | L135: SRK_1.13.13
A136: Chemicals | B136: CONTAMINATED SOIL REMOVAL | C136: RB-002 | D136: Place hydrocarbon and other impacted soil underground | E136: Doris RB-013, RB-002, RB-003, DM-020 & WM-001 (PHC) | F136: 62 | G136: 62_Chemicals | H136: SRK_1.2 | I136: Roberts Bay 20 ML Tank Farm | J136: 17 | K136: 13. haul megabags to Doris underground | L136: SRK_1.2.13
A137: Chemicals | B137: CONTAMINATED SOIL REMOVAL | C137: RB-003 | D137: Place hydrocarbon and other impacted soil underground | E137: Doris RB-013, RB-002, RB-003, DM-020 & WM-001 (PHC) | F137: 62 | G137: 62_Chemicals | H137: SRK_1.3 | I137: Roberts Bay Quarry 1 - 5 ML Tank Farm | J137: 17 | K137: 13. haul megabags to Doris underground | L137: SRK_1.3.13
A138: Chemicals | B138: CONTAMINATED SOIL REMOVAL | C138: DM-020 | D138: Place hydrocarbon and other impacted soil underground | E138: Doris RB-013, RB-002, RB-003, DM-020 & WM-001 (PHC) | F138: 62 | G138: 62_Chemicals | H138: SRK_2.20 | I138: Doris Tank Farm | J138: 17 | K138: 13. haul megabags to Doris underground | L138: SRK_2.20.13
A139: Chemicals | B139: CONTAMINATED SOIL REMOVAL | C139: WM-001 | D139: Place hydrocarbon and other impacted soil underground | E139: Doris RB-013, RB-002, RB-003, DM-020 & WM-001 (PHC) | F139: 62 | G139: 62_Chemicals | H139: SRK_13.1 | I139: Waste Management Area Land Farm | J139: 14 | L139: Assign
A140: Chemicals | B140: CONTAMINATED SOIL REMOVAL | C140: PLA-001 | D140: Place hydrocarbon and other impacted soil underground | E140: Patch Lake Development Area | F140: 63 | G140: 63_Chemicals | H140: SRK_18.1 | I140: Patch Lake Tank Farm | J140: 6 | K140: 13. haul megabags to Doris underground | L140: SRK_18.1.13
A141: Chemicals | B141: CONTAMINATED SOIL REMOVAL | C141: MN-011 | D141: Place hydrocarbon and other impacted soil underground | E141: Madrid North MN-011 (PHC) | F141: 64 | G141: 64_Chemicals | H141: SRK_5.11 | I141: Madrid North Fuel Storage Facility | J141: 13 | K141: 12. haul megabags to Madrid north underground | L141: SRK_5.11.12
A142: Chemicals | B142: CONTAMINATED SOIL REMOVAL | C142: MN-014 | D142: Place hydrocarbon and other impacted soil underground | E142: Madrid North MN-014 & -015 Madrid South MS-018 & -019(brine) | F142: 65 | G142: 65_Chemicals | H142: SRK_5.14 | I142: Madrid North Calcium Chloride Laydown | J142: 5 | K142: 2. haul megabags to Madrid north underground | L142: SRK_5.14.2
A143: Chemicals | B143: CONTAMINATED SOIL REMOVAL | C143: MN-015 | D143: Place hydrocarbon and other impacted soil underground | E143: Madrid North MN-014 & -015 Madrid South MS-018 & -019(brine) | F143: 65 | G143: 65_Chemicals | H143: SRK_5.15 | I143: Madrid North Brine Mixing Facility | J143: 5 | K143: 2. haul megabags to Madrid north underground | L143: SRK_5.15.2
A144: Chemicals | B144: CONTAMINATED SOIL REMOVAL | C144: MS-018 | D144: Place hydrocarbon and other impacted soil underground | E144: Madrid North MN-014 & -015 Madrid South MS-018 & -019(brine) | F144: 65 | G144: =F144&"_"&A144 -> 65_Chemicals | H144: SRK_7.18 | I144: Madrid South Calcium Chloride Laydown | J144: 5 | K144: 2. haul megabags to Madrid south underground | L144: SRK_7.18.2
A145: Chemicals | B145: CONTAMINATED SOIL REMOVAL | C145: MS-019 | D145: Place hydrocarbon and other impacted soil underground | E145: Madrid North MN-014 & -015 Madrid South MS-018 & -019(brine) | F145: 65 | G145: 65_Chemicals | H145: SRK_7.19 | I145: Madrid South Brine Mixing Facility | J145: 5 | K145: 2. haul megabags to Madrid south underground | L145: SRK_7.19.2
A146: Chemicals | B146: CONTAMINATED SOIL REMOVAL | C146: MN-006 | D146: Place hydrocarbon and other impacted soil underground | E146: Madrid North Portal Pad | F146: 66 | G146: =F146&"_"&A146 -> 66_Chemicals | H146: SRK_5.6 | I146: Madrid North Portal Pad | J146: 2 | K146: 2. haul megabags to Roberts bay laydown | L146: SRK_5.6.2
A147: Chemicals | B147: CONTAMINATED SOIL REMOVAL | C147: WM-001 | D147: Place hydrocarbon and other impacted soil underground | E147: Waste Management Area Landfarm | F147: 67 | G147: 67_Chemicals | H147: SRK_13.1 | I147: Waste Management Area Land Farm | J147: 14 | L147: Assign
A148: Chemicals | B148: CONTAMINATED SOIL REMOVAL | C148: WC-009 | D148: Place hydrocarbon and other impacted soil underground | E148: Windy Development Area | F148: 68 | G148: =F148&"_"&A148 -> 68_Chemicals | H148: SRK_19.9 | I148: Windy Disposal Off-Site | J148: 4 | K148: 12. haul megabags to Madrid north underground | L148: =IFERROR(H148&"."&LEFT(K148,FIND(".",K148)-1),"Assign") -> SRK_19.9.12
A149: Chemicals | B149: CONTAMINATED SOIL REMOVAL | C149: MS-017 | D149: Place hydrocarbon and other impacted soil underground | E149: Madrid South MS-017 (PHC) | F149: 69 | G149: 69_Chemicals | H149: SRK_7.17 | I149: Madrid South Fuel Storage Facility | J149: 14 | K149: 12. haul megabags to Madrid north underground | L149: SRK_7.17.12
A150: Chemicals | B150: CONTAMINATED SOIL REMOVAL | C150: RB-013 | D150: Fuel/Reagent/Brine Containment areas remove soil cover from liner | E150: Doris RB-013, RB-002, RB-003 & DM-020 excavation of cover soil from liners | F150: 70 | G150: 70_Chemicals | H150: SRK_1.13 | I150: Roberts Bay 10ML Fuel Storage Facility | J150: 15 | K150: 10. excavate and stockpile liner protection cover | L150: SRK_1.13.10
A151: Chemicals | B151: CONTAMINATED SOIL REMOVAL | C151: RB-002 | D151: Fuel/Reagent/Brine Containment areas remove soil cover from liner | E151: Doris RB-013, RB-002, RB-003 & DM-020 excavation of cover soil from liners | F151: 70 | G151: 70_Chemicals | H151: SRK_1.2 | I151: Roberts Bay 20 ML Tank Farm | J151: 17 | K151: 10. excavate and stockpile liner protection cover | L151: SRK_1.2.10
A152: Chemicals | B152: CONTAMINATED SOIL REMOVAL | C152: RB-003 | D152: Fuel/Reagent/Brine Containment areas remove soil cover from liner | E152: Doris RB-013, RB-002, RB-003 & DM-020 excavation of cover soil from liners | F152: 70 | G152: 70_Chemicals | H152: SRK_1.3 | I152: Roberts Bay Quarry 1 - 5 ML Tank Farm | J152: 17 | K152: 10. excavate and stockpile liner protection cover | L152: SRK_1.3.10
A153: Chemicals | B153: CONTAMINATED SOIL REMOVAL | C153: DM-020 | D153: Fuel/Reagent/Brine Containment areas remove soil cover from liner | E153: Doris RB-013, RB-002, RB-003 & DM-020 excavation of cover soil from liners | F153: 70 | G153: 70_Chemicals | H153: SRK_2.20 | I153: Doris Tank Farm | J153: 17 | K153: 10. excavate and stockpile liner protection cover | L153: SRK_2.20.10
A154: Chemicals | B154: CONTAMINATED SOIL REMOVAL | C154: RP-003 | D154: Fuel/Reagent/Brine Containment areas remove soil cover from liner | E154: Reagent Pad | F154: 71 | G154: 71_Chemicals | H154: SRK_12.3 | I154: Reagent Pads Ammonium Nitrate Storage Area | J154: 6 | K154: 1. remove and stockpile liner protection cover | L154: SRK_12.3.1
A155: Chemicals | B155: CONTAMINATED SOIL REMOVAL | C155: WM-001 | D155: Fuel/Reagent/Brine Containment areas remove soil cover from liner | E155: Waste Management Area Landfarm | F155: 72 | G155: 72_Chemicals | H155: SRK_13.1 | I155: Waste Management Area Land Farm | J155: 14 | L155: Assign
A156: Chemicals | B156: CONTAMINATED SOIL REMOVAL | C156: MN-011 | D156: Fuel/Reagent/Brine Containment areas remove soil cover from liner | E156: Madrid North MN-011 | F156: 73 | G156: 73_Chemicals | H156: SRK_5.11 | I156: Madrid North Fuel Storage Facility | J156: 13 | K156: 10. excavate and stockpile liner protection cover | L156: SRK_5.11.10
A157: Chemicals | B157: CONTAMINATED SOIL REMOVAL | C157: MN-013 | D157: Fuel/Reagent/Brine Containment areas remove soil cover from liner | E157: Madrid North Water Storage Tank MN-013 | F157: 74 | G157: 74_Chemicals | H157: SRK_5.13 | I157: Madrid North Water Storage Tank with Containment | J157: 7 | K157: 10. excavate and stockpile liner protection cover | L157: SRK_5.13.10
A158: Chemicals | B158: CONTAMINATED SOIL REMOVAL | C158: MS-017 | D158: Fuel/Reagent/Brine Containment areas remove soil cover from liner | E158: Madrid South MS-017 and -020 | F158: 75 | G158: 75_Chemicals | H158: SRK_7.17 | I158: Madrid South Fuel Storage Facility | J158: 14 | K158: 10. excavate and stockpile liner protection cover | L158: SRK_7.17.10
A159: Chemicals | B159: CONTAMINATED SOIL REMOVAL | C159: MS-020 | D159: Fuel/Reagent/Brine Containment areas remove soil cover from liner | E159: Madrid South MS-017 and -020 | F159: 75 | G159: 75_Chemicals | H159: SRK_7.20 | I159: Madrid South Water Storage Tank with Containment | J159: 4 | K159: 5. excavate and stockpile liner protection cover | L159: SRK_7.20.5
A160: Chemicals | B160: CONTAMINATED SOIL REMOVAL | C160: WM-001 | D160: Waste haulage to Landfill | E160: Waste Management Area Landfarm | F160: 76 | G160: 76_Chemicals | H160: SRK_13.1 | I160: Waste Management Area Land Farm | J160: 14 | K160: 8. Haul Material to Quarry 3 Landfill | L160: SRK_13.1.8
A161: Chemicals | B161: CONTAMINATED SOIL REMOVAL | C161: MN-023 | D161: Remove Sumps | E161: MN-023, DM-018 | F161: 77 | G161: =F161&"_"&A161 -> 77_Chemicals | H161: SRK_5.23 | I161: Madrid North Sump | J161: 4 | K161: 1. decommission sump | L161: =IFERROR(H161&"."&LEFT(K161,FIND(".",K161)-1),"Assign") -> SRK_5.23.1
A162: Chemicals | B162: CONTAMINATED SOIL REMOVAL | C162: MN-023 | D162: Remove Sumps | E162: MN-023, DM-018 | F162: 77 | G162: =F162&"_"&A162 -> 77_Chemicals | H162: SRK_5.23 | I162: Madrid North Sump | J162: 4 | K162: 2. remove pumps, pipes, cables, and culverts | L162: =IFERROR(H162&"."&LEFT(K162,FIND(".",K162)-1),"Assign") -> SRK_5.23.2
A163: Chemicals | B163: CONTAMINATED SOIL REMOVAL | C163: MN-023 | D163: Remove Sumps | E163: MN-023, DM-018 | F163: 77 | G163: 77_Chemicals | H163: SRK_5.23 | I163: Madrid North Sump | J163: 4 | K163: 3. backfill sump excavation | L163: SRK_5.23.3
A164: Chemicals | B164: CONTAMINATED SOIL REMOVAL | C164: DM-018 | D164: Remove Sumps | E164: MN-023, DM-018 | F164: 77 | G164: =F164&"_"&A164 -> 77_Chemicals | H164: SRK_2.18 | I164: Doris Sumps | J164: 6 | K164: 1. decommission sump | L164: =IFERROR(H164&"."&LEFT(K164,FIND(".",K164)-1),"Assign") -> SRK_2.18.1
A165: Chemicals | B165: CONTAMINATED SOIL REMOVAL | C165: DM-018 | D165: Remove Sumps | E165: MN-023, DM-018 | F165: 77 | G165: =F165&"_"&A165 -> 77_Chemicals | H165: SRK_2.18 | I165: Doris Sumps | J165: 6 | K165: 2. remove pumps, pipes, cables, and culverts | L165: =IFERROR(H165&"."&LEFT(K165,FIND(".",K165)-1),"Assign") -> SRK_2.18.2
A166: Chemicals | B166: CONTAMINATED SOIL REMOVAL | C166: DM-018 | D166: Remove Sumps | E166: MN-023, DM-018 | F166: 77 | G166: 77_Chemicals | H166: SRK_2.18 | I166: Doris Sumps | J166: 6 | K166: 3. backfill sump excavation | L166: SRK_2.18.3
A167: Chemicals | B167: CONTAMINATED SOIL REMOVAL | C167: WC-011 | D167: Place Mega Bags into Containers (Transport) | E167: Windy Development Area | F167: 78 | G167: 78_Chemicals | H167: SRK_19.11 | I167: Windy Developed Areas (for regrading) | J167: 4 | K167: 4. place megabags into containers | L167: SRK_19.11.4
A168: Chemicals | B168: CONTAMINATED SOIL REMOVAL | C168: WC-011 | D168: Place soil in Mega Bags and Empty into Containers | E168: Windy Development Area | F168: 79 | G168: 79_Chemicals | H168: SRK_19.11 | I168: Windy Developed Areas (for regrading) | J168: 4 | K168: 7. place megabags into containers | L168: SRK_19.11.7
A169: Chemicals | B169: CONTAMINATED SOIL REMOVAL | C169: WC-009 | D169: Disposal of PHC impacted soil to Madrid Portal from Demolition | E169: Windy Development Area | F169: 80 | G169: 80_Chemicals | H169: SRK_19.9 | I169: Windy Disposal Off-Site | J169: 4 | L169: Assign
A170: Chemicals | B170: CONTAMINATED SOIL REMOVAL | D170: Disposal of PHC impacted soil to Madrid Portal from Demolition | E170: Patch Lake Development Area | F170: 81 | G170: 81_Chemicals | J170: 0 | L170: Assign
A171: Chemicals | B171: CONTAMINATED SOIL REMOVAL | C171: W-003 | D171: Survey for Soil Remediation | E171: PHC and Metal Impacted Area | F171: 82 | G171: =F171&"_"&A171 -> 82_Chemicals | H171: SRK_24.3 | I171: Waste Contaminated Material | J171: 2 | K171: 1. hydrocarbon contamination survey | L171: =IFERROR(H171&"."&LEFT(K171,FIND(".",K171)-1),"Assign") -> SRK_24.3.1
A172: Chemicals | B172: CONTAMINATED SOIL REMOVAL | C172: W-003 | D172: Survey for Soil Remediation | E172: PHC and Metal Impacted Area | F172: 82 | G172: 82_Chemicals | H172: SRK_24.3 | I172: Waste Contaminated Material | J172: 2 | K172: 2. metal contamination survey | L172: SRK_24.3.2
A173: Chemicals | B173: CONTAMINATED SOIL REMOVAL | D173: In-situ Bio-remediation | E173: Patch Lake Development Area | F173: 83 | G173: 83_Chemicals | J173: 0 | L173: Assign
A174: Chemicals | B174: CONTAMINATED SOIL REMOVAL | C174: W-001 | D174: Transport PHC impacted soil to offsite facility | E174: W-001 relates to soil that cannot go underground | F174: 84 | G174: =F174&"_"&A174 -> 84_Chemicals | H174: SRK_24.1 | I174: Waste Ship Off-Site | J174: 3 | L174: Assign
A175: Bldgs & Equip | B175: OTHER | D175: Building / Equip Name: | E175: Doris - Madrid | F175: 1 | G175: 1_Bldgs & Equip | J175: 0 | L175: Assign
A176: Bldgs & Equip | B176: DISPOSE MOBILE EQUIPMENT | C176: MN-021 | D176: Decontaminate and prepare for off-site | E176: Madrid North Concentrator | F176: 1 | G176: 1_Bldgs & Equip | H176: SRK_5.21 | I176: Madrid North Concentrator | J176: 8 | K176: 4. prepare equipment for shipping | L176: SRK_5.21.4
A177: Bldgs & Equip | B177: DISPOSE MOBILE EQUIPMENT | D177: Decontaminate and prepare for off-site | E177: Doris Water Intake Generator | F177: 2 | G177: 2_Bldgs & Equip | J177: 0 | L177: Assign
A178: Bldgs & Equip | B178: DISPOSE MOBILE EQUIPMENT | D178: Consolidate Electrical Equipment from Pipelines | E178: Madrid South, Madrid North, Doris freshwater and Tialings/Reclaim water pipelines | F178: 3 | G178: 3_Bldgs & Equip | J178: 0 | L178: Assign
A179: Bldgs & Equip | B179: DISPOSE MOBILE EQUIPMENT | D179: Relocate Containers to Quarry 3 Landfill | E179: current a large inventor of containers that will no longer go off site | F179: 4 | G179: 4_Bldgs & Equip | J179: 0 | L179: Assign
A180: Bldgs & Equip | B180: DISPOSE MOBILE EQUIPMENT | D180: Relocate Camp | E180: Windy Accommodation Camp (relocate to Doris) | F180: 6 | G180: 6_Bldgs & Equip | J180: 0 | L180: Assign
A181: Bldgs & Equip | B181: REMOVE BUILDINGS | C181: DM-001 | D181: Accomodation Complex | E181: DM-001 Decommission | F181: 8 | G181: 8_Bldgs & Equip | H181: SRK_2.1 | I181: Doris Accommodation Complex | J181: 5 | K181: 1. decommission (electrical, mechanical, plumbing) | L181: SRK_2.1.1
A182: Bldgs & Equip | B182: REMOVE BUILDINGS | C182: DM-001 | D182: Accomodation Complex | E182: DM-001 Demolition cabins/cribs/stairs/Arctic corridor etc. | F182: 9 | G182: 9_Bldgs & Equip | H182: SRK_2.1 | I182: Doris Accommodation Complex | J182: 5 | K182: 3. demolish cabins | L182: SRK_2.1.3
A183: Bldgs & Equip | B183: REMOVE BUILDINGS | C183: DM-001 | D183: Accomodation Complex | E183: DM-001 Demolition Trailers | F183: 10 | G183: 10_Bldgs & Equip | H183: SRK_2.1 | I183: Doris Accommodation Complex | J183: 5 | K183: 2. demolish trailers | L183: SRK_2.1.2
A184: Bldgs & Equip | B184: REMOVE BUILDINGS | C184: DM-001 | D184: Accomodation Complex | E184: DM-001 Consolidate and laod waste | F184: 11 | G184: 11_Bldgs & Equip | H184: SRK_2.1 | I184: Doris Accommodation Complex | J184: 5 | K184: 7. load waste into containers | L184: SRK_2.1.7
A185: Bldgs & Equip | B185: REMOVE BUILDINGS | C185: DM-001 | D185: Accomodation Complex | E185: DM-001 Haul waste to landfill | F185: 12 | G185: 12_Bldgs & Equip | H185: SRK_2.1 | I185: Doris Accommodation Complex | J185: 5 | K185: 8. haul containers to Quarry 3 landfill | L185: SRK_2.1.8
A186: Bldgs & Equip | B186: REMOVE BUILDINGS | C186: WC-002 | D186: Windy Accommodation Camp Buildings | E186: Dismantle comm equipment | F186: 13 | G186: =F186&"_"&A186 -> 13_Bldgs & Equip | H186: SRK_19.2 | I186: Windy Accomodation Camp Buildings | J186: 10 | K186: 2. load reusable components into containers for transport to Doris Camp | L186: SRK_19.2.2
A187: Bldgs & Equip | B187: REMOVE BUILDINGS | C187: WC-002 | D187: Windy Accommodation Camp | E187: Equipment decommissioning | F187: 14 | G187: 14_Bldgs & Equip | H187: SRK_19.2 | I187: Windy Accomodation Camp Buildings | J187: 10 | K187: 1. decommission (electrical, mechanical, plumbing) | L187: SRK_19.2.1
A188: Bldgs & Equip | B188: REMOVE BUILDINGS | C188: WC-002 | D188: Windy Accommodation Camp | E188: manual demolition | F188: 15 | G188: 15_Bldgs & Equip | H188: SRK_19.2 | I188: Windy Accomodation Camp Buildings | J188: 10 | K188: 9. manual demolition beyond rock pads | L188: SRK_19.2.9
A189: Bldgs & Equip | B189: REMOVE BUILDINGS | C189: WC-002 | D189: Windy Accommodation Camp | E189: mechanical demolition | F189: 16 | G189: 16_Bldgs & Equip | H189: SRK_19.2 | I189: Windy Accomodation Camp Buildings | J189: 10 | K189: 10. mechanical demolition on rock pads | L189: SRK_19.2.10
A190: Bldgs & Equip | B190: REMOVE BUILDINGS | C190: WC-002 | D190: Windy Accommodation Camp | E190: laod and haul waste | F190: 17 | G190: =F190&"_"&A190 -> 17_Bldgs & Equip | H190: SRK_19.2 | I190: Windy Accomodation Camp Buildings | J190: 10 | K190: 11. load waste into containers | L190: =IFERROR(H190&"."&LEFT(K190,FIND(".",K190)-1),"Assign") -> SRK_19.2.11
A191: Bldgs & Equip | B191: REMOVE BUILDINGS | C191: WC-002 | D191: Windy Accommodation Camp | E191: laod and haul waste | F191: 17 | G191: 17_Bldgs & Equip | H191: SRK_19.2 | I191: Windy Accomodation Camp Buildings | J191: 10 | K191: 12. haul containers to Quarry 3 landfill | L191: SRK_19.2.12
A192: Bldgs & Equip | B192: REMOVE BUILDINGS | C192: RB-004 | D192: Roberts Bay Mechanical Shop Complex | E192: decommissioing elec/mech/HVAC | F192: 18 | G192: =F192&"_"&A192 -> 18_Bldgs & Equip | H192: SRK_1.4 | I192: Roberts Bay Mechanical Shop Complex | J192: 12 | K192: 1. decommission electrical, mechanical, heating (including connections to generator house & transformer) | L192: SRK_1.4.1
A193: Bldgs & Equip | B193: REMOVE BUILDINGS | C193: RB-004 | D193: Roberts Bay Mechanical Shop Complex | E193: Demo of steel frame | F193: 19 | G193: 19_Bldgs & Equip | H193: SRK_1.4 | I193: Roberts Bay Mechanical Shop Complex | J193: 12 | K193: 2. demolish (steel modular structure) | L193: SRK_1.4.2
A194: Bldgs & Equip | B194: REMOVE BUILDINGS | C194: RB-004 | D194: Roberts Bay Mechanical Shop Complex | E194: Demoo of wood frame | F194: 20 | G194: 20_Bldgs & Equip | H194: SRK_1.4 | I194: Roberts Bay Mechanical Shop Complex | J194: =COUNTIFS($C:$C,C194) -> 12 | K194: 3. demolish wood structures (warehouse roof, crew lounge) | L194: SRK_1.4.3
A195: Bldgs & Equip | B195: REMOVE BUILDINGS | C195: RB-004 | D195: Roberts Bay Mechanical Shop Complex | E195: demo of tent structure | F195: 21 | G195: 21_Bldgs & Equip | H195: SRK_1.4 | I195: Roberts Bay Mechanical Shop Complex | J195: 12 | K195: 4. demolish tent structure (light vehicle shop) | L195: SRK_1.4.4
A196: Bldgs & Equip | B196: REMOVE BUILDINGS | C196: DM-021 | D196: Process Facilities | E196: DM-021 dismantle & prep for off-site disposal | F196: 22 | G196: 22_Bldgs & Equip | H196: SRK_2.21 | I196: Doris Process Plant | J196: 9 | K196: 1. decommission crusher, milling, and process plants | L196: SRK_2.21.1
A197: Bldgs & Equip | B197: REMOVE BUILDINGS | C197: DM-021 | D197: Process Facilities | E197: DM-021 demolish Mill, crusher and process plant | F197: 23 | G197: 23_Bldgs & Equip | H197: SRK_2.21 | I197: Doris Process Plant | J197: 9 | K197: 3. disassemble equipment | L197: SRK_2.21.3
A198: Bldgs & Equip | B198: REMOVE BUILDINGS | C198: DM-021 | D198: Process Facilities | E198: DM-021 demolish Mill, crusher and process plant | F198: 23 | G198: 23_Bldgs & Equip | H198: SRK_2.21 | I198: Doris Process Plant | J198: 9 | K198: 4. prepare equipment for shipping | L198: SRK_2.21.4
A199: Bldgs & Equip | B199: REMOVE BUILDINGS | C199: DM-021 | D199: Process Facilities | E199: DM-021 demolish Mill, crusher and process plant | F199: 23 | G199: =F199&"_"&A199 -> 23_Bldgs & Equip | H199: SRK_2.21 | I199: Doris Process Plant | J199: 9 | K199: 5. demolish / dismantle mill building | L199: =IFERROR(H199&"."&LEFT(K199,FIND(".",K199)-1),"Assign") -> SRK_2.21.5
A200: Bldgs & Equip | B200: REMOVE BUILDINGS | C200: DM-021 | D200: Process Facilities | E200: DM-021 demolish Mill, crusher and process plant | F200: 23 | G200: =F200&"_"&A200 -> 23_Bldgs & Equip | H200: SRK_2.21 | I200: Doris Process Plant | J200: 9 | K200: 6. Collect Debris | L200: =IFERROR(H200&"."&LEFT(K200,FIND(".",K200)-1),"Assign") -> SRK_2.21.6
... 514 more rows

Sheet UG Mine
B1: Underground Mine Name | C1: Doris -Madrid | G1: UG Mine # | H1: 1 | AD1: Match | AQ1: SRK Code | BD1: SRK Estimate
B3: INAC COST March 2018 | O3: TMAC COST (Nov 2017)* | W3: Cost Difference | Y3: PROPOSED COSTS (April 2018)
B4: ACTIVITY/MATERIAL | C4: Notes | D4: Unit | E4: Qty | F4: Cost Code | G4: Unit Cost | H4: Cost | I4: % Land | J4: Land Cost | K4: Water Cost | O4: SRK Row Number | P4: Facility Name | Q4: Task Description | R4: Qty | S4: Unit | T4: Unit Cost | U4: Subtotal | V4: TMAC Cost | W4: Cost Difference (INAC-TMAC) | X4: Notes | Y4: Carry Forward Costs | AB4: Lookup | AC4: Count | AD4: 1 | AE4: =AD4+1 -> 2 | AF4: =AE4+1 -> 3 | AG4: 4 | AH4: 5 | AI4: 6 | AJ4: 7 | AK4: 8 | AL4: 9 | AM4: 10 | AN4: =AM4+1 -> 11 | AO4: 12 | AQ4: 1 | AR4: =AQ4+1 -> 2 | AS4: 3 | AT4: 4 | AU4: 5 | AV4: 6 | AW4: 7 | AX4: 8 | AY4: 9 | AZ4: 10 | BA4: 11 | BB4: 12 | BD4: 1 | BE4: =BD4+1 -> 2 | BF4: =BE4+1 -> 3 | BG4: 4 | BH4: 5 | BI4: 6 | BJ4: 7 | BK4: 8 | BL4: 9 | BM4: 10 | BN4: =Bm³+1 -> 
A5: a | B5: CONTROL ACCESS | V5: =IF(ISBLANK($H5),"",SUM(BD5:BO5)) ->  | W5: =IF(V5="","",SUM(J5:K5)-V5) ->  | AB5: =IF(ISNUMBER(A5),A5&"_"&MID(CELL("filename",$A$1),FIND("]",CELL("filename",$A$1))+1,255),"") ->  | AC5: =IF(AB5="","",COUNTIFS(AssignmentSummary!$G:$G,AB5)) ->  | AD5: =IFERROR(MATCH($AB5,AssignmentSummary!$G:$G,0),"") ->  | AE5: =IFERROR(IF(AE$4>$AC5,"",MATCH($AB5,INDIRECT("AssignmentSummary!G"&AD5&":G10000"),0))+AD5,"") ->  | AL5: =IFERROR(IF(AL$4>$AC5,"",MATCH($AB5,INDIRECT("AssignmentSummary!G"&AK5&":G10000"),0))+AK5,"") ->  | AQ5: =IFERROR(INDIRECT("AssignmentSummary!L"&AD5),"") ->  | AR5: =IFERROR(INDIRECT("AssignmentSummary!L"&AE5),"") ->  | AS5: =IFERROR(INDIRECT("AssignmentSummary!L"&AF5),"") ->  | AT5: =IFERROR(INDIRECT("AssignmentSummary!L"&AG5),"") ->  | AU5: =IFERROR(INDIRECT("AssignmentSummary!L"&AH5),"") ->  | AV5: =IFERROR(INDIRECT("AssignmentSummary!L"&AI5),"") ->  | AW5: =IFERROR(INDIRECT("AssignmentSummary!L"&AJ5),"") ->  | AX5: =IFERROR(INDIRECT("AssignmentSummary!L"&AK5),"") ->  | AY5: =IFERROR(INDIRECT("AssignmentSummary!L"&AL5),"") ->  | AZ5: =IFERROR(INDIRECT("AssignmentSummary!L"&AM5),"") ->  | BA5: =IFERROR(INDIRECT("AssignmentSummary!L"&AN5),"") ->  | BB5: =IFERROR(INDIRECT("AssignmentSummary!L"&AO5),"") -> 
A6: 1 | B6: Fence | D6: m | F6: =NA() ->  | G6: =IF(ISNA(F6),0,INDEX(IF(UPPER(RIGHT(F6,1))=Low,UnitCostLow, IF(UPPER(RIGHT(F6,1))=High,UnitCostHigh,UnitCostSpecified)),MATCH(UPPER(LEFT(F6,LEN(F6)-1)),CostCode,0))) -> 0 | H6: =G6*E6 -> 0 | J6: =H6*I6 -> 0 | K6: =H6*(1-I6) -> 0 | V6: =IF(ISBLANK($H6),"",SUM(BD6:BO6)) -> 0 | W6: =IF(V6="","",SUM(J6:K6)-V6) -> 0 | Y6: =IF(U6="",H6,V6) -> 0 | AB6: 1_UG Mine | AC6: =IF(AB6="","",COUNTIFS(AssignmentSummary!$G:$G,AB6)) -> 0 | AD6: =IFERROR(MATCH($AB6,AssignmentSummary!$G:$G,0),"") ->  | AE6: =IFERROR(IF(AE$4>$AC6,"",MATCH($AB6,INDIRECT("AssignmentSummary!G"&AD6&":G10000"),0))+AD6,"") ->  | AJ6: =IFERROR(IF(AJ$4>$AC6,"",MATCH($AB6,INDIRECT("AssignmentSummary!G"&AI6&":G10000"),0))+AI6,"") -> 
A7: =A6+1 -> 2 | B7: Signs | C7: Doris/Madrid South/Madrid North | D7: each | E7: 6 | F7: SH | G7: 37.08 | H7: 222.48 | I7: 1 | J7: 222.48 | K7: 0 | O7: Assign | V7: =IF(ISBLANK($H7),"",SUM(BD7:BO7)) -> 0 | W7: 222.48 | X7: Signage was missing from TMAC estimate | Y7: =IF(U7="",H7,V7) -> 222.48 | AB7: 2_UG Mine | AC7: =IF(AB7="","",COUNTIFS(AssignmentSummary!$G:$G,AB7)) -> 1 | AD7: =IFERROR(MATCH($AB7,AssignmentSummary!$G:$G,0),"") -> 2 | AQ7: Assign
A8: =A7+1 -> 3 | B8: Block roads | D8: m³ | F8: =NA() ->  | G8: 0 | H8: =G8*E8 -> 0 | J8: 0 | K8: 0 | V8: 0 | W8: 0 | Y8: 0 | AB8: 3_UG Mine | AC8: =IF(AB8="","",COUNTIFS(AssignmentSummary!$G:$G,AB8)) -> 0 | AD8: =IFERROR(MATCH($AB8,AssignmentSummary!$G:$G,0),"") -> 
A9: 4 | B9: Berm | D9: m³ | F9: =NA() ->  | G9: 0 | H9: 0 | J9: 0 | K9: 0 | V9: 0 | W9: 0 | Y9: 0 | AB9: 4_UG Mine | AC9: =IF(AB9="","",COUNTIFS(AssignmentSummary!$G:$G,AB9)) -> 0 | AD9: =IFERROR(MATCH($AB9,AssignmentSummary!$G:$G,0),"") -> 
A10: 5 | B10: Concrete wall in portals | D10: m³ | F10: =NA() ->  | G10: 0 | H10: 0 | J10: 0 | K10: 0 | V10: 0 | W10: 0 | Y10: 0 | AB10: 5_UG Mine | AC10: =IF(AB10="","",COUNTIFS(AssignmentSummary!$G:$G,AB10)) -> 0 | AD10: =IFERROR(MATCH($AB10,AssignmentSummary!$G:$G,0),"") -> 
A11: 6 | B11: Backfill portal Doris | C11: DM-012 | D11: m³ | E11: 710 | F11: TMAC | G11: 24.53 | H11: 17416.3 | I11: 1 | J11: 17416.3 | K11: 0 | M11: rounded qty | O11: SRK_2.12.2 | P11: 0 | Q11: construct portal plug | R11: 706.8 | S11: m3 | T11: 24.52931697 | U11: 17337.32124 | V11: 17337.32124 | W11: 78.97876459 | X11: rounding of quantities is not appropriate | Y11: 17337.32124 | AB11: 6_UG Mine | AC11: =IF(AB11="","",COUNTIFS(AssignmentSummary!$G:$G,AB11)) -> 1 | AD11: =IFERROR(MATCH($AB11,AssignmentSummary!$G:$G,0),"") -> 3 | AQ11: SRK_2.12.2 | BD11: 17337.32124
A12: 7 | B12: Backfill Portal Madrid North | C12: MN-012 | D12: m³ | E12: 710 | F12: TMAC | G12: 24.53 | H12: =G12*E12 -> 17416.3 | I12: 1 | J12: 17416.3 | K12: 0 | M12: rounded qty | O12: SRK_5.12.2 | P12: 0 | Q12: construct portal plug | R12: 706.8 | S12: m3 | T12: 24.52931697 | U12: 17337.32124 | V12: 17337.32124 | W12: 78.97876459 | X12: rounding of quantities is not appropriate | Y12: 17337.32124 | AB12: 7_UG Mine | AC12: =IF(AB12="","",COUNTIFS(AssignmentSummary!$G:$G,AB12)) -> 1 | AD12: =IFERROR(MATCH($AB12,AssignmentSummary!$G:$G,0),"") -> 4 | AQ12: SRK_5.12.2 | BD12: 17337.32124
A13: 8 | B13: Backfill Portal Madrid South | C13: MS-016 | D13: m³ | E13: 710 | F13: TMAC | G13: 24.53 | H13: =G13*E13 -> 17416.3 | I13: 1 | J13: 17416.3 | K13: 0 | M13: rounded qty | O13: SRK_7.16.2 | P13: 0 | Q13: construct portal plug | R13: 706.8 | S13: m3 | T13: 24.52931697 | U13: 17337.32124 | V13: 17337.32124 | W13: 78.97876459 | X13: rounding of quantities is not appropriate | Y13: 17337.32124 | AB13: 8_UG Mine | AC13: =IF(AB13="","",COUNTIFS(AssignmentSummary!$G:$G,AB13)) -> 1 | AD13: =IFERROR(MATCH($AB13,AssignmentSummary!$G:$G,0),"") -> 5 | AQ13: SRK_7.16.2 | BD13: 17337.32124
A14: 9 | B14: Cap Vent Raises | C14: DM-030, DM-033 & DM-034 | D14: each | E14: 3 | F14: TMAC | G14: 14300 | H14: 42900 | I14: 1 | J14: 42900 | K14: 0 | M14: rounded unit rate up | O14: SRK_2.30.2 | P14: 0 | Q14: Construct a concrete cap (0.5 m thick reinforced concrete) to seal the top | R14: 1 | S14: each | T14: 14292.6809 | U14: 14292.6809 | V14: 42878.04269 | W14: 21.95730982 | X14: rounding of unit rates is not appropriate | Y14: 42878.04269 | AB14: 9_UG Mine | AC14: =IF(AB14="","",COUNTIFS(AssignmentSummary!$G:$G,AB14)) -> 3 | AD14: =IFERROR(MATCH($AB14,AssignmentSummary!$G:$G,0),"") -> 6 | AE14: 7 | AF14: 8 | AQ14: SRK_2.30.2 | AR14: SRK_2.33.5 | AS14: SRK_2.34.5 | BD14: 14292.6809 | BE14: 14292.6809 | BF14: 14292.6809
O15: SRK_2.33.5 | P15: 0 | Q15: Construct a concrete cap (0.5 m thick reinforced concrete) to seal the top | R15: 1 | S15: each | T15: 14292.6809 | U15: 14292.6809
O16: SRK_2.34.5 | P16: 0 | Q16: Construct a concrete cap (0.5 m thick reinforced concrete) to seal the top | R16: 1 | S16: each | T16: 14292.6809 | U16: 14292.6809
A17: =A14+1 -> 10 | B17: Cap Vent Raises | C17: MN-018 | D17: each | E17: 3 | F17: TMAC | G17: 14300 | H17: =G17*E17 -> 42900 | I17: 1 | J17: =H17*I17 -> 42900 | K17: =H17*(1-I17) -> 0 | M17: rounded unit rate up | O17: SRK_5.18.2 | P17: 0 | Q17: construct a concrete cap (0.5 m thick reinforced concrete) to seal the top | R17: 3 | S17: each | T17: 14292.6809 | U17: 42878.04269 | V17: 42878.04269 | W17: 21.95730982 | X17: rounding of unit rates is not appropriate | Y17: 42878.04269 | AB17: =IF(ISNUMBER(A17),A17&"_"&MID(CELL("filename",$A$1),FIND("]",CELL("filename",$A$1))+1,255),"") -> 10_UG Mine | AC17: =IF(AB17="","",COUNTIFS(AssignmentSummary!$G:$G,AB17)) -> 1 | AD17: =IFERROR(MATCH($AB17,AssignmentSummary!$G:$G,0),"") -> 9 | AJ17: =IFERROR(IF(AJ$4>$AC17,"",MATCH($AB17,INDIRECT("AssignmentSummary!G"&AI17&":G10000"),0))+AI17,"") ->  | AQ17: SRK_5.18.2 | BD17: 42878.04269
A18: 11 | B18: Cap Vent Raises | C18: MS-015 | D18: each | E18: 2 | F18: TMAC | G18: 14300 | H18: =G18*E18 -> 28600 | I18: 1 | J18: 28600 | K18: 0 | M18: rounded unit rate up | O18: SRK_7.15.2 | P18: 0 | Q18: construct a concrete cap (0.5 m thick reinforced concrete) to seal the top | R18: 2 | S18: each | T18: 14292.6809 | U18: 28585.36179 | V18: 28585.36179 | W18: 14.63820655 | X18: rounding of unit rates is not appropriate | Y18: 28585.36179 | AB18: 11_UG Mine | AC18: =IF(AB18="","",COUNTIFS(AssignmentSummary!$G:$G,AB18)) -> 1 | AD18: =IFERROR(MATCH($AB18,AssignmentSummary!$G:$G,0),"") -> 10 | AQ18: SRK_7.15.2 | BD18: 28585.36179
A19: 12 | B19: Cap shaft #2 | D19: m³ | F19: =NA() ->  | G19: 0 | H19: 0 | J19: 0 | K19: 0 | V19: 0 | W19: 0 | Y19: 0 | AB19: 12_UG Mine | AC19: =IF(AB19="","",COUNTIFS(AssignmentSummary!$G:$G,AB19)) -> 0 | AD19: =IFERROR(MATCH($AB19,AssignmentSummary!$G:$G,0),"") -> 
A20: 13 | B20: Backfill adits | D20: m³ | F20: =NA() ->  | G20: 0 | H20: 0 | J20: 0 | K20: 0 | V20: 0 | W20: 0 | Y20: 0 | AB20: 13_UG Mine | AC20: =IF(AB20="","",COUNTIFS(AssignmentSummary!$G:$G,AB20)) -> 0 | AD20: =IFERROR(MATCH($AB20,AssignmentSummary!$G:$G,0),"") -> 
A21: 14 | B21: Backfill open stope | D21: m³ | F21: sc3h | G21: 14.2 | H21: 0 | J21: 0 | K21: 0 | V21: 0 | W21: 0 | Y21: 0 | AB21: 14_UG Mine | AC21: =IF(AB21="","",COUNTIFS(AssignmentSummary!$G:$G,AB21)) -> 0 | AD21: =IFERROR(MATCH($AB21,AssignmentSummary!$G:$G,0),"") ->  | AN21: =IFERROR(IF(AN$4>$AC21,"",MATCH($AB21,INDIRECT("AssignmentSummary!G"&AM21&":G10000"),0))+AM21,"") ->  | AZ21: =IFERROR(INDIRECT("AssignmentSummary!L"&AM21),"") -> 
A22: 15 | B22: Concrete cap over open stope | D22: m³ | F22: =NA() ->  | G22: 0 | H22: 0 | J22: 0 | K22: 0 | V22: 0 | W22: 0 | Y22: 0 | AB22: 15_UG Mine | AC22: =IF(AB22="","",COUNTIFS(AssignmentSummary!$G:$G,AB22)) -> 0 | AD22: =IFERROR(MATCH($AB22,AssignmentSummary!$G:$G,0),"") -> 
A23: 16 | B23: Other - crown pillar study | D23: LS | F23: =NA() ->  | G23: 25000 | H23: 0 | J23: 0 | K23: 0 | V23: 0 | W23: 0 | Y23: 0 | AB23: 16_UG Mine | AC23: =IF(AB23="","",COUNTIFS(AssignmentSummary!$G:$G,AB23)) -> 0 | AD23: =IFERROR(MATCH($AB23,AssignmentSummary!$G:$G,0),"") -> 
A24: a | B24: REMOVE HAZARDOUS MATERIALS | AC24: =IF(AB24="","",COUNTIFS(AssignmentSummary!$G:$G,AB24)) ->  | AD24: =IFERROR(MATCH($AB24,AssignmentSummary!$G:$G,0),"") -> 
A25: =A23+1 -> 17 | B25: Remove hazardous materials, U/G labor | D25: mandays | F25: =NA() ->  | G25: 500 | H25: =G25*E25 -> 0 | J25: =H25*I25 -> 0 | K25: =H25*(1-I25) -> 0 | V25: 0 | W25: 0 | Y25: 0 | AB25: 17_UG Mine | AC25: =IF(AB25="","",COUNTIFS(AssignmentSummary!$G:$G,AB25)) -> 0 | AD25: =IFERROR(MATCH($AB25,AssignmentSummary!$G:$G,0),"") -> 
A26: =A25+1 -> 18 | B26: Remove/decontam. stationary & elect. equip | C26: DM-012, DM-030, DM-033 & DM-034 | D26: lm | E26: =100*4 -> 400 | F26: TMAC | G26: 119.02 | H26: =G26*E26 -> 47608 | I26: 1 | J26: =H26*I26 -> 47608 | K26: =H26*(1-I26) -> 0 | O26: SRK_2.12.1 | P26: Doris Portal and Underground Works | Q26: remove ducts, pipes, electrical cables | R26: 100 | S26: lm | T26: 119.0155278 | U26: 11901.55278 | V26: 47606.21111 | W26: 1.788888313 | Y26: 47606.21111 | AB26: 18_UG Mine | AC26: =IF(AB26="","",COUNTIFS(AssignmentSummary!$G:$G,AB26)) -> 4 | AD26: =IFERROR(MATCH($AB26,AssignmentSummary!$G:$G,0),"") -> 11 | AE26: 12 | AF26: 13 | AG26: 14 | AQ26: SRK_2.12.1 | AR26: SRK_2.30.1 | AS26: SRK_2.33.1 | AT26: SRK_2.34.1 | BD26: 11901.55278 | BE26: 11901.55278 | BF26: 11901.55278 | BG26: 11901.55278
O27: SRK_2.30.1 | P27: Doris Primary Vent Raise | Q27: Remove ducts, pipes, and cables | R27: 100 | S27: lm | T27: 119.0155278 | U27: 11901.55278
O28: SRK_2.33.1 | P28: Doris Connector Vent Raise | Q28: Remove ducts, pipes, and cables | R28: 100 | S28: lm | T28: 119.0155278 | U28: 11901.55278
O29: SRK_2.34.1 | P29: Doris Central Vent Raise | Q29: Remove ducts, pipes, and cables | R29: 100 | S29: lm | T29: 119.0155278 | U29: 11901.55278
A30: =A26+1 -> 19 | C30: Doris remove equipment from underground Mech Shop | D30: each | E30: 3 | F30: TMAC | G30: 680 | H30: =G30*E30 -> 2040 | I30: 1 | J30: =H30*I30 -> 2040 | K30: =H30*(1-I30) -> 0 | O30: Assign | V30: 0 | W30: 2040 | X30: Underground equipment was assumed to be abandonned | Y30: =V30 -> 0 | AB30: =IF(ISNUMBER(A30),A30&"_"&MID(CELL("filename",$A$1),FIND("]",CELL("filename",$A$1))+1,255),"") -> 19_UG Mine | AC30: =IF(AB30="","",COUNTIFS(AssignmentSummary!$G:$G,AB30)) -> 1 | AD30: =IFERROR(MATCH($AB30,AssignmentSummary!$G:$G,0),"") -> 15 | AJ30: =IFERROR(IF(AJ$4>$AC30,"",MATCH($AB30,INDIRECT("AssignmentSummary!G"&AI30&":G10000"),0))+AI30,"") ->  | AK30: =IFERROR(IF(AK$4>$AC30,"",MATCH($AB30,INDIRECT("AssignmentSummary!G"&AJ30&":G10000"),0))+AJ30,"") ->  | AL30: =IFERROR(IF(AL$4>$AC30,"",MATCH($AB30,INDIRECT("AssignmentSummary!G"&AK30&":G10000"),0))+AK30,"") ->  | AN30: =IFERROR(IF(AN$4>$AC30,"",MATCH($AB30,INDIRECT("AssignmentSummary!G"&AM30&":G10000"),0))+AM30,"") ->  | AQ30: Assign | AZ30: =IFERROR(INDIRECT("AssignmentSummary!L"&AM30),"") -> 
A31: =A30+1 -> 20 | C31: MN-012 & MN-018 | D31: lm | E31: =100*4 -> 400 | F31: TMAC | G31: 119.02 | H31: =G31*E31 -> 47608 | I31: 1 | J31: =H31*I31 -> 47608 | K31: =H31*(1-I31) -> 0 | M31: no quantity given in latest estimate so kept earlier number | O31: SRK_5.12.1 | P31: Madrid North Portal and Underground Works | Q31: remove ducts, pipes, electrical cables | R31: 100 | S31: lm | T31: 119.0155278 | U31: 11901.55278 | V31: 47606.21111 | W31: 1.788888313 | Y31: 47606.21111 | AB31: =IF(ISNUMBER(A31),A31&"_"&MID(CELL("filename",$A$1),FIND("]",CELL("filename",$A$1))+1,255),"") -> 20_UG Mine | AC31: =IF(AB31="","",COUNTIFS(AssignmentSummary!$G:$G,AB31)) -> 2 | AD31: =IFERROR(MATCH($AB31,AssignmentSummary!$G:$G,0),"") -> 16 | AE31: 17 | AJ31: =IFERROR(IF(AJ$4>$AC31,"",MATCH($AB31,INDIRECT("AssignmentSummary!G"&AI31&":G10000"),0))+AI31,"") ->  | AK31: =IFERROR(IF(AK$4>$AC31,"",MATCH($AB31,INDIRECT("AssignmentSummary!G"&AJ31&":G10000"),0))+AJ31,"") ->  | AN31: =IFERROR(IF(AN$4>$AC31,"",MATCH($AB31,INDIRECT("AssignmentSummary!G"&AM31&":G10000"),0))+AM31,"") ->  | AQ31: SRK_5.12.1 | AR31: SRK_5.18.1 | AZ31: =IFERROR(INDIRECT("AssignmentSummary!L"&AM31),"") ->  | BD31: 11901.55278 | BE31: 35704.65833
O32: SRK_5.18.1 | P32: Madrid North Vent Raises | Q32: remove ducts, pipes, and cables | R32: 300 | S32: lm | T32: 119.0155278 | U32: 35704.65833
A33: =A31+1 -> 21 | C33: MS-015 & MS-016 | D33: lm | E33: 300 | F33: TMAC | G33: 119.02 | H33: =G33*E33 -> 35706 | I33: 1 | J33: =H33*I33 -> 35706 | K33: =H33*(1-I33) -> 0 | M33: N/C | O33: SRK_7.15.1 | P33: Madrid South Vent Raises | Q33: remove ducts, pipes, and cables | R33: 200 | S33: lm | T33: 119.0155278 | U33: 23803.10556 | V33: 35704.65833 | W33: 1.341666235 | Y33: 35704.65833 | AB33: =IF(ISNUMBER(A33),A33&"_"&MID(CELL("filename",$A$1),FIND("]",CELL("filename",$A$1))+1,255),"") -> 21_UG Mine | AC33: =IF(AB33="","",COUNTIFS(AssignmentSummary!$G:$G,AB33)) -> 2 | AD33: =IFERROR(MATCH($AB33,AssignmentSummary!$G:$G,0),"") -> 18 | AE33: 19 | AJ33: =IFERROR(IF(AJ$4>$AC33,"",MATCH($AB33,INDIRECT("AssignmentSummary!G"&AI33&":G10000"),0))+AI33,"") ->  | AK33: =IFERROR(IF(AK$4>$AC33,"",MATCH($AB33,INDIRECT("AssignmentSummary!G"&AJ33&":G10000"),0))+AJ33,"") ->  | AN33: =IFERROR(IF(AN$4>$AC33,"",MATCH($AB33,INDIRECT("AssignmentSummary!G"&AM33&":G10000"),0))+AM33,"") ->  | AQ33: SRK_7.15.1 | AR33: SRK_7.16.1 | AZ33: =IFERROR(INDIRECT("AssignmentSummary!L"&AM33),"") ->  | BD33: 23803.10556 | BE33: 11901.55278
O34: SRK_7.16.1 | P34: Madrid South Madrid South Portal and Underground Works | Q34: remove ducts, pipes, electrical cables | R34: 100 | S34: lm | T34: 119.0155278 | U34: 11901.55278
A35: =A33+1 -> 22 | B35: Remove/decontam. mobile equipment | D35: each | F35: =NA() ->  | G35: =IF(ISNA(F35),0,INDEX(IF(UPPER(RIGHT(F35,1))=Low,UnitCostLow, IF(UPPER(RIGHT(F35,1))=High,UnitCostHigh,UnitCostSpecified)),MATCH(UPPER(LEFT(F35,LEN(F35)-1)),CostCode,0))) -> 0 | H35: =G35*E35 -> 0 | J35: =H35*I35 -> 0 | K35: =H35*(1-I35) -> 0 | V35: 0 | W35: 0 | Y35: 0 | AB35: =IF(ISNUMBER(A35),A35&"_"&MID(CELL("filename",$A$1),FIND("]",CELL("filename",$A$1))+1,255),"") -> 22_UG Mine | AC35: =IF(AB35="","",COUNTIFS(AssignmentSummary!$G:$G,AB35)) -> 0 | AD35: =IFERROR(MATCH($AB35,AssignmentSummary!$G:$G,0),"") ->  | AJ35: =IFERROR(IF(AJ$4>$AC35,"",MATCH($AB35,INDIRECT("AssignmentSummary!G"&AI35&":G10000"),0))+AI35,"") ->  | AN35: =IFERROR(IF(AN$4>$AC35,"",MATCH($AB35,INDIRECT("AssignmentSummary!G"&AM35&":G10000"),0))+AM35,"") ->  | AZ35: =IFERROR(INDIRECT("AssignmentSummary!L"&AM35),"") -> 
A36: =A35+1 -> 23 | B36: Remove misc. haz. mat & explosives | C36: Remove explosives from AWR storage | D36: m³ | E36: 2176 | F36: TMAC | G36: =2.91+10.23 -> 13.14 | H36: =G36*E36 -> 28592.64 | I36: 0.5 | J36: =H36*I36 -> 14296.32 | K36: =H36*(1-I36) -> 14296.32 | M36: added containerization cost C.4.01 | O36: SRK_3.10.1 | P36: Doris-Windy All Weather Road Explosives Storage Facility | Q36: remove all explosives | R36: 2176 | S36: m3 | T36: 2.910620975 | U36: 6333.511241 | V36: 6333.511241 | W36: 22259.12876 | X36: explosives already in steel magazines, no need for re-packaging | Y36: 6333.511241 | AB36: 23_UG Mine | AC36: =IF(AB36="","",COUNTIFS(AssignmentSummary!$G:$G,AB36)) -> 1 | AD36: =IFERROR(MATCH($AB36,AssignmentSummary!$G:$G,0),"") -> 20 | AQ36: SRK_3.10.1 | BD36: 6333.511241
A37: =A36+1 -> 24 | B37: Other | C37: Cargo dock controller removal | D37: each | E37: 2 | F37: TMAC | G37: 679.52 | H37: =G37*E37 -> 1359.04 | I37: 0.5 | J37: =H37*I37 -> 679.52 | K37: =H37*(1-I37) -> 679.52 | O37: Assign | V37: 0 | W37: 1359.04 | X37: accounted for under "Chemicals" | Y37: 0 | AB37: 24_UG Mine | AC37: =IF(AB37="","",COUNTIFS(AssignmentSummary!$G:$G,AB37)) -> 1 | AD37: =IFERROR(MATCH($AB37,AssignmentSummary!$G:$G,0),"") -> 21 | AQ37: Assign
A38: =A37+1 -> 25 | C38: Relocate debris from Raise MN | AB38: 25_UG Mine | AC38: =IF(AB38="","",COUNTIFS(AssignmentSummary!$G:$G,AB38)) -> 0 | AD38: =IFERROR(MATCH($AB38,AssignmentSummary!$G:$G,0),"") -> 
A39: =A38+1 -> 26 | C39: Relocate debris from Raise MS | AB39: 26_UG Mine | AC39: =IF(AB39="","",COUNTIFS(AssignmentSummary!$G:$G,AB39)) -> 0 | AD39: =IFERROR(MATCH($AB39,AssignmentSummary!$G:$G,0),"") -> 
A40: a | B40: INSTALL BULKHEADS | AC40: =IF(AB40="","",COUNTIFS(AssignmentSummary!$G:$G,AB40)) ->  | AD40: =IFERROR(MATCH($AB40,AssignmentSummary!$G:$G,0),"") -> 
A41: =A39+1 -> 27 | B41: Bulkheads to control water flow | D41: each | F41: =NA() ->  | G41: =IF(ISNA(F41),0,INDEX(IF(UPPER(RIGHT(F41,1))=Low,UnitCostLow, IF(UPPER(RIGHT(F41,1))=High,UnitCostHigh,UnitCostSpecified)),MATCH(UPPER(LEFT(F41,LEN(F41)-1)),CostCode,0))) -> 0 | H41: =G41*E41 -> 0 | J41: =H41*I41 -> 0 | K41: =H41*(1-I41) -> 0 | V41: 0 | W41: 0 | AB41: 27_UG Mine | AC41: =IF(AB41="","",COUNTIFS(AssignmentSummary!$G:$G,AB41)) -> 0 | AD41: =IFERROR(MATCH($AB41,AssignmentSummary!$G:$G,0),"") -> 
A42: =A41+1 -> 28 | B42: Grout bulkhead | D42: m³ | F42: =NA() ->  | G42: =IF(ISNA(F42),0,INDEX(IF(UPPER(RIGHT(F42,1))=Low,UnitCostLow, IF(UPPER(RIGHT(F42,1))=High,UnitCostHigh,UnitCostSpecified)),MATCH(UPPER(LEFT(F42,LEN(F42)-1)),CostCode,0))) -> 0 | H42: =G42*E42 -> 0 | J42: =H42*I42 -> 0 | K42: =H42*(1-I42) -> 0 | V42: 0 | W42: 0 | AB42: 28_UG Mine | AC42: =IF(AB42="","",COUNTIFS(AssignmentSummary!$G:$G,AB42)) -> 0 | AD42: =IFERROR(MATCH($AB42,AssignmentSummary!$G:$G,0),"") -> 
A43: a | B43: FLOOD MINE | AC43: =IF(AB43="","",COUNTIFS(AssignmentSummary!$G:$G,AB43)) ->  | AD43: =IFERROR(MATCH($AB43,AssignmentSummary!$G:$G,0),"") -> 
A44: =A42+1 -> 29 | B44: Supply/install pump | D44: each | F44: =NA() ->  | G44: =IF(ISNA(F44),0,INDEX(IF(UPPER(RIGHT(F44,1))=Low,UnitCostLow, IF(UPPER(RIGHT(F44,1))=High,UnitCostHigh,UnitCostSpecified)),MATCH(UPPER(LEFT(F44,LEN(F44)-1)),CostCode,0))) -> 0 | H44: =G44*E44 -> 0 | J44: =H44*I44 -> 0 | K44: =H44*(1-I44) -> 0 | V44: 0 | W44: 0 | AB44: 29_UG Mine | AC44: =IF(AB44="","",COUNTIFS(AssignmentSummary!$G:$G,AB44)) -> 0 | AD44: =IFERROR(MATCH($AB44,AssignmentSummary!$G:$G,0),"") -> 
A45: =A44+1 -> 30 | B45: Supply/install piping system | D45: each | F45: =NA() ->  | G45: =IF(ISNA(F45),0,INDEX(IF(UPPER(RIGHT(F45,1))=Low,UnitCostLow, IF(UPPER(RIGHT(F45,1))=High,UnitCostHigh,UnitCostSpecified)),MATCH(UPPER(LEFT(F45,LEN(F45)-1)),CostCode,0))) -> 0 | H45: =G45*E45 -> 0 | J45: =H45*I45 -> 0 | K45: =H45*(1-I45) -> 0 | V45: 0 | W45: 0 | AB45: 30_UG Mine | AC45: =IF(AB45="","",COUNTIFS(AssignmentSummary!$G:$G,AB45)) -> 0 | AD45: =IFERROR(MATCH($AB45,AssignmentSummary!$G:$G,0),"") -> 
A46: =A45+1 -> 31 | B46: Operate pumps to flood workings | D46: m³ | F46: =NA() ->  | G46: =IF(ISNA(F46),0,INDEX(IF(UPPER(RIGHT(F46,1))=Low,UnitCostLow, IF(UPPER(RIGHT(F46,1))=High,UnitCostHigh,UnitCostSpecified)),MATCH(UPPER(LEFT(F46,LEN(F46)-1)),CostCode,0))) -> 0 | H46: =G46*E46 -> 0 | J46: =H46*I46 -> 0 | K46: =H46*(1-I46) -> 0 | V46: 0 | W46: 0 | AB46: 31_UG Mine | AC46: =IF(AB46="","",COUNTIFS(AssignmentSummary!$G:$G,AB46)) -> 0 | AD46: =IFERROR(MATCH($AB46,AssignmentSummary!$G:$G,0),"") -> 
A47: =A46+1 -> 32 | B47: Other | F47: =NA() ->  | G47: =IF(ISNA(F47),0,INDEX(IF(UPPER(RIGHT(F47,1))=Low,UnitCostLow, IF(UPPER(RIGHT(F47,1))=High,UnitCostHigh,UnitCostSpecified)),MATCH(UPPER(LEFT(F47,LEN(F47)-1)),CostCode,0))) -> 0 | H47: =G47*E47 -> 0 | J47: =H47*I47 -> 0 | K47: =H47*(1-I47) -> 0 | V47: 0 | W47: 0 | AB47: 32_UG Mine | AC47: =IF(AB47="","",COUNTIFS(AssignmentSummary!$G:$G,AB47)) -> 0 | AD47: =IFERROR(MATCH($AB47,AssignmentSummary!$G:$G,0),"") -> 
A48: a | B48: INSTALL GROUNDWATER COLLECTION SYSTEM | AC48: =IF(AB48="","",COUNTIFS(AssignmentSummary!$G:$G,AB48)) ->  | AD48: =IFERROR(MATCH($AB48,AssignmentSummary!$G:$G,0),"") -> 
A49: =A47+1 -> 33 | B49: Excavate/install sumps | D49: m2 | F49: =NA() ->  | G49: =IF(ISNA(F49),0,INDEX(IF(UPPER(RIGHT(F49,1))=Low,UnitCostLow, IF(UPPER(RIGHT(F49,1))=High,UnitCostHigh,UnitCostSpecified)),MATCH(UPPER(LEFT(F49,LEN(F49)-1)),CostCode,0))) -> 0 | H49: =G49*E49 -> 0 | J49: =H49*I49 -> 0 | K49: =+H49*(1-I49) -> 0 | V49: 0 | W49: 0 | AB49: 33_UG Mine | AC49: =IF(AB49="","",COUNTIFS(AssignmentSummary!$G:$G,AB49)) -> 0 | AD49: =IFERROR(MATCH($AB49,AssignmentSummary!$G:$G,0),"") -> 
A50: =A49+1 -> 34 | B50: Install pumping wells | D50: m³ | F50: =NA() ->  | G50: =IF(ISNA(F50),0,INDEX(IF(UPPER(RIGHT(F50,1))=Low,UnitCostLow, IF(UPPER(RIGHT(F50,1))=High,UnitCostHigh,UnitCostSpecified)),MATCH(UPPER(LEFT(F50,LEN(F50)-1)),CostCode,0))) -> 0 | H50: =G50*E50 -> 0 | J50: =H50*I50 -> 0 | K50: =+H50*(1-I50) -> 0 | V50: 0 | W50: 0 | AB50: 34_UG Mine | AC50: =IF(AB50="","",COUNTIFS(AssignmentSummary!$G:$G,AB50)) -> 0 | AD50: =IFERROR(MATCH($AB50,AssignmentSummary!$G:$G,0),"") -> 
A51: =A50+1 -> 35 | B51: Install pumps/pipelines/power supply | D51: LS | F51: =NA() ->  | G51: =IF(ISNA(F51),0,INDEX(IF(UPPER(RIGHT(F51,1))=Low,UnitCostLow, IF(UPPER(RIGHT(F51,1))=High,UnitCostHigh,UnitCostSpecified)),MATCH(UPPER(LEFT(F51,LEN(F51)-1)),CostCode,0))) -> 0 | H51: =G51*E51 -> 0 | J51: =H51*I51 -> 0 | K51: =+H51*(1-I51) -> 0 | V51: 0 | W51: 0 | AB51: 35_UG Mine | AC51: =IF(AB51="","",COUNTIFS(AssignmentSummary!$G:$G,AB51)) -> 0 | AD51: =IFERROR(MATCH($AB51,AssignmentSummary!$G:$G,0),"") -> 
A52: a | B52: SPECIALIZED ITEMS | AC52: =IF(AB52="","",COUNTIFS(AssignmentSummary!$G:$G,AB52)) ->  | AD52: =IFERROR(MATCH($AB52,AssignmentSummary!$G:$G,0),"") ->  | AL52: =IFERROR(IF(AL$4>$AC52,"",MATCH($AB52,INDIRECT("AssignmentSummary!G"&AK52&":G10000"),0))+AK52,"") -> 
A53: =A51+1 -> 36 | B53: Install water quality monitoring pipes | D53: each | F53: =NA() ->  | G53: =IF(ISNA(F53),0,INDEX(IF(UPPER(RIGHT(F53,1))=Low,UnitCostLow, IF(UPPER(RIGHT(F53,1))=High,UnitCostHigh,UnitCostSpecified)),MATCH(UPPER(LEFT(F53,LEN(F53)-1)),CostCode,0))) -> 0 | H53: =G53*E53 -> 0 | J53: =H53*I53 -> 0 | K53: =H53*(1-I53) -> 0 | V53: 0 | W53: 0 | AB53: 36_UG Mine | AC53: =IF(AB53="","",COUNTIFS(AssignmentSummary!$G:$G,AB53)) -> 0 | AD53: =IFERROR(MATCH($AB53,AssignmentSummary!$G:$G,0),"") -> 
A54: =A53+1 -> 37 | B54: Install permanent pumping system | D54: each | F54: =NA() ->  | G54: =IF(ISNA(F54),0,INDEX(IF(UPPER(RIGHT(F54,1))=Low,UnitCostLow, IF(UPPER(RIGHT(F54,1))=High,UnitCostHigh,UnitCostSpecified)),MATCH(UPPER(LEFT(F54,LEN(F54)-1)),CostCode,0))) -> 0 | H54: =G54*E54 -> 0 | J54: =H54*I54 -> 0 | K54: =H54*(1-I54) -> 0 | V54: 0 | W54: 0 | AB54: 37_UG Mine | AC54: =IF(AB54="","",COUNTIFS(AssignmentSummary!$G:$G,AB54)) -> 0 | AD54: =IFERROR(MATCH($AB54,AssignmentSummary!$G:$G,0),"") -> 
A55: =A54+1 -> 38 | B55: Other | F55: =NA() ->  | G55: =IF(ISNA(F55),0,INDEX(IF(UPPER(RIGHT(F55,1))=Low,UnitCostLow, IF(UPPER(RIGHT(F55,1))=High,UnitCostHigh,UnitCostSpecified)),MATCH(UPPER(LEFT(F55,LEN(F55)-1)),CostCode,0))) -> 0 | H55: =G55*E55 -> 0 | J55: =H55*I55 -> 0 | K55: =H55*(1-I55) -> 0 | V55: 0 | W55: 0 | AB55: 38_UG Mine | AC55: =IF(AB55="","",COUNTIFS(AssignmentSummary!$G:$G,AB55)) -> 0 | AD55: =IFERROR(MATCH($AB55,AssignmentSummary!$G:$G,0),"") -> 
A56: END | G56: Total | H56: =SUM(H6:H55)+0.0001 -> 329785.0601 | J56: =SUM(J6:J55) -> 314809.22 | K56: =SUM(K6:K55) -> 14975.84 | V56: =SUM(V5:V55) -> 303604.0027 | W56: =V56-UG1Total -> -26181.05742 | Y56: =SUM(Y5:Y55) -> 303826.4827 | AC56: =IF(AB56="","",COUNTIFS(AssignmentSummary!$G:$G,AB56)) ->  | AD56: =IFERROR(MATCH($AB56,AssignmentSummary!$G:$G,0),"") -> 
G57: % of Total | J57: =J56/H56 -> 0.9545890887 | K57: =K56/H56 -> 0.04541091096

Sheet Tailings
B1: Tailings Impoundment Name: | C1: Doris-Madrid Mines | G1: Pond # | H1: 1 | AD1: Match | AQ1: SRK Code | BD1: SRK Estimate
B3: INAC COST March 2018 | O3: TMAC COST (Nov 2017)* | W3: Cost Difference | Y3: PROPOSED COSTS (April 2018)
B4: ACTIVITY/MATERIAL | C4: Notes | D4: Units | E4: Quantity | F4: Cost Code | G4: Unit Cost | H4: Subtotal | I4: % Land | J4: Land Cost | K4: Water Cost | O4: SRK Row Number | P4: Facility Name | Q4: Task Description | R4: Qty | S4: Unit | T4: Unit Cost | U4: Subtotal | V4: TMAC Cost | W4: Cost Difference (INAC-TMAC) | X4: Notes | Y4: Carry Forward Costs | AB4: Lookup | AC4: Count | AD4: 1 | AE4: =AD4+1 -> 2 | AF4: =AE4+1 -> 3 | AG4: 4 | AH4: 5 | AI4: 6 | AJ4: 7 | AK4: 8 | AL4: 9 | AM4: 10 | AN4: =AM4+1 -> 11 | AO4: 12 | AQ4: 1 | AR4: =AQ4+1 -> 2 | AS4: 3 | AT4: 4 | AU4: 5 | AV4: 6 | AW4: 7 | AX4: 8 | AY4: 9 | AZ4: 10 | BA4: 11 | BB4: 12 | BD4: 1 | BE4: =BD4+1 -> 2 | BF4: =BE4+1 -> 3 | BG4: 4 | BH4: 5 | BI4: 6 | BJ4: 7 | BK4: 8 | BL4: 9 | BM4: 10 | BN4: =Bm³+1 -> 
A5: a | B5: CONTROL ACCESS | V5: =IF(ISBLANK($H5),"",SUM(BB5:BM5)) ->  | W5: =IF(V5="","",SUM(J5:K5)-V5) ->  | AB5: =IF(ISNUMBER(A5),A5&"_"&MID(CELL("filename",$A$1),FIND("]",CELL("filename",$A$1))+1,255),"") ->  | AC5: =IF(AB5="","",COUNTIFS(AssignmentSummary!$G:$G,AB5)) ->  | AD5: =IFERROR(MATCH($AB5,AssignmentSummary!$G:$G,0),"") ->  | AE5: =IFERROR(IF(AE$4>$AC5,"",MATCH($AB5,INDIRECT("AssignmentSummary!G"&AD5&":G10000"),0))+AD5,"") ->  | AF5: =IFERROR(IF(AF$4>$AC5,"",MATCH($AB5,INDIRECT("AssignmentSummary!G"&AE5&":G10000"),0))+AE5,"") ->  | AL5: =IFERROR(IF(AL$4>$AC5,"",MATCH($AB5,INDIRECT("AssignmentSummary!G"&AK5&":G10000"),0))+AK5,"") ->  | AQ5: =IFERROR(INDIRECT("AssignmentSummary!L"&AD5),"") ->  | AR5: =IFERROR(INDIRECT("AssignmentSummary!L"&AE5),"") ->  | AS5: =IFERROR(INDIRECT("AssignmentSummary!L"&AF5),"") ->  | AT5: =IFERROR(INDIRECT("AssignmentSummary!L"&AG5),"") ->  | AU5: =IFERROR(INDIRECT("AssignmentSummary!L"&AH5),"") ->  | AV5: =IFERROR(INDIRECT("AssignmentSummary!L"&AI5),"") ->  | AW5: =IFERROR(INDIRECT("AssignmentSummary!L"&AJ5),"") ->  | AX5: =IFERROR(INDIRECT("AssignmentSummary!L"&AK5),"") ->  | AY5: =IFERROR(INDIRECT("AssignmentSummary!L"&AL5),"") ->  | AZ5: =IFERROR(INDIRECT("AssignmentSummary!L"&AM5),"") ->  | BA5: =IFERROR(INDIRECT("AssignmentSummary!L"&AN5),"") ->  | BB5: =IFERROR(INDIRECT("AssignmentSummary!L"&AO5),"") -> 
A6: 1 | B6: Fence | D6: m | F6: =NA() ->  | G6: =IF(ISNA(F6),0,INDEX(IF(UPPER(RIGHT(F6,1))=Low,UnitCostLow, IF(UPPER(RIGHT(F6,1))=High,UnitCostHigh,UnitCostSpecified)),MATCH(UPPER(LEFT(F6,LEN(F6)-1)),CostCode,0))) -> 0 | H6: =G6*E6 -> 0 | J6: =H6*I6 -> 0 | K6: =+H6*(1-I6) -> 0 | V6: =IF(ISBLANK($H6),"",SUM(BD6:BO6)) -> 0 | W6: =IF(V6="","",SUM(J6:K6)-V6) -> 0 | Y6: =IF(U6="",H6,V6) -> 0 | AB6: 1_Tailings | AC6: =IF(AB6="","",COUNTIFS(AssignmentSummary!$G:$G,AB6)) -> 1 | AD6: =IFERROR(MATCH($AB6,AssignmentSummary!$G:$G,0),"") -> 22 | AE6: =IFERROR(IF(AE$4>$AC6,"",MATCH($AB6,INDIRECT("AssignmentSummary!G"&AD6&":G10000"),0))+AD6,"") ->  | AQ6: Assign
A7: =A6+1 -> 2 | B7: Signs | D7: each | F7: =NA() ->  | G7: =IF(ISNA(F7),0,INDEX(IF(UPPER(RIGHT(F7,1))=Low,UnitCostLow, IF(UPPER(RIGHT(F7,1))=High,UnitCostHigh,UnitCostSpecified)),MATCH(UPPER(LEFT(F7,LEN(F7)-1)),CostCode,0))) -> 0 | H7: =G7*E7 -> 0 | J7: =H7*I7 -> 0 | K7: =+H7*(1-I7) -> 0 | V7: =IF(ISBLANK($H7),"",SUM(BD7:BO7)) -> 0 | W7: 0 | Y7: =IF(U7="",H7,V7) -> 0 | AB7: 2_Tailings | AC7: =IF(AB7="","",COUNTIFS(AssignmentSummary!$G:$G,AB7)) -> 0 | AD7: =IFERROR(MATCH($AB7,AssignmentSummary!$G:$G,0),"") -> 
A8: =A7+1 -> 3 | B8: Berm | D8: m³ | F8: =NA() ->  | G8: =IF(ISNA(F8),0,INDEX(IF(UPPER(RIGHT(F8,1))=Low,UnitCostLow, IF(UPPER(RIGHT(F8,1))=High,UnitCostHigh,UnitCostSpecified)),MATCH(UPPER(LEFT(F8,LEN(F8)-1)),CostCode,0))) -> 0 | H8: =G8*E8 -> 0 | J8: =H8*I8 -> 0 | K8: =+H8*(1-I8) -> 0 | V8: 0 | W8: 0 | Y8: 0 | AB8: 3_Tailings | AC8: =IF(AB8="","",COUNTIFS(AssignmentSummary!$G:$G,AB8)) -> 0 | AD8: =IFERROR(MATCH($AB8,AssignmentSummary!$G:$G,0),"") ->  | AE8: =IFERROR(IF(AE$4>$AC8,"",MATCH($AB8,INDIRECT("AssignmentSummary!G"&AD8&":G10000"),0))+AD8,"") -> 
A9: =A8+1 -> 4 | B9: Block roads | D9: m³ | F9: =NA() ->  | G9: =IF(ISNA(F9),0,INDEX(IF(UPPER(RIGHT(F9,1))=Low,UnitCostLow, IF(UPPER(RIGHT(F9,1))=High,UnitCostHigh,UnitCostSpecified)),MATCH(UPPER(LEFT(F9,LEN(F9)-1)),CostCode,0))) -> 0 | H9: =G9*E9 -> 0 | J9: =H9*I9 -> 0 | K9: =+H9*(1-I9) -> 0 | V9: 0 | W9: 0 | Y9: 0 | AB9: 4_Tailings | AC9: =IF(AB9="","",COUNTIFS(AssignmentSummary!$G:$G,AB9)) -> 0 | AD9: =IFERROR(MATCH($AB9,AssignmentSummary!$G:$G,0),"") ->  | AE9: =IFERROR(IF(AE$4>$AC9,"",MATCH($AB9,INDIRECT("AssignmentSummary!G"&AD9&":G10000"),0))+AD9,"") -> 
A10: =A9+1 -> 5 | B10: Other | F10: =NA() ->  | G10: =IF(ISNA(F10),0,INDEX(IF(UPPER(RIGHT(F10,1))=Low,UnitCostLow, IF(UPPER(RIGHT(F10,1))=High,UnitCostHigh,UnitCostSpecified)),MATCH(UPPER(LEFT(F10,LEN(F10)-1)),CostCode,0))) -> 0 | H10: =G10*E10 -> 0 | J10: =H10*I10 -> 0 | K10: =+H10*(1-I10) -> 0 | V10: 0 | W10: 0 | Y10: 0 | AB10: 5_Tailings | AC10: =IF(AB10="","",COUNTIFS(AssignmentSummary!$G:$G,AB10)) -> 0 | AD10: =IFERROR(MATCH($AB10,AssignmentSummary!$G:$G,0),"") ->  | AE10: =IFERROR(IF(AE$4>$AC10,"",MATCH($AB10,INDIRECT("AssignmentSummary!G"&AD10&":G10000"),0))+AD10,"") -> 
A11: a | B11: STABILIZE EMBANKMENT(S) | AC11: =IF(AB11="","",COUNTIFS(AssignmentSummary!$G:$G,AB11)) ->  | AD11: =IFERROR(MATCH($AB11,AssignmentSummary!$G:$G,0),"") ->  | AE11: =IFERROR(IF(AE$4>$AC11,"",MATCH($AB11,INDIRECT("AssignmentSummary!G"&AD11&":G10000"),0))+AD11,"") -> 
A12: =A10+1 -> 6 | B12: Toe buttress, drainage layer | D12: m³ | F12: =NA() ->  | G12: =IF(ISNA(F12),0,INDEX(IF(UPPER(RIGHT(F12,1))=Low,UnitCostLow, IF(UPPER(RIGHT(F12,1))=High,UnitCostHigh,UnitCostSpecified)),MATCH(UPPER(LEFT(F12,LEN(F12)-1)),CostCode,0))) -> 0 | H12: =G12*E12 -> 0 | J12: =H12*I12 -> 0 | K12: =+H12*(1-I12) -> 0 | V12: 0 | W12: 0 | Y12: 0 | AB12: 6_Tailings | AC12: =IF(AB12="","",COUNTIFS(AssignmentSummary!$G:$G,AB12)) -> 0 | AD12: =IFERROR(MATCH($AB12,AssignmentSummary!$G:$G,0),"") ->  | AE12: =IFERROR(IF(AE$4>$AC12,"",MATCH($AB12,INDIRECT("AssignmentSummary!G"&AD12&":G10000"),0))+AD12,"") -> 
A13: =A12+1 -> 7 | B13: Toe buttress, bulk fill | D13: m³ | F13: =NA() ->  | G13: =IF(ISNA(F13),0,INDEX(IF(UPPER(RIGHT(F13,1))=Low,UnitCostLow, IF(UPPER(RIGHT(F13,1))=High,UnitCostHigh,UnitCostSpecified)),MATCH(UPPER(LEFT(F13,LEN(F13)-1)),CostCode,0))) -> 0 | H13: 0 | J13: 0 | K13: 0 | V13: 0 | W13: 0 | Y13: 0 | AB13: 7_Tailings | AC13: =IF(AB13="","",COUNTIFS(AssignmentSummary!$G:$G,AB13)) -> 0 | AD13: =IFERROR(MATCH($AB13,AssignmentSummary!$G:$G,0),"") ->  | AE13: =IFERROR(IF(AE$4>$AC13,"",MATCH($AB13,INDIRECT("AssignmentSummary!G"&AD13&":G10000"),0))+AD13,"") -> 
A14: 8 | B14: Rip rap | D14: m³ | F14: RB2 | G14: =Unit_Costs!G30 -> 17.8 | H14: 0 | J14: 0 | K14: 0 | V14: 0 | W14: 0 | Y14: 0 | AB14: 8_Tailings | AC14: =IF(AB14="","",COUNTIFS(AssignmentSummary!$G:$G,AB14)) -> 0 | AD14: =IFERROR(MATCH($AB14,AssignmentSummary!$G:$G,0),"") ->  | AE14: =IFERROR(IF(AE$4>$AC14,"",MATCH($AB14,INDIRECT("AssignmentSummary!G"&AD14&":G10000"),0))+AD14,"") -> 
A15: 9 | B15: Vegetate | D15: ha | F15: =NA() ->  | G15: =IF(ISNA(F15),0,INDEX(IF(UPPER(RIGHT(F15,1))=Low,UnitCostLow, IF(UPPER(RIGHT(F15,1))=High,UnitCostHigh,UnitCostSpecified)),MATCH(UPPER(LEFT(F15,LEN(F15)-1)),CostCode,0))) -> 0 | H15: 0 | J15: 0 | K15: 0 | V15: 0 | W15: 0 | Y15: 0 | AB15: 9_Tailings | AC15: =IF(AB15="","",COUNTIFS(AssignmentSummary!$G:$G,AB15)) -> 0 | AD15: =IFERROR(MATCH($AB15,AssignmentSummary!$G:$G,0),"") ->  | AE15: =IFERROR(IF(AE$4>$AC15,"",MATCH($AB15,INDIRECT("AssignmentSummary!G"&AD15&":G10000"),0))+AD15,"") -> 
A16: 10 | B16: Raise crest | D16: m³ | F16: =NA() ->  | G16: =IF(ISNA(F16),0,INDEX(IF(UPPER(RIGHT(F16,1))=Low,UnitCostLow, IF(UPPER(RIGHT(F16,1))=High,UnitCostHigh,UnitCostSpecified)),MATCH(UPPER(LEFT(F16,LEN(F16)-1)),CostCode,0))) -> 0 | H16: 0 | J16: 0 | K16: 0 | V16: 0 | W16: 0 | Y16: 0 | AB16: 10_Tailings | AC16: =IF(AB16="","",COUNTIFS(AssignmentSummary!$G:$G,AB16)) -> 0 | AD16: =IFERROR(MATCH($AB16,AssignmentSummary!$G:$G,0),"") ->  | AE16: =IFERROR(IF(AE$4>$AC16,"",MATCH($AB16,INDIRECT("AssignmentSummary!G"&AD16&":G10000"),0))+AD16,"") -> 
A17: 11 | B17: Flatten slopes | D17: m³ | F17: =NA() ->  | G17: =IF(ISNA(F17),0,INDEX(IF(UPPER(RIGHT(F17,1))=Low,UnitCostLow, IF(UPPER(RIGHT(F17,1))=High,UnitCostHigh,UnitCostSpecified)),MATCH(UPPER(LEFT(F17,LEN(F17)-1)),CostCode,0))) -> 0 | H17: 0 | J17: 0 | K17: 0 | V17: 0 | W17: 0 | Y17: 0 | AB17: 11_Tailings | AC17: =IF(AB17="","",COUNTIFS(AssignmentSummary!$G:$G,AB17)) -> 0 | AD17: =IFERROR(MATCH($AB17,AssignmentSummary!$G:$G,0),"") ->  | AE17: =IFERROR(IF(AE$4>$AC17,"",MATCH($AB17,INDIRECT("AssignmentSummary!G"&AD17&":G10000"),0))+AD17,"") -> 
A18: 12 | B18: Other | F18: =NA() ->  | G18: =IF(ISNA(F18),0,INDEX(IF(UPPER(RIGHT(F18,1))=Low,UnitCostLow, IF(UPPER(RIGHT(F18,1))=High,UnitCostHigh,UnitCostSpecified)),MATCH(UPPER(LEFT(F18,LEN(F18)-1)),CostCode,0))) -> 0 | H18: 0 | J18: 0 | K18: 0 | V18: 0 | W18: 0 | Y18: 0 | AB18: 12_Tailings | AC18: =IF(AB18="","",COUNTIFS(AssignmentSummary!$G:$G,AB18)) -> 0 | AD18: =IFERROR(MATCH($AB18,AssignmentSummary!$G:$G,0),"") ->  | AE18: =IFERROR(IF(AE$4>$AC18,"",MATCH($AB18,INDIRECT("AssignmentSummary!G"&AD18&":G10000"),0))+AD18,"") -> 
A19: a | B19: COVER TAILINGS | AC19: =IF(AB19="","",COUNTIFS(AssignmentSummary!$G:$G,AB19)) ->  | AD19: =IFERROR(MATCH($AB19,AssignmentSummary!$G:$G,0),"") ->  | AE19: =IFERROR(IF(AE$4>$AC19,"",MATCH($AB19,INDIRECT("AssignmentSummary!G"&AD19&":G10000"),0))+AD19,"") -> 
A20: =A18+1 -> 13 | B20: Grade/shape tailings surface | C20: Windy Development Area Layout work for regrading | D20: day | E20: 1 | F20: TMAC | G20: 7190 | H20: =G20*E20 -> 7190 | I20: 0.5 | J20: =H20*I20 -> 3595 | K20: =+H20*(1-I20) -> 3595 | O20: SRK_19.11.1 | P20: Windy Developed Areas (for regrading) | Q20: stake-out low lying areas in summer to place fill | R20: 1 | S20: day | T20: 7186.438268 | U20: 7186.438268 | V20: =U20 -> 7186.438268 | W20: 3.561731791 | Y20: 7186.438268 | AB20: 13_Tailings | AC20: =IF(AB20="","",COUNTIFS(AssignmentSummary!$G:$G,AB20)) -> 1 | AD20: =IFERROR(MATCH($AB20,AssignmentSummary!$G:$G,0),"") -> 23 | AE20: =IFERROR(IF(AE$4>$AC20,"",MATCH($AB20,INDIRECT("AssignmentSummary!G"&AD20&":G10000"),0))+AD20,"") ->  | AQ20: Assign
A21: =A20+1 -> 14 | B21: Liner bedding | D21: m³ | F21: =NA() ->  | G21: =IF(ISNA(F21),0,INDEX(IF(UPPER(RIGHT(F21,1))=Low,UnitCostLow, IF(UPPER(RIGHT(F21,1))=High,UnitCostHigh,UnitCostSpecified)),MATCH(UPPER(LEFT(F21,LEN(F21)-1)),CostCode,0))) -> 0 | H21: 0 | J21: =H21*I21 -> 0 | K21: =+H21*(1-I21) -> 0 | V21: 0 | W21: 0 | Y21: 0 | AB21: 14_Tailings | AC21: =IF(AB21="","",COUNTIFS(AssignmentSummary!$G:$G,AB21)) -> 0 | AD21: =IFERROR(MATCH($AB21,AssignmentSummary!$G:$G,0),"") ->  | AE21: =IFERROR(IF(AE$4>$AC21,"",MATCH($AB21,INDIRECT("AssignmentSummary!G"&AD21&":G10000"),0))+AD21,"") ->  | AN21: =IFERROR(IF(AN$4>$AC21,"",MATCH($AB21,INDIRECT("AssignmentSummary!G"&AM21&":G10000"),0))+AM21,"") ->  | AZ21: =IFERROR(INDIRECT("AssignmentSummary!L"&AM21),"") -> 
A22: 15 | B22: Subgrade preparation - compact | D22: m² | F22: =NA() ->  | G22: =IF(ISNA(F22),0,INDEX(IF(UPPER(RIGHT(F22,1))=Low,UnitCostLow, IF(UPPER(RIGHT(F22,1))=High,UnitCostHigh,UnitCostSpecified)),MATCH(UPPER(LEFT(F22,LEN(F22)-1)),CostCode,0))) -> 0 | H22: 0 | J22: =H22*I22 -> 0 | K22: =+H22*(1-I22) -> 0 | V22: 0 | W22: 0 | Y22: 0 | AB22: 15_Tailings | AC22: =IF(AB22="","",COUNTIFS(AssignmentSummary!$G:$G,AB22)) -> 0 | AD22: =IFERROR(MATCH($AB22,AssignmentSummary!$G:$G,0),"") ->  | AE22: =IFERROR(IF(AE$4>$AC22,"",MATCH($AB22,INDIRECT("AssignmentSummary!G"&AD22&":G10000"),0))+AD22,"") -> 
A23: 16 | B23: Supply geotextile/geosynthetic | D23: m² | F23: =NA() ->  | G23: =IF(ISNA(F23),0,INDEX(IF(UPPER(RIGHT(F23,1))=Low,UnitCostLow, IF(UPPER(RIGHT(F23,1))=High,UnitCostHigh,UnitCostSpecified)),MATCH(UPPER(LEFT(F23,LEN(F23)-1)),CostCode,0))) -> 0 | H23: 0 | J23: 0 | K23: 0 | V23: 0 | W23: 0 | Y23: 0 | AB23: 16_Tailings | AC23: =IF(AB23="","",COUNTIFS(AssignmentSummary!$G:$G,AB23)) -> 0 | AD23: =IFERROR(MATCH($AB23,AssignmentSummary!$G:$G,0),"") ->  | AE23: =IFERROR(IF(AE$4>$AC23,"",MATCH($AB23,INDIRECT("AssignmentSummary!G"&AD23&":G10000"),0))+AD23,"") -> 
A24: 17 | B24: Supply & Install geotextile/geosynthetic | C24: TIA-005 placement of NWG for erosion prevention | D24: m² | E24: 54340 | F24: TMAC | G24: 30.02 | H24: 1631286.8 | I24: 0.5 | J24: =H24*I24 -> 815643.4 | K24: =+H24*(1-I24) -> 815643.4 | O24: SRK_10.5.1 | P24: TIA Shoreline Protection | Q24: Install separation geotextile | R24: 0 | S24: m2 | T24: 30.0207452 | U24: =T24*R24 -> 0 | V24: =U24 -> 0 | W24: 1631286.8 | X24: INAC accounted for this item under the cover construction costs | Y24: 0 | AB24: 17_Tailings | AC24: =IF(AB24="","",COUNTIFS(AssignmentSummary!$G:$G,AB24)) -> 1 | AD24: =IFERROR(MATCH($AB24,AssignmentSummary!$G:$G,0),"") -> 24 | AE24: =IFERROR(IF(AE$4>$AC24,"",MATCH($AB24,INDIRECT("AssignmentSummary!G"&AD24&":G10000"),0))+AD24,"") ->  | AQ24: SRK_10.5.1 | BD24: 1631327.294
A25: 18 | B25: Soil cover | D25: m³ | F25: SC4L | G25: =IF(ISNA(F25),0,INDEX(IF(UPPER(RIGHT(F25,1))=Low,UnitCostLow, IF(UPPER(RIGHT(F25,1))=High,UnitCostHigh,UnitCostSpecified)),MATCH(UPPER(LEFT(F25,LEN(F25)-1)),CostCode,0))) -> 9.3 | H25: 0 | J25: 0 | K25: 0 | V25: 0 | W25: 0 | Y25: 0 | AB25: 18_Tailings | AC25: =IF(AB25="","",COUNTIFS(AssignmentSummary!$G:$G,AB25)) -> 0 | AD25: =IFERROR(MATCH($AB25,AssignmentSummary!$G:$G,0),"") ->  | AE25: =IFERROR(IF(AE$4>$AC25,"",MATCH($AB25,INDIRECT("AssignmentSummary!G"&AD25&":G10000"),0))+AD25,"") -> 
A26: 19 | B26: Rock cover | C26: Prepare rock cover aggregate (drill and blast) TIA-001 | D26: m³ | E26: 510000 | F26: TMAC | G26: 23.16 | H26: =G26*E26 -> 11811600 | I26: 0.5 | J26: =H26*I26 -> 5905800 | K26: =+H26*(1-I26) -> 5905800 | O26: SRK_10.1.1 | P26: TIA Subaerial Tailings Area | Q26: Produce ROQ (quarry drill&blast) | R26: 510000 | S26: m3 | T26: 23.16025068 | U26: 11811727.84 | V26: 11811727.84 | W26: -127.8447725 | Y26: 11811727.84 | AB26: 19_Tailings | AC26: =IF(AB26="","",COUNTIFS(AssignmentSummary!$G:$G,AB26)) -> 1 | AD26: =IFERROR(MATCH($AB26,AssignmentSummary!$G:$G,0),"") -> 25 | AE26: =IFERROR(IF(AE$4>$AC26,"",MATCH($AB26,INDIRECT("AssignmentSummary!G"&AD26&":G10000"),0))+AD26,"") ->  | AQ26: SRK_10.1.1 | BD26: 11811727.84
A27: 20 | C27: Place 300 mm cover for TIA-001 | D27: m³ | E27: 510000 | F27: TMAC | G27: 8.94 | H27: 4559400 | I27: 0.5 | J27: 2279700 | K27: 2279700 | O27: SRK_10.1.2 | P27: 0 | Q27: LHDP ROQ to construct 0.3 m cover | R27: 510000 | S27: m3 | T27: 8.938865315 | U27: 4558821.311 | V27: 4558821.311 | W27: 578.6892975 | Y27: 4558821.311 | AB27: 20_Tailings | AC27: =IF(AB27="","",COUNTIFS(AssignmentSummary!$G:$G,AB27)) -> 1 | AD27: =IFERROR(MATCH($AB27,AssignmentSummary!$G:$G,0),"") -> 26 | AE27: =IFERROR(IF(AE$4>$AC27,"",MATCH($AB27,INDIRECT("AssignmentSummary!G"&AD27&":G10000"),0))+AD27,"") ->  | AQ27: SRK_10.1.2 | BD27: 4558821.311
A28: 21 | C28: Install nonwoven geotextile at TIA-005 | D28: m² | E28: 54340 | F28: TMAC | G28: 30.02 | H28: 1631286.8 | I28: 0.5 | J28: 815643.4 | K28: 815643.4 | O28: SRK_10.5.1 | P28: TIA Shoreline Protection | Q28: Install separation geotextile | R28: 54340 | S28: m2 | T28: 30.0207452 | U28: 1631327.294 | V28: 1631327.294 | W28: -40.49418394 | Y28: 1631327.294 | AB28: 21_Tailings | AC28: =IF(AB28="","",COUNTIFS(AssignmentSummary!$G:$G,AB28)) -> 1 | AD28: =IFERROR(MATCH($AB28,AssignmentSummary!$G:$G,0),"") -> 27 | AE28: =IFERROR(IF(AE$4>$AC28,"",MATCH($AB28,INDIRECT("AssignmentSummary!G"&AD28&":G10000"),0))+AD28,"") ->  | AQ28: SRK_10.5.1 | BD28: 1631327.294
A29: 22 | C29: Place Rip Rap over NWG at TIA-005 | D29: m³ | E29: 24700 | F29: TMAC | G29: 8.82 | H29: 217854 | I29: 0.5 | J29: 108927 | K29: 108927 | O29: SRK_10.5.2 | P29: 0 | Q29: Haul and place riprap to prevent erosion | R29: 24700 | S29: m3 | T29: 8.824368864 | U29: 217961.9109 | V29: 217961.9109 | W29: -107.9109479 | Y29: 217961.9109 | AB29: 22_Tailings | AC29: =IF(AB29="","",COUNTIFS(AssignmentSummary!$G:$G,AB29)) -> 1 | AD29: =IFERROR(MATCH($AB29,AssignmentSummary!$G:$G,0),"") -> 28 | AE29: =IFERROR(IF(AE$4>$AC29,"",MATCH($AB29,INDIRECT("AssignmentSummary!G"&AD29&":G10000"),0))+AD29,"") ->  | AQ29: SRK_10.5.2 | BD29: 217961.9109
A30: 23 | C30: Produce and Place Rip Rap in channel | D30: m³ | E30: 18150 | F30: TMAC | G30: =8.94+23.16 -> 32.1 | H30: 582615 | I30: 0.5 | J30: 291307.5 | K30: 291307.5 | O30: SRK_10.1.3 | P30: 0 | Q30: Produce additional ROQ for drainage channel armoring | R30: 18150 | S30: m3 | T30: 23.16025068 | U30: 420358.5498 | V30: 582598.9552 | W30: 16.04476104 | Y30: 582598.9552 | AB30: 23_Tailings | AC30: =IF(AB30="","",COUNTIFS(AssignmentSummary!$G:$G,AB30)) -> 2 | AD30: =IFERROR(MATCH($AB30,AssignmentSummary!$G:$G,0),"") -> 29 | AE30: =IFERROR(IF(AE$4>$AC30,"",MATCH($AB30,INDIRECT("AssignmentSummary!G"&AD30&":G10000"),0))+AD30,"") -> 30 | AQ30: SRK_10.1.3 | AR30: SRK_10.1.4 | BD30: 420358.5498 | BE30: 162240.4055
O31: SRK_10.1.4 | P31: 0 | Q31: LHDP ROQ to construct 0.3 m drainage channel armoring | R31: 18150 | S31: m3 | T31: 8.938865315 | U31: 162240.4055
A32: =A30+1 -> 24 | C32: Windy Development Area cover | D32: m³ | E32: 665 | F32: TMAC | G32: 12.69 | H32: 8438.85 | I32: 0.5 | J32: 4219.425 | K32: 4219.425 | O32: SRK_19.11.10 | P32: 0 | Q32: Load, Haul, Dump, Place from Quarry D (less than 1 km) | R32: 662.0307692 | S32: m3 | T32: 12.68559346 | U32: 8398.253193 | V32: 8398.253193 | W32: 40.59680668 | Y32: 8398.253193 | AB32: =IF(ISNUMBER(A32),A32&"_"&MID(CELL("filename",$A$1),FIND("]",CELL("filename",$A$1))+1,255),"") -> 24_Tailings | AC32: =IF(AB32="","",COUNTIFS(AssignmentSummary!$G:$G,AB32)) -> 1 | AD32: =IFERROR(MATCH($AB32,AssignmentSummary!$G:$G,0),"") -> 31 | AE32: =IFERROR(IF(AE$4>$AC32,"",MATCH($AB32,INDIRECT("AssignmentSummary!G"&AD32&":G10000"),0))+AD32,"") ->  | AN32: =IFERROR(IF(AN$4>$AC32,"",MATCH($AB32,INDIRECT("AssignmentSummary!G"&AM32&":G10000"),0))+AM32,"") ->  | AQ32: SRK_19.11.10 | AZ32: =IFERROR(INDIRECT("AssignmentSummary!L"&AM32),"") ->  | BD32: 8398.253193
A33: 25 | B33: Vegetate | D33: ha | F33: VHF | G33: 4000 | H33: =G33*E33 -> 0 | J33: =H33*I33 -> 0 | K33: =+H33*(1-I33) -> 0 | V33: 0 | W33: 0 | Y33: 0 | AB33: 25_Tailings | AC33: =IF(AB33="","",COUNTIFS(AssignmentSummary!$G:$G,AB33)) -> 0 | AD33: =IFERROR(MATCH($AB33,AssignmentSummary!$G:$G,0),"") ->  | AE33: =IFERROR(IF(AE$4>$AC33,"",MATCH($AB33,INDIRECT("AssignmentSummary!G"&AD33&":G10000"),0))+AD33,"") -> 
A34: 26 | B34: Other | D34: m³ | F34: TMAC | G34: 24.71 | H34: =G34*E34 -> 0 | I34: 0.5 | J34: =H34*I34 -> 0 | K34: =+H34*(1-I34) -> 0 | V34: 0 | W34: 0 | Y34: 0 | AB34: 26_Tailings | AC34: =IF(AB34="","",COUNTIFS(AssignmentSummary!$G:$G,AB34)) -> 0 | AD34: =IFERROR(MATCH($AB34,AssignmentSummary!$G:$G,0),"") ->  | AE34: =IFERROR(IF(AE$4>$AC34,"",MATCH($AB34,INDIRECT("AssignmentSummary!G"&AD34&":G10000"),0))+AD34,"") -> 
A35: a | B35: BURY PAG ROCK | AC35: =IF(AB35="","",COUNTIFS(AssignmentSummary!$G:$G,AB35)) ->  | AD35: =IFERROR(MATCH($AB35,AssignmentSummary!$G:$G,0),"") ->  | AE35: =IFERROR(IF(AE$4>$AC35,"",MATCH($AB35,INDIRECT("AssignmentSummary!G"&AD35&":G10000"),0))+AD35,"") -> 
A36: =A34+1 -> 27 | B36: Relocate PAG rock | D36: m³ | F36: =NA() ->  | G36: =IF(ISNA(F36),0,INDEX(IF(UPPER(RIGHT(F36,1))=Low,UnitCostLow, IF(UPPER(RIGHT(F36,1))=High,UnitCostHigh,UnitCostSpecified)),MATCH(UPPER(LEFT(F36,LEN(F36)-1)),CostCode,0))) -> 0 | H36: =G36*E36 -> 0 | J36: =H36*I36 -> 0 | K36: =+H36*(1-I36) -> 0 | V36: 0 | W36: 0 | Y36: 0 | AB36: 27_Tailings | AC36: =IF(AB36="","",COUNTIFS(AssignmentSummary!$G:$G,AB36)) -> 0 | AD36: =IFERROR(MATCH($AB36,AssignmentSummary!$G:$G,0),"") ->  | AE36: =IFERROR(IF(AE$4>$AC36,"",MATCH($AB36,INDIRECT("AssignmentSummary!G"&AD36&":G10000"),0))+AD36,"") -> 
A37: =A36+1 -> 28 | B37: Place cover over PAG rock | D37: m³ | F37: =NA() ->  | G37: =IF(ISNA(F37),0,INDEX(IF(UPPER(RIGHT(F37,1))=Low,UnitCostLow, IF(UPPER(RIGHT(F37,1))=High,UnitCostHigh,UnitCostSpecified)),MATCH(UPPER(LEFT(F37,LEN(F37)-1)),CostCode,0))) -> 0 | H37: =G37*E37 -> 0 | J37: =H37*I37 -> 0 | K37: =+H37*(1-I37) -> 0 | V37: 0 | W37: 0 | Y37: 0 | AB37: 28_Tailings | AC37: =IF(AB37="","",COUNTIFS(AssignmentSummary!$G:$G,AB37)) -> 0 | AD37: =IFERROR(MATCH($AB37,AssignmentSummary!$G:$G,0),"") ->  | AE37: =IFERROR(IF(AE$4>$AC37,"",MATCH($AB37,INDIRECT("AssignmentSummary!G"&AD37&":G10000"),0))+AD37,"") -> 
A38: =A37+1 -> 29 | B38: Raise crest of dam | D38: m³ | F38: =NA() ->  | G38: =IF(ISNA(F38),0,INDEX(IF(UPPER(RIGHT(F38,1))=Low,UnitCostLow, IF(UPPER(RIGHT(F38,1))=High,UnitCostHigh,UnitCostSpecified)),MATCH(UPPER(LEFT(F38,LEN(F38)-1)),CostCode,0))) -> 0 | H38: =G38*E38 -> 0 | J38: =H38*I38 -> 0 | K38: =+H38*(1-I38) -> 0 | V38: 0 | W38: 0 | Y38: 0 | AB38: 29_Tailings | AC38: =IF(AB38="","",COUNTIFS(AssignmentSummary!$G:$G,AB38)) -> 0 | AD38: =IFERROR(MATCH($AB38,AssignmentSummary!$G:$G,0),"") ->  | AE38: =IFERROR(IF(AE$4>$AC38,"",MATCH($AB38,INDIRECT("AssignmentSummary!G"&AD38&":G10000"),0))+AD38,"") ->  | AQ38: =IFERROR(INDIRECT("AssignmentSummary!L"&AD38),"") ->  | AR38: =IFERROR(INDIRECT("AssignmentSummary!L"&AE38),"") ->  | AS38: =IFERROR(INDIRECT("AssignmentSummary!L"&AF38),"") ->  | AT38: =IFERROR(INDIRECT("AssignmentSummary!L"&AG38),"") ->  | AU38: =IFERROR(INDIRECT("AssignmentSummary!L"&AH38),"") ->  | AV38: =IFERROR(INDIRECT("AssignmentSummary!L"&AI38),"") ->  | AW38: =IFERROR(INDIRECT("AssignmentSummary!L"&AJ38),"") ->  | AX38: =IFERROR(INDIRECT("AssignmentSummary!L"&AK38),"") ->  | AY38: =IFERROR(INDIRECT("AssignmentSummary!L"&AL38),"") ->  | BA38: =IFERROR(INDIRECT("AssignmentSummary!L"&AN38),"") ->  | BB38: =IFERROR(INDIRECT("AssignmentSummary!L"&AO38),"") -> 
A39: =A38+1 -> 30 | B39: Other | F39: =NA() ->  | G39: =IF(ISNA(F39),0,INDEX(IF(UPPER(RIGHT(F39,1))=Low,UnitCostLow, IF(UPPER(RIGHT(F39,1))=High,UnitCostHigh,UnitCostSpecified)),MATCH(UPPER(LEFT(F39,LEN(F39)-1)),CostCode,0))) -> 0 | H39: =G39*E39 -> 0 | J39: =H39*I39 -> 0 | K39: =+H39*(1-I39) -> 0 | V39: 0 | W39: 0 | Y39: 0 | AB39: 30_Tailings | AC39: =IF(AB39="","",COUNTIFS(AssignmentSummary!$G:$G,AB39)) -> 0 | AD39: =IFERROR(MATCH($AB39,AssignmentSummary!$G:$G,0),"") ->  | AE39: =IFERROR(IF(AE$4>$AC39,"",MATCH($AB39,INDIRECT("AssignmentSummary!G"&AD39&":G10000"),0))+AD39,"") -> 
A40: a | B40: STABILIZE DECANT SYSTEM | AC40: =IF(AB40="","",COUNTIFS(AssignmentSummary!$G:$G,AB40)) ->  | AD40: =IFERROR(MATCH($AB40,AssignmentSummary!$G:$G,0),"") ->  | AE40: =IFERROR(IF(AE$4>$AC40,"",MATCH($AB40,INDIRECT("AssignmentSummary!G"&AD40&":G10000"),0))+AD40,"") -> 
A41: =A39+1 -> 31 | B41: Excavate and replace | D41: m³ | F41: =NA() ->  | G41: =IF(ISNA(F41),0,INDEX(IF(UPPER(RIGHT(F41,1))=Low,UnitCostLow, IF(UPPER(RIGHT(F41,1))=High,UnitCostHigh,UnitCostSpecified)),MATCH(UPPER(LEFT(F41,LEN(F41)-1)),CostCode,0))) -> 0 | H41: =G41*E41 -> 0 | J41: =H41*I41 -> 0 | K41: =+H41*(1-I41) -> 0 | V41: 0 | W41: 0 | Y41: 0 | AB41: 31_Tailings | AC41: =IF(AB41="","",COUNTIFS(AssignmentSummary!$G:$G,AB41)) -> 0 | AD41: =IFERROR(MATCH($AB41,AssignmentSummary!$G:$G,0),"") ->  | AE41: =IFERROR(IF(AE$4>$AC41,"",MATCH($AB41,INDIRECT("AssignmentSummary!G"&AD41&":G10000"),0))+AD41,"") ->  | AZ41: =IFERROR(INDIRECT("AssignmentSummary!L"&AM41),"") -> 
A42: =A41+1 -> 32 | B42: Plug/backfill with concrete or clay | D42: m³ | F42: =NA() ->  | G42: =IF(ISNA(F42),0,INDEX(IF(UPPER(RIGHT(F42,1))=Low,UnitCostLow, IF(UPPER(RIGHT(F42,1))=High,UnitCostHigh,UnitCostSpecified)),MATCH(UPPER(LEFT(F42,LEN(F42)-1)),CostCode,0))) -> 0 | H42: =G42*E42 -> 0 | J42: =H42*I42 -> 0 | K42: =+H42*(1-I42) -> 0 | V42: 0 | W42: 0 | Y42: 0 | AB42: 32_Tailings | AC42: =IF(AB42="","",COUNTIFS(AssignmentSummary!$G:$G,AB42)) -> 0 | AD42: =IFERROR(MATCH($AB42,AssignmentSummary!$G:$G,0),"") ->  | AE42: =IFERROR(IF(AE$4>$AC42,"",MATCH($AB42,INDIRECT("AssignmentSummary!G"&AD42&":G10000"),0))+AD42,"") -> 
A43: =A42+1 -> 33 | B43: Other | F43: =NA() ->  | G43: =IF(ISNA(F43),0,INDEX(IF(UPPER(RIGHT(F43,1))=Low,UnitCostLow, IF(UPPER(RIGHT(F43,1))=High,UnitCostHigh,UnitCostSpecified)),MATCH(UPPER(LEFT(F43,LEN(F43)-1)),CostCode,0))) -> 0 | H43: =G43*E43 -> 0 | J43: =H43*I43 -> 0 | K43: =+H43*(1-I43) -> 0 | V43: 0 | W43: 0 | Y43: 0 | AB43: 33_Tailings | AC43: =IF(AB43="","",COUNTIFS(AssignmentSummary!$G:$G,AB43)) -> 0 | AD43: =IFERROR(MATCH($AB43,AssignmentSummary!$G:$G,0),"") ->  | AE43: =IFERROR(IF(AE$4>$AC43,"",MATCH($AB43,INDIRECT("AssignmentSummary!G"&AD43&":G10000"),0))+AD43,"") -> 
A44: a | B44: REMOVE TAILINGS DISCHARGE | AC44: =IF(AB44="","",COUNTIFS(AssignmentSummary!$G:$G,AB44)) ->  | AD44: =IFERROR(MATCH($AB44,AssignmentSummary!$G:$G,0),"") ->  | AE44: =IFERROR(IF(AE$4>$AC44,"",MATCH($AB44,INDIRECT("AssignmentSummary!G"&AD44&":G10000"),0))+AD44,"") -> 
A45: =A43+1 -> 34 | B45: Cyclones | D45: m³ | F45: =NA() ->  | G45: =IF(ISNA(F45),0,INDEX(IF(UPPER(RIGHT(F45,1))=Low,UnitCostLow, IF(UPPER(RIGHT(F45,1))=High,UnitCostHigh,UnitCostSpecified)),MATCH(UPPER(LEFT(F45,LEN(F45)-1)),CostCode,0))) -> 0 | H45: =G45*E45 -> 0 | J45: =H45*I45 -> 0 | K45: =+H45*(1-I45) -> 0 | V45: 0 | W45: 0 | Y45: 0 | AB45: 34_Tailings | AC45: =IF(AB45="","",COUNTIFS(AssignmentSummary!$G:$G,AB45)) -> 0 | AD45: =IFERROR(MATCH($AB45,AssignmentSummary!$G:$G,0),"") ->  | AE45: =IFERROR(IF(AE$4>$AC45,"",MATCH($AB45,INDIRECT("AssignmentSummary!G"&AD45&":G10000"),0))+AD45,"") -> 
A46: =A45+1 -> 35 | B46: Pipe | C46: SR-002 tailings pipeline from Doris to TIA | D46: m | E46: 2170 | F46: TMAC | G46: =10.23+3.26 -> 13.49 | H46: =G46*E46 -> 29273.3 | I46: 0.5 | J46: =H46*I46 -> 14636.65 | K46: =+H46*(1-I46) -> 14636.65 | M46: Added unit rate for haulage to landfill | O46: SRK_15.1.3 | P46: 0 | Q46: Strap together or load pipe sections in containers for transport to landfill | R46: 2167.698931 | S46: m3 | T46: =10.23+4.17 -> 14.4 | U46: =T46*R46 -> 31214.86461 | V46: =U46 -> 31214.86461 | W46: -1941.564606 | X46: updated quantity for the pipeline from Doris Creek Bridge to South Dam | Y46: =R46*(10.23+4.17) -> 31214.86461 | AB46: 35_Tailings | AC46: =IF(AB46="","",COUNTIFS(AssignmentSummary!$G:$G,AB46)) -> 1 | AD46: =IFERROR(MATCH($AB46,AssignmentSummary!$G:$G,0),"") -> 32 | AE46: =IFERROR(IF(AE$4>$AC46,"",MATCH($AB46,INDIRECT("AssignmentSummary!G"&AD46&":G10000"),0))+AD46,"") ->  | AQ46: SRK_15.2.1 | BD46: 90061.13582
A47: =A46+1 -> 36 | B47: Remove reclaim barge | D47: allow | F47: =NA() ->  | G47: =IF(ISNA(F47),0,INDEX(IF(UPPER(RIGHT(F47,1))=Low,UnitCostLow, IF(UPPER(RIGHT(F47,1))=High,UnitCostHigh,UnitCostSpecified)),MATCH(UPPER(LEFT(F47,LEN(F47)-1)),CostCode,0))) -> 0 | H47: =G47*E47 -> 0 | J47: =H47*I47 -> 0 | K47: =+H47*(1-I47) -> 0 | V47: 0 | W47: 0 | Y47: 0 | AB47: 36_Tailings | AC47: =IF(AB47="","",COUNTIFS(AssignmentSummary!$G:$G,AB47)) -> 0 | AD47: =IFERROR(MATCH($AB47,AssignmentSummary!$G:$G,0),"") ->  | AE47: =IFERROR(IF(AE$4>$AC47,"",MATCH($AB47,INDIRECT("AssignmentSummary!G"&AD47&":G10000"),0))+AD47,"") -> 
A48: a | B48: CONSTRUCT DIVERSION DITCHES | AC48: =IF(AB48="","",COUNTIFS(AssignmentSummary!$G:$G,AB48)) ->  | AD48: =IFERROR(MATCH($AB48,AssignmentSummary!$G:$G,0),"") ->  | AE48: =IFERROR(IF(AE$4>$AC48,"",MATCH($AB48,INDIRECT("AssignmentSummary!G"&AD48&":G10000"),0))+AD48,"") -> 
A49: =A47+1 -> 37 | B49: Excavate ditches -soil | D49: m³ | F49: =NA() ->  | G49: =IF(ISNA(F49),0,INDEX(IF(UPPER(RIGHT(F49,1))=Low,UnitCostLow, IF(UPPER(RIGHT(F49,1))=High,UnitCostHigh,UnitCostSpecified)),MATCH(UPPER(LEFT(F49,LEN(F49)-1)),CostCode,0))) -> 0 | H49: =G49*E49 -> 0 | J49: =H49*I49 -> 0 | K49: =+H49*(1-I49) -> 0 | V49: 0 | W49: 0 | Y49: 0 | AB49: 37_Tailings | AC49: =IF(AB49="","",COUNTIFS(AssignmentSummary!$G:$G,AB49)) -> 0 | AD49: =IFERROR(MATCH($AB49,AssignmentSummary!$G:$G,0),"") ->  | AE49: =IFERROR(IF(AE$4>$AC49,"",MATCH($AB49,INDIRECT("AssignmentSummary!G"&AD49&":G10000"),0))+AD49,"") -> 
A50: =A49+1 -> 38 | B50: Excavate ditches -rock | D50: m³ | F50: =NA() ->  | G50: =IF(ISNA(F50),0,INDEX(IF(UPPER(RIGHT(F50,1))=Low,UnitCostLow, IF(UPPER(RIGHT(F50,1))=High,UnitCostHigh,UnitCostSpecified)),MATCH(UPPER(LEFT(F50,LEN(F50)-1)),CostCode,0))) -> 0 | H50: =G50*E50 -> 0 | J50: =H50*I50 -> 0 | K50: =+H50*(1-I50) -> 0 | V50: 0 | W50: 0 | Y50: 0 | AB50: 38_Tailings | AC50: =IF(AB50="","",COUNTIFS(AssignmentSummary!$G:$G,AB50)) -> 0 | AD50: =IFERROR(MATCH($AB50,AssignmentSummary!$G:$G,0),"") ->  | AE50: =IFERROR(IF(AE$4>$AC50,"",MATCH($AB50,INDIRECT("AssignmentSummary!G"&AD50&":G10000"),0))+AD50,"") -> 
A51: =A50+1 -> 39 | B51: Rip rap in channel base | D51: m³ | F51: =NA() ->  | G51: =IF(ISNA(F51),0,INDEX(IF(UPPER(RIGHT(F51,1))=Low,UnitCostLow, IF(UPPER(RIGHT(F51,1))=High,UnitCostHigh,UnitCostSpecified)),MATCH(UPPER(LEFT(F51,LEN(F51)-1)),CostCode,0))) -> 0 | H51: =G51*E51 -> 0 | J51: =H51*I51 -> 0 | K51: =+H51*(1-I51) -> 0 | V51: 0 | W51: 0 | Y51: 0 | AB51: 39_Tailings | AC51: =IF(AB51="","",COUNTIFS(AssignmentSummary!$G:$G,AB51)) -> 0 | AD51: =IFERROR(MATCH($AB51,AssignmentSummary!$G:$G,0),"") ->  | AE51: =IFERROR(IF(AE$4>$AC51,"",MATCH($AB51,INDIRECT("AssignmentSummary!G"&AD51&":G10000"),0))+AD51,"") -> 
A52: a | B52: FLOOD TAILINGS | AC52: =IF(AB52="","",COUNTIFS(AssignmentSummary!$G:$G,AB52)) ->  | AD52: =IFERROR(MATCH($AB52,AssignmentSummary!$G:$G,0),"") ->  | AE52: =IFERROR(IF(AE$4>$AC52,"",MATCH($AB52,INDIRECT("AssignmentSummary!G"&AD52&":G10000"),0))+AD52,"") -> 
A53: =A51+1 -> 40 | B53: Doze tailings to final contour | D53: m³ | F53: =NA() ->  | G53: =IF(ISNA(F53),0,INDEX(IF(UPPER(RIGHT(F53,1))=Low,UnitCostLow, IF(UPPER(RIGHT(F53,1))=High,UnitCostHigh,UnitCostSpecified)),MATCH(UPPER(LEFT(F53,LEN(F53)-1)),CostCode,0))) -> 0 | H53: =G53*E53 -> 0 | J53: =H53*I53 -> 0 | K53: =+H53*(1-I53) -> 0 | V53: 0 | W53: 0 | Y53: 0 | AB53: 40_Tailings | AC53: =IF(AB53="","",COUNTIFS(AssignmentSummary!$G:$G,AB53)) -> 0 | AD53: =IFERROR(MATCH($AB53,AssignmentSummary!$G:$G,0),"") ->  | AE53: =IFERROR(IF(AE$4>$AC53,"",MATCH($AB53,INDIRECT("AssignmentSummary!G"&AD53&":G10000"),0))+AD53,"") -> 
A54: =A53+1 -> 41 | B54: Raise crest of dam | D54: m³ | F54: =NA() ->  | G54: =IF(ISNA(F54),0,INDEX(IF(UPPER(RIGHT(F54,1))=Low,UnitCostLow, IF(UPPER(RIGHT(F54,1))=High,UnitCostHigh,UnitCostSpecified)),MATCH(UPPER(LEFT(F54,LEN(F54)-1)),CostCode,0))) -> 0 | H54: =G54*E54 -> 0 | J54: =H54*I54 -> 0 | K54: =+H54*(1-I54) -> 0 | V54: 0 | W54: 0 | Y54: 0 | AB54: 41_Tailings | AC54: =IF(AB54="","",COUNTIFS(AssignmentSummary!$G:$G,AB54)) -> 0 | AD54: =IFERROR(MATCH($AB54,AssignmentSummary!$G:$G,0),"") ->  | AE54: =IFERROR(IF(AE$4>$AC54,"",MATCH($AB54,INDIRECT("AssignmentSummary!G"&AD54&":G10000"),0))+AD54,"") -> 
A55: =A54+1 -> 42 | B55: Other | F55: =NA() ->  | G55: =IF(ISNA(F55),0,INDEX(IF(UPPER(RIGHT(F55,1))=Low,UnitCostLow, IF(UPPER(RIGHT(F55,1))=High,UnitCostHigh,UnitCostSpecified)),MATCH(UPPER(LEFT(F55,LEN(F55)-1)),CostCode,0))) -> 0 | H55: =G55*E55 -> 0 | J55: =H55*I55 -> 0 | K55: =+H55*(1-I55) -> 0 | V55: 0 | W55: 0 | Y55: 0 | AB55: 42_Tailings | AC55: =IF(AB55="","",COUNTIFS(AssignmentSummary!$G:$G,AB55)) -> 0 | AD55: =IFERROR(MATCH($AB55,AssignmentSummary!$G:$G,0),"") ->  | AE55: =IFERROR(IF(AE$4>$AC55,"",MATCH($AB55,INDIRECT("AssignmentSummary!G"&AD55&":G10000"),0))+AD55,"") -> 
A56: a | B56: UPGRADE SPILLWAY | AC56: =IF(AB56="","",COUNTIFS(AssignmentSummary!$G:$G,AB56)) ->  | AD56: =IFERROR(MATCH($AB56,AssignmentSummary!$G:$G,0),"") ->  | AE56: =IFERROR(IF(AE$4>$AC56,"",MATCH($AB56,INDIRECT("AssignmentSummary!G"&AD56&":G10000"),0))+AD56,"") -> 
A57: =A55+1 -> 43 | B57: Excavate channel, rock | D57: m³ | F57: =NA() ->  | G57: =IF(ISNA(F57),0,INDEX(IF(UPPER(RIGHT(F57,1))=Low,UnitCostLow, IF(UPPER(RIGHT(F57,1))=High,UnitCostHigh,UnitCostSpecified)),MATCH(UPPER(LEFT(F57,LEN(F57)-1)),CostCode,0))) -> 0 | H57: =G57*E57 -> 0 | J57: =H57*I57 -> 0 | K57: =+H57*(1-I57) -> 0 | V57: 0 | W57: 0 | Y57: 0 | AB57: 43_Tailings | AC57: =IF(AB57="","",COUNTIFS(AssignmentSummary!$G:$G,AB57)) -> 0 | AD57: =IFERROR(MATCH($AB57,AssignmentSummary!$G:$G,0),"") ->  | AE57: =IFERROR(IF(AE$4>$AC57,"",MATCH($AB57,INDIRECT("AssignmentSummary!G"&AD57&":G10000"),0))+AD57,"") -> 
A58: =A57+1 -> 44 | B58: Excavate channel, soil | D58: m³ | F58: SC3H | G58: =IF(ISNA(F58),0,INDEX(IF(UPPER(RIGHT(F58,1))=Low,UnitCostLow, IF(UPPER(RIGHT(F58,1))=High,UnitCostHigh,UnitCostSpecified)),MATCH(UPPER(LEFT(F58,LEN(F58)-1)),CostCode,0))) -> 14.2 | H58: =G58*E58 -> 0 | J58: =H58*I58 -> 0 | K58: =+H58*(1-I58) -> 0 | V58: 0 | W58: 0 | Y58: 0 | AB58: 44_Tailings | AC58: =IF(AB58="","",COUNTIFS(AssignmentSummary!$G:$G,AB58)) -> 0 | AD58: =IFERROR(MATCH($AB58,AssignmentSummary!$G:$G,0),"") ->  | AE58: =IFERROR(IF(AE$4>$AC58,"",MATCH($AB58,INDIRECT("AssignmentSummary!G"&AD58&":G10000"),0))+AD58,"") -> 
A59: =A58+1 -> 45 | B59: Concrete | D59: m³ | F59: =NA() ->  | G59: =IF(ISNA(F59),0,INDEX(IF(UPPER(RIGHT(F59,1))=Low,UnitCostLow, IF(UPPER(RIGHT(F59,1))=High,UnitCostHigh,UnitCostSpecified)),MATCH(UPPER(LEFT(F59,LEN(F59)-1)),CostCode,0))) -> 0 | H59: =G59*E59 -> 0 | J59: =H59*I59 -> 0 | K59: =+H59*(1-I59) -> 0 | V59: 0 | W59: 0 | Y59: 0 | AB59: 45_Tailings | AC59: =IF(AB59="","",COUNTIFS(AssignmentSummary!$G:$G,AB59)) -> 0 | AD59: =IFERROR(MATCH($AB59,AssignmentSummary!$G:$G,0),"") ->  | AE59: =IFERROR(IF(AE$4>$AC59,"",MATCH($AB59,INDIRECT("AssignmentSummary!G"&AD59&":G10000"),0))+AD59,"") -> 
A60: =A59+1 -> 46 | B60: Rip rap | D60: m³ | F60: RB4H | G60: =IF(ISNA(F60),0,INDEX(IF(UPPER(RIGHT(F60,1))=Low,UnitCostLow, IF(UPPER(RIGHT(F60,1))=High,UnitCostHigh,UnitCostSpecified)),MATCH(UPPER(LEFT(F60,LEN(F60)-1)),CostCode,0))) -> 30.75 | H60: =G60*E60 -> 0 | J60: =H60*I60 -> 0 | K60: =+H60*(1-I60) -> 0 | V60: 0 | W60: 0 | Y60: 0 | AB60: 46_Tailings | AC60: =IF(AB60="","",COUNTIFS(AssignmentSummary!$G:$G,AB60)) -> 0 | AD60: =IFERROR(MATCH($AB60,AssignmentSummary!$G:$G,0),"") ->  | AE60: =IFERROR(IF(AE$4>$AC60,"",MATCH($AB60,INDIRECT("AssignmentSummary!G"&AD60&":G10000"),0))+AD60,"") -> 
A61: =A60+1 -> 47 | B61: Geotextile | D61: m² | F61: GSTL | G61: =IF(ISNA(F61),0,INDEX(IF(UPPER(RIGHT(F61,1))=Low,UnitCostLow, IF(UPPER(RIGHT(F61,1))=High,UnitCostHigh,UnitCostSpecified)),MATCH(UPPER(LEFT(F61,LEN(F61)-1)),CostCode,0))) -> 3.44 | H61: =G61*E61 -> 0 | J61: =H61*I61 -> 0 | K61: =+H61*(1-I61) -> 0 | V61: 0 | W61: 0 | Y61: 0 | AB61: 47_Tailings | AC61: =IF(AB61="","",COUNTIFS(AssignmentSummary!$G:$G,AB61)) -> 0 | AD61: =IFERROR(MATCH($AB61,AssignmentSummary!$G:$G,0),"") ->  | AE61: =IFERROR(IF(AE$4>$AC61,"",MATCH($AB61,INDIRECT("AssignmentSummary!G"&AD61&":G10000"),0))+AD61,"") -> 
A62: a | B62: CONSTRUCT SEEPAGE COLLECTION POND | AC62: =IF(AB62="","",COUNTIFS(AssignmentSummary!$G:$G,AB62)) ->  | AD62: =IFERROR(MATCH($AB62,AssignmentSummary!$G:$G,0),"") ->  | AE62: =IFERROR(IF(AE$4>$AC62,"",MATCH($AB62,INDIRECT("AssignmentSummary!G"&AD62&":G10000"),0))+AD62,"") -> 
A63: =A61+1 -> 48 | B63: Excavate seepage collection pond | D63: m³ | F63: =NA() ->  | G63: =IF(ISNA(F63),0,INDEX(IF(UPPER(RIGHT(F63,1))=Low,UnitCostLow, IF(UPPER(RIGHT(F63,1))=High,UnitCostHigh,UnitCostSpecified)),MATCH(UPPER(LEFT(F63,LEN(F63)-1)),CostCode,0))) -> 0 | H63: =G63*E63 -> 0 | J63: =H63*I63 -> 0 | K63: =+H63*(1-I63) -> 0 | V63: 0 | W63: 0 | Y63: 0 | AB63: 48_Tailings | AC63: =IF(AB63="","",COUNTIFS(AssignmentSummary!$G:$G,AB63)) -> 0 | AD63: =IFERROR(MATCH($AB63,AssignmentSummary!$G:$G,0),"") ->  | AE63: =IFERROR(IF(AE$4>$AC63,"",MATCH($AB63,INDIRECT("AssignmentSummary!G"&AD63&":G10000"),0))+AD63,"") -> 
A64: =A63+1 -> 49 | B64: Doze & spread excavated material | D64: m³ | F64: =NA() ->  | G64: 0 | H64: 0 | J64: 0 | K64: 0 | V64: 0 | W64: 0 | Y64: 0 | AB64: =IF(ISNUMBER(A64),A64&"_"&MID(CELL("filename",$A$1),FIND("]",CELL("filename",$A$1))+1,255),"") -> 49_Tailings | AC64: =IF(AB64="","",COUNTIFS(AssignmentSummary!$G:$G,AB64)) -> 0 | AD64: =IFERROR(MATCH($AB64,AssignmentSummary!$G:$G,0),"") ->  | AE64: =IFERROR(IF(AE$4>$AC64,"",MATCH($AB64,INDIRECT("AssignmentSummary!G"&AD64&":G10000"),0))+AD64,"") -> 
A65: 50 | B65: Vegetate spread material | D65: ha | F65: =NA() ->  | G65: 0 | H65: 0 | J65: 0 | K65: 0 | V65: 0 | W65: 0 | Y65: 0 | AB65: 50_Tailings | AC65: =IF(AB65="","",COUNTIFS(AssignmentSummary!$G:$G,AB65)) -> 0 | AD65: =IFERROR(MATCH($AB65,AssignmentSummary!$G:$G,0),"") ->  | AE65: =IFERROR(IF(AE$4>$AC65,"",MATCH($AB65,INDIRECT("AssignmentSummary!G"&AD65&":G10000"),0))+AD65,"") -> 
A66: 51 | B66: Bedding layer | D66: m³ | F66: =NA() ->  | G66: 0 | H66: 0 | J66: 0 | K66: 0 | V66: 0 | W66: 0 | Y66: 0 | AB66: 51_Tailings | AC66: =IF(AB66="","",COUNTIFS(AssignmentSummary!$G:$G,AB66)) -> 0 | AD66: =IFERROR(MATCH($AB66,AssignmentSummary!$G:$G,0),"") ->  | AE66: =IFERROR(IF(AE$4>$AC66,"",MATCH($AB66,INDIRECT("AssignmentSummary!G"&AD66&":G10000"),0))+AD66,"") -> 
A67: 52 | B67: Supply geomembrane | D67: m² | F67: =NA() ->  | G67: 0 | H67: 0 | J67: 0 | K67: 0 | V67: 0 | W67: 0 | Y67: 0 | AB67: 52_Tailings | AC67: =IF(AB67="","",COUNTIFS(AssignmentSummary!$G:$G,AB67)) -> 0 | AD67: =IFERROR(MATCH($AB67,AssignmentSummary!$G:$G,0),"") ->  | AE67: =IFERROR(IF(AE$4>$AC67,"",MATCH($AB67,INDIRECT("AssignmentSummary!G"&AD67&":G10000"),0))+AD67,"") -> 
A68: 53 | B68: Install geomembrane | D68: m² | F68: =NA() ->  | G68: 0 | H68: 0 | J68: 0 | K68: 0 | V68: 0 | W68: 0 | Y68: 0 | AB68: 53_Tailings | AC68: =IF(AB68="","",COUNTIFS(AssignmentSummary!$G:$G,AB68)) -> 0 | AD68: =IFERROR(MATCH($AB68,AssignmentSummary!$G:$G,0),"") ->  | AE68: =IFERROR(IF(AE$4>$AC68,"",MATCH($AB68,INDIRECT("AssignmentSummary!G"&AD68&":G10000"),0))+AD68,"") -> 
A69: 54 | B69: Install Silt Fencing | C69: Patch Lake Devleopment Area | D69: LS | E69: 1 | F69: TMAC | G69: 2500 | H69: =G69*E69 -> 2500 | I69: 50 | J69: =H69*I69 -> 125000 | K69: =+H69*(1-I69) -> -122500 | O69: SRK_18.3.6 | P69: 0 | Q69: install silt fencing | R69: 1 | S69: LS | T69: 2500 | U69: 2500 | V69: 2500 | W69: 0 | Y69: 2500 | AB69: 54_Tailings | AC69: =IF(AB69="","",COUNTIFS(AssignmentSummary!$G:$G,AB69)) -> 1 | AD69: =IFERROR(MATCH($AB69,AssignmentSummary!$G:$G,0),"") -> 33 | AE69: =IFERROR(IF(AE$4>$AC69,"",MATCH($AB69,INDIRECT("AssignmentSummary!G"&AD69&":G10000"),0))+AD69,"") ->  | AQ69: SRK_18.3.6 | BD69: 2500
A70: 55 | B70: Erosion protection layer | D70: m³ | F70: =NA() ->  | G70: 0 | H70: 0 | J70: 0 | K70: 0 | V70: 0 | W70: =IF(V70="","",SUM(J70:K70)-V70) -> 0 | Y70: 0 | AB70: 55_Tailings | AC70: =IF(AB70="","",COUNTIFS(AssignmentSummary!$G:$G,AB70)) -> 0 | AD70: =IFERROR(MATCH($AB70,AssignmentSummary!$G:$G,0),"") ->  | AE70: =IFERROR(IF(AE$4>$AC70,"",MATCH($AB70,INDIRECT("AssignmentSummary!G"&AD70&":G10000"),0))+AD70,"") ->  | AQ70: =IFERROR(INDIRECT("AssignmentSummary!L"&AD70),"") ->  | AR70: =IFERROR(INDIRECT("AssignmentSummary!L"&AE70),"") ->  | AS70: =IFERROR(INDIRECT("AssignmentSummary!L"&AF70),"") ->  | AT70: =IFERROR(INDIRECT("AssignmentSummary!L"&AG70),"") ->  | AU70: =IFERROR(INDIRECT("AssignmentSummary!L"&AH70),"") ->  | AV70: =IFERROR(INDIRECT("AssignmentSummary!L"&AI70),"") ->  | AW70: =IFERROR(INDIRECT("AssignmentSummary!L"&AJ70),"") ->  | AX70: =IFERROR(INDIRECT("AssignmentSummary!L"&AK70),"") ->  | AY70: =IFERROR(INDIRECT("AssignmentSummary!L"&AL70),"") ->  | AZ70: =IFERROR(INDIRECT("AssignmentSummary!L"&AM70),"") ->  | BA70: =IFERROR(INDIRECT("AssignmentSummary!L"&AN70),"") ->  | BB70: =IFERROR(INDIRECT("AssignmentSummary!L"&AO70),"") -> 
A71: a | B71: INSTALL GROUNDWATER COLLECTION SYSTEM | V71: =IF(ISBLANK($H71),"",SUM(BD71:BO71)) ->  | AC71: =IF(AB71="","",COUNTIFS(AssignmentSummary!$G:$G,AB71)) ->  | AD71: =IFERROR(MATCH($AB71,AssignmentSummary!$G:$G,0),"") ->  | AE71: =IFERROR(IF(AE$4>$AC71,"",MATCH($AB71,INDIRECT("AssignmentSummary!G"&AD71&":G10000"),0))+AD71,"") -> 
A72: =A70+1 -> 56 | B72: Excavate/install sumps | D72: m³ | F72: =NA() ->  | G72: =IF(ISNA(F72),0,INDEX(IF(UPPER(RIGHT(F72,1))=Low,UnitCostLow, IF(UPPER(RIGHT(F72,1))=High,UnitCostHigh,UnitCostSpecified)),MATCH(UPPER(LEFT(F72,LEN(F72)-1)),CostCode,0))) -> 0 | H72: =G72*E72 -> 0 | J72: =H72*I72 -> 0 | K72: =+H72*(1-I72) -> 0 | V72: 0 | W72: 0 | Y72: 0 | AB72: 56_Tailings | AC72: =IF(AB72="","",COUNTIFS(AssignmentSummary!$G:$G,AB72)) -> 0 | AD72: =IFERROR(MATCH($AB72,AssignmentSummary!$G:$G,0),"") ->  | AE72: =IFERROR(IF(AE$4>$AC72,"",MATCH($AB72,INDIRECT("AssignmentSummary!G"&AD72&":G10000"),0))+AD72,"") -> 
A73: =A72+1 -> 57 | B73: Install pumping wells | D73: m³ | F73: =NA() ->  | G73: =IF(ISNA(F73),0,INDEX(IF(UPPER(RIGHT(F73,1))=Low,UnitCostLow, IF(UPPER(RIGHT(F73,1))=High,UnitCostHigh,UnitCostSpecified)),MATCH(UPPER(LEFT(F73,LEN(F73)-1)),CostCode,0))) -> 0 | H73: =G73*E73 -> 0 | J73: =H73*I73 -> 0 | K73: =+H73*(1-I73) -> 0 | V73: 0 | W73: 0 | Y73: =IF(U73="",H73,V73) -> 0 | AB73: 57_Tailings | AC73: =IF(AB73="","",COUNTIFS(AssignmentSummary!$G:$G,AB73)) -> 0 | AD73: =IFERROR(MATCH($AB73,AssignmentSummary!$G:$G,0),"") ->  | AE73: =IFERROR(IF(AE$4>$AC73,"",MATCH($AB73,INDIRECT("AssignmentSummary!G"&AD73&":G10000"),0))+AD73,"") -> 
A74: =A73+1 -> 58 | B74: Install pumps/pipelines/power supply | D74: LS | F74: =NA() ->  | G74: =IF(ISNA(F74),0,INDEX(IF(UPPER(RIGHT(F74,1))=Low,UnitCostLow, IF(UPPER(RIGHT(F74,1))=High,UnitCostHigh,UnitCostSpecified)),MATCH(UPPER(LEFT(F74,LEN(F74)-1)),CostCode,0))) -> 0 | H74: =G74*E74 -> 0 | J74: =H74*I74 -> 0 | K74: =+H74*(1-I74) -> 0 | V74: 0 | W74: 0 | Y74: =IF(U74="",H74,V74) -> 0 | AB74: 58_Tailings | AC74: =IF(AB74="","",COUNTIFS(AssignmentSummary!$G:$G,AB74)) -> 0 | AD74: =IFERROR(MATCH($AB74,AssignmentSummary!$G:$G,0),"") ->  | AE74: =IFERROR(IF(AE$4>$AC74,"",MATCH($AB74,INDIRECT("AssignmentSummary!G"&AD74&":G10000"),0))+AD74,"") -> 
A75: a | B75: SPECIALIZED ITEMS | AC75: =IF(AB75="","",COUNTIFS(AssignmentSummary!$G:$G,AB75)) ->  | AD75: =IFERROR(MATCH($AB75,AssignmentSummary!$G:$G,0),"") ->  | AE75: =IFERROR(IF(AE$4>$AC75,"",MATCH($AB75,INDIRECT("AssignmentSummary!G"&AD75&":G10000"),0))+AD75,"") -> 
A76: =A74+1 -> 59 | B76: Install permanent instrumentation, supply & technican | D76: each | F76: =NA() ->  | G76: 30000 | H76: =G76*E76 -> 0 | J76: =H76*I76 -> 0 | K76: =+H76*(1-I76) -> 0 | V76: 0 | W76: 0 | Y76: =IF(U76="",H76,V76) -> 0 | AB76: 59_Tailings | AC76: =IF(AB76="","",COUNTIFS(AssignmentSummary!$G:$G,AB76)) -> 0 | AD76: =IFERROR(MATCH($AB76,AssignmentSummary!$G:$G,0),"") ->  | AE76: =IFERROR(IF(AE$4>$AC76,"",MATCH($AB76,INDIRECT("AssignmentSummary!G"&AD76&":G10000"),0))+AD76,"") -> 
A77: =A76+1 -> 60 | B77: Install permanent instrumentation, drilling | D77: each | F77: =NA() ->  | G77: 30000 | H77: =G77*E77 -> 0 | K77: =+H77*(1-I77) -> 0 | V77: 0 | W77: 0 | Y77: =IF(U77="",H77,V77) -> 0 | AB77: 60_Tailings | AC77: =IF(AB77="","",COUNTIFS(AssignmentSummary!$G:$G,AB77)) -> 0 | AD77: =IFERROR(MATCH($AB77,AssignmentSummary!$G:$G,0),"") ->  | AE77: =IFERROR(IF(AE$4>$AC77,"",MATCH($AB77,INDIRECT("AssignmentSummary!G"&AD77&":G10000"),0))+AD77,"") -> 
A78: a | B78: TREAT SEEPAGE - see "Water Management" and "Water Treatment" | AC78: =IF(AB78="","",COUNTIFS(AssignmentSummary!$G:$G,AB78)) ->  | AD78: =IFERROR(MATCH($AB78,AssignmentSummary!$G:$G,0),"") ->  | AE78: =IFERROR(IF(AE$4>$AC78,"",MATCH($AB78,INDIRECT("AssignmentSummary!G"&AD78&":G10000"),0))+AD78,"") -> 
A79: a | B79: TREAT SUPERNATANT | AC79: =IF(AB79="","",COUNTIFS(AssignmentSummary!$G:$G,AB79)) ->  | AD79: =IFERROR(MATCH($AB79,AssignmentSummary!$G:$G,0),"") ->  | AE79: =IFERROR(IF(AE$4>$AC79,"",MATCH($AB79,INDIRECT("AssignmentSummary!G"&AD79&":G10000"),0))+AD79,"") -> 
A80: =A77+1 -> 61 | B80: Pump water (to pit, U/G) | D80: m³ | F80: =NA() ->  | G80: =IF(ISNA(F80),0,INDEX(IF(UPPER(RIGHT(F80,1))=Low,UnitCostLow, IF(UPPER(RIGHT(F80,1))=High,UnitCostHigh,UnitCostSpecified)),MATCH(UPPER(LEFT(F80,LEN(F80)-1)),CostCode,0))) -> 0 | H80: =G80*E80 -> 0 | J80: =H80*I80 -> 0 | K80: =+H80*(1-I80) -> 0 | V80: 0 | W80: 0 | Y80: =IF(U80="",H80,V80) -> 0 | AB80: 61_Tailings | AC80: =IF(AB80="","",COUNTIFS(AssignmentSummary!$G:$G,AB80)) -> 0 | AD80: =IFERROR(MATCH($AB80,AssignmentSummary!$G:$G,0),"") ->  | AE80: =IFERROR(IF(AE$4>$AC80,"",MATCH($AB80,INDIRECT("AssignmentSummary!G"&AD80&":G10000"),0))+AD80,"") -> 
A81: =A80+1 -> 62 | B81: Equipment maintenance and parts | D81: allow | F81: =NA() ->  | G81: 100000 | H81: =G81*E81 -> 0 | J81: =H81*I81 -> 0 | K81: =+H81*(1-I81) -> 0 | V81: 0 | W81: 0 | Y81: =IF(U81="",H81,V81) -> 0 | AB81: 62_Tailings | AC81: =IF(AB81="","",COUNTIFS(AssignmentSummary!$G:$G,AB81)) -> 0 | AD81: =IFERROR(MATCH($AB81,AssignmentSummary!$G:$G,0),"") ->  | AE81: =IFERROR(IF(AE$4>$AC81,"",MATCH($AB81,INDIRECT("AssignmentSummary!G"&AD81&":G10000"),0))+AD81,"") -> 
A82: =A81+1 -> 63 | B82: Supply reagents | D82: tonne | F82: =NA() ->  | G82: =IF(ISNA(F82),0,INDEX(IF(UPPER(RIGHT(F82,1))=Low,UnitCostLow, IF(UPPER(RIGHT(F82,1))=High,UnitCostHigh,UnitCostSpecified)),MATCH(UPPER(LEFT(F82,LEN(F82)-1)),CostCode,0))) -> 0 | H82: =G82*E82 -> 0 | J82: =H82*I82 -> 0 | K82: =+H82*(1-I82) -> 0 | V82: 0 | W82: 0 | Y82: =IF(U82="",H82,V82) -> 0 | AB82: 63_Tailings | AC82: =IF(AB82="","",COUNTIFS(AssignmentSummary!$G:$G,AB82)) -> 0 | AD82: =IFERROR(MATCH($AB82,AssignmentSummary!$G:$G,0),"") ->  | AE82: =IFERROR(IF(AE$4>$AC82,"",MATCH($AB82,INDIRECT("AssignmentSummary!G"&AD82&":G10000"),0))+AD82,"") -> 
A83: =A82+1 -> 64 | G83: Annual treatment costs | H83: =SUM(H80:H82)+0.0001 -> 0.0001 | V83: 0 | W83: 0 | Y83: =IF(U83="",H83,V83) -> 0.0001 | AB83: 64_Tailings | AC83: =IF(AB83="","",COUNTIFS(AssignmentSummary!$G:$G,AB83)) -> 1 | AD83: =IFERROR(MATCH($AB83,AssignmentSummary!$G:$G,0),"") -> 34 | AE83: =IFERROR(IF(AE$4>$AC83,"",MATCH($AB83,INDIRECT("AssignmentSummary!G"&AD83&":G10000"),0))+AD83,"") ->  | AQ83: Assign
A84: =A83+1 -> 65 | B84: Number of years of treatment | D84: years | AB84: 65_Tailings | AC84: =IF(AB84="","",COUNTIFS(AssignmentSummary!$G:$G,AB84)) -> 0 | AD84: =IFERROR(MATCH($AB84,AssignmentSummary!$G:$G,0),"") ->  | AE84: =IFERROR(IF(AE$4>$AC84,"",MATCH($AB84,INDIRECT("AssignmentSummary!G"&AD84&":G10000"),0))+AD84,"") -> 
A85: =A84+1 -> 66 | G85: Total treatment costs | H85: =H83*E84 -> 0 | K85: =H85 -> 0 | V85: 0 | W85: 0 | Y85: =IF(U85="",H85,V85) -> 0 | AB85: 66_Tailings | AC85: =IF(AB85="","",COUNTIFS(AssignmentSummary!$G:$G,AB85)) -> 0 | AD85: =IFERROR(MATCH($AB85,AssignmentSummary!$G:$G,0),"") ->  | AE85: =IFERROR(IF(AE$4>$AC85,"",MATCH($AB85,INDIRECT("AssignmentSummary!G"&AD85&":G10000"),0))+AD85,"") -> 
A86: END | G86: Total | H86: =SUM(H6:H77)+H85+0.0001 -> 20481444.75 | J86: =SUM(J6:J77)+J85 -> 10364472.38 | K86: =SUM(K6:K77)+K85 -> 10116972.38 | V86: =SUM(V6:V85) -> 18851736.87 | W86: =V86-Tailings1Total -> -1629707.878 | Y86: =SUM(Y6:Y85) -> 18851736.87 | AC86: =IF(AB86="","",COUNTIFS(AssignmentSummary!$G:$G,AB86)) ->  | AD86: =IFERROR(MATCH($AB86,AssignmentSummary!$G:$G,0),"") ->  | AE86: =IFERROR(IF(AE$4>$AC86,"",MATCH($AB86,INDIRECT("AssignmentSummary!G"&AD86&":G10000"),0))+AD86,"") -> 
G87: % of Total | J87: =J86/H86 -> 0.5060420542 | K87: =K86/H86 -> 0.4939579458
B88: * for construction of passive treatment system refer to "Water Management"

Sheet Rock Pile
B1: Rock Pile Name: | C1: Doris - Madrid | AD1: Match | AQ1: SRK Code | BD1: SRK Estimate
B3: INAC COST March 2018 | O3: TMAC COST (Nov 2017)* | W3: Cost Difference | Y3: PROPOSED COSTS (April 2018)
B4: ACTIVITY/MATERIAL | C4: Notes | D4: Units | E4: Quantity | F4: Cost Code | G4: Unit Cost | H4: Cost | I4: % Land | J4: Land Cost | K4: Water Cost | O4: SRK Row Number | P4: Facility Name | Q4: Task Description | R4: Qty | S4: Unit | T4: Unit Cost | U4: Subtotal | V4: TMAC Cost | W4: Cost Difference (INAC-TMAC) | X4: Notes | Y4: Carry Forward Costs | AB4: Lookup | AC4: Count | AD4: 1 | AE4: =AD4+1 -> 2 | AF4: =AE4+1 -> 3 | AG4: 4 | AH4: 5 | AI4: 6 | AJ4: 7 | AK4: 8 | AL4: =AK4+1 -> 9 | AM4: 10 | AN4: 11 | AO4: 12 | AQ4: 1 | AR4: =AQ4+1 -> 2 | AS4: 3 | AT4: 4 | AU4: 5 | AV4: 6 | AW4: 7 | AX4: 8 | AY4: 9 | AZ4: 10 | BA4: 11 | BB4: 12 | BD4: 1 | BE4: =BD4+1 -> 2 | BF4: =BE4+1 -> 3 | BG4: 4 | BH4: 5 | BI4: 6 | BJ4: 7 | BK4: 8 | BL4: =Bm³+1 -> 
A5: a | B5: STABILIZE SLOPES | V5: =IF(ISBLANK($H5),"",SUM(AZ5:BK5)) ->  | W5: =IF(V5="","",SUM(J5:K5)-V5) ->  | AB5: =IF(ISNUMBER(A5),A5&"_"&MID(CELL("filename",$A$1),FIND("]",CELL("filename",$A$1))+1,255),"") ->  | AC5: =IF(AB5="","",COUNTIFS(AssignmentSummary!$G:$G,AB5)) ->  | AD5: =IFERROR(MATCH($AB5,AssignmentSummary!$G:$G,0),"") ->  | AE5: =IFERROR(IF(AE$4>$AC5,"",MATCH($AB5,INDIRECT("AssignmentSummary!G"&AD5&":G10000"),0))+AD5,"") ->  | AF5: =IFERROR(IF(AF$4>$AC5,"",MATCH($AB5,INDIRECT("AssignmentSummary!G"&AE5&":G10000"),0))+AE5,"") ->  | AL5: =IFERROR(IF(AL$4>$AC5,"",MATCH($AB5,INDIRECT("AssignmentSummary!G"&AK5&":G10000"),0))+AK5,"") ->  | AQ5: =IFERROR(INDIRECT("AssignmentSummary!L"&AD5),"") ->  | AR5: =IFERROR(INDIRECT("AssignmentSummary!L"&AE5),"") ->  | AS5: =IFERROR(INDIRECT("AssignmentSummary!L"&AF5),"") ->  | AT5: =IFERROR(INDIRECT("AssignmentSummary!L"&AG5),"") ->  | AU5: =IFERROR(INDIRECT("AssignmentSummary!L"&AH5),"") ->  | AV5: =IFERROR(INDIRECT("AssignmentSummary!L"&AI5),"") ->  | AW5: =IFERROR(INDIRECT("AssignmentSummary!L"&AJ5),"") ->  | AX5: =IFERROR(INDIRECT("AssignmentSummary!L"&AK5),"") ->  | AY5: =IFERROR(INDIRECT("AssignmentSummary!L"&AL5),"") ->  | AZ5: =IFERROR(INDIRECT("AssignmentSummary!L"&AM5),"") ->  | BA5: =IFERROR(INDIRECT("AssignmentSummary!L"&AN5),"") ->  | BB5: =IFERROR(INDIRECT("AssignmentSummary!L"&AO5),"") -> 
A6: 1 | B6: Grade Waste Rock Pile | D6: m³ | F6: TMAC | G6: 1.23 | H6: =G6*E6 -> 0 | I6: 0.5 | J6: =H6*I6 -> 0 | K6: =+H6*(1-I6) -> 0 | V6: =IF(ISBLANK($H6),"",SUM(BD6:BO6)) -> 0 | W6: =IF(V6="","",SUM(J6:K6)-V6) -> 0 | Y6: =IF(U6="",H6,V6) -> 0 | AB6: 1_Rock Pile | AC6: =IF(AB6="","",COUNTIFS(AssignmentSummary!$G:$G,AB6)) -> 0 | AD6: =IFERROR(MATCH($AB6,AssignmentSummary!$G:$G,0),"") ->  | AE6: =IFERROR(IF(AE$4>$AC6,"",MATCH($AB6,INDIRECT("AssignmentSummary!G"&AD6&":G10000"),0))+AD6,"") -> 
A7: =A6+1 -> 2 | B7: Grade Overburden | C7: Roberts Bay Overburden Pile RB-007 | D7: m² | E7: 14205 | F7: DSl | G7: =IF(ISNA(F7),0,INDEX(IF(UPPER(RIGHT(F7,1))=Low,UnitCostLow, IF(UPPER(RIGHT(F7,1))=High,UnitCostHigh,UnitCostSpecified)),MATCH(UPPER(LEFT(F7,LEN(F7)-1)),CostCode,0))) -> 0.95 | H7: =G7*E7 -> 13494.75 | I7: 0.5 | J7: =H7*I7 -> 6747.375 | K7: =+H7*(1-I7) -> 6747.375 | O7: SRK_1.7.4 | P7: 0 | Q7: grade for positive drainage | R7: 14205 | S7: m2 | T7: =Unit_Costs!$H$27 -> 0.235 | U7: =T7*R7 -> 3338.175 | V7: =U7 -> 3338.175 | W7: 10156.575 | X7: new unit rate of $0.24 used | Y7: =V7 -> 3338.175 | AB7: 2_Rock Pile | AC7: =IF(AB7="","",COUNTIFS(AssignmentSummary!$G:$G,AB7)) -> 1 | AD7: =IFERROR(MATCH($AB7,AssignmentSummary!$G:$G,0),"") -> 35 | AQ7: SRK_1.7.4 | BD7: 17434.50675
A8: =A7+1 -> 3 | C8: Quarry 2 Overburden Pile Q2-002 (slopes to 3:1) | D8: m² | E8: 8785 | F8: TMAC | G8: 3.27 | H8: =G8*E8 -> 28726.95 | I8: 0.5 | J8: =H8*I8 -> 14363.475 | K8: =+H8*(1-I8) -> 14363.475 | O8: SRK_14.2.1 | P8: Quarry 2 Overburden Pile | Q8: reslope to 3H:1V | R8: 8781.333333 | S8: m2 | T8: 3.272933333 | U8: =T8*R8 -> 28740.71858 | V8: =U8 -> 28740.71858 | W8: -13.76857778 | Y8: 28740.71858 | AB8: 3_Rock Pile | AC8: =IF(AB8="","",COUNTIFS(AssignmentSummary!$G:$G,AB8)) -> 1 | AD8: =IFERROR(MATCH($AB8,AssignmentSummary!$G:$G,0),"") -> 36 | AE8: =IFERROR(IF(AE$4>$AC8,"",MATCH($AB8,INDIRECT("AssignmentSummary!G"&AD8&":G10000"),0))+AD8,"") ->  | AQ8: SRK_14.2.1 | BD8: 28740.71858
A9: 4 | C9: Quarry 2 Overburden Pile Q2-002 (top) | D9: m² | E9: 18440 | F9: DSl | G9: =IF(ISNA(F9),0,INDEX(IF(UPPER(RIGHT(F9,1))=Low,UnitCostLow, IF(UPPER(RIGHT(F9,1))=High,UnitCostHigh,UnitCostSpecified)),MATCH(UPPER(LEFT(F9,LEN(F9)-1)),CostCode,0))) -> 0.95 | H9: =G9*E9 -> 17518 | I9: 0.5 | J9: =H9*I9 -> 8759 | K9: =+H9*(1-I9) -> 8759 | M9: Don’t agree with SRK rate of $0.01 | O9: SRK_14.2.2 | P9: 0 | Q9: grade top for positive drainage | R9: 18440.8 | S9: m2 | T9: 1.22735 | U9: 22633.31588 | V9: 22633.31588 | W9: -5115.31588 | X9: erroneous task unit rate was used by INAC | Y9: 22633.31588 | AB9: 4_Rock Pile | AC9: =IF(AB9="","",COUNTIFS(AssignmentSummary!$G:$G,AB9)) -> 1 | AD9: =IFERROR(MATCH($AB9,AssignmentSummary!$G:$G,0),"") -> 37 | AE9: =IFERROR(IF(AE$4>$AC9,"",MATCH($AB9,INDIRECT("AssignmentSummary!G"&AD9&":G10000"),0))+AD9,"") ->  | AQ9: SRK_14.2.2 | BD9: 22633.31588
A10: 5 | C10: Patch Lake Tank Farm PLA-001 regrade (dozer) | D10: m² | E10: 200 | F10: TMAC | G10: 1.23 | H10: 246 | I10: 0.5 | J10: 123 | K10: 123 | O10: SRK_18.1.2 | P10: 0 | Q10: regrade spoil piles to ensure positive drainage | R10: 200 | S10: m2 | T10: 1.22735 | U10: 245.47 | V10: 245.47 | W10: 0.53 | Y10: 245.47 | AB10: 5_Rock Pile | AC10: =IF(AB10="","",COUNTIFS(AssignmentSummary!$G:$G,AB10)) -> 1 | AD10: =IFERROR(MATCH($AB10,AssignmentSummary!$G:$G,0),"") -> 38 | AE10: =IFERROR(IF(AE$4>$AC10,"",MATCH($AB10,INDIRECT("AssignmentSummary!G"&AD10&":G10000"),0))+AD10,"") ->  | AQ10: SRK_18.1.2 | BD10: 245.47
A11: 6 | C11: Patch Lake Tank Farm PLA-001 regrade (excavator) | D11: m² | E11: 3630 | F11: TMAC | G11: 5.5 | H11: 19965 | I11: 0.5 | J11: 9982.5 | K11: 9982.5 | O11: SRK_18.1.3 | P11: 0 | Q11: regrade spoil piles to ensure positive drainage (with excavator) | R11: 3630 | S11: m2 | T11: 5.497390183 | U11: 19955.52636 | V11: 19955.52636 | W11: 9.47363622 | Y11: 19955.52636 | AB11: 6_Rock Pile | AC11: =IF(AB11="","",COUNTIFS(AssignmentSummary!$G:$G,AB11)) -> 1 | AD11: =IFERROR(MATCH($AB11,AssignmentSummary!$G:$G,0),"") -> 39 | AE11: =IFERROR(IF(AE$4>$AC11,"",MATCH($AB11,INDIRECT("AssignmentSummary!G"&AD11&":G10000"),0))+AD11,"") ->  | AQ11: SRK_18.1.3 | BD11: 19955.52636
A12: 7 | C12: Doris Windy AWR Explosive facility regrade (DW-010) | D12: m² | E12: 2805 | F12: DSl | G12: =IF(ISNA(F12),0,INDEX(IF(UPPER(RIGHT(F12,1))=Low,UnitCostLow, IF(UPPER(RIGHT(F12,1))=High,UnitCostHigh,UnitCostSpecified)),MATCH(UPPER(LEFT(F12,LEN(F12)-1)),CostCode,0))) -> 0.95 | H12: 2664.75 | I12: 0.5 | J12: 1332.375 | K12: 1332.375 | M12: Don’t agree with SRK rate of $0.01 | O12: SRK_3.10.6 | P12: 0 | Q12: regrade area for positive drainage | R12: 2805.83 | S12: m2 | T12: =Unit_Costs!$H$27 -> 0.235 | U12: =T12*R12 -> 659.37005 | V12: 659.37005 | W12: 2005.37995 | X12: facility name was erroneous; new unit rate of $0.24 used | Y12: =V12 -> 659.37005 | AB12: 7_Rock Pile | AC12: =IF(AB12="","",COUNTIFS(AssignmentSummary!$G:$G,AB12)) -> 1 | AD12: =IFERROR(MATCH($AB12,AssignmentSummary!$G:$G,0),"") -> 40 | AE12: =IFERROR(IF(AE$4>$AC12,"",MATCH($AB12,INDIRECT("AssignmentSummary!G"&AD12&":G10000"),0))+AD12,"") ->  | AQ12: SRK_3.1.1 | BD12: 6338.824716
A13: 8 | C13: Windy camp Regrading Bldg foot prints (WC-002) | D13: m² | E13: 1248 | F13: DSl | G13: 0.95 | H13: 1185.6 | I13: 0.5 | J13: 592.8 | K13: 592.8 | O13: SRK_19.2.5 | P13: 0 | Q13: regrade area for positive drainage | R13: 1248 | S13: m2 | T13: 1.22735 | U13: 1531.7328 | V13: 1531.7328 | W13: -346.1328 | Y13: 1531.7328 | AB13: 8_Rock Pile | AC13: =IF(AB13="","",COUNTIFS(AssignmentSummary!$G:$G,AB13)) -> 1 | AD13: =IFERROR(MATCH($AB13,AssignmentSummary!$G:$G,0),"") -> 41 | AE13: =IFERROR(IF(AE$4>$AC13,"",MATCH($AB13,INDIRECT("AssignmentSummary!G"&AD13&":G10000"),0))+AD13,"") ->  | AQ13: SRK_19.2.4 | BC13: =BD13/R14 -> 0.001378954717 | BD13: 87.27625035
A14: 9 | B14: Grade Laydown Areas | C14: Roberts bay Laydown Area RB-006 | D14: m² | E14: 63300 | F14: DSl | G14: 0.95 | H14: 60135 | I14: 0.5 | J14: 30067.5 | K14: 30067.5 | M14: Don’t agree with SRK rate of $0.01 | O14: SRK_1.6.6 | P14: 0 | Q14: regrade area for positive drainage | R14: 63291.6 | S14: m2 | T14: =Unit_Costs!$H$27 -> 0.235 | U14: 14873.526 | V14: 14873.526 | W14: 45261.474 | X14: new unit rate of $0.24 used | Y14: =V14 -> 14873.526 | AB14: 9_Rock Pile | AC14: =IF(AB14="","",COUNTIFS(AssignmentSummary!$G:$G,AB14)) -> 1 | AD14: =IFERROR(MATCH($AB14,AssignmentSummary!$G:$G,0),"") -> 42 | AE14: =IFERROR(IF(AE$4>$AC14,"",MATCH($AB14,INDIRECT("AssignmentSummary!G"&AD14&":G10000"),0))+AD14,"") ->  | AQ14: SRK_1.6.6 | BC14: 0.01774176794 | BD14: 625.2908691
A15: 10 | C15: Reagent Pad - Equipment (RP-001) | D15: m² | E15: 35244 | F15: DSl | G15: 0.95 | H15: 33481.8 | I15: 0.5 | J15: 16740.9 | K15: 16740.9 | M15: Don’t agree with SRK rate of $0.01 | O15: SRK_12.1.3 | P15: 0 | Q15: regrade area for positive drainage | R15: 35244 | S15: m2 | T15: =Unit_Costs!$H$27 -> 0.235 | U15: 8282.34 | V15: 8282.34 | W15: 25199.46 | X15: new unit rate of $0.24 used | Y15: =V15 -> 8282.34 | AB15: 10_Rock Pile | AC15: =IF(AB15="","",COUNTIFS(AssignmentSummary!$G:$G,AB15)) -> 1 | AD15: =IFERROR(MATCH($AB15,AssignmentSummary!$G:$G,0),"") -> 43 | AE15: =IFERROR(IF(AE$4>$AC15,"",MATCH($AB15,INDIRECT("AssignmentSummary!G"&AD15&":G10000"),0))+AD15,"") ->  | AQ15: SRK_12.1.3 | BC15: 0.01369709835 | BD15: 348.1939371
A16: 11 | C16: Reagent Pad - Material (RP-002) | D16: m² | E16: 25421 | F16: DSl | G16: 0.95 | H16: =G16*E16 -> 24149.95 | I16: 0.5 | J16: =H16*I16 -> 12074.975 | K16: =+H16*(1-I16) -> 12074.975 | M16: Don’t agree with SRK rate of $0.01 | O16: SRK_12.2.3 | P16: 0 | Q16: regrade area for positive drainage | R16: 25421 | S16: m2 | T16: =Unit_Costs!$H$27 -> 0.235 | U16: 5973.935 | V16: 5973.935 | W16: 18176.015 | X16: new unit rate of $0.24 used | Y16: 5973.935 | AB16: 11_Rock Pile | AC16: =IF(AB16="","",COUNTIFS(AssignmentSummary!$G:$G,AB16)) -> 1 | AD16: =IFERROR(MATCH($AB16,AssignmentSummary!$G:$G,0),"") -> 44 | AE16: =IFERROR(IF(AE$4>$AC16,"",MATCH($AB16,INDIRECT("AssignmentSummary!G"&AD16&":G10000"),0))+AD16,"") ->  | AQ16: SRK_12.2.3 | BC16: 0.1012282849 | BD16: 251.1473748
A17: 12 | C17: Reagent Pad - ANFO Storage Area (RP-003) | D17: m² | E17: 2481 | F17: DSl | G17: 0.95 | H17: 2356.95 | I17: 0.5 | J17: 1178.475 | K17: 1178.475 | M17: Don’t agree with SRK rate of $0.01 | O17: SRK_12.3.7 | P17: 0 | Q17: regrade area for positive drainage | R17: 2481 | S17: m2 | T17: =Unit_Costs!$H$27 -> 0.235 | U17: 583.035 | V17: 583.035 | W17: 1773.915 | X17: new unit rate of $0.24 used | Y17: 583.035 | AB17: 12_Rock Pile | AC17: =IF(AB17="","",COUNTIFS(AssignmentSummary!$G:$G,AB17)) -> 1 | AD17: =IFERROR(MATCH($AB17,AssignmentSummary!$G:$G,0),"") -> 45 | AE17: =IFERROR(IF(AE$4>$AC17,"",MATCH($AB17,INDIRECT("AssignmentSummary!G"&AD17&":G10000"),0))+AD17,"") ->  | AQ17: SRK_12.3.7 | BC17: 0.005591035258 | BD17: 24.51109857
A18: 13 | C18: Waste Management Landfarm (WM-001) | D18: m² | E18: 4385 | F18: DSl | G18: 0.95 | H18: 4165.75 | I18: 0.5 | J18: 2082.875 | K18: 2082.875 | M18: Don’t agree with SRK rate of $0.01 | O18: SRK_13.1.10 | P18: 0 | Q18: regrade area for positive drainage | R18: 4384 | S18: m2 | T18: =Unit_Costs!$H$27 -> 0.235 | U18: 1030.24 | V18: 1030.24 | W18: 3135.51 | X18: new unit rate of $0.24 used | Y18: 1030.24 | AB18: 13_Rock Pile | AC18: =IF(AB18="","",COUNTIFS(AssignmentSummary!$G:$G,AB18)) -> 1 | AD18: =IFERROR(MATCH($AB18,AssignmentSummary!$G:$G,0),"") -> 46 | AE18: =IFERROR(IF(AE$4>$AC18,"",MATCH($AB18,INDIRECT("AssignmentSummary!G"&AD18&":G10000"),0))+AD18,"") ->  | AQ18: SRK_13.1.10 | BC18: 0.05850341386 | BD18: 43.31183238
A19: 14 | C19: Waste Management Batch Plant Pad (WM-002) | D19: m² | E19: 740 | F19: DSl | G19: 0.95 | H19: 703 | I19: 0.5 | J19: 351.5 | K19: 351.5 | M19: Don’t agree with SRK rate of $0.01 | O19: SRK_13.2.5 | P19: 0 | Q19: regrade area for positive drainage | R19: 740.33 | S19: m2 | T19: =Unit_Costs!$H$27 -> 0.235 | U19: 173.97755 | V19: 173.97755 | W19: 529.02245 | X19: new unit rate of $0.24 used | Y19: 173.97755 | AB19: 14_Rock Pile | AC19: =IF(AB19="","",COUNTIFS(AssignmentSummary!$G:$G,AB19)) -> 1 | AD19: =IFERROR(MATCH($AB19,AssignmentSummary!$G:$G,0),"") -> 47 | AE19: =IFERROR(IF(AE$4>$AC19,"",MATCH($AB19,INDIRECT("AssignmentSummary!G"&AD19&":G10000"),0))+AD19,"") ->  | AQ19: SRK_13.2.5 | BC19: 0.01828526965 | BD19: 7.314107862
A20: 15 | C20: Waste Management Burn Pan Pad (WM-003) | D20: m² | E20: 400 | F20: DSl | G20: 0.95 | H20: 380 | I20: 0.5 | J20: 190 | K20: 190 | M20: Don’t agree with SRK rate of $0.01 | O20: SRK_13.3.5 | P20: 0 | Q20: regrade area for positive drainage | R20: 400 | S20: m2 | T20: =Unit_Costs!$H$27 -> 0.235 | U20: 94 | V20: 94 | W20: 286 | X20: new unit rate of $0.24 used | Y20: 94 | AB20: 15_Rock Pile | AC20: =IF(AB20="","",COUNTIFS(AssignmentSummary!$G:$G,AB20)) -> 1 | AD20: =IFERROR(MATCH($AB20,AssignmentSummary!$G:$G,0),"") -> 48 | AE20: =IFERROR(IF(AE$4>$AC20,"",MATCH($AB20,INDIRECT("AssignmentSummary!G"&AD20&":G10000"),0))+AD20,"") ->  | AQ20: SRK_13.3.5 | BD20: 3.951809524
A21: 16 | B21: Grade Old Camp Ore Pile | D21: m³ | F21: TMAC | G21: 1.23 | H21: 0 | I21: 0.5 | J21: 0 | K21: 0 | V21: =IF(ISBLANK($H21),"",SUM(BD21:BO21)) -> 0 | W21: 0 | Y21: 0 | AB21: 16_Rock Pile | AC21: =IF(AB21="","",COUNTIFS(AssignmentSummary!$G:$G,AB21)) -> 0 | AD21: =IFERROR(MATCH($AB21,AssignmentSummary!$G:$G,0),"") ->  | AE21: =IFERROR(IF(AE$4>$AC21,"",MATCH($AB21,INDIRECT("AssignmentSummary!G"&AD21&":G10000"),0))+AD21,"") ->  | AL21: =IFERROR(IF(AL$4>$AC21,"",MATCH($AB21,INDIRECT("AssignmentSummary!G"&AK21&":G10000"),0))+AK21,"") ->  | AX21: =IFERROR(INDIRECT("AssignmentSummary!L"&AK21),"") -> 
A22: 17 | B22: Grade Ore Stockpile | D22: m³ | F22: =NA() ->  | G22: =IF(ISNA(F22),0,INDEX(IF(UPPER(RIGHT(F22,1))=Low,UnitCostLow, IF(UPPER(RIGHT(F22,1))=High,UnitCostHigh,UnitCostSpecified)),MATCH(UPPER(LEFT(F22,LEN(F22)-1)),CostCode,0))) -> 0 | H22: 0 | J22: 0 | K22: 0 | V22: 0 | W22: 0 | Y22: 0 | AB22: 17_Rock Pile | AC22: =IF(AB22="","",COUNTIFS(AssignmentSummary!$G:$G,AB22)) -> 0 | AD22: =IFERROR(MATCH($AB22,AssignmentSummary!$G:$G,0),"") ->  | AE22: =IFERROR(IF(AE$4>$AC22,"",MATCH($AB22,INDIRECT("AssignmentSummary!G"&AD22&":G10000"),0))+AD22,"") -> 
A23: 18 | B23: Buttress | C23: Windy Tank Farm (WC-001) | D23: m³ | E23: 600 | F23: TMAC | G23: 12.27 | H23: 7362 | I23: 0.5 | J23: 3681 | K23: 3681 | O23: SRK_19.1.3 | P23: 0 | Q23: place rockfill buttress on slope near tank farm | R23: 600 | S23: m3 | T23: 12.2735 | U23: 7364.1 | V23: 7364.1 | W23: -2.1 | Y23: 7364.1 | AB23: 18_Rock Pile | AC23: =IF(AB23="","",COUNTIFS(AssignmentSummary!$G:$G,AB23)) -> 1 | AD23: =IFERROR(MATCH($AB23,AssignmentSummary!$G:$G,0),"") -> 49 | AE23: =IFERROR(IF(AE$4>$AC23,"",MATCH($AB23,INDIRECT("AssignmentSummary!G"&AD23&":G10000"),0))+AD23,"") ->  | AQ23: SRK_19.1.3 | BD23: 7364.1
A24: 19 | B24: Toe buttress, fill mat'l A | D24: m³ | F24: =NA() ->  | G24: =IF(ISNA(F24),0,INDEX(IF(UPPER(RIGHT(F24,1))=Low,UnitCostLow, IF(UPPER(RIGHT(F24,1))=High,UnitCostHigh,UnitCostSpecified)),MATCH(UPPER(LEFT(F24,LEN(F24)-1)),CostCode,0))) -> 0 | H24: 0 | J24: 0 | K24: 0 | V24: 0 | W24: 0 | Y24: 0 | AB24: 19_Rock Pile | AC24: =IF(AB24="","",COUNTIFS(AssignmentSummary!$G:$G,AB24)) -> 0 | AD24: =IFERROR(MATCH($AB24,AssignmentSummary!$G:$G,0),"") ->  | AE24: =IFERROR(IF(AE$4>$AC24,"",MATCH($AB24,INDIRECT("AssignmentSummary!G"&AD24&":G10000"),0))+AD24,"") -> 
A25: 20 | B25: Toe buttress, fill mat'l B | D25: m³ | F25: =NA() ->  | G25: =IF(ISNA(F25),0,INDEX(IF(UPPER(RIGHT(F25,1))=Low,UnitCostLow, IF(UPPER(RIGHT(F25,1))=High,UnitCostHigh,UnitCostSpecified)),MATCH(UPPER(LEFT(F25,LEN(F25)-1)),CostCode,0))) -> 0 | H25: 0 | J25: 0 | K25: 0 | V25: 0 | W25: 0 | Y25: 0 | AB25: 20_Rock Pile | AC25: =IF(AB25="","",COUNTIFS(AssignmentSummary!$G:$G,AB25)) -> 0 | AD25: =IFERROR(MATCH($AB25,AssignmentSummary!$G:$G,0),"") ->  | AE25: =IFERROR(IF(AE$4>$AC25,"",MATCH($AB25,INDIRECT("AssignmentSummary!G"&AD25&":G10000"),0))+AD25,"") -> 
A26: 21 | B26: Other | F26: =NA() ->  | G26: =IF(ISNA(F26),0,INDEX(IF(UPPER(RIGHT(F26,1))=Low,UnitCostLow, IF(UPPER(RIGHT(F26,1))=High,UnitCostHigh,UnitCostSpecified)),MATCH(UPPER(LEFT(F26,LEN(F26)-1)),CostCode,0))) -> 0 | H26: 0 | J26: 0 | K26: 0 | V26: 0 | W26: 0 | Y26: 0 | AB26: 21_Rock Pile | AC26: =IF(AB26="","",COUNTIFS(AssignmentSummary!$G:$G,AB26)) -> 0 | AD26: =IFERROR(MATCH($AB26,AssignmentSummary!$G:$G,0),"") ->  | AE26: =IFERROR(IF(AE$4>$AC26,"",MATCH($AB26,INDIRECT("AssignmentSummary!G"&AD26&":G10000"),0))+AD26,"") -> 
A27: a | B27: ROCK COVER | V27: =IF(ISBLANK($H27),"",SUM(AZ27:BK27)) ->  | AC27: =IF(AB27="","",COUNTIFS(AssignmentSummary!$G:$G,AB27)) ->  | AD27: =IFERROR(MATCH($AB27,AssignmentSummary!$G:$G,0),"") ->  | AE27: =IFERROR(IF(AE$4>$AC27,"",MATCH($AB27,INDIRECT("AssignmentSummary!G"&AD27&":G10000"),0))+AD27,"") -> 
A28: =A26+1 -> 22 | B28: Subgrade preparation - doze surface | D28: m³ | F28: =NA() ->  | G28: =IF(ISNA(F28),0,INDEX(IF(UPPER(RIGHT(F28,1))=Low,UnitCostLow, IF(UPPER(RIGHT(F28,1))=High,UnitCostHigh,UnitCostSpecified)),MATCH(UPPER(LEFT(F28,LEN(F28)-1)),CostCode,0))) -> 0 | H28: =G28*E28 -> 0 | J28: =H28*I28 -> 0 | K28: =+H28*(1-I28) -> 0 | V28: 0 | W28: 0 | Y28: =IF(U28="",H28,V28) -> 0 | AB28: 22_Rock Pile | AC28: =IF(AB28="","",COUNTIFS(AssignmentSummary!$G:$G,AB28)) -> 0 | AD28: =IFERROR(MATCH($AB28,AssignmentSummary!$G:$G,0),"") ->  | AE28: =IFERROR(IF(AE$4>$AC28,"",MATCH($AB28,INDIRECT("AssignmentSummary!G"&AD28&":G10000"),0))+AD28,"") -> 
A29: =A28+1 -> 23 | B29: Soil cover - excavate,haul,spread&compact | D29: m³ | F29: SB1L | G29: 4.3 | H29: 0 | J29: 0 | K29: 0 | V29: 0 | W29: 0 | Y29: 0 | AB29: 23_Rock Pile | AC29: =IF(AB29="","",COUNTIFS(AssignmentSummary!$G:$G,AB29)) -> 0 | AD29: =IFERROR(MATCH($AB29,AssignmentSummary!$G:$G,0),"") ->  | AE29: =IFERROR(IF(AE$4>$AC29,"",MATCH($AB29,INDIRECT("AssignmentSummary!G"&AD29&":G10000"),0))+AD29,"") -> 
A30: =A29+1 -> 24 | B30: Prepare debris for capping | D30: m³ | F30: TMAC | G30: 86.72 | H30: =G30*E30 -> 0 | J30: =H30*I30 -> 0 | K30: =+H30*(1-I30) -> 0 | V30: 0 | W30: 0 | Y30: 0 | AB30: 24_Rock Pile | AC30: =IF(AB30="","",COUNTIFS(AssignmentSummary!$G:$G,AB30)) -> 0 | AD30: =IFERROR(MATCH($AB30,AssignmentSummary!$G:$G,0),"") ->  | AE30: =IFERROR(IF(AE$4>$AC30,"",MATCH($AB30,INDIRECT("AssignmentSummary!G"&AD30&":G10000"),0))+AD30,"") -> 
A31: 25 | B31: Prepare aggregate | D31: m³ | F31: TMAC | G31: 24.71 | H31: =G31*E31 -> 0 | J31: =H31*I31 -> 0 | K31: =+H31*(1-I31) -> 0 | V31: 0 | W31: 0 | Y31: 0 | AB31: 25_Rock Pile | AC31: =IF(AB31="","",COUNTIFS(AssignmentSummary!$G:$G,AB31)) -> 0 | AD31: =IFERROR(MATCH($AB31,AssignmentSummary!$G:$G,0),"") ->  | AE31: =IFERROR(IF(AE$4>$AC31,"",MATCH($AB31,INDIRECT("AssignmentSummary!G"&AD31&":G10000"),0))+AD31,"") -> 
A32: 26 | B32: Rock cover - excavate,haul & spread | D32: m³ | F32: TMAC | G32: 16.35 | H32: 0 | J32: 0 | K32: 0 | V32: 0 | W32: 0 | Y32: 0 | AB32: 26_Rock Pile | AC32: =IF(AB32="","",COUNTIFS(AssignmentSummary!$G:$G,AB32)) -> 0 | AD32: =IFERROR(MATCH($AB32,AssignmentSummary!$G:$G,0),"") ->  | AE32: =IFERROR(IF(AE$4>$AC32,"",MATCH($AB32,INDIRECT("AssignmentSummary!G"&AD32&":G10000"),0))+AD32,"") -> 
A33: 27 | B33: Excavate downslope drainage channel & chute | D33: m³ | F33: =NA() ->  | G33: 0 | H33: 0 | J33: 0 | K33: 0 | V33: 0 | W33: 0 | Y33: 0 | AB33: 27_Rock Pile | AC33: =IF(AB33="","",COUNTIFS(AssignmentSummary!$G:$G,AB33)) -> 0 | AD33: =IFERROR(MATCH($AB33,AssignmentSummary!$G:$G,0),"") ->  | AE33: =IFERROR(IF(AE$4>$AC33,"",MATCH($AB33,INDIRECT("AssignmentSummary!G"&AD33&":G10000"),0))+AD33,"") -> 
A34: 28 | B34: Rip rap drainage channel and chute | D34: m³ | F34: =NA() ->  | G34: 0 | H34: 0 | J34: 0 | K34: 0 | V34: 0 | W34: 0 | Y34: 0 | AB34: 28_Rock Pile | AC34: =IF(AB34="","",COUNTIFS(AssignmentSummary!$G:$G,AB34)) -> 0 | AD34: =IFERROR(MATCH($AB34,AssignmentSummary!$G:$G,0),"") ->  | AE34: =IFERROR(IF(AE$4>$AC34,"",MATCH($AB34,INDIRECT("AssignmentSummary!G"&AD34&":G10000"),0))+AD34,"") -> 
A35: 29 | B35: Vegetate | D35: ha | F35: =NA() ->  | G35: 0 | H35: 0 | J35: 0 | K35: 0 | V35: 0 | W35: 0 | Y35: 0 | AB35: 29_Rock Pile | AC35: =IF(AB35="","",COUNTIFS(AssignmentSummary!$G:$G,AB35)) -> 0 | AD35: =IFERROR(MATCH($AB35,AssignmentSummary!$G:$G,0),"") ->  | AE35: =IFERROR(IF(AE$4>$AC35,"",MATCH($AB35,INDIRECT("AssignmentSummary!G"&AD35&":G10000"),0))+AD35,"") -> 
A36: 30 | B36: Other | C36: Patch Lake Tank Farm PLA-001 cover 1m | D36: m³ | E36: 3000 | F36: TMAC | G36: 24.53 | H36: 73590 | I36: 0.5 | J36: 36795 | K36: 36795 | O36: SRK_18.1.5 | P36: 0 | Q36: cover area with 1 m thermal rock cover | R36: 3000 | S36: m3 | T36: 24.52931697 | U36: 73587.95091 | V36: 73587.95091 | W36: 2.049085702 | Y36: 73587.95091 | AB36: 30_Rock Pile | AC36: =IF(AB36="","",COUNTIFS(AssignmentSummary!$G:$G,AB36)) -> 1 | AD36: =IFERROR(MATCH($AB36,AssignmentSummary!$G:$G,0),"") -> 50 | AE36: =IFERROR(IF(AE$4>$AC36,"",MATCH($AB36,INDIRECT("AssignmentSummary!G"&AD36&":G10000"),0))+AD36,"") ->  | AQ36: SRK_18.1.5 | BD36: 73587.95091
A37: a | B37: VERY LOW PERMEABILITY COVER (in addition to above) | AB37: =IF(ISNUMBER(A37),A37&"_"&MID(CELL("filename",$A$1),FIND("]",CELL("filename",$A$1))+1,255),"") ->  | AC37: =IF(AB37="","",COUNTIFS(AssignmentSummary!$G:$G,AB37)) ->  | AD37: =IFERROR(MATCH($AB37,AssignmentSummary!$G:$G,0),"") ->  | AE37: =IFERROR(IF(AE$4>$AC37,"",MATCH($AB37,INDIRECT("AssignmentSummary!G"&AD37&":G10000"),0))+AD37,"") ->  | AQ37: =IFERROR(INDIRECT("AssignmentSummary!L"&AD37),"") ->  | AR37: =IFERROR(INDIRECT("AssignmentSummary!L"&AE37),"") ->  | AS37: =IFERROR(INDIRECT("AssignmentSummary!L"&AF37),"") ->  | AT37: =IFERROR(INDIRECT("AssignmentSummary!L"&AG37),"") ->  | AU37: =IFERROR(INDIRECT("AssignmentSummary!L"&AH37),"") ->  | AV37: =IFERROR(INDIRECT("AssignmentSummary!L"&AI37),"") ->  | AW37: =IFERROR(INDIRECT("AssignmentSummary!L"&AJ37),"") ->  | AY37: =IFERROR(INDIRECT("AssignmentSummary!L"&AL37),"") ->  | AZ37: =IFERROR(INDIRECT("AssignmentSummary!L"&AM37),"") ->  | BA37: =IFERROR(INDIRECT("AssignmentSummary!L"&AN37),"") ->  | BB37: =IFERROR(INDIRECT("AssignmentSummary!L"&AO37),"") -> 
A38: =A36+1 -> 31 | B38: Liner subgrade preparation - compact | D38: m² | F38: =NA() ->  | G38: =IF(ISNA(F38),0,INDEX(IF(UPPER(RIGHT(F38,1))=Low,UnitCostLow, IF(UPPER(RIGHT(F38,1))=High,UnitCostHigh,UnitCostSpecified)),MATCH(UPPER(LEFT(F38,LEN(F38)-1)),CostCode,0))) -> 0 | H38: =G38*E38 -> 0 | J38: =H38*I38 -> 0 | K38: =+H38*(1-I38) -> 0 | V38: 0 | W38: 0 | Y38: =IF(U38="",H38,V38) -> 0 | AB38: 31_Rock Pile | AC38: =IF(AB38="","",COUNTIFS(AssignmentSummary!$G:$G,AB38)) -> 0 | AD38: =IFERROR(MATCH($AB38,AssignmentSummary!$G:$G,0),"") ->  | AE38: =IFERROR(IF(AE$4>$AC38,"",MATCH($AB38,INDIRECT("AssignmentSummary!G"&AD38&":G10000"),0))+AD38,"") -> 
A39: =A38+1 -> 32 | B39: Supply geomembrame | D39: m² | F39: =NA() ->  | G39: =IF(ISNA(F39),0,INDEX(IF(UPPER(RIGHT(F39,1))=Low,UnitCostLow, IF(UPPER(RIGHT(F39,1))=High,UnitCostHigh,UnitCostSpecified)),MATCH(UPPER(LEFT(F39,LEN(F39)-1)),CostCode,0))) -> 0 | H39: =G39*E39 -> 0 | J39: 0 | K39: 0 | V39: 0 | W39: 0 | Y39: 0 | AB39: 32_Rock Pile | AC39: =IF(AB39="","",COUNTIFS(AssignmentSummary!$G:$G,AB39)) -> 0 | AD39: =IFERROR(MATCH($AB39,AssignmentSummary!$G:$G,0),"") ->  | AE39: =IFERROR(IF(AE$4>$AC39,"",MATCH($AB39,INDIRECT("AssignmentSummary!G"&AD39&":G10000"),0))+AD39,"") -> 
A40: =A39+1 -> 33 | B40: Install geomembrane | D40: m² | F40: =NA() ->  | G40: =IF(ISNA(F40),0,INDEX(IF(UPPER(RIGHT(F40,1))=Low,UnitCostLow, IF(UPPER(RIGHT(F40,1))=High,UnitCostHigh,UnitCostSpecified)),MATCH(UPPER(LEFT(F40,LEN(F40)-1)),CostCode,0))) -> 0 | H40: =G40*E40 -> 0 | J40: 0 | K40: 0 | V40: 0 | W40: 0 | Y40: 0 | AB40: 33_Rock Pile | AC40: =IF(AB40="","",COUNTIFS(AssignmentSummary!$G:$G,AB40)) -> 0 | AD40: =IFERROR(MATCH($AB40,AssignmentSummary!$G:$G,0),"") ->  | AE40: =IFERROR(IF(AE$4>$AC40,"",MATCH($AB40,INDIRECT("AssignmentSummary!G"&AD40&":G10000"),0))+AD40,"") -> 
A41: =A40+1 -> 34 | B41: Protective cover - excavate,haul,spread&compact | D41: m³ | F41: =NA() ->  | G41: 0 | H41: 0 | J41: 0 | K41: 0 | V41: 0 | W41: 0 | Y41: 0 | AB41: 34_Rock Pile | AC41: =IF(AB41="","",COUNTIFS(AssignmentSummary!$G:$G,AB41)) -> 0 | AD41: =IFERROR(MATCH($AB41,AssignmentSummary!$G:$G,0),"") ->  | AE41: =IFERROR(IF(AE$4>$AC41,"",MATCH($AB41,INDIRECT("AssignmentSummary!G"&AD41&":G10000"),0))+AD41,"") ->  | AX41: =IFERROR(INDIRECT("AssignmentSummary!L"&AK41),"") -> 
A42: =A41+1 -> 35 | B42: Vegetate | D42: ha | F42: =NA() ->  | G42: 0 | H42: 0 | J42: 0 | K42: 0 | V42: 0 | W42: 0 | Y42: 0 | AB42: 35_Rock Pile | AC42: =IF(AB42="","",COUNTIFS(AssignmentSummary!$G:$G,AB42)) -> 0 | AD42: =IFERROR(MATCH($AB42,AssignmentSummary!$G:$G,0),"") ->  | AE42: =IFERROR(IF(AE$4>$AC42,"",MATCH($AB42,INDIRECT("AssignmentSummary!G"&AD42&":G10000"),0))+AD42,"") -> 
A43: =A42+1 -> 36 | B43: Install infiltration/seepage instrumentation | D43: allow | F43: =NA() ->  | G43: 0 | H43: 0 | J43: 0 | K43: 0 | V43: 0 | W43: 0 | Y43: 0 | AB43: 36_Rock Pile | AC43: =IF(AB43="","",COUNTIFS(AssignmentSummary!$G:$G,AB43)) -> 0 | AD43: =IFERROR(MATCH($AB43,AssignmentSummary!$G:$G,0),"") ->  | AE43: =IFERROR(IF(AE$4>$AC43,"",MATCH($AB43,INDIRECT("AssignmentSummary!G"&AD43&":G10000"),0))+AD43,"") -> 
A44: a | B44: CONSTRUCT DIVERSION DITCHES | AC44: =IF(AB44="","",COUNTIFS(AssignmentSummary!$G:$G,AB44)) ->  | AD44: =IFERROR(MATCH($AB44,AssignmentSummary!$G:$G,0),"") ->  | AE44: =IFERROR(IF(AE$4>$AC44,"",MATCH($AB44,INDIRECT("AssignmentSummary!G"&AD44&":G10000"),0))+AD44,"") -> 
A45: =A43+1 -> 37 | B45: Excavate ditches -soil | D45: m³ | F45: =NA() ->  | G45: =IF(ISNA(F45),0,INDEX(IF(UPPER(RIGHT(F45,1))=Low,UnitCostLow, IF(UPPER(RIGHT(F45,1))=High,UnitCostHigh,UnitCostSpecified)),MATCH(UPPER(LEFT(F45,LEN(F45)-1)),CostCode,0))) -> 0 | H45: =G45*E45 -> 0 | J45: =H45*I45 -> 0 | K45: =+H45*(1-I45) -> 0 | V45: 0 | W45: 0 | Y45: =IF(U45="",H45,V45) -> 0 | AB45: 37_Rock Pile | AC45: =IF(AB45="","",COUNTIFS(AssignmentSummary!$G:$G,AB45)) -> 0 | AD45: =IFERROR(MATCH($AB45,AssignmentSummary!$G:$G,0),"") ->  | AE45: =IFERROR(IF(AE$4>$AC45,"",MATCH($AB45,INDIRECT("AssignmentSummary!G"&AD45&":G10000"),0))+AD45,"") -> 
A46: =A45+1 -> 38 | B46: Excavate ditches -rock | D46: m³ | F46: =NA() ->  | G46: =IF(ISNA(F46),0,INDEX(IF(UPPER(RIGHT(F46,1))=Low,UnitCostLow, IF(UPPER(RIGHT(F46,1))=High,UnitCostHigh,UnitCostSpecified)),MATCH(UPPER(LEFT(F46,LEN(F46)-1)),CostCode,0))) -> 0 | H46: =G46*E46 -> 0 | J46: =H46*I46 -> 0 | K46: =+H46*(1-I46) -> 0 | V46: 0 | W46: 0 | Y46: =IF(U46="",H46,V46) -> 0 | AB46: 38_Rock Pile | AC46: =IF(AB46="","",COUNTIFS(AssignmentSummary!$G:$G,AB46)) -> 0 | AD46: =IFERROR(MATCH($AB46,AssignmentSummary!$G:$G,0),"") ->  | AE46: =IFERROR(IF(AE$4>$AC46,"",MATCH($AB46,INDIRECT("AssignmentSummary!G"&AD46&":G10000"),0))+AD46,"") -> 
A47: =A46+1 -> 39 | B47: Rip rap in channel base | AB47: 39_Rock Pile | AC47: =IF(AB47="","",COUNTIFS(AssignmentSummary!$G:$G,AB47)) -> 0 | AD47: =IFERROR(MATCH($AB47,AssignmentSummary!$G:$G,0),"") ->  | AE47: =IFERROR(IF(AE$4>$AC47,"",MATCH($AB47,INDIRECT("AssignmentSummary!G"&AD47&":G10000"),0))+AD47,"") -> 
A48: =A47+1 -> 40 | AB48: 40_Rock Pile | AC48: =IF(AB48="","",COUNTIFS(AssignmentSummary!$G:$G,AB48)) -> 0 | AD48: =IFERROR(MATCH($AB48,AssignmentSummary!$G:$G,0),"") ->  | AE48: =IFERROR(IF(AE$4>$AC48,"",MATCH($AB48,INDIRECT("AssignmentSummary!G"&AD48&":G10000"),0))+AD48,"") -> 
A49: a | B49: CONSTRUCT SEEPAGE COLLECTION POND | AC49: =IF(AB49="","",COUNTIFS(AssignmentSummary!$G:$G,AB49)) ->  | AD49: =IFERROR(MATCH($AB49,AssignmentSummary!$G:$G,0),"") ->  | AE49: =IFERROR(IF(AE$4>$AC49,"",MATCH($AB49,INDIRECT("AssignmentSummary!G"&AD49&":G10000"),0))+AD49,"") -> 
A50: =A48+1 -> 41 | B50: Excavate seepage collection pond | D50: m³ | F50: =NA() ->  | G50: 0 | H50: 0 | J50: =H50*I50 -> 0 | K50: =+H50*(1-I50) -> 0 | V50: 0 | W50: 0 | Y50: =IF(U50="",H50,V50) -> 0 | AB50: 41_Rock Pile | AC50: =IF(AB50="","",COUNTIFS(AssignmentSummary!$G:$G,AB50)) -> 0 | AD50: =IFERROR(MATCH($AB50,AssignmentSummary!$G:$G,0),"") ->  | AE50: =IFERROR(IF(AE$4>$AC50,"",MATCH($AB50,INDIRECT("AssignmentSummary!G"&AD50&":G10000"),0))+AD50,"") -> 
A51: =A50+1 -> 42 | B51: Doze & spread excavated material | D51: m³ | F51: =NA() ->  | G51: 0 | H51: 0 | J51: 0 | K51: 0 | V51: 0 | W51: 0 | Y51: 0 | AB51: 42_Rock Pile | AC51: =IF(AB51="","",COUNTIFS(AssignmentSummary!$G:$G,AB51)) -> 0 | AD51: =IFERROR(MATCH($AB51,AssignmentSummary!$G:$G,0),"") ->  | AE51: =IFERROR(IF(AE$4>$AC51,"",MATCH($AB51,INDIRECT("AssignmentSummary!G"&AD51&":G10000"),0))+AD51,"") -> 
A52: 43 | B52: Vegetate spread material | D52: ha | F52: =NA() ->  | G52: 0 | H52: 0 | J52: 0 | K52: 0 | V52: 0 | W52: 0 | Y52: 0 | AB52: 43_Rock Pile | AC52: =IF(AB52="","",COUNTIFS(AssignmentSummary!$G:$G,AB52)) -> 0 | AD52: =IFERROR(MATCH($AB52,AssignmentSummary!$G:$G,0),"") ->  | AE52: =IFERROR(IF(AE$4>$AC52,"",MATCH($AB52,INDIRECT("AssignmentSummary!G"&AD52&":G10000"),0))+AD52,"") -> 
A53: 44 | B53: Bedding layer | D53: m³ | F53: =NA() ->  | G53: 0 | H53: 0 | J53: 0 | K53: 0 | V53: 0 | W53: 0 | Y53: 0 | AB53: 44_Rock Pile | AC53: =IF(AB53="","",COUNTIFS(AssignmentSummary!$G:$G,AB53)) -> 0 | AD53: =IFERROR(MATCH($AB53,AssignmentSummary!$G:$G,0),"") ->  | AE53: =IFERROR(IF(AE$4>$AC53,"",MATCH($AB53,INDIRECT("AssignmentSummary!G"&AD53&":G10000"),0))+AD53,"") -> 
A54: 45 | B54: Supply geomembrane | D54: m² | F54: =NA() ->  | G54: 0 | H54: 0 | J54: 0 | K54: 0 | V54: 0 | W54: 0 | Y54: 0 | AB54: 45_Rock Pile | AC54: =IF(AB54="","",COUNTIFS(AssignmentSummary!$G:$G,AB54)) -> 0 | AD54: =IFERROR(MATCH($AB54,AssignmentSummary!$G:$G,0),"") ->  | AE54: =IFERROR(IF(AE$4>$AC54,"",MATCH($AB54,INDIRECT("AssignmentSummary!G"&AD54&":G10000"),0))+AD54,"") -> 
A55: 46 | B55: Install geomembrane | D55: m² | F55: =NA() ->  | G55: 0 | H55: 0 | J55: 0 | K55: 0 | V55: 0 | W55: 0 | Y55: 0 | AB55: 46_Rock Pile | AC55: =IF(AB55="","",COUNTIFS(AssignmentSummary!$G:$G,AB55)) -> 0 | AD55: =IFERROR(MATCH($AB55,AssignmentSummary!$G:$G,0),"") ->  | AE55: =IFERROR(IF(AE$4>$AC55,"",MATCH($AB55,INDIRECT("AssignmentSummary!G"&AD55&":G10000"),0))+AD55,"") -> 
A56: 47 | B56: Erosion protection layer | D56: m³ | F56: =NA() ->  | G56: 0 | H56: 0 | J56: 0 | K56: 0 | V56: 0 | W56: 0 | Y56: 0 | AB56: 47_Rock Pile | AC56: =IF(AB56="","",COUNTIFS(AssignmentSummary!$G:$G,AB56)) -> 0 | AD56: =IFERROR(MATCH($AB56,AssignmentSummary!$G:$G,0),"") ->  | AE56: =IFERROR(IF(AE$4>$AC56,"",MATCH($AB56,INDIRECT("AssignmentSummary!G"&AD56&":G10000"),0))+AD56,"") -> 
A57: a | B57: INSTALL GROUNDWATER COLLECTION SYSTEM | AC57: =IF(AB57="","",COUNTIFS(AssignmentSummary!$G:$G,AB57)) ->  | AD57: =IFERROR(MATCH($AB57,AssignmentSummary!$G:$G,0),"") ->  | AE57: =IFERROR(IF(AE$4>$AC57,"",MATCH($AB57,INDIRECT("AssignmentSummary!G"&AD57&":G10000"),0))+AD57,"") -> 
A58: =A56+1 -> 48 | B58: Excavate/install sumps | D58: m³ | F58: =NA() ->  | G58: =IF(ISNA(F58),0,INDEX(IF(UPPER(RIGHT(F58,1))=Low,UnitCostLow, IF(UPPER(RIGHT(F58,1))=High,UnitCostHigh,UnitCostSpecified)),MATCH(UPPER(LEFT(F58,LEN(F58)-1)),CostCode,0))) -> 0 | H58: =G58*E58 -> 0 | J58: =H58*I58 -> 0 | K58: =+H58*(1-I58) -> 0 | V58: 0 | W58: 0 | Y58: =IF(U58="",H58,V58) -> 0 | AB58: 48_Rock Pile | AC58: =IF(AB58="","",COUNTIFS(AssignmentSummary!$G:$G,AB58)) -> 0 | AD58: =IFERROR(MATCH($AB58,AssignmentSummary!$G:$G,0),"") ->  | AE58: =IFERROR(IF(AE$4>$AC58,"",MATCH($AB58,INDIRECT("AssignmentSummary!G"&AD58&":G10000"),0))+AD58,"") -> 
A59: =A58+1 -> 49 | B59: Install pumping wells | D59: m³ | F59: =NA() ->  | G59: =IF(ISNA(F59),0,INDEX(IF(UPPER(RIGHT(F59,1))=Low,UnitCostLow, IF(UPPER(RIGHT(F59,1))=High,UnitCostHigh,UnitCostSpecified)),MATCH(UPPER(LEFT(F59,LEN(F59)-1)),CostCode,0))) -> 0 | H59: =G59*E59 -> 0 | J59: =H59*I59 -> 0 | K59: =+H59*(1-I59) -> 0 | V59: =IF(ISBLANK($H59),"",SUM(AZ59:BK59)) -> 0 | W59: 0 | Y59: =IF(U59="",H59,V59) -> 0 | AB59: 49_Rock Pile | AC59: =IF(AB59="","",COUNTIFS(AssignmentSummary!$G:$G,AB59)) -> 0 | AD59: =IFERROR(MATCH($AB59,AssignmentSummary!$G:$G,0),"") ->  | AE59: =IFERROR(IF(AE$4>$AC59,"",MATCH($AB59,INDIRECT("AssignmentSummary!G"&AD59&":G10000"),0))+AD59,"") -> 
A60: =A59+1 -> 50 | B60: Install pumps/pipelines/power supply | D60: allow | F60: =NA() ->  | G60: =IF(ISNA(F60),0,INDEX(IF(UPPER(RIGHT(F60,1))=Low,UnitCostLow, IF(UPPER(RIGHT(F60,1))=High,UnitCostHigh,UnitCostSpecified)),MATCH(UPPER(LEFT(F60,LEN(F60)-1)),CostCode,0))) -> 0 | H60: =G60*E60 -> 0 | J60: =H60*I60 -> 0 | K60: =+H60*(1-I60) -> 0 | V60: 0 | W60: 0 | Y60: =IF(U60="",H60,V60) -> 0 | AB60: 50_Rock Pile | AC60: =IF(AB60="","",COUNTIFS(AssignmentSummary!$G:$G,AB60)) -> 0 | AD60: =IFERROR(MATCH($AB60,AssignmentSummary!$G:$G,0),"") ->  | AE60: =IFERROR(IF(AE$4>$AC60,"",MATCH($AB60,INDIRECT("AssignmentSummary!G"&AD60&":G10000"),0))+AD60,"") -> 
A61: a | B61: RELOCATE DUMPS | AC61: =IF(AB61="","",COUNTIFS(AssignmentSummary!$G:$G,AB61)) ->  | AD61: =IFERROR(MATCH($AB61,AssignmentSummary!$G:$G,0),"") ->  | AE61: =IFERROR(IF(AE$4>$AC61,"",MATCH($AB61,INDIRECT("AssignmentSummary!G"&AD61&":G10000"),0))+AD61,"") -> 
A62: =A60+1 -> 51 | B62: Load, haul, dump or doze | D62: m³ | F62: SC3L | G62: =IF(ISNA(F62),0,INDEX(IF(UPPER(RIGHT(F62,1))=Low,UnitCostLow, IF(UPPER(RIGHT(F62,1))=High,UnitCostHigh,UnitCostSpecified)),MATCH(UPPER(LEFT(F62,LEN(F62)-1)),CostCode,0))) -> 8.9 | H62: =G62*E62 -> 0 | J62: =H62*I62 -> 0 | K62: =+H62*(1-I62) -> 0 | V62: 0 | W62: 0 | Y62: =IF(U62="",H62,V62) -> 0 | AB62: 51_Rock Pile | AC62: =IF(AB62="","",COUNTIFS(AssignmentSummary!$G:$G,AB62)) -> 0 | AD62: =IFERROR(MATCH($AB62,AssignmentSummary!$G:$G,0),"") ->  | AE62: =IFERROR(IF(AE$4>$AC62,"",MATCH($AB62,INDIRECT("AssignmentSummary!G"&AD62&":G10000"),0))+AD62,"") -> 
A63: =A62+1 -> 52 | B63: Add lime | D63: tonne | F63: =NA() ->  | G63: =IF(ISNA(F63),0,INDEX(IF(UPPER(RIGHT(F63,1))=Low,UnitCostLow, IF(UPPER(RIGHT(F63,1))=High,UnitCostHigh,UnitCostSpecified)),MATCH(UPPER(LEFT(F63,LEN(F63)-1)),CostCode,0))) -> 0 | H63: =G63*E63 -> 0 | J63: =H63*I63 -> 0 | K63: =+H63*(1-I63) -> 0 | V63: 0 | W63: 0 | Y63: =IF(U63="",H63,V63) -> 0 | AB63: 52_Rock Pile | AC63: =IF(AB63="","",COUNTIFS(AssignmentSummary!$G:$G,AB63)) -> 0 | AD63: =IFERROR(MATCH($AB63,AssignmentSummary!$G:$G,0),"") ->  | AE63: =IFERROR(IF(AE$4>$AC63,"",MATCH($AB63,INDIRECT("AssignmentSummary!G"&AD63&":G10000"),0))+AD63,"") -> 
A64: =A63+1 -> 53 | B64: Contour reclaimed area | D64: ha | F64: =NA() ->  | G64: =IF(ISNA(F64),0,INDEX(IF(UPPER(RIGHT(F64,1))=Low,UnitCostLow, IF(UPPER(RIGHT(F64,1))=High,UnitCostHigh,UnitCostSpecified)),MATCH(UPPER(LEFT(F64,LEN(F64)-1)),CostCode,0))) -> 0 | H64: =G64*E64 -> 0 | J64: =H64*I64 -> 0 | K64: =+H64*(1-I64) -> 0 | V64: 0 | W64: 0 | Y64: =IF(U64="",H64,V64) -> 0 | AB64: 53_Rock Pile | AC64: =IF(AB64="","",COUNTIFS(AssignmentSummary!$G:$G,AB64)) -> 0 | AD64: =IFERROR(MATCH($AB64,AssignmentSummary!$G:$G,0),"") ->  | AE64: =IFERROR(IF(AE$4>$AC64,"",MATCH($AB64,INDIRECT("AssignmentSummary!G"&AD64&":G10000"),0))+AD64,"") -> 
A65: =A64+1 -> 54 | B65: Other | D65: allow | F65: =NA() ->  | G65: 20000 | H65: =G65*E65 -> 0 | J65: =H65*I65 -> 0 | K65: =+H65*(1-I65) -> 0 | V65: 0 | W65: 0 | Y65: =IF(U65="",H65,V65) -> 0 | AB65: 54_Rock Pile | AC65: =IF(AB65="","",COUNTIFS(AssignmentSummary!$G:$G,AB65)) -> 0 | AD65: =IFERROR(MATCH($AB65,AssignmentSummary!$G:$G,0),"") ->  | AE65: =IFERROR(IF(AE$4>$AC65,"",MATCH($AB65,INDIRECT("AssignmentSummary!G"&AD65&":G10000"),0))+AD65,"") -> 
A66: a | B66: SPECIALIZED ITEMS | AC66: =IF(AB66="","",COUNTIFS(AssignmentSummary!$G:$G,AB66)) ->  | AD66: =IFERROR(MATCH($AB66,AssignmentSummary!$G:$G,0),"") ->  | AE66: =IFERROR(IF(AE$4>$AC66,"",MATCH($AB66,INDIRECT("AssignmentSummary!G"&AD66&":G10000"),0))+AD66,"") -> 
A67: =A65+1 -> 55 | B67: Install permanent instrumentation | D67: allow | F67: Ea | G67: 50000 | H67: =G67*E67 -> 0 | J67: =H67*I67 -> 0 | K67: =+H67*(1-I67) -> 0 | V67: 0 | W67: 0 | Y67: =IF(U67="",H67,V67) -> 0 | AB67: 55_Rock Pile | AC67: =IF(AB67="","",COUNTIFS(AssignmentSummary!$G:$G,AB67)) -> 0 | AD67: =IFERROR(MATCH($AB67,AssignmentSummary!$G:$G,0),"") ->  | AE67: =IFERROR(IF(AE$4>$AC67,"",MATCH($AB67,INDIRECT("AssignmentSummary!G"&AD67&":G10000"),0))+AD67,"") -> 
A68: =A67+1 -> 56 | B68: Install permanent instrumentation, drilling | D68: each | F68: =NA() ->  | G68: =IF(ISNA(F68),0,INDEX(IF(UPPER(RIGHT(F68,1))=Low,UnitCostLow, IF(UPPER(RIGHT(F68,1))=High,UnitCostHigh,UnitCostSpecified)),MATCH(UPPER(LEFT(F68,LEN(F68)-1)),CostCode,0))) -> 0 | H68: =G68*E68 -> 0 | J68: =H68*I68 -> 0 | K68: =+H68*(1-I68) -> 0 | V68: 0 | W68: 0 | Y68: =IF(U68="",H68,V68) -> 0 | AB68: 56_Rock Pile | AC68: =IF(AB68="","",COUNTIFS(AssignmentSummary!$G:$G,AB68)) -> 0 | AD68: =IFERROR(MATCH($AB68,AssignmentSummary!$G:$G,0),"") ->  | AE68: =IFERROR(IF(AE$4>$AC68,"",MATCH($AB68,INDIRECT("AssignmentSummary!G"&AD68&":G10000"),0))+AD68,"") -> 
A69: a | B69: TREAT ROCK PILE SEEPAGE - see "Water Management" | AB69: =IF(ISNUMBER(A69),A69&"_"&MID(CELL("filename",$A$1),FIND("]",CELL("filename",$A$1))+1,255),"") ->  | AC69: =IF(AB69="","",COUNTIFS(AssignmentSummary!$G:$G,AB69)) ->  | AD69: =IFERROR(MATCH($AB69,AssignmentSummary!$G:$G,0),"") ->  | AE69: =IFERROR(IF(AE$4>$AC69,"",MATCH($AB69,INDIRECT("AssignmentSummary!G"&AD69&":G10000"),0))+AD69,"") ->  | AQ69: =IFERROR(INDIRECT("AssignmentSummary!L"&AD69),"") ->  | AR69: =IFERROR(INDIRECT("AssignmentSummary!L"&AE69),"") ->  | AS69: =IFERROR(INDIRECT("AssignmentSummary!L"&AF69),"") ->  | AT69: =IFERROR(INDIRECT("AssignmentSummary!L"&AG69),"") ->  | AU69: =IFERROR(INDIRECT("AssignmentSummary!L"&AH69),"") ->  | AV69: =IFERROR(INDIRECT("AssignmentSummary!L"&AI69),"") ->  | AW69: =IFERROR(INDIRECT("AssignmentSummary!L"&AJ69),"") ->  | AX69: =IFERROR(INDIRECT("AssignmentSummary!L"&AK69),"") ->  | AY69: =IFERROR(INDIRECT("AssignmentSummary!L"&AL69),"") ->  | AZ69: =IFERROR(INDIRECT("AssignmentSummary!L"&AM69),"") ->  | BA69: =IFERROR(INDIRECT("AssignmentSummary!L"&AN69),"") ->  | BB69: =IFERROR(INDIRECT("AssignmentSummary!L"&AO69),"") -> 
A70: a | B70: HEAP LEACH SEEPAGE TREATMENT - Cyanide Detox | W70: =IF(V70="","",SUM(J70:K70)-V70) ->  | AC70: =IF(AB70="","",COUNTIFS(AssignmentSummary!$G:$G,AB70)) ->  | AD70: =IFERROR(MATCH($AB70,AssignmentSummary!$G:$G,0),"") ->  | AE70: =IFERROR(IF(AE$4>$AC70,"",MATCH($AB70,INDIRECT("AssignmentSummary!G"&AD70&":G10000"),0))+AD70,"") -> 
A71: =A68+1 -> 57 | B71: Cyanide destruction water treatment pumping | D71: m³ | F71: =NA() ->  | G71: =IF(ISNA(F71),0,INDEX(IF(UPPER(RIGHT(F71,1))=Low,UnitCostLow, IF(UPPER(RIGHT(F71,1))=High,UnitCostHigh,UnitCostSpecified)),MATCH(UPPER(LEFT(F71,LEN(F71)-1)),CostCode,0))) -> 0 | H71: =G71*E71 -> 0 | J71: =H71*I71 -> 0 | K71: =+H71*(1-I71) -> 0 | V71: 0 | W71: 0 | Y71: =IF(U71="",H71,V71) -> 0 | AB71: 57_Rock Pile | AC71: =IF(AB71="","",COUNTIFS(AssignmentSummary!$G:$G,AB71)) -> 0 | AD71: =IFERROR(MATCH($AB71,AssignmentSummary!$G:$G,0),"") ->  | AE71: =IFERROR(IF(AE$4>$AC71,"",MATCH($AB71,INDIRECT("AssignmentSummary!G"&AD71&":G10000"),0))+AD71,"") -> 
A72: =A71+1 -> 58 | B72: Reagents | D72: tonnes | F72: =NA() ->  | G72: =IF(ISNA(F72),0,INDEX(IF(UPPER(RIGHT(F72,1))=Low,UnitCostLow, IF(UPPER(RIGHT(F72,1))=High,UnitCostHigh,UnitCostSpecified)),MATCH(UPPER(LEFT(F72,LEN(F72)-1)),CostCode,0))) -> 0 | H72: =G72*E72 -> 0 | J72: =H72*I72 -> 0 | K72: =+H72*(1-I72) -> 0 | V72: 0 | W72: 0 | Y72: 0 | AB72: 58_Rock Pile | AC72: =IF(AB72="","",COUNTIFS(AssignmentSummary!$G:$G,AB72)) -> 0 | AD72: =IFERROR(MATCH($AB72,AssignmentSummary!$G:$G,0),"") ->  | AE72: =IFERROR(IF(AE$4>$AC72,"",MATCH($AB72,INDIRECT("AssignmentSummary!G"&AD72&":G10000"),0))+AD72,"") -> 
A73: 59 | B73: Electrician/mechanic to maintain treatment plant | D73: allow | F73: =NA() ->  | G73: =IF(ISNA(F73),0,INDEX(IF(UPPER(RIGHT(F73,1))=Low,UnitCostLow, IF(UPPER(RIGHT(F73,1))=High,UnitCostHigh,UnitCostSpecified)),MATCH(UPPER(LEFT(F73,LEN(F73)-1)),CostCode,0))) -> 0 | H73: =G73*E73 -> 0 | J73: =H73*I73 -> 0 | K73: =+H73*(1-I73) -> 0 | V73: 0 | W73: 0 | Y73: 0 | AB73: 59_Rock Pile | AC73: =IF(AB73="","",COUNTIFS(AssignmentSummary!$G:$G,AB73)) -> 0 | AD73: =IFERROR(MATCH($AB73,AssignmentSummary!$G:$G,0),"") ->  | AE73: =IFERROR(IF(AE$4>$AC73,"",MATCH($AB73,INDIRECT("AssignmentSummary!G"&AD73&":G10000"),0))+AD73,"") -> 
A74: 60 | B74: Equipment maintenance and parts | D74: allow | F74: =NA() ->  | G74: =IF(ISNA(F74),0,INDEX(IF(UPPER(RIGHT(F74,1))=Low,UnitCostLow, IF(UPPER(RIGHT(F74,1))=High,UnitCostHigh,UnitCostSpecified)),MATCH(UPPER(LEFT(F74,LEN(F74)-1)),CostCode,0))) -> 0 | H74: =G74*E74 -> 0 | J74: =H74*I74 -> 0 | K74: =+H74*(1-I74) -> 0 | V74: 0 | W74: 0 | Y74: 0 | AB74: 60_Rock Pile | AC74: =IF(AB74="","",COUNTIFS(AssignmentSummary!$G:$G,AB74)) -> 0 | AD74: =IFERROR(MATCH($AB74,AssignmentSummary!$G:$G,0),"") ->  | AE74: =IFERROR(IF(AE$4>$AC74,"",MATCH($AB74,INDIRECT("AssignmentSummary!G"&AD74&":G10000"),0))+AD74,"") -> 
A75: 61 | G75: Annual treatment costs | H75: =SUM(H71:H74)+0.0001 -> 0.0001 | V75: 0 | W75: 0 | Y75: 0.0001 | AB75: 61_Rock Pile | AC75: =IF(AB75="","",COUNTIFS(AssignmentSummary!$G:$G,AB75)) -> 1 | AD75: =IFERROR(MATCH($AB75,AssignmentSummary!$G:$G,0),"") -> 51 | AE75: =IFERROR(IF(AE$4>$AC75,"",MATCH($AB75,INDIRECT("AssignmentSummary!G"&AD75&":G10000"),0))+AD75,"") ->  | AQ75: Assign
A76: 62 | B76: Number of years of treatment | D76: years | AB76: 62_Rock Pile | AC76: =IF(AB76="","",COUNTIFS(AssignmentSummary!$G:$G,AB76)) -> 0 | AD76: =IFERROR(MATCH($AB76,AssignmentSummary!$G:$G,0),"") ->  | AE76: =IFERROR(IF(AE$4>$AC76,"",MATCH($AB76,INDIRECT("AssignmentSummary!G"&AD76&":G10000"),0))+AD76,"") -> 
A77: 63 | G77: Total treatment costs | H77: =H75*E76 -> 0 | K77: =H77 -> 0 | V77: 0 | W77: 0 | Y77: 0 | AB77: 63_Rock Pile | AC77: =IF(AB77="","",COUNTIFS(AssignmentSummary!$G:$G,AB77)) -> 0 | AD77: =IFERROR(MATCH($AB77,AssignmentSummary!$G:$G,0),"") ->  | AE77: =IFERROR(IF(AE$4>$AC77,"",MATCH($AB77,INDIRECT("AssignmentSummary!G"&AD77&":G10000"),0))+AD77,"") -> 
A78: a | B78: HEAP LEACH SEEPAGE TREATMENT - ARD/ML** | AC78: =IF(AB78="","",COUNTIFS(AssignmentSummary!$G:$G,AB78)) ->  | AD78: =IFERROR(MATCH($AB78,AssignmentSummary!$G:$G,0),"") ->  | AE78: =IFERROR(IF(AE$4>$AC78,"",MATCH($AB78,INDIRECT("AssignmentSummary!G"&AD78&":G10000"),0))+AD78,"") -> 
A79: =A77+1 -> 64 | B79: Upgrade/modify pumping system - report to WTP | D79: allow | F79: =NA() ->  | G79: =IF(ISNA(F79),0,INDEX(IF(UPPER(RIGHT(F79,1))=Low,UnitCostLow, IF(UPPER(RIGHT(F79,1))=High,UnitCostHigh,UnitCostSpecified)),MATCH(UPPER(LEFT(F79,LEN(F79)-1)),CostCode,0))) -> 0 | H79: =G79*E79 -> 0 | K79: =H79 -> 0 | V79: 0 | W79: 0 | Y79: 0 | AB79: 64_Rock Pile | AC79: =IF(AB79="","",COUNTIFS(AssignmentSummary!$G:$G,AB79)) -> 0 | AD79: =IFERROR(MATCH($AB79,AssignmentSummary!$G:$G,0),"") ->  | AE79: =IFERROR(IF(AE$4>$AC79,"",MATCH($AB79,INDIRECT("AssignmentSummary!G"&AD79&":G10000"),0))+AD79,"") -> 
A80: END | G80: Total | H80: =SUM(H6:H68)+H77+H79+0.0001 -> 290125.5001 | J80: =SUM(J6:J68)+J77+J79 -> 145062.75 | K80: =SUM(K6:K68)+K77+K79 -> 145062.75 | V80: =SUM(V6:V79) -> 189067.4131 | W80: =RP1Total-V80 -> 101058.087 | Y80: =SUM(Y6:Y79) -> 189067.4132 | AC80: =IF(AB80="","",COUNTIFS(AssignmentSummary!$G:$G,AB80)) ->  | AD80: =IFERROR(MATCH($AB80,AssignmentSummary!$G:$G,0),"") ->  | AE80: =IFERROR(IF(AE$4>$AC80,"",MATCH($AB80,INDIRECT("AssignmentSummary!G"&AD80&":G10000"),0))+AD80,"") -> 
G81: % of Total | J81: =J80/H80 -> 0.4999999998 | K81: =K80/H80 -> 0.4999999998
B83: * For construction of passive treatment system refer to "Water Management". ARD/ML seepage treatment becomes post-closure water treatment cost
B84: **Heap leach ARD/ML seepage treatment becomes post-closure water treatment cost

Sheet Chemicals
B1: Chemicals/Soil Area Name: Doris - Madrid | AD1: Match | AQ1: SRK Code | BD1: SRK Estimate
B3: INAC COST March 2018 | O3: TMAC COST (Nov 2017)* | W3: Cost Difference | Y3: PROPOSED COSTS (April 2018)
B4: Note: The procedures, equipment and packaging for clean up and removal of chemicals or contaminated soils are highly dependent on the nature of the chemicals and their existing state of containment. Government guidelines should be consulted on an individual chemical basis. Any estimate made here should be considered very rough unless specific evaluations have been conducted. | Y4: Carry Forward Costs | AB4: Lookup | AC4: Count | AD4: 1 | AE4: =AD4+1 -> 2 | AF4: =AE4+1 -> 3 | AG4: 4 | AH4: 5 | AI4: 6 | AJ4: 7 | AK4: 8 | AL4: =AK4+1 -> 9 | AM4: 10 | AN4: 11 | AO4: 12 | AQ4: 1 | AR4: =AQ4+1 -> 2 | AS4: 3 | AT4: 4 | AU4: 5 | AV4: 6 | AW4: 7 | AX4: 8 | AY4: 9 | AZ4: 10 | BA4: 11 | BB4: 12 | BD4: 1 | BE4: =BD4+1 -> 2 | BF4: =BE4+1 -> 3 | BG4: 4 | BH4: 5 | BI4: 6 | BJ4: 7 | BK4: 8 | BL4: =Bm³+1 -> 
B5: ACTIVITY/MATERIAL | C5: Notes | D5: Units | E5: Quantity | F5: Cost Code | G5: Unit Cost | H5: Cost | I5: % Land | J5: Land Cost | K5: Water Cost | O5: SRK Row Number | P5: Facility Name | Q5: Task Description | R5: Qty | S5: Unit | T5: Unit Cost | U5: Subtotal | V5: TMAC Costs | W5: Cost Difference (INAC-TMAC) | X5: Notes | Y5: Carry Forward Costs | AB5: =IF(ISNUMBER(A5),A5&"_"&MID(CELL("filename",$A$1),FIND("]",CELL("filename",$A$1))+1,255),"") ->  | AC5: =IF(AB5="","",COUNTIFS(AssignmentSummary!$G:$G,AB5)) ->  | AD5: =IFERROR(MATCH($AB5,AssignmentSummary!$G:$G,0),"") ->  | AE5: =IFERROR(IF(AE$4>$AC5,"",MATCH($AB5,INDIRECT("AssignmentSummary!G"&AD5&":G10000"),0))+AD5,"") ->  | AF5: =IFERROR(IF(AF$4>$AC5,"",MATCH($AB5,INDIRECT("AssignmentSummary!G"&AE5&":G10000"),0))+AE5,"") ->  | AL5: =IFERROR(IF(AL$4>$AC5,"",MATCH($AB5,INDIRECT("AssignmentSummary!G"&AK5&":G10000"),0))+AK5,"") ->  | AQ5: =IFERROR(INDIRECT("AssignmentSummary!L"&AD5),"") ->  | AR5: =IFERROR(INDIRECT("AssignmentSummary!L"&AE5),"") ->  | AS5: =IFERROR(INDIRECT("AssignmentSummary!L"&AF5),"") ->  | AT5: =IFERROR(INDIRECT("AssignmentSummary!L"&AG5),"") ->  | AU5: =IFERROR(INDIRECT("AssignmentSummary!L"&AH5),"") ->  | AV5: =IFERROR(INDIRECT("AssignmentSummary!L"&AI5),"") ->  | AW5: =IFERROR(INDIRECT("AssignmentSummary!L"&AJ5),"") ->  | AX5: =IFERROR(INDIRECT("AssignmentSummary!L"&AK5),"") ->  | AY5: =IFERROR(INDIRECT("AssignmentSummary!L"&AL5),"") ->  | AZ5: =IFERROR(INDIRECT("AssignmentSummary!L"&AM5),"") ->  | BA5: =IFERROR(INDIRECT("AssignmentSummary!L"&AN5),"") ->  | BB5: =IFERROR(INDIRECT("AssignmentSummary!L"&AO5),"") -> 
A6: a | B6: HAZARDOUS MATERIALS AUDIT | V6: =IF(ISBLANK($H6),"",SUM(AZ6:BK6)) ->  | W6: =IF(V6="","",SUM(J6:K6)-V6) ->  | AC6: =IF(AB6="","",COUNTIFS(AssignmentSummary!$G:$G,AB6)) ->  | AD6: =IFERROR(MATCH($AB6,AssignmentSummary!$G:$G,0),"") ->  | AE6: =IFERROR(IF(AE$4>$AC6,"",MATCH($AB6,INDIRECT("AssignmentSummary!G"&AD6&":G10000"),0))+AD6,"") -> 
A7: 1 | B7: Hazardous materials audit | C7: Not required | D7: allow | F7: =NA() ->  | G7: 25000 | H7: =G7*E7 -> 0 | J7: =H7*I7 -> 0 | K7: =+H7*(1-I7) -> 0 | V7: =IF(ISBLANK($H7),"",SUM(BD7:BO7)) -> 0 | W7: 0 | Y7: =IF(U7="",H7,V7) -> 0 | AB7: 1_Chemicals | AC7: =IF(AB7="","",COUNTIFS(AssignmentSummary!$G:$G,AB7)) -> 0 | AD7: =IFERROR(MATCH($AB7,AssignmentSummary!$G:$G,0),"") -> 
A8: a | B8: BUILDING DECONTAMINATION & CONSOLIDATION OF HAZARDOUS MATERIALS | AC8: =IF(AB8="","",COUNTIFS(AssignmentSummary!$G:$G,AB8)) ->  | AD8: =IFERROR(MATCH($AB8,AssignmentSummary!$G:$G,0),"") ->  | AE8: =IFERROR(IF(AE$4>$AC8,"",MATCH($AB8,INDIRECT("AssignmentSummary!G"&AD8&":G10000"),0))+AD8,"") -> 
A9: =A7+1 -> 2 | B9: Environmental technician/coordinator | D9: mandays | F9: =NA() ->  | G9: =IF(ISNA(F9),0,INDEX(IF(UPPER(RIGHT(F9,1))=Low,UnitCostLow, IF(UPPER(RIGHT(F9,1))=High,UnitCostHigh,UnitCostSpecified)),MATCH(UPPER(LEFT(F9,LEN(F9)-1)),CostCode,0))) -> 0 | H9: =G9*E9 -> 0 | J9: =H9*I9 -> 0 | K9: =+H9*(1-I9) -> 0 | V9: 0 | W9: 0 | Y9: =IF(U9="",H9,V9) -> 0 | AB9: 2_Chemicals | AC9: =IF(AB9="","",COUNTIFS(AssignmentSummary!$G:$G,AB9)) -> 0 | AD9: =IFERROR(MATCH($AB9,AssignmentSummary!$G:$G,0),"") ->  | AE9: =IFERROR(IF(AE$4>$AC9,"",MATCH($AB9,INDIRECT("AssignmentSummary!G"&AD9&":G10000"),0))+AD9,"") -> 
A10: =A9+1 -> 3 | B10: Drain residual fuel from tanks | C10: RB-013, RB-002, RB-003, & DM-020 | D10: each | E10: =2+4+1+5 -> 12 | F10: TMAC | G10: 265 | H10: =G10*E10 -> 3180 | I10: 0.5 | J10: =H10*I10 -> 1590 | K10: =+H10*(1-I10) -> 1590 | O10: SRK_1.13.1 | P10: Roberts Bay 10ML Fuel Storage Facility | Q10: drain residual fuel | R10: 160000 | S10: L | T10: 0.02271735219 | U10: 3634.776351 | V10: 9882.048203 | W10: -6702.048203 | X10: this task is for drainaing the large tanks; the rate used by INAC is for drainaing EnviroTanks and is used erroneously here | Y10: =V10 -> 9882.048203 | AB10: 3_Chemicals | AC10: =IF(AB10="","",COUNTIFS(AssignmentSummary!$G:$G,AB10)) -> 4 | AD10: =IFERROR(MATCH($AB10,AssignmentSummary!$G:$G,0),"") -> 52 | AE10: =IFERROR(IF(AE$4>$AC10,"",MATCH($AB10,INDIRECT("AssignmentSummary!G"&AD10&":G10000"),0))+AD10,"") -> 53 | AF10: 54 | AG10: 55 | AQ10: SRK_1.13.1 | AR10: SRK_1.2.1 | AS10: SRK_1.3.1 | AT10: SRK_2.20.1 | BD10: 3634.776351 | BE10: 3634.776351 | BF10: 908.6940877 | BG10: 1703.801414
O11: SRK_1.2.1 | P11: Roberts Bay 20 ML Tank Farm | Q11: drain residual fuel | R11: 160000 | S11: L | T11: 0.02271735219 | U11: 3634.776351
O12: SRK_1.3.1 | P12: Roberts Bay Quarry 1 - 5 ML Tank Farm | Q12: drain residual fuel | R12: 40000 | S12: L | T12: 0.02271735219 | U12: 908.6940877
O13: SRK_2.20.1 | P13: Doris Tank Farm | Q13: drain residual fuel | R13: 75000 | S13: each | T13: 0.02271735219 | U13: 1703.801414
A14: =A10+1 -> 4 | B14: Drain, clean and crush empty drums | C14: RB-003 | D14: each | E14: 150 | F14: TMAC | G14: =21.04+18.4 -> 39.44 | H14: =G14*E14 -> 5916 | I14: 0.5 | J14: =H14*I14 -> 2958 | K14: =+H14*(1-I14) -> 2958 | O14: SRK_1.3.10 | P14: 0 | Q14: drain and wash empty fuel drums | R14: 150 | S14: each | T14: 18.40072321 | U14: 2760.108482 | V14: 5915.526055 | W14: 0.4739454335 | Y14: 5915.526055 | AB14: =IF(ISNUMBER(A14),A14&"_"&MID(CELL("filename",$A$1),FIND("]",CELL("filename",$A$1))+1,255),"") -> 4_Chemicals | AC14: =IF(AB14="","",COUNTIFS(AssignmentSummary!$G:$G,AB14)) -> 2 | AD14: =IFERROR(MATCH($AB14,AssignmentSummary!$G:$G,0),"") -> 56 | AE14: =IFERROR(IF(AE$4>$AC14,"",MATCH($AB14,INDIRECT("AssignmentSummary!G"&AD14&":G10000"),0))+AD14,"") -> 57 | AQ14: SRK_1.3.10 | AR14: SRK_1.3.11 | AX14: =IFERROR(INDIRECT("AssignmentSummary!L"&AK14),"") ->  | BD14: 2760.108482 | BE14: 3155.417573
O15: SRK_1.3.11 | P15: 0 | Q15: crush empty fuel drums | R15: 150 | S15: each | T15: 21.03611715 | U15: 3155.417573
A16: =A14+1 -> 5 | B16: Removal of Doris fresh water pipeline | C16: DM-006 decommission | D16: each | E16: 4 | F16: TMAC | G16: 680 | H16: =G16*E16 -> 2720 | I16: 0.5 | J16: =H16*I16 -> 1360 | K16: =+H16*(1-I16) -> 1360 | O16: SRK_2.6.2 | P16: 0 | Q16: decommission electrical (heat tracing) | R16: 4 | S16: each | T16: 679.5159959 | U16: 2718.063984 | V16: 2718.063984 | W16: 1.936016247 | Y16: 2718.063984 | AB16: =IF(ISNUMBER(A16),A16&"_"&MID(CELL("filename",$A$1),FIND("]",CELL("filename",$A$1))+1,255),"") -> 5_Chemicals | AC16: =IF(AB16="","",COUNTIFS(AssignmentSummary!$G:$G,AB16)) -> 1 | AD16: =IFERROR(MATCH($AB16,AssignmentSummary!$G:$G,0),"") -> 58 | AE16: =IFERROR(IF(AE$4>$AC16,"",MATCH($AB16,INDIRECT("AssignmentSummary!G"&AD16&":G10000"),0))+AD16,"") ->  | AQ16: SRK_2.6.2 | AX16: =IFERROR(INDIRECT("AssignmentSummary!L"&AK16),"") ->  | BD16: 2718.063984
A17: =A16+1 -> 6 | C17: DM-006 dismantle | D17: lm | E17: 830 | F17: TMAC | G17: 11.08 | H17: =G17*E17 -> 9196.4 | I17: 0.5 | J17: =H17*I17 -> 4598.2 | K17: =+H17*(1-I17) -> 4598.2 | O17: SRK_2.6.1 | P17: Doris Fresh Water Pipelines | Q17: cut pipelines into manageable pieces | R17: 830 | S17: lm | T17: 11.08444749 | U17: 9200.091413 | V17: 9200.091413 | W17: -3.691413025 | Y17: 9200.091413 | AB17: =IF(ISNUMBER(A17),A17&"_"&MID(CELL("filename",$A$1),FIND("]",CELL("filename",$A$1))+1,255),"") -> 6_Chemicals | AC17: =IF(AB17="","",COUNTIFS(AssignmentSummary!$G:$G,AB17)) -> 1 | AD17: =IFERROR(MATCH($AB17,AssignmentSummary!$G:$G,0),"") -> 59 | AE17: =IFERROR(IF(AE$4>$AC17,"",MATCH($AB17,INDIRECT("AssignmentSummary!G"&AD17&":G10000"),0))+AD17,"") ->  | AQ17: SRK_2.6.1 | AX17: =IFERROR(INDIRECT("AssignmentSummary!L"&AK17),"") ->  | BD17: 9200.091413
A18: 7 | C18: DM-006 load, haul & tip debris to Q3 landfill | D18: m³ | E18: 28.2 | F18: TMAC | G18: =10.23+5.99 -> 16.22 | H18: =G18*E18 -> 457.404 | I18: 0.5 | J18: =H18*I18 -> 228.702 | K18: =+H18*(1-I18) -> 228.702 | O18: SRK_2.6.4 | P18: 0 | Q18: load debris into containers for transport | R18: 28.16123655 | S18: m3 | T18: 10.22791667 | U18: 288.0307806 | V18: 420.3800632 | W18: 37.02393681 | Y18: 420.3800632 | AB18: =IF(ISNUMBER(A18),A18&"_"&MID(CELL("filename",$A$1),FIND("]",CELL("filename",$A$1))+1,255),"") -> 7_Chemicals | AC18: =IF(AB18="","",COUNTIFS(AssignmentSummary!$G:$G,AB18)) -> 2 | AD18: =IFERROR(MATCH($AB18,AssignmentSummary!$G:$G,0),"") -> 60 | AE18: =IFERROR(IF(AE$4>$AC18,"",MATCH($AB18,INDIRECT("AssignmentSummary!G"&AD18&":G10000"),0))+AD18,"") -> 61 | AQ18: SRK_2.6.4 | AR18: SRK_2.6.5 | AX18: =IFERROR(INDIRECT("AssignmentSummary!L"&AK18),"") ->  | BD18: 288.0307806 | BE18: 132.3492826
O19: SRK_2.6.5 | P19: 0 | Q19: haul debris to quarry 3 landfill | R19: 28.16123655 | S19: m3 | T19: 4.69969713 | U19: 132.3492826
A20: =A18+1 -> 8 | B20: Removal of Secondary Road Tailings and Reclaim water pipeline | C20: SR-002 decommission | D20: each | E20: 4 | F20: TMAC | G20: 680 | H20: =G20*E20 -> 2720 | I20: 0.5 | J20: =H20*I20 -> 1360 | K20: =+H20*(1-I20) -> 1360 | O20: SRK_15.2.2 | P20: 0 | Q20: decommission electrical (heat tracing) | R20: 4 | S20: each | T20: 679.5159959 | U20: 2718.063984 | V20: 2718.063984 | W20: 1.936016247 | Y20: 2718.063984 | AB20: =IF(ISNUMBER(A20),A20&"_"&MID(CELL("filename",$A$1),FIND("]",CELL("filename",$A$1))+1,255),"") -> 8_Chemicals | AC20: =IF(AB20="","",COUNTIFS(AssignmentSummary!$G:$G,AB20)) -> 1 | AD20: =IFERROR(MATCH($AB20,AssignmentSummary!$G:$G,0),"") -> 62 | AE20: =IFERROR(IF(AE$4>$AC20,"",MATCH($AB20,INDIRECT("AssignmentSummary!G"&AD20&":G10000"),0))+AD20,"") ->  | AQ20: SRK_15.2.2 | AX20: =IFERROR(INDIRECT("AssignmentSummary!L"&AK20),"") ->  | BD20: 2718.063984
A21: 9 | C21: SR-002 dismantle | D21: lm | E21: 8125 | F21: TMAC | G21: 11.08 | H21: =G21*E21 -> 90025 | I21: 0.5 | J21: =H21*I21 -> 45012.5 | K21: =+H21*(1-I21) -> 45012.5 | O21: SRK_15.2.1 | P21: Secondary Road Tailings and Reclaim Water Pipelines | Q21: Cut pipelines into manageable pieces | R21: 8125 | S21: lm | T21: 11.08444749 | U21: 90061.13582 | V21: =U21 -> 90061.13582 | W21: -36.13582028 | Y21: 90061.13582 | AB21: =IF(ISNUMBER(A21),A21&"_"&MID(CELL("filename",$A$1),FIND("]",CELL("filename",$A$1))+1,255),"") -> 9_Chemicals | AC21: =IF(AB21="","",COUNTIFS(AssignmentSummary!$G:$G,AB21)) -> 1 | AD21: =IFERROR(MATCH($AB21,AssignmentSummary!$G:$G,0),"") -> 63 | AE21: =IFERROR(IF(AE$4>$AC21,"",MATCH($AB21,INDIRECT("AssignmentSummary!G"&AD21&":G10000"),0))+AD21,"") ->  | AL21: =IFERROR(IF(AL$4>$AC21,"",MATCH($AB21,INDIRECT("AssignmentSummary!G"&AK21&":G10000"),0))+AK21,"") ->  | AQ21: SRK_15.2.3 | AX21: =IFERROR(INDIRECT("AssignmentSummary!L"&AK21),"") ->  | BD21: 1523.187554
A22: 10 | C22: SR-002 load, haul & tip debris to Q3 landfill | D22: m³ | E22: 255.3 | F22: TMAC | G22: =10.23+5.23 -> 15.46 | H22: =G22*E22 -> 3946.938 | I22: 0.5 | J22: =H22*I22 -> 1973.469 | K22: =+H22*(1-I22) -> 1973.469 | O22: SRK_15.2.4 | P22: 0 | Q22: Load debris for transport to landfill | R22: 255.2544031 | S22: m3 | T22: 10.22791667 | U22: 2610.720764 | V22: =IF(ISBLANK($H22),"",SUM(BD22:BO22)) -> 3676.195612 | W22: 270.7423875 | Y22: 3676.195612 | AB22: =IF(ISNUMBER(A22),A22&"_"&MID(CELL("filename",$A$1),FIND("]",CELL("filename",$A$1))+1,255),"") -> 10_Chemicals | AC22: =IF(AB22="","",COUNTIFS(AssignmentSummary!$G:$G,AB22)) -> 2 | AD22: =IFERROR(MATCH($AB22,AssignmentSummary!$G:$G,0),"") -> 64 | AE22: =IFERROR(IF(AE$4>$AC22,"",MATCH($AB22,INDIRECT("AssignmentSummary!G"&AD22&":G10000"),0))+AD22,"") -> 65 | AL22: =IFERROR(IF(AL$4>$AC22,"",MATCH($AB22,INDIRECT("AssignmentSummary!G"&AK22&":G10000"),0))+AK22,"") ->  | AQ22: SRK_15.2.4 | AR22: SRK_15.2.5 | AX22: =IFERROR(INDIRECT("AssignmentSummary!L"&AK22),"") ->  | BD22: 2610.720764 | BE22: 1065.474849
O23: SRK_15.2.5 | P23: 0 | Q23: Haul waste to the landfill | R23: 255.2544031 | S23: m3 | T23: 4.174168342 | U23: 1065.474849 | V23: =IF(ISBLANK($H23),"",SUM(BD23:BO23)) -> 
A24: =A22+1 -> 11 | B24: Drain residual fuel from tank at vent raise | C24: DM-030 drain tank | D24: each | E24: 1 | F24: TMAC | G24: 265 | H24: =G24*E24 -> 265 | I24: 0.5 | J24: =H24*I24 -> 132.5 | K24: =+H24*(1-I24) -> 132.5 | O24: SRK_2.30.7 | P24: 0 | Q24: Drain and decommission Enviro Tank | R24: 1 | S24: each | T24: 265 | U24: =T24*R24 -> 265 | V24: =U24 -> 265 | W24: 0 | Y24: 265 | AB24: =IF(ISNUMBER(A24),A24&"_"&MID(CELL("filename",$A$1),FIND("]",CELL("filename",$A$1))+1,255),"") -> 11_Chemicals | AC24: =IF(AB24="","",COUNTIFS(AssignmentSummary!$G:$G,AB24)) -> 1 | AD24: =IFERROR(MATCH($AB24,AssignmentSummary!$G:$G,0),"") -> 66 | AE24: =IFERROR(IF(AE$4>$AC24,"",MATCH($AB24,INDIRECT("AssignmentSummary!G"&AD24&":G10000"),0))+AD24,"") ->  | AL24: =IFERROR(IF(AL$4>$AC24,"",MATCH($AB24,INDIRECT("AssignmentSummary!G"&AK24&":G10000"),0))+AK24,"") ->  | AQ24: SRK_2.30.7 | AX24: =IFERROR(INDIRECT("AssignmentSummary!L"&AK24),"") ->  | BD24: 0.02271735219
A25: 12 | B25: Drain chemicals and reagent from containers | C25: Doris DM-021 | D25: m³ | E25: 8.3 | F25: TMAC | G25: 2700 | H25: =G25*E25 -> 22410 | I25: 0.5 | J25: =H25*I25 -> 11205 | K25: =+H25*(1-I25) -> 11205 | O25: SRK_2.21.2 | P25: 0 | Q25: Drain chemicals and reagents into containers for shipping off site | R25: 8.32 | S25: m3 | T25: 2699.557018 | U25: 22460.31439 | V25: =IF(ISBLANK($H25),"",SUM(BD25:BO25)) -> 22460.31439 | W25: -50.3143925 | Y25: 22460.31439 | AB25: =IF(ISNUMBER(A25),A25&"_"&MID(CELL("filename",$A$1),FIND("]",CELL("filename",$A$1))+1,255),"") -> 12_Chemicals | AC25: =IF(AB25="","",COUNTIFS(AssignmentSummary!$G:$G,AB25)) -> 1 | AD25: =IFERROR(MATCH($AB25,AssignmentSummary!$G:$G,0),"") -> 67 | AE25: =IFERROR(IF(AE$4>$AC25,"",MATCH($AB25,INDIRECT("AssignmentSummary!G"&AD25&":G10000"),0))+AD25,"") ->  | AL25: =IFERROR(IF(AL$4>$AC25,"",MATCH($AB25,INDIRECT("AssignmentSummary!G"&AK25&":G10000"),0))+AK25,"") ->  | AQ25: SRK_2.21.2 | AX25: =IFERROR(INDIRECT("AssignmentSummary!L"&AK25),"") ->  | BD25: 22460.31439
A26: 13 | C26: Madrid North Concentrator | D26: m³ | E26: 4.2 | F26: TMAC | G26: 2700 | H26: =G26*E26 -> 11340 | I26: 0.5 | J26: =H26*I26 -> 5670 | K26: =+H26*(1-I26) -> 5670 | O26: SRK_5.21.2 | P26: 0 | Q26: Drain chemicals and reagents into containers for shipping off site | R26: 4.16 | S26: m3 | T26: 2699.557018 | U26: 11230.1572 | V26: 11230.1572 | W26: 109.8428038 | Y26: 11230.1572 | AB26: =IF(ISNUMBER(A26),A26&"_"&MID(CELL("filename",$A$1),FIND("]",CELL("filename",$A$1))+1,255),"") -> 13_Chemicals | AC26: =IF(AB26="","",COUNTIFS(AssignmentSummary!$G:$G,AB26)) -> 1 | AD26: =IFERROR(MATCH($AB26,AssignmentSummary!$G:$G,0),"") -> 68 | AE26: =IFERROR(IF(AE$4>$AC26,"",MATCH($AB26,INDIRECT("AssignmentSummary!G"&AD26&":G10000"),0))+AD26,"") ->  | AL26: =IFERROR(IF(AL$4>$AC26,"",MATCH($AB26,INDIRECT("AssignmentSummary!G"&AK26&":G10000"),0))+AK26,"") ->  | AQ26: SRK_5.21.2 | AX26: =IFERROR(INDIRECT("AssignmentSummary!L"&AK26),"") ->  | BD26: 11230.1572
A27: 14 | B27: Decontaminate sewage treatment plant | D27: LS | F27: TMAC | G27: 667.63 | H27: =G27*E27 -> 0 | J27: =H27*I27 -> 0 | K27: =+H27*(1-I27) -> 0 | V27: 0 | W27: 0 | Y27: 0 | AB27: =IF(ISNUMBER(A27),A27&"_"&MID(CELL("filename",$A$1),FIND("]",CELL("filename",$A$1))+1,255),"") -> 14_Chemicals | AC27: =IF(AB27="","",COUNTIFS(AssignmentSummary!$G:$G,AB27)) -> 0 | AD27: =IFERROR(MATCH($AB27,AssignmentSummary!$G:$G,0),"") ->  | AE27: =IFERROR(IF(AE$4>$AC27,"",MATCH($AB27,INDIRECT("AssignmentSummary!G"&AD27&":G10000"),0))+AD27,"") ->  | AL27: =IFERROR(IF(AL$4>$AC27,"",MATCH($AB27,INDIRECT("AssignmentSummary!G"&AK27&":G10000"),0))+AK27,"") ->  | AX27: =IFERROR(INDIRECT("AssignmentSummary!L"&AK27),"") -> 
A28: 15 | B28: Decontaminate bulk fuel storage | C28: Roberts Bay and Doris Tank Farms RB-013, RB-002, RB-003, & DM-020 | D28: each | E28: =4+4+1+5 -> 14 | F28: TMAC | G28: =476.06+1186.71+32.8 -> 1695.57 | H28: =G28*E28 -> 23737.98 | I28: 0.5 | J28: =H28*I28 -> 11868.99 | K28: =+H28*(1-I28) -> 11868.99 | M28: include a 1 m³ of sludge to manage in O/W separator | O28: SRK_1.13.4 | P28: 0 | Q28: wash tanks | R28: 4 | S28: each | T28: 1186.709428 | U28: 4746.837714 | V28: 16613.932 | W28: 7124.048002 | X28: this item contracted the tank decommissioning, power washing, and operating the water/oil separator tasks; TMAC estimate has these asa separate lines, not included here | Y28: =H28 -> 23737.98 | AB28: =IF(ISNUMBER(A28),A28&"_"&MID(CELL("filename",$A$1),FIND("]",CELL("filename",$A$1))+1,255),"") -> 15_Chemicals | AC28: =IF(AB28="","",COUNTIFS(AssignmentSummary!$G:$G,AB28)) -> 4 | AD28: =IFERROR(MATCH($AB28,AssignmentSummary!$G:$G,0),"") -> 69 | AE28: =IFERROR(IF(AE$4>$AC28,"",MATCH($AB28,INDIRECT("AssignmentSummary!G"&AD28&":G10000"),0))+AD28,"") -> 70 | AF28: 71 | AG28: 72 | AL28: =IFERROR(IF(AL$4>$AC28,"",MATCH($AB28,INDIRECT("AssignmentSummary!G"&AK28&":G10000"),0))+AK28,"") ->  | AQ28: SRK_1.13.4 | AR28: SRK_1.2.4 | AS28: SRK_1.3.4 | AT28: SRK_2.20.4 | AX28: =IFERROR(INDIRECT("AssignmentSummary!L"&AK28),"") ->  | BD28: 4746.837714 | BE28: 4746.837714 | BF28: 1186.709428 | BG28: 5933.547142
O29: SRK_1.2.4 | P29: 0 | Q29: wash tanks | R29: 4 | S29: each | T29: 1186.709428 | U29: 4746.837714
O30: SRK_1.3.4 | P30: 0 | Q30: wash tanks | R30: 1 | S30: each | T30: 1186.709428 | U30: 1186.709428
O31: SRK_2.20.4 | P31: 0 | Q31: wash tanks | R31: 5 | S31: each | T31: 1186.709428 | U31: 5933.547142
A32: =A28+1 -> 16 | C32: Madrid North Fuel Storage Facility MN-011 | D32: each | E32: 3 | F32: TMAC | G32: =476.06+1186.71+32.8 -> 1695.57 | H32: =G32*E32 -> 5086.71 | I32: 0.5 | J32: =H32*I32 -> 2543.355 | K32: =+H32*(1-I32) -> 2543.355 | O32: SRK_5.11.4 | P32: 0 | Q32: wash tanks | R32: 3 | S32: each | T32: 1186.709428 | U32: 3560.128285 | V32: 3560.128285 | W32: 1526.581715 | Y32: =H32 -> 5086.71 | AB32: =IF(ISNUMBER(A32),A32&"_"&MID(CELL("filename",$A$1),FIND("]",CELL("filename",$A$1))+1,255),"") -> 16_Chemicals | AC32: =IF(AB32="","",COUNTIFS(AssignmentSummary!$G:$G,AB32)) -> 1 | AD32: =IFERROR(MATCH($AB32,AssignmentSummary!$G:$G,0),"") -> 73 | AE32: =IFERROR(IF(AE$4>$AC32,"",MATCH($AB32,INDIRECT("AssignmentSummary!G"&AD32&":G10000"),0))+AD32,"") ->  | AL32: =IFERROR(IF(AL$4>$AC32,"",MATCH($AB32,INDIRECT("AssignmentSummary!G"&AK32&":G10000"),0))+AK32,"") ->  | AQ32: SRK_5.11.4 | AX32: =IFERROR(INDIRECT("AssignmentSummary!L"&AK32),"") ->  | BD32: 3560.128285
A33: 17 | C33: Madrid South Fuel Storage Facility MS-017 | D33: each | E33: 1 | F33: TMAC | G33: =476.06+1186.71+32.8 -> 1695.57 | H33: 1695.57 | I33: 0.5 | J33: 847.785 | K33: 847.785 | O33: SRK_7.17.4 | P33: 0 | Q33: wash tanks | R33: 1 | S33: each | T33: 1186.709428 | U33: 1186.709428 | V33: 1186.709428 | W33: 508.8605716 | Y33: =H33 -> 1695.57 | AB33: 17_Chemicals | AC33: =IF(AB33="","",COUNTIFS(AssignmentSummary!$G:$G,AB33)) -> 1 | AD33: =IFERROR(MATCH($AB33,AssignmentSummary!$G:$G,0),"") -> 74 | AE33: =IFERROR(IF(AE$4>$AC33,"",MATCH($AB33,INDIRECT("AssignmentSummary!G"&AD33&":G10000"),0))+AD33,"") ->  | AQ33: SRK_7.17.4 | BD33: 1186.709428
A34: 18 | B34: CDR-004 Cargo Dock Access Road Fuel Transfer Lines | C34: Decommission Pipeline | D34: LS | E34: 1 | F34: TMAC | G34: 680 | H34: 680 | I34: 0.5 | J34: 340 | K34: 340 | O34: SRK_21.4.1 | P34: Cargo Dock Access Road Fuel Transfer Pipeline | Q34: flush pipeline prior to decommissioning | R34: 1 | S34: Each | T34: 677.6841964 | U34: 677.6841964 | V34: 677.6841964 | W34: 2.31580361 | Y34: 677.6841964 | AB34: 18_Chemicals | AC34: =IF(AB34="","",COUNTIFS(AssignmentSummary!$G:$G,AB34)) -> 1 | AD34: =IFERROR(MATCH($AB34,AssignmentSummary!$G:$G,0),"") -> 75 | AE34: =IFERROR(IF(AE$4>$AC34,"",MATCH($AB34,INDIRECT("AssignmentSummary!G"&AD34&":G10000"),0))+AD34,"") ->  | AQ34: SRK_21.4.1 | BD34: 677.6841964
A35: 19 | C35: Dismantle pipeline | D35: lm | E35: 3250 | F35: TMAC | G35: 11.08 | H35: 36010 | I35: 0.5 | J35: 18005 | K35: 18005 | O35: SRK_21.4.2 | P35: 0 | Q35: cut pipelines into manageable pieces and place in containers for hauling to landfill | R35: 3250 | S35: m | T35: 11.08444749 | U35: 36024.45433 | V35: 36024.45433 | W35: -14.45432811 | Y35: 36024.45433 | AB35: 19_Chemicals | AC35: =IF(AB35="","",COUNTIFS(AssignmentSummary!$G:$G,AB35)) -> 1 | AD35: =IFERROR(MATCH($AB35,AssignmentSummary!$G:$G,0),"") -> 76 | AE35: =IFERROR(IF(AE$4>$AC35,"",MATCH($AB35,INDIRECT("AssignmentSummary!G"&AD35&":G10000"),0))+AD35,"") ->  | AQ35: SRK_21.4.2 | BD35: 36024.45433
A36: 20 | C36: Remove electrical equipment | D36: LS | E36: 2 | F36: TMAC | G36: 680 | H36: 1360 | I36: 0.5 | J36: 680 | K36: 680 | O36: SRK_21.4.3 | P36: 0 | Q36: remove electrical cables and controllers | R36: 2 | S36: each | T36: 679.5159959 | U36: 1359.031992 | V36: 1359.031992 | W36: 0.9680081233 | Y36: 1359.031992 | AB36: 20_Chemicals | AC36: =IF(AB36="","",COUNTIFS(AssignmentSummary!$G:$G,AB36)) -> 1 | AD36: =IFERROR(MATCH($AB36,AssignmentSummary!$G:$G,0),"") -> 77 | AE36: =IFERROR(IF(AE$4>$AC36,"",MATCH($AB36,INDIRECT("AssignmentSummary!G"&AD36&":G10000"),0))+AD36,"") ->  | AQ36: SRK_21.4.3 | BD36: 1359.031992
A37: 21 | C37: Load, haul and tip debris at Q3 landfill | D37: m³ | E37: 159.5 | F37: TMAC | G37: =10.23+5.23 -> 15.46 | H37: 2465.87 | I37: 0.5 | J37: 1232.935 | K37: 1232.935 | O37: SRK_21.4.4 | P37: 0 | Q37: load debris into containers for hauling to landfill | R37: 159.5340019 | S37: m3 | T37: 10.22791667 | U37: 1631.700477 | V37: 2466.075584 | W37: -0.20558389 | Y37: 2466.075584 | AB37: 21_Chemicals | AC37: =IF(AB37="","",COUNTIFS(AssignmentSummary!$G:$G,AB37)) -> 2 | AD37: =IFERROR(MATCH($AB37,AssignmentSummary!$G:$G,0),"") -> 78 | AE37: =IFERROR(IF(AE$4>$AC37,"",MATCH($AB37,INDIRECT("AssignmentSummary!G"&AD37&":G10000"),0))+AD37,"") -> 79 | AQ37: SRK_21.4.4 | AR37: SRK_21.4.5 | BD37: 1631.700477 | BE37: 834.3751065
O38: SRK_21.4.5 | P38: 0 | Q38: haul containers to Quarry 3 landfill | R38: 159.5340019 | S38: m3 | T38: 5.230076952 | U38: 834.3751065
A39: =A37+1 -> 22 | B39: Drain Reclaim Pond | C39: CM-001 labour | D39: mandays | E39: 168 | F39: TMAC | G39: 1890 | H39: =G39*E39 -> 317520 | I39: 0.5 | J39: =H39*I39 -> 158760 | K39: =+H39*(1-I39) -> 158760 | O39: SRK_17.1.1 | P39: Closure Drain Reclaim Pond | Q39: Pump technician | R39: 170 | S39: day | T39: 1189.125419 | U39: 202151.3213 | V39: 0 | W39: 317520 | X39: draining the Reclaim Pond is accounted for under "Water Treatment" | Y39: 0 | AB39: =IF(ISNUMBER(A39),A39&"_"&MID(CELL("filename",$A$1),FIND("]",CELL("filename",$A$1))+1,255),"") -> 22_Chemicals | AC39: =IF(AB39="","",COUNTIFS(AssignmentSummary!$G:$G,AB39)) -> 1 | AD39: =IFERROR(MATCH($AB39,AssignmentSummary!$G:$G,0),"") -> 80 | AE39: =IFERROR(IF(AE$4>$AC39,"",MATCH($AB39,INDIRECT("AssignmentSummary!G"&AD39&":G10000"),0))+AD39,"") ->  | AL39: =IFERROR(IF(AL$4>$AC39,"",MATCH($AB39,INDIRECT("AssignmentSummary!G"&AK39&":G10000"),0))+AK39,"") ->  | AQ39: SRK_17.1.1 | AX39: =IFERROR(INDIRECT("AssignmentSummary!L"&AK39),"") ->  | BD39: 202151.3213
A40: 23 | C40: CM-001 equipment | D40: LS | E40: 1 | F40: TMAC | G40: 70000 | H40: =G40*E40 -> 70000 | I40: 0.5 | J40: =H40*I40 -> 35000 | K40: =+H40*(1-I40) -> 35000 | O40: SRK_17.1.3 | P40: 0 | Q40: Site Services Support &Maintenance | R40: 1 | S40: - | T40: 50000 | U40: 50000 | V40: 0 | W40: 70000 | Y40: 0 | AB40: =IF(ISNUMBER(A40),A40&"_"&MID(CELL("filename",$A$1),FIND("]",CELL("filename",$A$1))+1,255),"") -> 23_Chemicals | AC40: =IF(AB40="","",COUNTIFS(AssignmentSummary!$G:$G,AB40)) -> 2 | AD40: =IFERROR(MATCH($AB40,AssignmentSummary!$G:$G,0),"") -> 81 | AE40: =IFERROR(IF(AE$4>$AC40,"",MATCH($AB40,INDIRECT("AssignmentSummary!G"&AD40&":G10000"),0))+AD40,"") -> 82 | AL40: =IFERROR(IF(AL$4>$AC40,"",MATCH($AB40,INDIRECT("AssignmentSummary!G"&AK40&":G10000"),0))+AK40,"") ->  | AQ40: SRK_17.1.3 | AR40: SRK_17.1.4 | AX40: =IFERROR(INDIRECT("AssignmentSummary!L"&AK40),"") ->  | BD40: 50000 | BE40: 20000
O41: SRK_17.1.4 | P41: 0 | Q41: Spare Parts & Consumables | R41: 1 | S41: - | T41: 20000 | U41: 20000 | Y41: 0
A42: =A40+1 -> 24 | B42: Liner cleaning | C42: Doris (DM-020, RP-004& WM-001) | D42: m² | E42: =5500+2485+4385 -> 12370 | F42: TMAC | G42: 0.41 | H42: =G42*E42 -> 5071.7 | I42: 0.5 | J42: =H42*I42 -> 2535.85 | K42: =+H42*(1-I42) -> 2535.85 | O42: SRK_2.20.13 | P42: 0 | Q42: clean liner | R42: 5500 | S42: m2 | T42: 0.4120518849 | U42: 2266.285367 | V42: =IF(ISBLANK($H42),"",SUM(BD42:BO42)) -> 4072.72083 | W42: 998.9791699 | Y42: 4072.72083 | AB42: =IF(ISNUMBER(A42),A42&"_"&MID(CELL("filename",$A$1),FIND("]",CELL("filename",$A$1))+1,255),"") -> 24_Chemicals | AC42: =IF(AB42="","",COUNTIFS(AssignmentSummary!$G:$G,AB42)) -> 3 | AD42: =IFERROR(MATCH($AB42,AssignmentSummary!$G:$G,0),"") -> 83 | AE42: =IFERROR(IF(AE$4>$AC42,"",MATCH($AB42,INDIRECT("AssignmentSummary!G"&AD42&":G10000"),0))+AD42,"") -> 84 | AF42: 85 | AQ42: SRK_2.20.13 | AR42: SRK_12.4.13 | AS42: SRK_13.1.5 | AX42: =IFERROR(INDIRECT("AssignmentSummary!L"&AK42),"") ->  | BD42: 2266.285367 | BF42: 1806.435463
V43: =IF(ISBLANK($H43),"",SUM(BD43:BO43)) ->  | Y43: 0
O44: SRK_13.1.5 | P44: 0 | Q44: clean liner | R44: 4384 | S44: m2 | T44: 0.4120518849 | U44: 1806.435463 | V44: =IF(ISBLANK($H44),"",SUM(BD44:BO44)) -> 
A45: =A42+1 -> 25 | C45: Roberts Bay Q1 Tank farm | D45: m² | E45: 9933 | F45: TMAC | G45: 0.41 | H45: =G45*E45 -> 4072.53 | I45: 0.5 | J45: =H45*I45 -> 2036.265 | K45: =+H45*(1-I45) -> 2036.265 | O45: SRK_1.3.16 | P45: 0 | Q45: clean liner | R45: 9933 | S45: m2 | T45: 0.4120518849 | U45: 4092.911372 | V45: =U45 -> 4092.911372 | W45: -20.3813725 | Y45: 4092.911372 | AB45: =IF(ISNUMBER(A45),A45&"_"&MID(CELL("filename",$A$1),FIND("]",CELL("filename",$A$1))+1,255),"") -> 25_Chemicals | AC45: =IF(AB45="","",COUNTIFS(AssignmentSummary!$G:$G,AB45)) -> 1 | AD45: =IFERROR(MATCH($AB45,AssignmentSummary!$G:$G,0),"") -> 86 | AE45: =IFERROR(IF(AE$4>$AC45,"",MATCH($AB45,INDIRECT("AssignmentSummary!G"&AD45&":G10000"),0))+AD45,"") ->  | AQ45: SRK_1.2.13 | AX45: =IFERROR(INDIRECT("AssignmentSummary!L"&AK45),"") ->  | BD45: 60880.9806
A46: 26 | C46: Roberts Bay Tank Farm | D46: m² | E46: =8600+13200 -> 21800 | F46: TMAC | G46: 0.41 | H46: =G46*E46 -> 8938 | I46: 0.5 | J46: =H46*I46 -> 4469 | K46: =+H46*(1-I46) -> 4469 | O46: SRK_1.2.14 | P46: 0 | Q46: clean liner | R46: 21802 | S46: m2 | T46: 0.4120518849 | U46: =T46*R46 -> 8983.555194 | V46: =U46 -> 8983.555194 | W46: -45.55519412 | X46: includes liner for 10 ML and 20 ML fuel tank farms combined | Y46: 8983.555194 | AB46: =IF(ISNUMBER(A46),A46&"_"&MID(CELL("filename",$A$1),FIND("]",CELL("filename",$A$1))+1,255),"") -> 26_Chemicals | AC46: =IF(AB46="","",COUNTIFS(AssignmentSummary!$G:$G,AB46)) -> 1 | AD46: =IFERROR(MATCH($AB46,AssignmentSummary!$G:$G,0),"") -> 87 | AE46: =IFERROR(IF(AE$4>$AC46,"",MATCH($AB46,INDIRECT("AssignmentSummary!G"&AD46&":G10000"),0))+AD46,"") ->  | AQ46: SRK_1.3.13 | AX46: =IFERROR(INDIRECT("AssignmentSummary!L"&AK46),"") ->  | BD46: 108365.5133
A47: 27 | C47: Madrid North liners (MN-011, -13, -14, & -15) | D47: m² | E47: =20+145+20+25 -> 210 | F47: TMAC | G47: 0.41 | H47: =G47*E47 -> 86.1 | I47: 0.5 | J47: =H47*I47 -> 43.05 | K47: =+H47*(1-I47) -> 43.05 | O47: SRK_5.11.13 | P47: 0 | Q47: clean liner | R47: 18.27 | S47: m2 | T47: 0.4120518849 | U47: 7.528187937 | V47: =IF(ISBLANK($H47),"",SUM(BD47:BO47)) -> 84.89092932 | W47: 1.209070677 | Y47: 84.89092932 | AB47: =IF(ISNUMBER(A47),A47&"_"&MID(CELL("filename",$A$1),FIND("]",CELL("filename",$A$1))+1,255),"") -> 27_Chemicals | AC47: =IF(AB47="","",COUNTIFS(AssignmentSummary!$G:$G,AB47)) -> 4 | AD47: =IFERROR(MATCH($AB47,AssignmentSummary!$G:$G,0),"") -> 88 | AE47: =IFERROR(IF(AE$4>$AC47,"",MATCH($AB47,INDIRECT("AssignmentSummary!G"&AD47&":G10000"),0))+AD47,"") -> 89 | AF47: 90 | AG47: 91 | AQ47: SRK_5.11.13 | AR47: SRK_5.13.8 | AS47: SRK_5.14.4 | AT47: SRK_5.15.4 | AX47: =IFERROR(INDIRECT("AssignmentSummary!L"&AK47),"") ->  | BD47: 7.528187937 | BE47: 59.33547142 | BF47: 10.30129712 | BG47: 7.725972841
O48: SRK_5.13.8 | P48: 0 | Q48: clean liner | R48: 144 | S48: m2 | T48: 0.4120518849 | U48: 59.33547142
O49: SRK_5.14.4 | P49: 0 | Q49: clean liner | R49: 25 | S49: m2 | T49: 0.4120518849 | U49: 10.30129712
O50: SRK_5.15.4 | P50: 0 | Q50: clean liner | R50: 18.75 | S50: m2 | T50: 0.4120518849 | U50: 7.725972841
A51: =A47+1 -> 28 | C51: Madrid South liners (MS-017, -018 & -019) | D51: m² | E51: =375+25+145 -> 545 | F51: TMAC | G51: 0.41 | H51: =G51*E51 -> 223.45 | I51: 0.5 | J51: =H51*I51 -> 111.725 | K51: =+H51*(1-I51) -> 111.725 | O51: SRK_7.17.13 | P51: 0 | Q51: clean liner | R51: 375 | S51: m2 | T51: 0.4120518849 | U51: 154.5194568 | V51: 172.5467268 | W51: 50.90327321 | Y51: 172.5467268 | AB51: =IF(ISNUMBER(A51),A51&"_"&MID(CELL("filename",$A$1),FIND("]",CELL("filename",$A$1))+1,255),"") -> 28_Chemicals | AC51: =IF(AB51="","",COUNTIFS(AssignmentSummary!$G:$G,AB51)) -> 3 | AD51: =IFERROR(MATCH($AB51,AssignmentSummary!$G:$G,0),"") -> 92 | AE51: =IFERROR(IF(AE$4>$AC51,"",MATCH($AB51,INDIRECT("AssignmentSummary!G"&AD51&":G10000"),0))+AD51,"") -> 93 | AF51: 94 | AQ51: SRK_7.17.13 | AR51: SRK_7.18.4 | AS51: SRK_7.19.4 | AX51: =IFERROR(INDIRECT("AssignmentSummary!L"&AK51),"") ->  | BD51: 154.5194568 | BE51: 7.725972841 | BF51: 10.30129712
O52: SRK_7.18.4 | P52: 0 | Q52: clean liner | R52: 18.75 | S52: m2 | T52: 0.4120518849 | U52: 7.725972841
O53: SRK_7.19.4 | P53: 0 | Q53: clean liner | R53: 25 | S53: m2 | T53: 0.4120518849 | U53: 10.30129712
A54: =A51+1 -> 29 | B54: Decontaminate offices/warehouse/accom | D54: m² | F54: BDAL | G54: =IF(ISNA(F54),0,INDEX(IF(UPPER(RIGHT(F54,1))=Low,UnitCostLow, IF(UPPER(RIGHT(F54,1))=High,UnitCostHigh,UnitCostSpecified)),MATCH(UPPER(LEFT(F54,LEN(F54)-1)),CostCode,0))) -> 25.6 | H54: =G54*E54 -> 0 | J54: =H54*I54 -> 0 | K54: =+H54*(1-I54) -> 0 | V54: 0 | W54: 0 | Y54: 0 | AB54: =IF(ISNUMBER(A54),A54&"_"&MID(CELL("filename",$A$1),FIND("]",CELL("filename",$A$1))+1,255),"") -> 29_Chemicals | AC54: =IF(AB54="","",COUNTIFS(AssignmentSummary!$G:$G,AB54)) -> 0 | AD54: =IFERROR(MATCH($AB54,AssignmentSummary!$G:$G,0),"") ->  | AE54: =IFERROR(IF(AE$4>$AC54,"",MATCH($AB54,INDIRECT("AssignmentSummary!G"&AD54&":G10000"),0))+AD54,"") ->  | AX54: =IFERROR(INDIRECT("AssignmentSummary!L"&AK54),"") -> 
A55: 30 | B55: Removal of asbestos siding on buildings | D55: m² | F55: BDAL | G55: =IF(ISNA(F55),0,INDEX(IF(UPPER(RIGHT(F55,1))=Low,UnitCostLow, IF(UPPER(RIGHT(F55,1))=High,UnitCostHigh,UnitCostSpecified)),MATCH(UPPER(LEFT(F55,LEN(F55)-1)),CostCode,0))) -> 25.6 | H55: =G55*E55 -> 0 | J55: =H55*I55 -> 0 | K55: =+H55*(1-I55) -> 0 | V55: 0 | W55: 0 | Y55: 0 | AB55: 30_Chemicals | AC55: =IF(AB55="","",COUNTIFS(AssignmentSummary!$G:$G,AB55)) -> 0 | AD55: =IFERROR(MATCH($AB55,AssignmentSummary!$G:$G,0),"") ->  | AE55: =IFERROR(IF(AE$4>$AC55,"",MATCH($AB55,INDIRECT("AssignmentSummary!G"&AD55&":G10000"),0))+AD55,"") ->  | AQ55: =IFERROR(INDIRECT("AssignmentSummary!L"&AD55),"") ->  | AR55: =IFERROR(INDIRECT("AssignmentSummary!L"&AE55),"") ->  | AS55: =IFERROR(INDIRECT("AssignmentSummary!L"&AF55),"") ->  | AT55: =IFERROR(INDIRECT("AssignmentSummary!L"&AG55),"") ->  | AU55: =IFERROR(INDIRECT("AssignmentSummary!L"&AH55),"") ->  | AV55: =IFERROR(INDIRECT("AssignmentSummary!L"&AI55),"") ->  | AW55: =IFERROR(INDIRECT("AssignmentSummary!L"&AJ55),"") ->  | AX55: =IFERROR(INDIRECT("AssignmentSummary!L"&AK55),"") ->  | AY55: =IFERROR(INDIRECT("AssignmentSummary!L"&AL55),"") ->  | AZ55: =IFERROR(INDIRECT("AssignmentSummary!L"&AM55),"") ->  | BA55: =IFERROR(INDIRECT("AssignmentSummary!L"&AN55),"") ->  | BB55: =IFERROR(INDIRECT("AssignmentSummary!L"&AO55),"") -> 
A56: 31 | B56: Removal of friable asbestos on equipment | D56: m² | F56: =NA() ->  | G56: =IF(ISNA(F56),0,INDEX(IF(UPPER(RIGHT(F56,1))=Low,UnitCostLow, IF(UPPER(RIGHT(F56,1))=High,UnitCostHigh,UnitCostSpecified)),MATCH(UPPER(LEFT(F56,LEN(F56)-1)),CostCode,0))) -> 0 | H56: =G56*E56 -> 0 | J56: =H56*I56 -> 0 | K56: =+H56*(1-I56) -> 0 | V56: 0 | W56: 0 | Y56: 0 | AB56: 31_Chemicals | AC56: =IF(AB56="","",COUNTIFS(AssignmentSummary!$G:$G,AB56)) -> 0 | AD56: =IFERROR(MATCH($AB56,AssignmentSummary!$G:$G,0),"") ->  | AE56: =IFERROR(IF(AE$4>$AC56,"",MATCH($AB56,INDIRECT("AssignmentSummary!G"&AD56&":G10000"),0))+AD56,"") -> 
A57: 32 | B57: Other | C57: Load and Transport drums from Doris Process Plant to Roberts Bay | D57: m³ | E57: 8.32 | F57: TMAC | G57: =10.23+2.3 -> 12.53 | H57: =G57*E57 -> 104.2496 | I57: 0.5 | J57: =H57*I57 -> 52.1248 | K57: =+H57*(1-I57) -> 52.1248 | M57: added containerization cost of $10.23 | O57: SRK_2.21.9 | P57: 0 | Q57: transport drums to Roberts Bay | R57: 8.32 | S57: m3 | T57: 2.297377399 | U57: 19.11417996 | V57: 19.11417996 | W57: 85.13542004 | Y57: 19.11417996 | AB57: 32_Chemicals | AC57: =IF(AB57="","",COUNTIFS(AssignmentSummary!$G:$G,AB57)) -> 1 | AD57: =IFERROR(MATCH($AB57,AssignmentSummary!$G:$G,0),"") -> 95 | AE57: =IFERROR(IF(AE$4>$AC57,"",MATCH($AB57,INDIRECT("AssignmentSummary!G"&AD57&":G10000"),0))+AD57,"") ->  | AQ57: SRK_2.21.9 | BD57: 19.11417996
A58: 33 | C58: Madrid North drums from Concentrator to RB | D58: m³ | E58: 4 | F58: TMAC | G58: =10.23+5.02 -> 15.25 | H58: =G58*E58 -> 61 | I58: 0.5 | J58: =H58*I58 -> 30.5 | K58: =+H58*(1-I58) -> 30.5 | M58: added containerization cost of $10.23 | O58: SRK_5.21.9 | P58: 0 | Q58: transport drums to Roberts Bay | R58: 4.16 | S58: m3 | T58: 5.01920417 | U58: 20.87988935 | V58: 20.87988935 | W58: 40.12011065 | Y58: 20.87988935 | AB58: 33_Chemicals | AC58: =IF(AB58="","",COUNTIFS(AssignmentSummary!$G:$G,AB58)) -> 1 | AD58: =IFERROR(MATCH($AB58,AssignmentSummary!$G:$G,0),"") -> 96 | AE58: =IFERROR(IF(AE$4>$AC58,"",MATCH($AB58,INDIRECT("AssignmentSummary!G"&AD58&":G10000"),0))+AD58,"") ->  | AQ58: SRK_5.21.9 | BD58: 20.87988935
A59: 34 | AB59: 34_Chemicals | AC59: =IF(AB59="","",COUNTIFS(AssignmentSummary!$G:$G,AB59)) -> 0 | AD59: =IFERROR(MATCH($AB59,AssignmentSummary!$G:$G,0),"") ->  | AE59: =IFERROR(IF(AE$4>$AC59,"",MATCH($AB59,INDIRECT("AssignmentSummary!G"&AD59&":G10000"),0))+AD59,"") -> 
A60: 35 | AB60: 35_Chemicals | AC60: =IF(AB60="","",COUNTIFS(AssignmentSummary!$G:$G,AB60)) -> 0 | AD60: =IFERROR(MATCH($AB60,AssignmentSummary!$G:$G,0),"") ->  | AE60: =IFERROR(IF(AE$4>$AC60,"",MATCH($AB60,INDIRECT("AssignmentSummary!G"&AD60&":G10000"),0))+AD60,"") -> 
A61: a | B61: HAZARDOUS MATERIALS REMOVAL | AC61: =IF(AB61="","",COUNTIFS(AssignmentSummary!$G:$G,AB61)) ->  | AD61: =IFERROR(MATCH($AB61,AssignmentSummary!$G:$G,0),"") ->  | AE61: =IFERROR(IF(AE$4>$AC61,"",MATCH($AB61,INDIRECT("AssignmentSummary!G"&AD61&":G10000"),0))+AD61,"") -> 
A62: =A60+1 -> 36 | B62: Waste oils | D62: litre | F62: orl | G62: =IF(ISNA(F62),0,INDEX(IF(UPPER(RIGHT(F62,1))=Low,UnitCostLow, IF(UPPER(RIGHT(F62,1))=High,UnitCostHigh,UnitCostSpecified)),MATCH(UPPER(LEFT(F62,LEN(F62)-1)),CostCode,0))) -> 0.43 | H62: =G62*E62 -> 0 | J62: =H62*I62 -> 0 | K62: =+H62*(1-I62) -> 0 | V62: 0 | W62: 0 | Y62: =IF(U62="",H62,V62) -> 0 | AB62: 36_Chemicals | AC62: =IF(AB62="","",COUNTIFS(AssignmentSummary!$G:$G,AB62)) -> 0 | AD62: =IFERROR(MATCH($AB62,AssignmentSummary!$G:$G,0),"") ->  | AE62: =IFERROR(IF(AE$4>$AC62,"",MATCH($AB62,INDIRECT("AssignmentSummary!G"&AD62&":G10000"),0))+AD62,"") -> 
A63: =A62+1 -> 37 | B63: Waste fuel | C63: RB-002, RB-013&DM-020 | D63: litre | E63: =80000+160000+75000 -> 315000 | F63: orl | G63: =IF(ISNA(F63),0,INDEX(IF(UPPER(RIGHT(F63,1))=Low,UnitCostLow, IF(UPPER(RIGHT(F63,1))=High,UnitCostHigh,UnitCostSpecified)),MATCH(UPPER(LEFT(F63,LEN(F63)-1)),CostCode,0))) -> 0.43 | H63: 135450 | J63: 0 | K63: 135450 | M63: TMAC is now stating 75000 L only does not match earlier numbers | O63: SRK_1.2.2 | P63: 0 | Q63: consolidate fuel in barge at Roberts Bay | R63: 160000 | S63: L | T63: 0.00616662115 | U63: 986.659384 | V63: =SUM(U63:U66) -> 2766.537692 | W63: 132683.4623 | X63: the unit rate is not supported by INAC estimate; the TMAC unit rate is based on productivity of transferring fuel to fuel barge | Y63: 2766.537692 | AB63: 37_Chemicals | AC63: =IF(AB63="","",COUNTIFS(AssignmentSummary!$G:$G,AB63)) -> 3 | AD63: =IFERROR(MATCH($AB63,AssignmentSummary!$G:$G,0),"") -> 97 | AE63: =IFERROR(IF(AE$4>$AC63,"",MATCH($AB63,INDIRECT("AssignmentSummary!G"&AD63&":G10000"),0))+AD63,"") -> 98 | AF63: 99 | AQ63: SRK_1.2.1 | AR63: SRK_1.13.1 | AS63: SRK_2.20.1 | BD63: 3634.776351 | BE63: 3634.776351 | BF63: 1703.801414
O64: SRK_1.3.2 | P64: 0 | Q64: consolidate fuel in barge at Roberts Bay | R64: 40000 | S64: L | T64: 0.00616662115 | U64: 246.664846
O65: SRK_1.13.2 | P65: 0 | Q65: consolidate fuel in barge at Roberts Bay | R65: 160000 | S65: L | T65: 0.00616662115 | U65: 986.659384 | V65: =IF(ISBLANK($H65),"",SUM(BD65:BO65)) -> 
O66: SRK_2.20.2 | P66: 0 | Q66: consolidate fuel in barge at Roberts Bay | R66: 75000 | S66: L | T66: 0.007287387708 | U66: 546.5540781
A67: =A63+1 -> 38 | C67: Madrid South MS-017 | D67: litre | E67: 2000 | F67: orl | G67: =IF(ISNA(F67),0,INDEX(IF(UPPER(RIGHT(F67,1))=Low,UnitCostLow, IF(UPPER(RIGHT(F67,1))=High,UnitCostHigh,UnitCostSpecified)),MATCH(UPPER(LEFT(F67,LEN(F67)-1)),CostCode,0))) -> 0.43 | H67: =G67*E67 -> 860 | J67: =H67*I67 -> 0 | K67: =+H67*(1-I67) -> 860 | M67: Using a different rate. | O67: SRK_7.17.2 | P67: 0 | Q67: consolidate fuel in barge at Roberts Bay | R67: 2000 | S67: L | T67: 0.009476009099 | U67: 18.9520182 | V67: 45.43470438 | W67: 814.5652956 | X67: the unit rate is not supported by INAC estimate; the TMAC unit rate is based on productivity of transferring fuel to fuel barge | Y67: 45.43470438 | AB67: =IF(ISNUMBER(A67),A67&"_"&MID(CELL("filename",$A$1),FIND("]",CELL("filename",$A$1))+1,255),"") -> 38_Chemicals | AC67: =IF(AB67="","",COUNTIFS(AssignmentSummary!$G:$G,AB67)) -> 1 | AD67: =IFERROR(MATCH($AB67,AssignmentSummary!$G:$G,0),"") -> 100 | AE67: =IFERROR(IF(AE$4>$AC67,"",MATCH($AB67,INDIRECT("AssignmentSummary!G"&AD67&":G10000"),0))+AD67,"") ->  | AQ67: SRK_7.17.1 | BD67: 45.43470438
A68: =A67+1 -> 39 | C68: Madrid North MN-011 | D68: litre | E68: 45000 | F68: orl | G68: =IF(ISNA(F68),0,INDEX(IF(UPPER(RIGHT(F68,1))=Low,UnitCostLow, IF(UPPER(RIGHT(F68,1))=High,UnitCostHigh,UnitCostSpecified)),MATCH(UPPER(LEFT(F68,LEN(F68)-1)),CostCode,0))) -> 0.43 | H68: =G68*E68 -> 19350 | J68: =H68*I68 -> 0 | K68: =+H68*(1-I68) -> 19350 | M68: No quanity provided in latest estimate does not match earlier email. | O68: SRK_5.11.2 | P68: 0 | Q68: consolidate fuel in barge at Roberts Bay | R68: 45000 | S68: L | T68: 0.009476009099 | U68: 426.4204095 | V68: 1022.280849 | W68: 18327.71915 | X68: the unit rate is not supported by INAC estimate; the TMAC unit rate is based on productivity of transferring fuel to fuel barge | Y68: 1022.280849 | AB68: 39_Chemicals | AC68: =IF(AB68="","",COUNTIFS(AssignmentSummary!$G:$G,AB68)) -> 1 | AD68: =IFERROR(MATCH($AB68,AssignmentSummary!$G:$G,0),"") -> 101 | AE68: =IFERROR(IF(AE$4>$AC68,"",MATCH($AB68,INDIRECT("AssignmentSummary!G"&AD68&":G10000"),0))+AD68,"") ->  | AQ68: SRK_5.11.1 | BD68: 1022.280849
A69: 40 | B69: Waste batteries | D69: allow | F69: AE | G69: 3000 | H69: 0 | J69: 0 | K69: 0 | V69: 0 | W69: 0 | Y69: 0 | AB69: 40_Chemicals | AC69: =IF(AB69="","",COUNTIFS(AssignmentSummary!$G:$G,AB69)) -> 0 | AD69: =IFERROR(MATCH($AB69,AssignmentSummary!$G:$G,0),"") ->  | AE69: =IFERROR(IF(AE$4>$AC69,"",MATCH($AB69,INDIRECT("AssignmentSummary!G"&AD69&":G10000"),0))+AD69,"") -> 
A70: 41 | B70: Assay & environmental lab reagents | D70: kg | F70: =NA() ->  | G70: 25 | H70: 0 | J70: 0 | K70: 0 | V70: 0 | W70: 0 | Y70: 0 | AB70: 41_Chemicals | AC70: =IF(AB70="","",COUNTIFS(AssignmentSummary!$G:$G,AB70)) -> 0 | AD70: =IFERROR(MATCH($AB70,AssignmentSummary!$G:$G,0),"") ->  | AE70: =IFERROR(IF(AE$4>$AC70,"",MATCH($AB70,INDIRECT("AssignmentSummary!G"&AD70&":G10000"),0))+AD70,"") -> 
A71: 42 | B71: Machine shop paints, solvents etc | D71: litre | F71: AE | G71: 10000 | H71: 0 | J71: 0 | K71: 0 | V71: 0 | W71: =IF(V71="","",SUM(J71:K71)-V71) -> 0 | Y71: 0 | AB71: 42_Chemicals | AC71: =IF(AB71="","",COUNTIFS(AssignmentSummary!$G:$G,AB71)) -> 0 | AD71: =IFERROR(MATCH($AB71,AssignmentSummary!$G:$G,0),"") ->  | AE71: =IFERROR(IF(AE$4>$AC71,"",MATCH($AB71,INDIRECT("AssignmentSummary!G"&AD71&":G10000"),0))+AD71,"") -> 
A72: 43 | B72: Glycol | D72: litre | F72: AE | G72: 20000 | H72: 0 | J72: 0 | K72: 0 | V72: 0 | W72: 0 | Y72: 0 | AB72: 43_Chemicals | AC72: =IF(AB72="","",COUNTIFS(AssignmentSummary!$G:$G,AB72)) -> 0 | AD72: =IFERROR(MATCH($AB72,AssignmentSummary!$G:$G,0),"") ->  | AE72: =IFERROR(IF(AE$4>$AC72,"",MATCH($AB72,INDIRECT("AssignmentSummary!G"&AD72&":G10000"),0))+AD72,"") -> 
A73: 44 | B73: Process reagents | D73: kg | F73: =NA() ->  | G73: 2.5 | H73: =G73*E73 -> 0 | J73: 0 | K73: 0 | V73: 0 | W73: 0 | Y73: 0 | AB73: 44_Chemicals | AC73: =IF(AB73="","",COUNTIFS(AssignmentSummary!$G:$G,AB73)) -> 0 | AD73: =IFERROR(MATCH($AB73,AssignmentSummary!$G:$G,0),"") ->  | AE73: =IFERROR(IF(AE$4>$AC73,"",MATCH($AB73,INDIRECT("AssignmentSummary!G"&AD73&":G10000"),0))+AD73,"") -> 
A74: 45 | B74: Nuclear sources | D74: allow | F74: =NA() ->  | G74: =IF(ISNA(F74),0,INDEX(IF(UPPER(RIGHT(F74,1))=Low,UnitCostLow, IF(UPPER(RIGHT(F74,1))=High,UnitCostHigh,UnitCostSpecified)),MATCH(UPPER(LEFT(F74,LEN(F74)-1)),CostCode,0))) -> 0 | H74: 0 | J74: 0 | K74: 0 | V74: 0 | W74: 0 | Y74: 0 | AB74: 45_Chemicals | AC74: =IF(AB74="","",COUNTIFS(AssignmentSummary!$G:$G,AB74)) -> 0 | AD74: =IFERROR(MATCH($AB74,AssignmentSummary!$G:$G,0),"") ->  | AE74: =IFERROR(IF(AE$4>$AC74,"",MATCH($AB74,INDIRECT("AssignmentSummary!G"&AD74&":G10000"),0))+AD74,"") -> 
A75: 46 | B75: Other hazardous materials | D75: allow | F75: AE | G75: 20000 | H75: =G75*E75 -> 0 | J75: 0 | K75: 0 | V75: 0 | W75: 0 | Y75: 0 | AB75: 46_Chemicals | AC75: =IF(AB75="","",COUNTIFS(AssignmentSummary!$G:$G,AB75)) -> 0 | AD75: =IFERROR(MATCH($AB75,AssignmentSummary!$G:$G,0),"") ->  | AE75: =IFERROR(IF(AE$4>$AC75,"",MATCH($AB75,INDIRECT("AssignmentSummary!G"&AD75&":G10000"),0))+AD75,"") -> 
A76: a | B76: HAZARDOUS MATERIALS | AC76: =IF(AB76="","",COUNTIFS(AssignmentSummary!$G:$G,AB76)) ->  | AD76: =IFERROR(MATCH($AB76,AssignmentSummary!$G:$G,0),"") ->  | AE76: =IFERROR(IF(AE$4>$AC76,"",MATCH($AB76,INDIRECT("AssignmentSummary!G"&AD76&":G10000"),0))+AD76,"") -> 
A77: =A75+1 -> 47 | B77: Transportation to Roberts Bay | C77: Windy Development Area | D77: m³ | E77: 2.8 | F77: TMAC | G77: 6.9 | H77: =G77*E77 -> 19.32 | I77: 0.5 | J77: =H77*I77 -> 9.66 | K77: =+H77*(1-I77) -> 9.66 | V77: 0 | W77: 19.32 | Y77: 19.32 | AB77: 47_Chemicals | AC77: =IF(AB77="","",COUNTIFS(AssignmentSummary!$G:$G,AB77)) -> 1 | AD77: =IFERROR(MATCH($AB77,AssignmentSummary!$G:$G,0),"") -> 102 | AE77: =IFERROR(IF(AE$4>$AC77,"",MATCH($AB77,INDIRECT("AssignmentSummary!G"&AD77&":G10000"),0))+AD77,"") ->  | AQ77: Assign
A78: =A77+1 -> 48 | B78: Disposal fees | C78: Windy Development Area | D78: m³ | E78: 2.8 | F78: TMAC | G78: 11275 | H78: =G78*E78 -> 31570 | I78: 0.5 | J78: =H78*I78 -> 15785 | K78: =+H78*(1-I78) -> 15785 | O78: Assign | V78: 0 | W78: 31570 | X78: this waste and associated disposal fees accounted for under Line 50 | Y78: 0 | AB78: 48_Chemicals | AC78: =IF(AB78="","",COUNTIFS(AssignmentSummary!$G:$G,AB78)) -> 1 | AD78: =IFERROR(MATCH($AB78,AssignmentSummary!$G:$G,0),"") -> 103 | AE78: =IFERROR(IF(AE$4>$AC78,"",MATCH($AB78,INDIRECT("AssignmentSummary!G"&AD78&":G10000"),0))+AD78,"") ->  | AQ78: Assign
A79: =A78+1 -> 49 | B79: Waste Ship Off-site | C79: Hazardous waste liquid and solid | D79: m³ | E79: =120+40 -> 160 | F79: TMAC | G79: 232.32 | H79: =G79*E79 -> 37171.2 | I79: 0.5 | J79: =H79*I79 -> 18585.6 | K79: =+H79*(1-I79) -> 18585.6 | O79: SRK_24.1.1 | P79: Waste Ship Off-Site | Q79: Hazardous waste | R79: 118.3392031 | S79: m3 | T79: 232.3233563 | U79: 27492.96085 | V79: 36425.06656 | W79: 746.1334434 | Y79: 36425.06656 | AB79: 49_Chemicals | AC79: =IF(AB79="","",COUNTIFS(AssignmentSummary!$G:$G,AB79)) -> 2 | AD79: =IFERROR(MATCH($AB79,AssignmentSummary!$G:$G,0),"") -> 104 | AE79: =IFERROR(IF(AE$4>$AC79,"",MATCH($AB79,INDIRECT("AssignmentSummary!G"&AD79&":G10000"),0))+AD79,"") -> 105 | AQ79: SRK_24.1.1 | AR79: SRK_24.1.2 | BD79: 27492.96085 | BE79: 8932.105704
O80: SRK_24.1.2 | P80: 0 | Q80: Hazardous solid waste | R80: 38.44686925 | S80: m3 | T80: 232.3233563 | U80: 8932.105704
A81: =A79+1 -> 50 | B81: Waste Disposal | C81: Hazardous Waste allowance | D81: allow | E81: 1 | F81: TMAC | G81: 50000 | H81: =G81*E81 -> 50000 | I81: 0.5 | J81: =H81*I81 -> 25000 | K81: =+H81*(1-I81) -> 25000 | O81: SRK_24.2.1 | P81: Waste Disposal Off-Site | Q81: Hazardous waste | R81: 1 | S81: LS | T81: 50000 | U81: 50000 | V81: 50000 | W81: 0 | Y81: 50000 | AB81: =IF(ISNUMBER(A81),A81&"_"&MID(CELL("filename",$A$1),FIND("]",CELL("filename",$A$1))+1,255),"") -> 50_Chemicals | AC81: =IF(AB81="","",COUNTIFS(AssignmentSummary!$G:$G,AB81)) -> 2 | AD81: =IFERROR(MATCH($AB81,AssignmentSummary!$G:$G,0),"") -> 106 | AE81: =IFERROR(IF(AE$4>$AC81,"",MATCH($AB81,INDIRECT("AssignmentSummary!G"&AD81&":G10000"),0))+AD81,"") -> 107 | AQ81: SRK_24.2.1 | AR81: SRK_24.2.2 | BD81: 50000 | BE81: 0
O82: SRK_24.2.2 | P82: 0 | Q82: disposal fees at Hay River | R82: 0 | S82: t | T82: 116.1616782 | U82: 0
A83: =A81+1 -> 51 | B83: Other | D83: allow | F83: ea | G83: 40000 | H83: =G83*E83 -> 0 | I83: 0.5 | J83: =H83*I83 -> 0 | K83: =+H83*(1-I83) -> 0 | V83: 0 | W83: 0 | Y83: 0 | AB83: =IF(ISNUMBER(A83),A83&"_"&MID(CELL("filename",$A$1),FIND("]",CELL("filename",$A$1))+1,255),"") -> 51_Chemicals | AC83: =IF(AB83="","",COUNTIFS(AssignmentSummary!$G:$G,AB83)) -> 0 | AD83: =IFERROR(MATCH($AB83,AssignmentSummary!$G:$G,0),"") ->  | AE83: =IFERROR(IF(AE$4>$AC83,"",MATCH($AB83,INDIRECT("AssignmentSummary!G"&AD83&":G10000"),0))+AD83,"") -> 
A84: a | B84: CONTAMINATED SOILS | AC84: =IF(AB84="","",COUNTIFS(AssignmentSummary!$G:$G,AB84)) ->  | AD84: =IFERROR(MATCH($AB84,AssignmentSummary!$G:$G,0),"") ->  | AE84: =IFERROR(IF(AE$4>$AC84,"",MATCH($AB84,INDIRECT("AssignmentSummary!G"&AD84&":G10000"),0))+AD84,"") -> 
A85: =A83+1 -> 52 | B85: Contam. soil investigation - Phase 1 | C85: a report for each site | D85: each | E85: 3 | F85: CS1L | G85: =IF(ISNA(F85),0,INDEX(IF(UPPER(RIGHT(F85,1))=Low,UnitCostLow, IF(UPPER(RIGHT(F85,1))=High,UnitCostHigh,UnitCostSpecified)),MATCH(UPPER(LEFT(F85,LEN(F85)-1)),CostCode,0))) -> 7500 | H85: =G85*E85 -> 22500 | I85: 0.5 | J85: =H85*I85 -> 11250 | K85: =+H85*(1-I85) -> 11250 | O85: SRK_24.3.1 | P85: Waste Contaminated Material | Q85: hydrocarbon contamination survey | R85: 1 | S85: ls | T85: 25000 | U85: 25000 | V85: =U85 -> 25000 | W85: -2500 | X85: these are accounted for under "Indirects" and INAC estimate includes them already | Y85: =V85 -> 25000 | AB85: 52_Chemicals | AC85: =IF(AB85="","",COUNTIFS(AssignmentSummary!$G:$G,AB85)) -> 1 | AD85: =IFERROR(MATCH($AB85,AssignmentSummary!$G:$G,0),"") -> 108 | AE85: =IFERROR(IF(AE$4>$AC85,"",MATCH($AB85,INDIRECT("AssignmentSummary!G"&AD85&":G10000"),0))+AD85,"") ->  | AQ85: Assign
A86: =A85+1 -> 53 | B86: Contam. soil investigation - Phase 2 | C86: aggregate cost for Doris and Madrid sites | D86: allow | E86: 1 | F86: EA | G86: 175000 | H86: =G86*E86 -> 175000 | I86: 0.5 | J86: =H86*I86 -> 87500 | K86: =+H86*(1-I86) -> 87500 | O86: SRK_24.3.2 | P86: 0 | Q86: metal contamination survey | R86: 1 | S86: ls | T86: 25000 | U86: 25000 | V86: =U86 -> 25000 | W86: 150000 | X86: confirmatory sampling also accounted for under "Indirects" in the TMAC estimate | Y86: =V86 -> 25000 | AB86: 53_Chemicals | AC86: =IF(AB86="","",COUNTIFS(AssignmentSummary!$G:$G,AB86)) -> 1 | AD86: =IFERROR(MATCH($AB86,AssignmentSummary!$G:$G,0),"") -> 109 | AE86: =IFERROR(IF(AE$4>$AC86,"",MATCH($AB86,INDIRECT("AssignmentSummary!G"&AD86&":G10000"),0))+AD86,"") ->  | AQ86: Assign
A87: a | B87: CONTAMINATED SOIL REMOVAL | V87: =IF(ISBLANK($H87),"",SUM(BD87:BO87)) ->  | AC87: =IF(AB87="","",COUNTIFS(AssignmentSummary!$G:$G,AB87)) ->  | AD87: =IFERROR(MATCH($AB87,AssignmentSummary!$G:$G,0),"") ->  | AE87: =IFERROR(IF(AE$4>$AC87,"",MATCH($AB87,INDIRECT("AssignmentSummary!G"&AD87&":G10000"),0))+AD87,"") -> 
A88: =A86+1 -> 54 | B88: Excavate and transport Impacted Soil to Portal | C88: Doris RB-013, RB-002, RB-003, DM-020 & WM-001 (PHC) | D88: m³ | E88: =5160+3960+1490+1680 -> 12290 | F88: TMAC | G88: =72.73+2.3 -> 75.03 | H88: =G88*E88 -> 922118.7 | I88: 0.5 | J88: =H88*I88 -> 461059.35 | K88: =+H88*(1-I88) -> 461059.35 | O88: SRK_1.13.11 | P88: 0 | Q88: load contained contaminated soils into megabags for hauling | R88: 5157.6 | S88: m3 | T88: 72.73097307 | U88: 375117.2667 | V88: =SUM(U88:U97) -> 952816.4221 | W88: -30697.72206 | X88: quantity of one item (100 m³) was excluded from INAC estimate | Y88: 952816.4221 | AB88: 54_Chemicals | AC88: =IF(AB88="","",COUNTIFS(AssignmentSummary!$G:$G,AB88)) -> 10 | AD88: =IFERROR(MATCH($AB88,AssignmentSummary!$G:$G,0),"") -> 110 | AE88: =IFERROR(IF(AE$4>$AC88,"",MATCH($AB88,INDIRECT("AssignmentSummary!G"&AD88&":G10000"),0))+AD88,"") -> 111 | AF88: 112 | AG88: 113 | AH88: 114 | AI88: 115 | AJ88: 116 | AK88: 117 | AL88: 118 | AM88: 119 | AQ88: SRK_1.13.11 | AR88: SRK_1.13.12 | AS88: SRK_1.2.11 | AT88: SRK_1.2.12 | AU88: SRK_1.3.11 | AV88: SRK_1.3.12 | AW88: SRK_2.20.11 | AX88: SRK_2.20.12 | AY88: SRK_13.1.1 | AZ88: SRK_13.1.2 | BD88: 375117.2667 | BE88: 11848.95367 | BF88: 288145.5691 | BG88: 9101.74978 | BH88: 3155.417573 | BI88: 8190.836503 | BJ88: 122188.0348 | BK88: 25816.56 | BL88: 7273.097307 | BM88: 1536.7
O89: SRK_1.13.12 | P89: 0 | Q89: haul megabags to Doris | R89: 5157.6 | S89: m3 | T89: 2.297377399 | U89: 11848.95367 | V89: =IF(ISBLANK($H89),"",SUM(BD89:BO89)) -> 
O90: SRK_1.2.11 | P90: 0 | Q90: load contained contaminated soils into megabags for hauling | R90: 3961.8 | S90: m3 | T90: 72.73097307 | U90: 288145.5691
O91: SRK_1.2.12 | P91: 0 | Q91: haul megabags to Doris | R91: 3961.8 | S91: m3 | T91: 2.297377399 | U91: 9101.74978
O92: SRK_1.3.13 | P92: 0 | Q92: load contained contaminated soils into megabags for hauling | R92: 1489.95 | S92: m3 | T92: 72.73097307 | U92: 108365.5133
O93: SRK_1.3.14 | P93: 0 | Q93: haul megabags to Doris | R93: 1489.95 | S93: m3 | T93: 2.297377399 | U93: =R93*T93 -> 3422.977456
O94: SRK_2.20.11 | P94: 0 | Q94: load contained contaminated soils into megabags for hauling | R94: 1680 | S94: m3 | T94: 72.73097307 | U94: 122188.0348
O95: SRK_2.20.12 | P95: 0 | Q95: haul megabags to Doris underground | R95: 1680 | S95: m3 | T95: 15.367 | U95: 25816.56
O96: SRK_13.1.1 | P96: Waste Management Area Land Farm | Q96: load contained contaminated soils into megabags for hauling | R96: 100 | S96: m3 | T96: 72.73097307 | U96: 7273.097307
O97: SRK_13.1.2 | P97: 0 | Q97: haul megabags to Doris underground | R97: 100 | S97: m3 | T97: 15.367 | U97: 1536.7
A98: =A88+1 -> 55 | C98: Patch Lake Development Area | D98: m³ | E98: 245 | F98: TMAC | G98: =72.73+2.3 -> 75.03 | H98: =G98*E98 -> 18382.35 | I98: 0.5 | J98: =H98*I98 -> 9191.175 | K98: =+H98*(1-I98) -> 9191.175 | O98: SRK_18.4.1 | P98: Patch Lake Disposal of demolition waste | Q98: hydrocarbon contaminated soil to Madrid underground | R98: 243.6 | S98: m3 | T98: 2.76567907 | U98: =T98*R98 -> 673.7194214 | V98: =U98 -> 673.7194214 | W98: 17708.63058 | X98: the correct quantity was applied to the contracted task unit rate | Y98: =R98*G98 -> 18277.308 | AB98: =IF(ISNUMBER(A98),A98&"_"&MID(CELL("filename",$A$1),FIND("]",CELL("filename",$A$1))+1,255),"") -> 55_Chemicals | AC98: =IF(AB98="","",COUNTIFS(AssignmentSummary!$G:$G,AB98)) -> 1 | AD98: =IFERROR(MATCH($AB98,AssignmentSummary!$G:$G,0),"") -> 120 | AE98: =IFERROR(IF(AE$4>$AC98,"",MATCH($AB98,INDIRECT("AssignmentSummary!G"&AD98&":G10000"),0))+AD98,"") ->  | AQ98: SRK_18.4.1 | BD98: 673.7194214
A99: =A98+1 -> 56 | C99: Windy Development Area | D99: m³ | E99: 720 | F99: TMAC | G99: =72.73+2.3 -> 75.03 | H99: 54021.6 | I99: 0.5 | J99: 27010.8 | K99: 27010.8 | O99: SRK_19.11.3 | P99: 0 | Q99: excavate hydrocarbon contaminated soil and place in megabags | R99: 717.2 | S99: m3 | T99: 72.73097307 | U99: 52162.65388 | V99: =U99 -> 52162.65388 | W99: 1858.946117 | X99: the correct quantity was applied to the contracted task unit rate | Y99: =R99*G99 -> 53811.516 | AB99: 56_Chemicals | AC99: =IF(AB99="","",COUNTIFS(AssignmentSummary!$G:$G,AB99)) -> 1 | AD99: =IFERROR(MATCH($AB99,AssignmentSummary!$G:$G,0),"") -> 121 | AE99: =IFERROR(IF(AE$4>$AC99,"",MATCH($AB99,INDIRECT("AssignmentSummary!G"&AD99&":G10000"),0))+AD99,"") ->  | AQ99: Assign
A100: =A99+1 -> 57 | C100: Waste Management Area Landfarm | D100: m³ | E100: 100 | F100: TMAC | G100: =72.73+2.3 -> 75.03 | H100: 7503 | I100: 0.5 | J100: 3751.5 | K100: 3751.5 | O100: SRK_13.1.1 | P100: Waste Management Area Land Farm | Q100: load contained contaminated soils into megabags for hauling | R100: 100 | S100: m3 | T100: 72.73097307 | U100: 7273.097307 | V100: =U100 -> 7273.097307 | W100: 229.9026934 | Y100: =H100 -> 7503 | AB100: 57_Chemicals | AC100: =IF(AB100="","",COUNTIFS(AssignmentSummary!$G:$G,AB100)) -> 1 | AD100: =IFERROR(MATCH($AB100,AssignmentSummary!$G:$G,0),"") -> 122 | AE100: =IFERROR(IF(AE$4>$AC100,"",MATCH($AB100,INDIRECT("AssignmentSummary!G"&AD100&":G10000"),0))+AD100,"") ->  | AQ100: Assign
A101: =A100+1 -> 58 | C101: Madrid North MN-011 (PHC) | D101: m³ | E101: 1220 | F101: TMAC | G101: =72.73+2.3 -> 75.03 | H101: 91536.6 | I101: 0.5 | J101: 45768.3 | K101: 45768.3 | O101: SRK_5.11.11 | P101: 0 | Q101: load contained contaminated soils into megabags for hauling | R101: 1218 | S101: m3 | T101: 72.73097307 | U101: 88586.32519 | V101: =IF(ISBLANK($H101),"",SUM(BD101:BO101)) -> 88586.32519 | W101: 2950.274806 | X101: the correct quantity was applied to the contracted task unit rate | Y101: =R101*G101 -> 91386.54 | AB101: 58_Chemicals | AC101: =IF(AB101="","",COUNTIFS(AssignmentSummary!$G:$G,AB101)) -> 1 | AD101: =IFERROR(MATCH($AB101,AssignmentSummary!$G:$G,0),"") -> 123 | AE101: =IFERROR(IF(AE$4>$AC101,"",MATCH($AB101,INDIRECT("AssignmentSummary!G"&AD101&":G10000"),0))+AD101,"") ->  | AQ101: =IFERROR(INDIRECT("AssignmentSummary!L"&AD101),"") -> SRK_5.11.11 | AR101: =IFERROR(INDIRECT("AssignmentSummary!L"&AE101),"") ->  | AS101: =IFERROR(INDIRECT("AssignmentSummary!L"&AF101),"") ->  | AT101: =IFERROR(INDIRECT("AssignmentSummary!L"&AG101),"") ->  | AU101: =IFERROR(INDIRECT("AssignmentSummary!L"&AH101),"") ->  | AV101: =IFERROR(INDIRECT("AssignmentSummary!L"&AI101),"") ->  | AW101: =IFERROR(INDIRECT("AssignmentSummary!L"&AJ101),"") ->  | AX101: =IFERROR(INDIRECT("AssignmentSummary!L"&AK101),"") ->  | AY101: =IFERROR(INDIRECT("AssignmentSummary!L"&AL101),"") ->  | AZ101: =IFERROR(INDIRECT("AssignmentSummary!L"&AM101),"") ->  | BA101: =IFERROR(INDIRECT("AssignmentSummary!L"&AN101),"") ->  | BB101: =IFERROR(INDIRECT("AssignmentSummary!L"&AO101),"") ->  | BD101: 88586.32519
A102: =A101+1 -> 59 | C102: Madrid North Portal Pad | D102: m³ | E102: 7635 | F102: TMAC | G102: =72.73 -> 72.73 | H102: 555293.55 | I102: 0.5 | J102: 277646.775 | K102: 277646.775 | O102: SRK_5.6.1 | P102: Madrid North Portal Pad | Q102: load contained contaminated soils into megabags for hauling | R102: 7635 | S102: m3 | T102: 72.73097307 | U102: 555300.9794 | V102: =IF(ISBLANK($H102),"",SUM(BD102:BO102)) -> 555300.9794 | W102: -7.429355162 | Y102: 555300.9794 | AB102: 59_Chemicals | AC102: =IF(AB102="","",COUNTIFS(AssignmentSummary!$G:$G,AB102)) -> 1 | AD102: =IFERROR(MATCH($AB102,AssignmentSummary!$G:$G,0),"") -> 124 | AE102: =IFERROR(IF(AE$4>$AC102,"",MATCH($AB102,INDIRECT("AssignmentSummary!G"&AD102&":G10000"),0))+AD102,"") ->  | AQ102: SRK_5.6.1 | BD102: 555300.9794
A103: =A102+1 -> 60 | C103: Madrid North MN-014 & -015 Madrid South MS-018 & -019(brine) | D103: m³ | E103: =6+8+6+6 -> 26 | F103: TMAC | G103: =72.73+2.3 -> 75.03 | H103: 1950.78 | I103: 0.5 | J103: 975.39 | K103: 975.39 | O103: SRK_5.14.1 | P103: Madrid North Calcium Chloride Laydown | Q103: load contained contaminated soils into megabags for hauling | R103: 6.25 | S103: m3 | T103: =G103 -> 75.03 | U103: =T103*R103 -> 468.9375 | V103: =SUM(U103:U110) -> 2160.067878 | W103: -209.2878781 | Y103: 2160.067878 | AB103: 60_Chemicals | AC103: =IF(AB103="","",COUNTIFS(AssignmentSummary!$G:$G,AB103)) -> 8 | AD103: =IFERROR(MATCH($AB103,AssignmentSummary!$G:$G,0),"") -> 125 | AE103: =IFERROR(IF(AE$4>$AC103,"",MATCH($AB103,INDIRECT("AssignmentSummary!G"&AD103&":G10000"),0))+AD103,"") -> 126 | AF103: 127 | AG103: 128 | AH103: 129 | AI103: 130 | AJ103: 131 | AK103: 132 | AQ103: SRK_5.14.1 | AR103: SRK_5.14.2 | AS103: SRK_5.15.1 | AT103: SRK_5.15.2 | AU103: SRK_7.18.1 | AV103: SRK_7.18.2 | AW103: SRK_7.19.1 | AX103: SRK_7.19.2 | BD103: 454.5685817 | BE103: 39.29338316 | BF103: 409.1117235 | BG103: 86.439375 | BH103: 409.1117235 | BI103: 86.439375 | BJ103: 545.482298 | BK103: 115.2525
O104: SRK_5.14.2 | P104: 0 | Q104: haul megabags to Madrid north underground | R104: 6.25 | S104: m3 | T104: 6.286941305 | U104: 39.29338316 | V104: =IF(ISBLANK($H104),"",SUM(BD104:BO104)) -> 
O105: SRK_5.15.1 | P105: Madrid North Brine Mixing Facility | Q105: load contained contaminated soils into megabags for hauling | R105: 5.625 | S105: m3 | T105: 72.73097307 | U105: 409.1117235
O106: SRK_5.15.2 | P106: 0 | Q106: haul megabags to Madrid north underground | R106: 5.625 | S106: m3 | T106: 15.367 | U106: 86.439375
O107: SRK_7.18.1 | P107: Madrid South Calcium Chloride Laydown | Q107: load contained contaminated soils into megabags for hauling | R107: 5.625 | S107: m3 | T107: 72.73097307 | U107: 409.1117235
O108: SRK_7.18.2 | P108: 0 | Q108: haul megabags to Madrid south underground | R108: 5.625 | S108: m3 | T108: 15.367 | U108: 86.439375
O109: SRK_7.19.1 | P109: Madrid South Brine Mixing Facility | Q109: load contained contaminated soils into megabags for hauling | R109: 7.5 | S109: m3 | T109: 72.73097307 | U109: 545.482298
O110: SRK_7.19.2 | P110: 0 | Q110: haul megabags to Madrid south underground | R110: 7.5 | S110: m3 | T110: 15.367 | U110: 115.2525
A111: =A103+1 -> 61 | C111: Madrid South MS-017 (PHC) | D111: m³ | E111: 225 | F111: TMAC | G111: =72.73+2.3 -> 75.03 | H111: =G111*E111 -> 16881.75 | I111: 0.5 | J111: =H111*I111 -> 8440.875 | K111: =+H111*(1-I111) -> 8440.875 | O111: SRK_7.17.11 | P111: 0 | Q111: load contained contaminated soils into megabags hauling | R111: 225 | S111: m3 | T111: 72.73097307 | U111: =T111*R111 -> 16364.46894 | V111: =SUM(U111:U112) -> 16982.92534 | W111: -101.1753353 | Y111: 16982.92534 | AB111: =IF(ISNUMBER(A111),A111&"_"&MID(CELL("filename",$A$1),FIND("]",CELL("filename",$A$1))+1,255),"") -> 61_Chemicals | AC111: =IF(AB111="","",COUNTIFS(AssignmentSummary!$G:$G,AB111)) -> 2 | AD111: =IFERROR(MATCH($AB111,AssignmentSummary!$G:$G,0),"") -> 133 | AE111: =IFERROR(IF(AE$4>$AC111,"",MATCH($AB111,INDIRECT("AssignmentSummary!G"&AD111&":G10000"),0))+AD111,"") -> 134 | AQ111: SRK_7.17.1 | AR111: SRK_7.17.12 | BD111: 45.43470438 | BE111: 3457.575
O112: SRK_7.17.10 | P112: 0 | Q112: excavate and stockpile liner protection cover | R112: 225 | S112: m3 | T112: 2.748695091 | U112: =T112*R112 -> 618.4563956 | V112: =IF(ISBLANK($H112),"",SUM(BD112:BO112)) -> 
A113: =A111+1 -> 62 | B113: Place hydrocarbon and other impacted soil underground | C113: Doris RB-013, RB-002, RB-003, DM-020 & WM-001 (PHC) | D113: m³ | E113: =5160+3960+1490+1680 -> 12290 | F113: TMAC | G113: 15.37 | H113: =G113*E113 -> 188897.3 | I113: 0.5 | J113: =H113*I113 -> 94448.65 | K113: =+H113*(1-I113) -> 94448.65 | O113: SRK_1.13.13 | P113: 0 | Q113: haul megabags to Doris underground | R113: 5157.6 | S113: m3 | T113: 15.367 | U113: 79256.8392 | V113: =SUM(U113:U116) -> 188850.4414 | W113: 46.85855 | Y113: 188850.4414 | AB113: =IF(ISNUMBER(A113),A113&"_"&MID(CELL("filename",$A$1),FIND("]",CELL("filename",$A$1))+1,255),"") -> 62_Chemicals | AC113: =IF(AB113="","",COUNTIFS(AssignmentSummary!$G:$G,AB113)) -> 5 | AD113: =IFERROR(MATCH($AB113,AssignmentSummary!$G:$G,0),"") -> 135 | AE113: =IFERROR(IF(AE$4>$AC113,"",MATCH($AB113,INDIRECT("AssignmentSummary!G"&AD113&":G10000"),0))+AD113,"") -> 136 | AF113: 137 | AG113: 138 | AH113: 139 | AQ113: SRK_1.13.13 | AR113: SRK_1.2.13 | AS113: SRK_1.3.13 | AT113: SRK_2.20.13 | AU113: Assign | BD113: 79256.8392 | BE113: 60880.9806 | BF113: 108365.5133 | BG113: 2266.285367
O114: SRK_1.2.13 | P114: 0 | Q114: haul megabags to Doris underground | R114: 3961.8 | S114: m3 | T114: 15.367 | U114: 60880.9806 | V114: =IF(ISBLANK($H114),"",SUM(BD114:BO114)) -> 
O115: SRK_1.3.15 | P115: 0 | Q115: haul megabags to Doris underground | R115: 1489.95 | S115: m3 | T115: 15.367 | U115: 22896.06165
O116: SRK_2.20.12 | P116: 0 | Q116: haul megabags to Doris underground | R116: 1680 | S116: m3 | T116: 15.367 | U116: 25816.56
O117: Assign | Y117: 0
A118: =A113+1 -> 63 | C118: Patch Lake Development Area | D118: m³ | E118: 245 | F118: TMAC | G118: 15.37 | H118: =G118*E118 -> 3765.65 | I118: 0.5 | J118: =H118*I118 -> 1882.825 | K118: =+H118*(1-I118) -> 1882.825 | V118: 0 | W118: 3765.65 | X118: TMAC cost estimate did not include this task | Y118: 3765.65 | AB118: =IF(ISNUMBER(A118),A118&"_"&MID(CELL("filename",$A$1),FIND("]",CELL("filename",$A$1))+1,255),"") -> 63_Chemicals | AC118: =IF(AB118="","",COUNTIFS(AssignmentSummary!$G:$G,AB118)) -> 1 | AD118: =IFERROR(MATCH($AB118,AssignmentSummary!$G:$G,0),"") -> 140 | AE118: =IFERROR(IF(AE$4>$AC118,"",MATCH($AB118,INDIRECT("AssignmentSummary!G"&AD118&":G10000"),0))+AD118,"") ->  | AQ118: SRK_18.1.13
A119: =A118+1 -> 64 | C119: Madrid North MN-011 (PHC) | D119: m³ | E119: 1220 | F119: TMAC | G119: 15.37 | H119: =G119*E119 -> 18751.4 | I119: 0.5 | J119: =H119*I119 -> 9375.7 | K119: =+H119*(1-I119) -> 9375.7 | O119: SRK_5.11.12 | P119: 0 | Q119: haul megabags to Madrid north underground | R119: 1218 | S119: m3 | T119: 15.367 | U119: 18717.006 | V119: 18717.006 | W119: 34.394 | Y119: 18717.006 | AB119: =IF(ISNUMBER(A119),A119&"_"&MID(CELL("filename",$A$1),FIND("]",CELL("filename",$A$1))+1,255),"") -> 64_Chemicals | AC119: =IF(AB119="","",COUNTIFS(AssignmentSummary!$G:$G,AB119)) -> 1 | AD119: =IFERROR(MATCH($AB119,AssignmentSummary!$G:$G,0),"") -> 141 | AE119: =IFERROR(IF(AE$4>$AC119,"",MATCH($AB119,INDIRECT("AssignmentSummary!G"&AD119&":G10000"),0))+AD119,"") ->  | AQ119: SRK_5.11.12 | BD119: 18717.006
A120: =A119+1 -> 65 | C120: Madrid North MN-014 & -015 Madrid South MS-018 & -019(brine) | D120: m³ | E120: =6+8+6+6 -> 26 | F120: TMAC | G120: 15.37 | H120: =G120*E120 -> 399.62 | I120: 0.5 | J120: =H120*I120 -> 199.81 | K120: =+H120*(1-I120) -> 199.81 | O120: SRK_5.14.2 | P120: 0 | Q120: haul megabags to Madrid north underground | R120: 6.25 | S120: m3 | T120: 6.286941305 | U120: 39.29338316 | V120: 327.4246332 | W120: 72.19536684 | Y120: 327.4246332 | AB120: =IF(ISNUMBER(A120),A120&"_"&MID(CELL("filename",$A$1),FIND("]",CELL("filename",$A$1))+1,255),"") -> 65_Chemicals | AC120: =IF(AB120="","",COUNTIFS(AssignmentSummary!$G:$G,AB120)) -> 4 | AD120: =IFERROR(MATCH($AB120,AssignmentSummary!$G:$G,0),"") -> 142 | AE120: =IFERROR(IF(AE$4>$AC120,"",MATCH($AB120,INDIRECT("AssignmentSummary!G"&AD120&":G10000"),0))+AD120,"") -> 143 | AF120: 144 | AG120: 145 | AQ120: SRK_5.14.2 | AR120: SRK_5.15.2 | AS120: SRK_7.18.2 | AT120: SRK_7.19.2 | BD120: 39.29338316 | BE120: 86.439375 | BF120: 86.439375 | BG120: 115.2525
O121: SRK_5.15.2 | P121: 0 | Q121: haul megabags to Madrid north underground | R121: 5.625 | S121: m3 | T121: 15.367 | U121: 86.439375
O122: SRK_7.18.2 | P122: 0 | Q122: haul megabags to Madrid south underground | R122: 5.625 | S122: m3 | T122: 15.367 | U122: 86.439375
O123: SRK_7.19.2 | P123: 0 | Q123: haul megabags to Madrid south underground | R123: 7.5 | S123: m3 | T123: 15.367 | U123: 115.2525
A124: =A120+1 -> 66 | C124: Madrid North Portal Pad | D124: m³ | E124: 7635 | F124: TMAC | G124: 15.37 | H124: 117349.95 | I124: 0.5 | J124: 58674.975 | K124: 58674.975 | M124: this is probably wrong in the cost estimate; what is it contaminated with? Why haul to Roberts Bay and not U/G? | O124: SRK_5.6.2 | P124: 0 | Q124: haul megabags to Roberts bay laydown | R124: 7635 | S124: m3 | T124: 15.367 | U124: 117327.045 | V124: 117327.045 | W124: 22.905 | Y124: 117327.045 | AB124: =IF(ISNUMBER(A124),A124&"_"&MID(CELL("filename",$A$1),FIND("]",CELL("filename",$A$1))+1,255),"") -> 66_Chemicals | AC124: =IF(AB124="","",COUNTIFS(AssignmentSummary!$G:$G,AB124)) -> 1 | AD124: =IFERROR(MATCH($AB124,AssignmentSummary!$G:$G,0),"") -> 146 | AE124: =IFERROR(IF(AE$4>$AC124,"",MATCH($AB124,INDIRECT("AssignmentSummary!G"&AD124&":G10000"),0))+AD124,"") ->  | AQ124: SRK_5.6.2 | BD124: 117327.045
A125: =A124+1 -> 67 | C125: Waste Management Area Landfarm | D125: m³ | E125: 100 | F125: TMAC | G125: 15.37 | H125: 1537 | I125: 0.5 | J125: 768.5 | K125: 768.5 | O125: SRK_13.1.2 | P125: 0 | Q125: haul megabags to Doris underground | R125: 100 | S125: m3 | T125: 15.367 | U125: 1536.7 | V125: =U125 -> 1536.7 | W125: 0.3 | Y125: 1536.7 | AB125: =IF(ISNUMBER(A125),A125&"_"&MID(CELL("filename",$A$1),FIND("]",CELL("filename",$A$1))+1,255),"") -> 67_Chemicals | AC125: =IF(AB125="","",COUNTIFS(AssignmentSummary!$G:$G,AB125)) -> 1 | AD125: =IFERROR(MATCH($AB125,AssignmentSummary!$G:$G,0),"") -> 147 | AE125: =IFERROR(IF(AE$4>$AC125,"",MATCH($AB125,INDIRECT("AssignmentSummary!G"&AD125&":G10000"),0))+AD125,"") ->  | AQ125: Assign
A126: =A125+1 -> 68 | C126: Windy Development Area | D126: m³ | E126: 720 | F126: TMAC | G126: 15.37 | H126: 11066.4 | I126: 0.5 | J126: 5533.2 | K126: 5533.2 | O126: SRK_19.11.5 | P126: 0 | Q126: haul containers to Madrid North Underground | R126: 717.2 | S126: m3 | T126: 4.69969713 | U126: 3370.622781 | V126: =U126 -> 3370.622781 | W126: 7695.777219 | X126: correct task unit rate was applied | Y126: =R126*G126 -> 11023.364 | AB126: =IF(ISNUMBER(A126),A126&"_"&MID(CELL("filename",$A$1),FIND("]",CELL("filename",$A$1))+1,255),"") -> 68_Chemicals | AC126: =IF(AB126="","",COUNTIFS(AssignmentSummary!$G:$G,AB126)) -> 1 | AD126: =IFERROR(MATCH($AB126,AssignmentSummary!$G:$G,0),"") -> 148 | AE126: =IFERROR(IF(AE$4>$AC126,"",MATCH($AB126,INDIRECT("AssignmentSummary!G"&AD126&":G10000"),0))+AD126,"") ->  | AQ126: SRK_19.9.12
A127: =A126+1 -> 69 | C127: Madrid South MS-017 (PHC) | D127: m³ | E127: 225 | F127: TMAC | G127: 15.37 | H127: =G127*E127 -> 3458.25 | I127: 0.5 | J127: =H127*I127 -> 1729.125 | K127: =+H127*(1-I127) -> 1729.125 | O127: SRK_7.17.12 | P127: 0 | Q127: haul megabags to Madrid south underground | R127: 225 | S127: m3 | T127: 15.367 | U127: 3457.575 | V127: =IF(ISBLANK($H127),"",SUM(BD127:BO127)) -> 3457.575 | W127: 0.675 | Y127: =IF(U127="",H127,V127) -> 3457.575 | AB127: =IF(ISNUMBER(A127),A127&"_"&MID(CELL("filename",$A$1),FIND("]",CELL("filename",$A$1))+1,255),"") -> 69_Chemicals | AC127: =IF(AB127="","",COUNTIFS(AssignmentSummary!$G:$G,AB127)) -> 1 | AD127: =IFERROR(MATCH($AB127,AssignmentSummary!$G:$G,0),"") -> 149 | AE127: =IFERROR(IF(AE$4>$AC127,"",MATCH($AB127,INDIRECT("AssignmentSummary!G"&AD127&":G10000"),0))+AD127,"") ->  | AQ127: SRK_7.17.12 | BD127: 3457.575
A128: =A127+1 -> 70 | B128: Fuel/Reagent/Brine Containment areas remove soil cover from liner | C128: Doris RB-013, RB-002, RB-003 & DM-020 excavation of cover soil from liners | D128: m³ | E128: =10315+7925+2980+3360 -> 24580 | F128: TMAC | G128: 2.75 | H128: =G128*E128 -> 67595 | I128: 0.5 | J128: =H128*I128 -> 33797.5 | K128: =+H128*(1-I128) -> 33797.5 | O128: SRK_1.13.10 | P128: 0 | Q128: excavate and stockpile liner protection cover | R128: 10315.2 | S128: m3 | T128: 2.748695091 | U128: 28353.33961 | V128: =SUM(U128:U131) -> 67559.35204 | W128: 35.64795627 | Y128: 67559.35204 | AB128: =IF(ISNUMBER(A128),A128&"_"&MID(CELL("filename",$A$1),FIND("]",CELL("filename",$A$1))+1,255),"") -> 70_Chemicals | AC128: =IF(AB128="","",COUNTIFS(AssignmentSummary!$G:$G,AB128)) -> 4 | AD128: =IFERROR(MATCH($AB128,AssignmentSummary!$G:$G,0),"") -> 150 | AE128: =IFERROR(IF(AE$4>$AC128,"",MATCH($AB128,INDIRECT("AssignmentSummary!G"&AD128&":G10000"),0))+AD128,"") -> 151 | AF128: 152 | AG128: 153 | AQ128: SRK_1.13.10 | AR128: SRK_1.2.10 | AS128: SRK_1.3.10 | AT128: SRK_2.20.10 | BD128: 28353.33961 | BE128: 21779.56043 | BF128: 2760.108482 | BG128: 9235.615507
O129: SRK_1.2.10 | P129: 0 | Q129: excavate and stockpile liner protection cover | R129: 7923.6 | S129: m3 | T129: 2.748695091 | U129: 21779.56043 | V129: =IF(ISBLANK($H129),"",SUM(BD129:BO129)) -> 
O130: SRK_1.3.12 | P130: 0 | Q130: excavate and stockpile liner protection cover | R130: 2979.9 | S130: m3 | T130: 2.748695091 | U130: 8190.836503 | V130: =IF(ISBLANK($H130),"",SUM(BD130:BO130)) -> 
O131: SRK_2.20.10 | P131: 0 | Q131: excavate and stockpile liner protection cover | R131: 3360 | S131: m3 | T131: 2.748695091 | U131: 9235.615507 | V131: =IF(ISBLANK($H131),"",SUM(BD131:BO131)) -> 
A132: =A128+1 -> 71 | C132: Reagent Pad | D132: m³ | E132: 895 | F132: TMAC | G132: 2.75 | H132: =G132*E132 -> 2461.25 | I132: 0.5 | J132: =H132*I132 -> 1230.625 | K132: =+H132*(1-I132) -> 1230.625 | O132: SRK_12.3.1 | P132: Reagent Pads Ammonium Nitrate Storage Area | Q132: remove and stockpile liner protection cover | R132: 893.16 | S132: m3 | T132: 2.748695091 | U132: 2455.024508 | V132: =IF(ISBLANK($H132),"",SUM(BD132:BO132)) -> 2455.024508 | W132: 6.225492139 | Y132: 2455.024508 | AB132: =IF(ISNUMBER(A132),A132&"_"&MID(CELL("filename",$A$1),FIND("]",CELL("filename",$A$1))+1,255),"") -> 71_Chemicals | AC132: =IF(AB132="","",COUNTIFS(AssignmentSummary!$G:$G,AB132)) -> 1 | AD132: =IFERROR(MATCH($AB132,AssignmentSummary!$G:$G,0),"") -> 154 | AE132: =IFERROR(IF(AE$4>$AC132,"",MATCH($AB132,INDIRECT("AssignmentSummary!G"&AD132&":G10000"),0))+AD132,"") ->  | AQ132: SRK_12.3.1 | BD132: 2455.024508
A133: =A132+1 -> 72 | C133: Waste Management Area Landfarm | D133: m³ | E133: 2590 | F133: TMAC | G133: 2.75 | H133: =G133*E133 -> 7122.5 | I133: 0.5 | J133: =H133*I133 -> 3561.25 | K133: =+H133*(1-I133) -> 3561.25 | O133: SRK_13.1.4 | P133: 0 | Q133: remove and stockpile liner protection cover | R133: 2591 | S133: m3 | T133: 2.748695091 | U133: 7121.868982 | V133: =U133 -> 7121.868982 | W133: 0.6310181054 | Y133: 7121.868982 | AB133: =IF(ISNUMBER(A133),A133&"_"&MID(CELL("filename",$A$1),FIND("]",CELL("filename",$A$1))+1,255),"") -> 72_Chemicals | AC133: =IF(AB133="","",COUNTIFS(AssignmentSummary!$G:$G,AB133)) -> 1 | AD133: =IFERROR(MATCH($AB133,AssignmentSummary!$G:$G,0),"") -> 155 | AE133: =IFERROR(IF(AE$4>$AC133,"",MATCH($AB133,INDIRECT("AssignmentSummary!G"&AD133&":G10000"),0))+AD133,"") ->  | AQ133: Assign
A134: =A133+1 -> 73 | C134: Madrid North MN-011 | D134: m³ | E134: 2435 | F134: TMAC | G134: 2.75 | H134: =G134*E134 -> 6696.25 | I134: 0.5 | J134: =H134*I134 -> 3348.125 | K134: =+H134*(1-I134) -> 3348.125 | O134: SRK_5.11.10 | P134: 0 | Q134: excavate and stockpile liner protection cover | R134: 2436 | S134: m3 | T134: 2.748695091 | U134: 6695.821243 | V134: =IF(ISBLANK($H134),"",SUM(BD134:BO134)) -> 6695.821243 | W134: 0.428757277 | Y134: 6695.821243 | AB134: =IF(ISNUMBER(A134),A134&"_"&MID(CELL("filename",$A$1),FIND("]",CELL("filename",$A$1))+1,255),"") -> 73_Chemicals | AC134: =IF(AB134="","",COUNTIFS(AssignmentSummary!$G:$G,AB134)) -> 1 | AD134: =IFERROR(MATCH($AB134,AssignmentSummary!$G:$G,0),"") -> 156 | AE134: =IFERROR(IF(AE$4>$AC134,"",MATCH($AB134,INDIRECT("AssignmentSummary!G"&AD134&":G10000"),0))+AD134,"") ->  | AQ134: SRK_5.11.10 | BD134: 6695.821243
A135: =A134+1 -> 74 | C135: Madrid North Water Storage Tank MN-013 | D135: m³ | E135: 260 | F135: TMAC | G135: 2.75 | H135: =G135*E135 -> 715 | I135: 0.5 | J135: =H135*I135 -> 357.5 | K135: =+H135*(1-I135) -> 357.5 | O135: SRK_5.13.7 | P135: 0 | Q135: excavate and stockpile liner protection cover | R135: 259.2 | S135: m3 | T135: 2.748695091 | U135: 712.4617677 | V135: =U135 -> 712.4617677 | W135: =IF(V135="","",SUM(J135:K135)-V135) -> 2.538232301 | Y135: 712.4617677 | AB135: =IF(ISNUMBER(A135),A135&"_"&MID(CELL("filename",$A$1),FIND("]",CELL("filename",$A$1))+1,255),"") -> 74_Chemicals | AC135: =IF(AB135="","",COUNTIFS(AssignmentSummary!$G:$G,AB135)) -> 1 | AD135: =IFERROR(MATCH($AB135,AssignmentSummary!$G:$G,0),"") -> 157 | AE135: =IFERROR(IF(AE$4>$AC135,"",MATCH($AB135,INDIRECT("AssignmentSummary!G"&AD135&":G10000"),0))+AD135,"") ->  | AQ135: SRK_5.13.10 | BD135: 13.25538
A136: =A135+1 -> 75 | C136: Madrid South MS-017 and -020 | D136: m³ | E136: =450+260 -> 710 | F136: TMAC | G136: 2.75 | H136: =G136*E136 -> 1952.5 | I136: 0.5 | J136: =H136*I136 -> 976.25 | K136: =+H136*(1-I136) -> 976.25 | O136: SRK_7.17.10 | P136: 0 | Q136: excavate and stockpile liner protection cover | R136: 450 | S136: m3 | T136: 2.748695091 | U136: 1236.912791 | V136: =IF(ISBLANK($H136),"",SUM(BD136:BO136)) -> 1949.374559 | W136: 3.125441158 | Y136: 1949.374559 | AB136: =IF(ISNUMBER(A136),A136&"_"&MID(CELL("filename",$A$1),FIND("]",CELL("filename",$A$1))+1,255),"") -> 75_Chemicals | AC136: =IF(AB136="","",COUNTIFS(AssignmentSummary!$G:$G,AB136)) -> 2 | AD136: =IFERROR(MATCH($AB136,AssignmentSummary!$G:$G,0),"") -> 158 | AE136: =IFERROR(IF(AE$4>$AC136,"",MATCH($AB136,INDIRECT("AssignmentSummary!G"&AD136&":G10000"),0))+AD136,"") -> 159 | AQ136: SRK_7.17.10 | AR136: SRK_7.20.5 | BD136: 1236.912791 | BE136: 712.4617677
O137: SRK_7.20.5 | P137: 0 | Q137: excavate and stockpile liner protection cover | R137: 259.2 | S137: m3 | T137: 2.748695091 | U137: 712.4617677 | V137: =IF(ISBLANK($H137),"",SUM(BD137:BO137)) -> 
A138: =A136+1 -> 76 | B138: Waste haulage to Landfill | C138: Waste Management Area Landfarm | D138: m³ | E138: 120 | F138: TMAC | G138: 4.7 | H138: =G138*E138 -> 564 | I138: 0.5 | J138: =H138*I138 -> 282 | K138: =+H138*(1-I138) -> 282 | O138: SRK_13.1.8 | P138: 0 | Q138: Haul Material to Quarry 3 Landfill | R138: 118.368 | S138: m3 | T138: 4.69969713 | U138: 556.2937498 | V138: =IF(ISBLANK($H138),"",SUM(BD138:BO138)) -> 556.2937498 | W138: 7.706250168 | Y138: 556.2937498 | AB138: =IF(ISNUMBER(A138),A138&"_"&MID(CELL("filename",$A$1),FIND("]",CELL("filename",$A$1))+1,255),"") -> 76_Chemicals | AC138: =IF(AB138="","",COUNTIFS(AssignmentSummary!$G:$G,AB138)) -> 1 | AD138: =IFERROR(MATCH($AB138,AssignmentSummary!$G:$G,0),"") -> 160 | AE138: =IFERROR(IF(AE$4>$AC138,"",MATCH($AB138,INDIRECT("AssignmentSummary!G"&AD138&":G10000"),0))+AD138,"") ->  | AQ138: SRK_13.1.8 | BD138: 556.2937498
A139: =A138+1 -> 77 | B139: Remove Sumps | C139: MN-023, DM-018 | D139: each | E139: 3 | F139: TMAC | G139: 680 | H139: =G139*E139 -> 2040 | I139: 0.5 | J139: =H139*I139 -> 1020 | K139: =+H139*(1-I139) -> 1020 | M139: TMAC has in Water Mgmt | O139: SRK_5.23.1 | P139: Madrid North Sump | Q139: decommission sump | R139: 1 | S139: each | T139: 679.5159959 | U139: 679.5159959 | V139: =SUM(U139:U140) -> 2038.547988 | W139: 1.452012185 | Y139: 2038.547988 | AB139: =IF(ISNUMBER(A139),A139&"_"&MID(CELL("filename",$A$1),FIND("]",CELL("filename",$A$1))+1,255),"") -> 77_Chemicals | AC139: =IF(AB139="","",COUNTIFS(AssignmentSummary!$G:$G,AB139)) -> 6 | AD139: =IFERROR(MATCH($AB139,AssignmentSummary!$G:$G,0),"") -> 161 | AE139: =IFERROR(IF(AE$4>$AC139,"",MATCH($AB139,INDIRECT("AssignmentSummary!G"&AD139&":G10000"),0))+AD139,"") -> 162 | AF139: 163 | AG139: 164 | AH139: 165 | AI139: 166 | AQ139: SRK_5.23.1 | AR139: SRK_5.23.2 | AS139: SRK_5.23.3 | AT139: SRK_2.18.1 | AU139: SRK_2.18.2 | AV139: SRK_2.18.3 | BD139: 679.5159959 | BE139: 2500 | BF139: 277.4200392 | BG139: 1359.031992 | BH139: 5000 | BI139: 554.8400784
O140: SRK_2.18.1 | P140: Doris Sumps | Q140: decommission sumps | R140: 2 | S140: each | T140: 679.5159959 | U140: 1359.031992 | V140: =IF(ISBLANK($H140),"",SUM(BD140:BO140)) -> 
A141: =A139+1 -> 78 | B141: Place Mega Bags into Containers (Transport) | C141: Windy Development Area | D141: m³ | E141: 720 | F141: TMAC | G141: 20.91 | H141: =G141*E141 -> 15055.2 | I141: 0.5 | J141: =H141*I141 -> 7527.6 | K141: =+H141*(1-I141) -> 7527.6 | O141: SRK_19.11.4 | P141: 0 | Q141: place megabags into containers | R141: 717.2 | S141: m3 | T141: 20.9081371 | U141: 14995.31593 | V141: =IF(ISBLANK($H141),"",SUM(BD141:BO141)) -> 14995.31593 | W141: 59.88406835 | Y141: 14995.31593 | AB141: =IF(ISNUMBER(A141),A141&"_"&MID(CELL("filename",$A$1),FIND("]",CELL("filename",$A$1))+1,255),"") -> 78_Chemicals | AC141: =IF(AB141="","",COUNTIFS(AssignmentSummary!$G:$G,AB141)) -> 1 | AD141: =IFERROR(MATCH($AB141,AssignmentSummary!$G:$G,0),"") -> 167 | AE141: =IFERROR(IF(AE$4>$AC141,"",MATCH($AB141,INDIRECT("AssignmentSummary!G"&AD141&":G10000"),0))+AD141,"") ->  | AQ141: SRK_19.11.4 | BD141: 14995.31593
A142: =A141+1 -> 79 | B142: Place soil in Mega Bags and Empty into Containers | C142: Windy Development Area | D142: m³ | E142: 60 | F142: TMAC | G142: =72.73+16.35+34.3 -> 123.38 | H142: =G142*E142 -> 7402.8 | I142: 0.5 | J142: =H142*I142 -> 3701.4 | K142: =+H142*(1-I142) -> 3701.4 | O142: SRK_19.11.7 | P142: 0 | Q142: place megabags into containers | R142: 60 | S142: m3 | T142: 16.35287798 | U142: 981.1726789 | V142: =IF(ISBLANK($H142),"",SUM(BD142:BO142)) -> 981.1726789 | W142: 6421.627321 | X142: INAC contracted three unit rates into this task; | Y142: =R142*G142 -> 7402.8 | AB142: =IF(ISNUMBER(A142),A142&"_"&MID(CELL("filename",$A$1),FIND("]",CELL("filename",$A$1))+1,255),"") -> 79_Chemicals | AC142: =IF(AB142="","",COUNTIFS(AssignmentSummary!$G:$G,AB142)) -> 1 | AD142: =IFERROR(MATCH($AB142,AssignmentSummary!$G:$G,0),"") -> 168 | AE142: =IFERROR(IF(AE$4>$AC142,"",MATCH($AB142,INDIRECT("AssignmentSummary!G"&AD142&":G10000"),0))+AD142,"") ->  | AQ142: SRK_19.11.7 | BD142: 981.1726789
A143: =A142+1 -> 80 | B143: Disposal of PHC impacted soil to Madrid Portal from Demolition | C143: Windy Development Area | D143: m³ | E143: 4265 | F143: TMAC | G143: 2.77 | H143: =G143*E143 -> 11814.05 | I143: 0.5 | J143: =H143*I143 -> 5907.025 | K143: =+H143*(1-I143) -> 5907.025 | O143: SRK_19.8.3 | P143: 0 | Q143: hydrocarbon contaminated soils to Madrid underground | R143: 4263.024595 | S143: m3 | T143: 2.76567907 | U143: 11790.15789 | V143: =U143 -> 11790.15789 | W143: 23.89210518 | Y143: =V143 -> 11790.15789 | AB143: =IF(ISNUMBER(A143),A143&"_"&MID(CELL("filename",$A$1),FIND("]",CELL("filename",$A$1))+1,255),"") -> 80_Chemicals | AC143: =IF(AB143="","",COUNTIFS(AssignmentSummary!$G:$G,AB143)) -> 1 | AD143: =IFERROR(MATCH($AB143,AssignmentSummary!$G:$G,0),"") -> 169 | AE143: =IFERROR(IF(AE$4>$AC143,"",MATCH($AB143,INDIRECT("AssignmentSummary!G"&AD143&":G10000"),0))+AD143,"") ->  | AQ143: Assign
A144: =A143+1 -> 81 | B144: Disposal of PHC impacted soil to Madrid Portal from Demolition | C144: Patch Lake Development Area | D144: m³ | E144: 245 | F144: TMAC | G144: 2.77 | H144: =G144*E144 -> 678.65 | I144: 0.5 | J144: =H144*I144 -> 339.325 | K144: =+H144*(1-I144) -> 339.325 | O144: SRK_18.3.2 | P144: 0 | Q144: haul containers to Madrid North Underground | R144: 243.6 | S144: m3 | T144: 4.69969713 | U144: 1144.846221 | V144: =U144 -> 1144.846221 | W144: -466.1962208 | Y144: 1144.846221 | AB144: =IF(ISNUMBER(A144),A144&"_"&MID(CELL("filename",$A$1),FIND("]",CELL("filename",$A$1))+1,255),"") -> 81_Chemicals | AC144: =IF(AB144="","",COUNTIFS(AssignmentSummary!$G:$G,AB144)) -> 1 | AD144: =IFERROR(MATCH($AB144,AssignmentSummary!$G:$G,0),"") -> 170 | AE144: =IFERROR(IF(AE$4>$AC144,"",MATCH($AB144,INDIRECT("AssignmentSummary!G"&AD144&":G10000"),0))+AD144,"") ->  | AQ144: Assign
A145: =A144+1 -> 82 | B145: Survey for Soil Remediation | C145: PHC and Metal Impacted Area | D145: LS | E145: 2 | F145: TMAC | G145: 25000 | H145: =G145*E145 -> 50000 | I145: 0.5 | J145: =H145*I145 -> 25000 | K145: =+H145*(1-I145) -> 25000 | O145: SRK_24.3.1 | P145: Waste Contaminated Material | Q145: hydrocarbon contamination survey | R145: 0 | S145: ls | T145: 25000 | U145: =T145*R145 -> 0 | V145: =SUM(U145:U146) -> 0 | W145: 50000 | X145: Already accounted in Line 52 | Y145: 0 | AB145: =IF(ISNUMBER(A145),A145&"_"&MID(CELL("filename",$A$1),FIND("]",CELL("filename",$A$1))+1,255),"") -> 82_Chemicals | AC145: =IF(AB145="","",COUNTIFS(AssignmentSummary!$G:$G,AB145)) -> 2 | AD145: =IFERROR(MATCH($AB145,AssignmentSummary!$G:$G,0),"") -> 171 | AE145: =IFERROR(IF(AE$4>$AC145,"",MATCH($AB145,INDIRECT("AssignmentSummary!G"&AD145&":G10000"),0))+AD145,"") -> 172 | AQ145: SRK_24.3.1 | AR145: SRK_24.3.2 | BD145: 25000 | BE145: 25000
O146: SRK_24.3.2 | P146: 0 | Q146: metal contamination survey | R146: 0 | S146: ls | T146: 25000 | U146: =T146*R146 -> 0 | V146: =IF(ISBLANK($H146),"",SUM(BD146:BO146)) ->  | X146: Already accounted in Line 53
A147: =A145+1 -> 83 | B147: In-situ Bio-remediation | C147: Patch Lake Development Area | D147: m³ | E147: 39 | F147: TMAC | G147: 260 | H147: =G147*E147 -> 10140 | I147: 0.5 | J147: =H147*I147 -> 5070 | K147: =+H147*(1-I147) -> 5070 | O147: SRK_18.3.5 | P147: 0 | Q147: in-situ bioremediation | R147: 39 | S147: m3 | T147: 260 | U147: 10140 | V147: =U147 -> 10140 | W147: 0 | Y147: 10140 | AB147: =IF(ISNUMBER(A147),A147&"_"&MID(CELL("filename",$A$1),FIND("]",CELL("filename",$A$1))+1,255),"") -> 83_Chemicals | AC147: =IF(AB147="","",COUNTIFS(AssignmentSummary!$G:$G,AB147)) -> 1 | AD147: =IFERROR(MATCH($AB147,AssignmentSummary!$G:$G,0),"") -> 173 | AE147: =IFERROR(IF(AE$4>$AC147,"",MATCH($AB147,INDIRECT("AssignmentSummary!G"&AD147&":G10000"),0))+AD147,"") ->  | AQ147: Assign
A148: =A147+1 -> 84 | B148: Transport PHC impacted soil to offsite facility | C148: W-001 relates to soil that cannot go underground | D148: m³ | E148: 280 | F148: TMAC | G148: 1114.93 | H148: =G148*E148 -> 312180.4 | I148: 0.5 | J148: =H148*I148 -> 156090.2 | K148: =+H148*(1-I148) -> 156090.2 | M148: this is wrong and should not be accounted for | O148: Assign | V148: =IF(ISBLANK($H148),"",SUM(BD148:BO148)) -> 0 | W148: 312180.4 | X148: no HC soils are shipped off-site | Y148: 0 | AB148: 84_Chemicals | AC148: =IF(AB148="","",COUNTIFS(AssignmentSummary!$G:$G,AB148)) -> 1 | AD148: =IFERROR(MATCH($AB148,AssignmentSummary!$G:$G,0),"") -> 174 | AE148: =IFERROR(IF(AE$4>$AC148,"",MATCH($AB148,INDIRECT("AssignmentSummary!G"&AD148&":G10000"),0))+AD148,"") ->  | AQ148: Assign
A149: =A148+1 -> 85 | B149: Contour decontaminated area | D149: m³ | F149: dsl | G149: =IF(ISNA(F149),0,INDEX(IF(UPPER(RIGHT(F149,1))=Low,UnitCostLow, IF(UPPER(RIGHT(F149,1))=High,UnitCostHigh,UnitCostSpecified)),MATCH(UPPER(LEFT(F149,LEN(F149)-1)),CostCode,0))) -> 0.95 | H149: =G149*E149 -> 0 | I149: 0.5 | J149: =H149*I149 -> 0 | K149: =+H149*(1-I149) -> 0 | V149: 0 | W149: 0 | Y149: 0 | AB149: 85_Chemicals | AC149: =IF(AB149="","",COUNTIFS(AssignmentSummary!$G:$G,AB149)) -> 0 | AD149: =IFERROR(MATCH($AB149,AssignmentSummary!$G:$G,0),"") ->  | AE149: =IFERROR(IF(AE$4>$AC149,"",MATCH($AB149,INDIRECT("AssignmentSummary!G"&AD149&":G10000"),0))+AD149,"") -> 
A150: a | B150: CONTAMINATED SOIL VERY LOW PERMEABILITY COVER | AC150: =IF(AB150="","",COUNTIFS(AssignmentSummary!$G:$G,AB150)) ->  | AD150: =IFERROR(MATCH($AB150,AssignmentSummary!$G:$G,0),"") ->  | AE150: =IFERROR(IF(AE$4>$AC150,"",MATCH($AB150,INDIRECT("AssignmentSummary!G"&AD150&":G10000"),0))+AD150,"") -> 
A151: =A149+1 -> 86 | B151: Supply geomembrame, HDPE, ES3, GCL | D151: m² | F151: =NA() ->  | G151: =IF(ISNA(F151),0,INDEX(IF(UPPER(RIGHT(F151,1))=Low,UnitCostLow, IF(UPPER(RIGHT(F151,1))=High,UnitCostHigh,UnitCostSpecified)),MATCH(UPPER(LEFT(F151,LEN(F151)-1)),CostCode,0))) -> 0 | H151: =G151*E151 -> 0 | J151: =H151*I151 -> 0 | K151: =+H151*(1-I151) -> 0 | V151: 0 | W151: 0 | Y151: =IF(U151="",H151,V151) -> 0 | AB151: 86_Chemicals | AC151: =IF(AB151="","",COUNTIFS(AssignmentSummary!$G:$G,AB151)) -> 0 | AD151: =IFERROR(MATCH($AB151,AssignmentSummary!$G:$G,0),"") ->  | AE151: =IFERROR(IF(AE$4>$AC151,"",MATCH($AB151,INDIRECT("AssignmentSummary!G"&AD151&":G10000"),0))+AD151,"") -> 
A152: =A151+1 -> 87 | B152: Upper and lower bedding layers | D152: m³ | F152: =NA() ->  | G152: 0 | H152: 0 | J152: 0 | K152: 0 | V152: 0 | W152: 0 | Y152: 0 | AB152: 87_Chemicals | AC152: =IF(AB152="","",COUNTIFS(AssignmentSummary!$G:$G,AB152)) -> 0 | AD152: =IFERROR(MATCH($AB152,AssignmentSummary!$G:$G,0),"") ->  | AE152: =IFERROR(IF(AE$4>$AC152,"",MATCH($AB152,INDIRECT("AssignmentSummary!G"&AD152&":G10000"),0))+AD152,"") -> 
A153: 88 | B153: Install geomembrane, HDPE, ES3, GCL | D153: m² | F153: =NA() ->  | G153: 0 | H153: 0 | J153: 0 | K153: 0 | V153: 0 | W153: 0 | Y153: 0 | AB153: 88_Chemicals | AC153: =IF(AB153="","",COUNTIFS(AssignmentSummary!$G:$G,AB153)) -> 0 | AD153: =IFERROR(MATCH($AB153,AssignmentSummary!$G:$G,0),"") ->  | AE153: =IFERROR(IF(AE$4>$AC153,"",MATCH($AB153,INDIRECT("AssignmentSummary!G"&AD153&":G10000"),0))+AD153,"") -> 
A154: 89 | B154: Erosion protection layer | D154: m³ | F154: =NA() ->  | G154: 0 | H154: 0 | J154: 0 | K154: 0 | V154: 0 | W154: 0 | Y154: 0 | AB154: 89_Chemicals | AC154: =IF(AB154="","",COUNTIFS(AssignmentSummary!$G:$G,AB154)) -> 0 | AD154: =IFERROR(MATCH($AB154,AssignmentSummary!$G:$G,0),"") ->  | AE154: =IFERROR(IF(AE$4>$AC154,"",MATCH($AB154,INDIRECT("AssignmentSummary!G"&AD154&":G10000"),0))+AD154,"") ->  | AQ154: =IFERROR(INDIRECT("AssignmentSummary!L"&AD154),"") ->  | AR154: =IFERROR(INDIRECT("AssignmentSummary!L"&AE154),"") ->  | AS154: =IFERROR(INDIRECT("AssignmentSummary!L"&AF154),"") ->  | AT154: =IFERROR(INDIRECT("AssignmentSummary!L"&AG154),"") ->  | AU154: =IFERROR(INDIRECT("AssignmentSummary!L"&AH154),"") ->  | AV154: =IFERROR(INDIRECT("AssignmentSummary!L"&AI154),"") ->  | AW154: =IFERROR(INDIRECT("AssignmentSummary!L"&AJ154),"") ->  | AX154: =IFERROR(INDIRECT("AssignmentSummary!L"&AK154),"") ->  | AY154: =IFERROR(INDIRECT("AssignmentSummary!L"&AL154),"") ->  | AZ154: =IFERROR(INDIRECT("AssignmentSummary!L"&AM154),"") ->  | BA154: =IFERROR(INDIRECT("AssignmentSummary!L"&AN154),"") ->  | BB154: =IFERROR(INDIRECT("AssignmentSummary!L"&AO154),"") -> 
A155: 90 | B155: Vegetate | D155: m² | F155: =NA() ->  | G155: 0 | H155: 0 | J155: 0 | K155: 0 | V155: 0 | W155: 0 | Y155: 0 | AB155: 90_Chemicals | AC155: =IF(AB155="","",COUNTIFS(AssignmentSummary!$G:$G,AB155)) -> 0 | AD155: =IFERROR(MATCH($AB155,AssignmentSummary!$G:$G,0),"") ->  | AE155: =IFERROR(IF(AE$4>$AC155,"",MATCH($AB155,INDIRECT("AssignmentSummary!G"&AD155&":G10000"),0))+AD155,"") -> 
A156: 91 | B156: Install infiltration/seepage instrumentation | D156: allow | F156: =NA() ->  | G156: 0 | H156: 0 | J156: 0 | K156: 0 | V156: 0 | W156: 0 | Y156: 0 | AB156: 91_Chemicals | AC156: =IF(AB156="","",COUNTIFS(AssignmentSummary!$G:$G,AB156)) -> 0 | AD156: =IFERROR(MATCH($AB156,AssignmentSummary!$G:$G,0),"") ->  | AE156: =IFERROR(IF(AE$4>$AC156,"",MATCH($AB156,INDIRECT("AssignmentSummary!G"&AD156&":G10000"),0))+AD156,"") -> 
A157: 92 | B157: Other | F157: =NA() ->  | G157: 0 | H157: 0 | J157: 0 | K157: 0 | V157: 0 | W157: 0 | Y157: 0 | AB157: 92_Chemicals | AC157: =IF(AB157="","",COUNTIFS(AssignmentSummary!$G:$G,AB157)) -> 0 | AD157: =IFERROR(MATCH($AB157,AssignmentSummary!$G:$G,0),"") ->  | AE157: =IFERROR(IF(AE$4>$AC157,"",MATCH($AB157,INDIRECT("AssignmentSummary!G"&AD157&":G10000"),0))+AD157,"") -> 
A158: a | B158: OTHER | Y158: 0 | AC158: =IF(AB158="","",COUNTIFS(AssignmentSummary!$G:$G,AB158)) ->  | AD158: =IFERROR(MATCH($AB158,AssignmentSummary!$G:$G,0),"") ->  | AE158: =IFERROR(IF(AE$4>$AC158,"",MATCH($AB158,INDIRECT("AssignmentSummary!G"&AD158&":G10000"),0))+AD158,"") -> 
A159: =A157+1 -> 93 | F159: =NA() ->  | G159: =IF(ISNA(F159),0,INDEX(IF(UPPER(RIGHT(F159,1))=Low,UnitCostLow, IF(UPPER(RIGHT(F159,1))=High,UnitCostHigh,UnitCostSpecified)),MATCH(UPPER(LEFT(F159,LEN(F159)-1)),CostCode,0))) -> 0 | H159: =G159*E159 -> 0 | J159: =H159*I159 -> 0 | K159: =+H159*(1-I159) -> 0 | V159: 0 | W159: 0 | Y159: 0 | AB159: 93_Chemicals | AC159: =IF(AB159="","",COUNTIFS(AssignmentSummary!$G:$G,AB159)) -> 0 | AD159: =IFERROR(MATCH($AB159,AssignmentSummary!$G:$G,0),"") ->  | AE159: =IFERROR(IF(AE$4>$AC159,"",MATCH($AB159,INDIRECT("AssignmentSummary!G"&AD159&":G10000"),0))+AD159,"") -> 
A160: END | G160: Total | H160: =SUM(H7:H159)+0.0001 -> 3610541.922 | J160: =SUM(J7:J159) -> 1727440.961 | K160: =SUM(K7:K159) -> 1883100.961 | AC160: =IF(AB160="","",COUNTIFS(AssignmentSummary!$G:$G,AB160)) ->  | AD160: =IFERROR(MATCH($AB160,AssignmentSummary!$G:$G,0),"") ->  | AE160: =IFERROR(IF(AE$4>$AC160,"",MATCH($AB160,INDIRECT("AssignmentSummary!G"&AD160&":G10000"),0))+AD160,"") -> 
G161: % of Total | J161: =J160/H160 -> 0.4784436792 | K161: =K160/H160 -> 0.5215563208 | V161: =SUM(V7:V159) -> 2515824.174 | W161: =V161-Chem1Total -> -1094717.747 | Y161: =SUM(Y7:Y159) -> 2565125.571
W163: =W161/V161 -> -0.4351328517 | Y163: =(Chem1Total-Y161)/Y161 -> 0.4075497754

Sheet Bldgs & Equip
B1: Building / Equip Name: | C1: Doris - Madrid | G1: Bldg / Equip #: | H1: 1 | AD1: Match | AQ1: SRK Code | BD1: SRK Estimate
B3: INAC COST March 2018 | O3: TMAC COST (Nov 2017)* | W3: Cost Difference | Y3: PROPOSED COSTS (April 2018)
B4: ACTIVITY/MATERIAL | C4: Notes | D4: Units | E4: Quantity | F4: Cost Code | G4: Unit Cost | H4: Cost | I4: % Land | J4: Land Cost | K4: Water Cost | O4: SRK Row Number | P4: Facility Name | Q4: Task Description | R4: Qty | S4: Unit | T4: Unit Cost | U4: Subtotal | V4: TMAC Costs | W4: Cost Difference (INAC-TMAC) | X4: Notes | Y4: Carry Forward Costs | AB4: Lookup | AC4: Count | AD4: 1 | AE4: =AD4+1 -> 2 | AF4: =AE4+1 -> 3 | AG4: 4 | AH4: 5 | AI4: 6 | AJ4: 7 | AK4: 8 | AL4: =AK4+1 -> 9 | AM4: 10 | AN4: 11 | AO4: 12 | AQ4: 1 | AR4: =AQ4+1 -> 2 | AS4: 3 | AT4: 4 | AU4: 5 | AV4: 6 | AW4: 7 | AX4: 8 | AY4: 9 | AZ4: 10 | BA4: 11 | BB4: 12 | BD4: 1 | BE4: =BD4+1 -> 2 | BF4: =BE4+1 -> 3 | BG4: 4 | BH4: 5 | BI4: 6 | BJ4: 7 | BK4: 8 | BL4: =Bm³+1 -> 
A5: a | B5: DISPOSE MOBILE EQUIPMENT | V5: =IF(ISBLANK($H5),"",SUM(AZ5:BK5)) ->  | W5: =IF(V5="","",SUM(J5:K5)-V5) ->  | AB5: =IF(ISNUMBER(A5),A5&"_"&MID(CELL("filename",$A$1),FIND("]",CELL("filename",$A$1))+1,255),"") ->  | AC5: =IF(AB5="","",COUNTIFS(AssignmentSummary!$G:$G,AB5)) ->  | AD5: =IFERROR(MATCH($AB5,AssignmentSummary!$G:$G,0),"") ->  | AE5: =IFERROR(IF(AE$4>$AC5,"",MATCH($AB5,INDIRECT("AssignmentSummary!G"&AD5&":G10000"),0))+AD5,"") ->  | AL5: =IFERROR(IF(AL$4>$AC5,"",MATCH($AB5,INDIRECT("AssignmentSummary!G"&AK5&":G10000"),0))+AK5,"") ->  | AQ5: =IFERROR(INDIRECT("AssignmentSummary!L"&AD5),"") ->  | AR5: =IFERROR(INDIRECT("AssignmentSummary!L"&AE5),"") ->  | AS5: =IFERROR(INDIRECT("AssignmentSummary!L"&AF5),"") ->  | AT5: =IFERROR(INDIRECT("AssignmentSummary!L"&AG5),"") ->  | AU5: =IFERROR(INDIRECT("AssignmentSummary!L"&AH5),"") ->  | AV5: =IFERROR(INDIRECT("AssignmentSummary!L"&AI5),"") ->  | AW5: =IFERROR(INDIRECT("AssignmentSummary!L"&AJ5),"") ->  | AX5: =IFERROR(INDIRECT("AssignmentSummary!L"&AK5),"") ->  | AY5: =IFERROR(INDIRECT("AssignmentSummary!L"&AL5),"") ->  | AZ5: =IFERROR(INDIRECT("AssignmentSummary!L"&AM5),"") ->  | BA5: =IFERROR(INDIRECT("AssignmentSummary!L"&AN5),"") ->  | BB5: =IFERROR(INDIRECT("AssignmentSummary!L"&AO5),"") -> 
A6: 1 | B6: Decontaminate and prepare for off-site | C6: Madrid North Concentrator | D6: allow | E6: 1 | F6: TMAC | G6: 50000 | H6: =G6*E6 -> 50000 | I6: 0.5 | J6: =H6*I6 -> 25000 | K6: =+H6*(1-I6) -> 25000 | O6: SRK_5.21.4 | P6: 0 | Q6: prepare equipment for shipping | R6: 1 | S6: each | T6: 50000 | U6: 50000 | V6: =IF(ISBLANK($H6),"",SUM(BD6:BO6)) -> 50000 | W6: =IF(V6="","",SUM(J6:K6)-V6) -> 0 | Y6: =IF(U6="",H6,V6) -> 50000 | AB6: 1_Bldgs & Equip | AC6: =IF(AB6="","",COUNTIFS(AssignmentSummary!$G:$G,AB6)) -> 2 | AD6: =IFERROR(MATCH($AB6,AssignmentSummary!$G:$G,0),"") -> 175 | AE6: =IFERROR(IF(AE$4>$AC6,"",MATCH($AB6,INDIRECT("AssignmentSummary!G"&AD6&":G10000"),0))+AD6,"") -> 176 | AJ6: =IFERROR(IF(AJ$4>$AC6,"",MATCH($AB6,INDIRECT("AssignmentSummary!G"&AI6&":G10000"),0))+AI6,"") ->  | AK6: =IFERROR(IF(AK$4>$AC6,"",MATCH($AB6,INDIRECT("AssignmentSummary!G"&AJ6&":G10000"),0))+AJ6,"") ->  | AQ6: Assign | AR6: SRK_5.21.4 | BE6: 50000
A7: =A6+1 -> 2 | C7: Doris Water Intake Generator | D7: each | E7: 1 | F7: TMAC | G7: 1370 | H7: =G7*E7 -> 1370 | I7: 0.5 | J7: =H7*I7 -> 685 | K7: =+H7*(1-I7) -> 685 | O7: SRK_2.26.7 | P7: 0 | Q7: prep generator container for shipping | R7: 1 | S7: each | T7: 1368.937506 | U7: 1368.937506 | V7: =U7 -> 1368.937506 | W7: 1.062494071 | Y7: 1368.937506 | AB7: 2_Bldgs & Equip | AC7: =IF(AB7="","",COUNTIFS(AssignmentSummary!$G:$G,AB7)) -> 1 | AD7: =IFERROR(MATCH($AB7,AssignmentSummary!$G:$G,0),"") -> 177 | AJ7: =IFERROR(IF(AJ$4>$AC7,"",MATCH($AB7,INDIRECT("AssignmentSummary!G"&AI7&":G10000"),0))+AI7,"") ->  | AK7: =IFERROR(IF(AK$4>$AC7,"",MATCH($AB7,INDIRECT("AssignmentSummary!G"&AJ7&":G10000"),0))+AJ7,"") ->  | AQ7: Assign
A8: =A7+1 -> 3 | B8: Consolidate Electrical Equipment from Pipelines | C8: Madrid South, Madrid North, Doris freshwater and Tialings/Reclaim water pipelines | D8: m² | E8: =2860+2680+1600+4065 -> 11205 | F8: TMAC | G8: =0.37+14.04 -> 14.41 | H8: 161464.05 | I8: 0.5 | J8: 80732.025 | K8: 80732.025 | M8: added cost to remove cabling as well ie C3.20 | O8: SRK_11.3.3 | P8: 0 | Q8: collect electrical cables and controllers and prep for shipping off-site | R8: 11202.7 | S8: m2 | T8: 0.3749384748 | U8: =T8*R8 -> 4200.323251 | V8: =U8 -> 4200.323251 | W8: 157263.7267 | X8: this unit rate ($14.04) does not match any of the specific tasks; | Y8: 4200.323251 | AB8: 3_Bldgs & Equip | AC8: =IF(AB8="","",COUNTIFS(AssignmentSummary!$G:$G,AB8)) -> 1 | AD8: =IFERROR(MATCH($AB8,AssignmentSummary!$G:$G,0),"") -> 178 | AE8: =IFERROR(IF(AE$4>$AC8,"",MATCH($AB8,INDIRECT("AssignmentSummary!G"&AD8&":G10000"),0))+AD8,"") ->  | AQ8: Assign
A9: =A8+1 -> 4 | B9: Relocate Containers to Quarry 3 Landfill | C9: current a large inventor of containers that will no longer go off site | D9: ea | E9: 250 | F9: TMAC | G9: =1370+6 -> 1376 | H9: 344000 | I9: 0.5 | J9: 172000 | K9: 172000 | L9: 1 | M9: use units C1.08+C4.15 for the haulage and demolition of contianers at landfill | R9: 250 | S9: each | T9: 204.56 | U9: =T9*R9 -> 51140 | V9: 0 | W9: 344000 | X9: the unit rate was inappropriate; there is no demolition of the containers just hauling; C.4.06 should have been used instead | Y9: =U9 -> 51140 | AB9: 4_Bldgs & Equip | AC9: =IF(AB9="","",COUNTIFS(AssignmentSummary!$G:$G,AB9)) -> 1 | AD9: =IFERROR(MATCH($AB9,AssignmentSummary!$G:$G,0),"") -> 179 | AE9: =IFERROR(IF(AE$4>$AC9,"",MATCH($AB9,INDIRECT("AssignmentSummary!G"&AD9&":G10000"),0))+AD9,"") ->  | AQ9: Assign
A10: =A9+1 -> 5 | B10: Relocate Trailers to Quarry 3 Landfill | D10: m³ | F10: TMAC | G10: 19.15 | H10: 0 | I10: 0.5 | J10: 0 | K10: 0 | V10: =IF(ISBLANK($H10),"",SUM(BD10:BO10)) -> 0 | W10: 0 | Y10: 0 | AB10: 5_Bldgs & Equip | AC10: =IF(AB10="","",COUNTIFS(AssignmentSummary!$G:$G,AB10)) -> 0 | AD10: =IFERROR(MATCH($AB10,AssignmentSummary!$G:$G,0),"") ->  | AE10: =IFERROR(IF(AE$4>$AC10,"",MATCH($AB10,INDIRECT("AssignmentSummary!G"&AD10&":G10000"),0))+AD10,"") -> 
A11: =A10+1 -> 6 | B11: Relocate Camp | C11: Windy Accommodation Camp (relocate to Doris) | D11: m³ | E11: 32 | F11: TMAC | G11: =2.77+10.23 -> 13 | H11: 416 | I11: 0.5 | J11: 208 | K11: 208 | M11: added cost to collapse and containerize | O11: SRK_19.2.2 | P11: 0 | Q11: load reusable components into containers for transport to Doris Camp | R11: 29 | S11: m3 | T11: 136.3041131 | U11: 3952.819281 | V11: =SUM(U11,U12) -> 4040.095532 | W11: -3624.095532 | X11: INAC used the incorrect unit rate | Y11: 4040.095532 | AB11: 6_Bldgs & Equip | AC11: =IF(AB11="","",COUNTIFS(AssignmentSummary!$G:$G,AB11)) -> 1 | AD11: =IFERROR(MATCH($AB11,AssignmentSummary!$G:$G,0),"") -> 180 | AE11: =IFERROR(IF(AE$4>$AC11,"",MATCH($AB11,INDIRECT("AssignmentSummary!G"&AD11&":G10000"),0))+AD11,"") ->  | AQ11: Assign
O12: SRK_19.2.4 | P12: 0 | Q12: haul all reusable materials to Doris Camp | R12: 31.55689729 | S12: m3 | T12: 2.76567907 | U12: 87.27625035 | V12: =IF(ISBLANK($H12),"",SUM(BD12:BO12)) -> 
A13: =A11+1 -> 7 | B13: Other | F13: =NA() ->  | G13: =IF(ISNA(F13),0,INDEX(IF(UPPER(RIGHT(F13,1))=Low,UnitCostLow, IF(UPPER(RIGHT(F13,1))=High,UnitCostHigh,UnitCostSpecified)),MATCH(UPPER(LEFT(F13,LEN(F13)-1)),CostCode,0))) -> 0 | H13: 0 | J13: 0 | K13: 0 | V13: =IF(ISBLANK($H13),"",SUM(BD13:BO13)) -> 0 | W13: 0 | Y13: 0 | AB13: =IF(ISNUMBER(A13),A13&"_"&MID(CELL("filename",$A$1),FIND("]",CELL("filename",$A$1))+1,255),"") -> 7_Bldgs & Equip | AC13: =IF(AB13="","",COUNTIFS(AssignmentSummary!$G:$G,AB13)) -> 0 | AD13: =IFERROR(MATCH($AB13,AssignmentSummary!$G:$G,0),"") ->  | AE13: =IFERROR(IF(AE$4>$AC13,"",MATCH($AB13,INDIRECT("AssignmentSummary!G"&AD13&":G10000"),0))+AD13,"") -> 
A14: a | B14: REMOVE BUILDINGS | V14: =IF(ISBLANK($H14),"",SUM(BD14:BO14)) ->  | AC14: =IF(AB14="","",COUNTIFS(AssignmentSummary!$G:$G,AB14)) ->  | AD14: =IFERROR(MATCH($AB14,AssignmentSummary!$G:$G,0),"") ->  | AE14: =IFERROR(IF(AE$4>$AC14,"",MATCH($AB14,INDIRECT("AssignmentSummary!G"&AD14&":G10000"),0))+AD14,"") -> 
A15: =A13+1 -> 8 | B15: Accomodation Complex | C15: DM-001 Decommission | D15: each | E15: 103 | F15: TMAC | G15: 679.52 | H15: =G15*E15 -> 69990.56 | I15: 0.5 | J15: =H15*I15 -> 34995.28 | K15: =+H15*(1-I15) -> 34995.28 | O15: SRK_2.1.1 | P15: Doris Accommodation Complex | Q15: decommission (electrical, mechanical, plumbing) | R15: 103 | S15: each | T15: 679.5159959 | U15: 69990.14758 | V15: =IF(ISBLANK($H15),"",SUM(BD15:BO15)) -> 69990.14758 | W15: 0.4124183498 | Y15: =IF(U15="",H15,V15) -> 69990.14758 | AB15: =IF(ISNUMBER(A15),A15&"_"&MID(CELL("filename",$A$1),FIND("]",CELL("filename",$A$1))+1,255),"") -> 8_Bldgs & Equip | AC15: =IF(AB15="","",COUNTIFS(AssignmentSummary!$G:$G,AB15)) -> 1 | AD15: =IFERROR(MATCH($AB15,AssignmentSummary!$G:$G,0),"") -> 181 | AE15: =IFERROR(IF(AE$4>$AC15,"",MATCH($AB15,INDIRECT("AssignmentSummary!G"&AD15&":G10000"),0))+AD15,"") ->  | AQ15: SRK_2.1.1 | BD15: 69990.14758
A16: =A15+1 -> 9 | C16: DM-001 Demolition cabins/cribs/stairs/Arctic corridor etc. | D16: m³ | E16: =320+225+135 -> 680 | F16: TMAC | G16: 13.12 | H16: 8921.6 | I16: 0.5 | J16: 4460.8 | K16: 4460.8 | O16: SRK_2.1.3 | P16: 0 | Q16: demolish cabins | R16: 673 | S16: m3 | T16: 13.12068245 | U16: =R16*T16 -> 8830.219287 | V16: =U16 -> 8830.219287 | W16: 91.38071278 | Y16: 8830.219287 | AB16: 9_Bldgs & Equip | AC16: =IF(AB16="","",COUNTIFS(AssignmentSummary!$G:$G,AB16)) -> 1 | AD16: =IFERROR(MATCH($AB16,AssignmentSummary!$G:$G,0),"") -> 182 | AE16: =IFERROR(IF(AE$4>$AC16,"",MATCH($AB16,INDIRECT("AssignmentSummary!G"&AD16&":G10000"),0))+AD16,"") ->  | AQ16: SRK_2.1.3 | BD16: 4186.491592
A17: =A16+1 -> 10 | C17: DM-001 Demolition Trailers | D17: m³ | E17: 11185 | F17: TMAC | G17: 13.32 | H17: 148984.2 | I17: 0.5 | J17: 74492.1 | K17: 74492.1 | O17: SRK_2.1.2 | P17: 0 | Q17: demolish trailers | R17: 11184.8 | S17: m3 | T17: 13.31988705 | U17: 148980.2727 | V17: =IF(ISBLANK($H17),"",SUM(BD17:BO17)) -> 148980.2727 | W17: 3.927302923 | Y17: 148980.2727 | AB17: 10_Bldgs & Equip | AC17: =IF(AB17="","",COUNTIFS(AssignmentSummary!$G:$G,AB17)) -> 1 | AD17: =IFERROR(MATCH($AB17,AssignmentSummary!$G:$G,0),"") -> 183 | AE17: =IFERROR(IF(AE$4>$AC17,"",MATCH($AB17,INDIRECT("AssignmentSummary!G"&AD17&":G10000"),0))+AD17,"") ->  | AQ17: SRK_2.1.2 | BD17: 148980.2727
A18: 11 | C18: DM-001 Consolidate and laod waste | D18: m³ | E18: 7450 | F18: TMAC | G18: =10.23 -> 10.23 | H18: 76213.5 | I18: 0.5 | J18: 38106.75 | K18: 38106.75 | O18: SRK_2.1.7 | P18: 0 | Q18: load waste into containers | R18: 7426.08407 | S18: m3 | T18: 10.22791667 | U18: 75953.36903 | V18: =IF(ISBLANK($H18),"",SUM(BD18:BO18)) -> 75953.36903 | W18: 260.1309724 | Y18: 75953.36903 | AB18: 11_Bldgs & Equip | AC18: =IF(AB18="","",COUNTIFS(AssignmentSummary!$G:$G,AB18)) -> 1 | AD18: =IFERROR(MATCH($AB18,AssignmentSummary!$G:$G,0),"") -> 184 | AE18: =IFERROR(IF(AE$4>$AC18,"",MATCH($AB18,INDIRECT("AssignmentSummary!G"&AD18&":G10000"),0))+AD18,"") ->  | AQ18: SRK_2.1.7 | BD18: 75953.36903
A19: 12 | C19: DM-001 Haul waste to landfill | D19: m³ | E19: 7450 | F19: TMAC | G19: 4.7 | H19: 35015 | I19: 0.5 | J19: 17507.5 | K19: 17507.5 | O19: SRK_2.1.8 | P19: 0 | Q19: haul containers to Quarry 3 landfill | R19: 7426.08407 | S19: m3 | T19: 4.69969713 | U19: 34900.34599 | V19: =IF(ISBLANK($H19),"",SUM(BD19:BO19)) -> 34900.34599 | W19: 114.6540123 | Y19: 34900.34599 | AB19: 12_Bldgs & Equip | AC19: =IF(AB19="","",COUNTIFS(AssignmentSummary!$G:$G,AB19)) -> 1 | AD19: =IFERROR(MATCH($AB19,AssignmentSummary!$G:$G,0),"") -> 185 | AE19: =IFERROR(IF(AE$4>$AC19,"",MATCH($AB19,INDIRECT("AssignmentSummary!G"&AD19&":G10000"),0))+AD19,"") ->  | AQ19: SRK_2.1.8 | BD19: 34900.34599
A20: 13 | B20: Windy Accommodation Camp | C20: Dismantle comm equipment | D20: LS | E20: 1 | F20: TMAC | G20: 375 | H20: 375 | I20: 0.5 | J20: 187.5 | K20: 187.5 | O20: SRK_19.2.3 | P20: 0 | Q20: dismantle and package communication equipment | R20: 1 | S20: LS | T20: 374.3351687 | U20: 374.3351687 | V20: =U20 -> 374.3351687 | W20: 0.6648312939 | Y20: 374.3351687 | AB20: 13_Bldgs & Equip | AC20: =IF(AB20="","",COUNTIFS(AssignmentSummary!$G:$G,AB20)) -> 1 | AD20: =IFERROR(MATCH($AB20,AssignmentSummary!$G:$G,0),"") -> 186 | AE20: =IFERROR(IF(AE$4>$AC20,"",MATCH($AB20,INDIRECT("AssignmentSummary!G"&AD20&":G10000"),0))+AD20,"") ->  | AQ20: SRK_19.2.2 | BD20: 3952.819281
A21: 14 | C21: Equipment decommissioning | D21: each | E21: 1 | F21: TMAC | G21: 679.52 | H21: 679.52 | I21: 0.5 | J21: 339.76 | K21: 339.76 | O21: SRK_19.2.1 | P21: Windy Accomodation Camp Buildings | Q21: decommission (electrical, mechanical, plumbing) | R21: 1 | S21: LS | T21: 679.5159959 | U21: 679.5159959 | V21: =IF(ISBLANK($H21),"",SUM(BD21:BO21)) -> 679.5159959 | W21: 0.004004061649 | Y21: 679.5159959 | AB21: 14_Bldgs & Equip | AC21: =IF(AB21="","",COUNTIFS(AssignmentSummary!$G:$G,AB21)) -> 1 | AD21: =IFERROR(MATCH($AB21,AssignmentSummary!$G:$G,0),"") -> 187 | AE21: =IFERROR(IF(AE$4>$AC21,"",MATCH($AB21,INDIRECT("AssignmentSummary!G"&AD21&":G10000"),0))+AD21,"") ->  | AL21: =IFERROR(IF(AL$4>$AC21,"",MATCH($AB21,INDIRECT("AssignmentSummary!G"&AK21&":G10000"),0))+AK21,"") ->  | AQ21: SRK_19.2.1 | AX21: =IFERROR(INDIRECT("AssignmentSummary!L"&AK21),"") ->  | BD21: 679.5159959
A22: 15 | C22: manual demolition | D22: m² | E22: 890 | F22: TMAC | G22: 155 | H22: 137950 | I22: 0.5 | J22: 68975 | K22: 68975 | O22: SRK_19.2.9 | P22: 0 | Q22: manual demolition beyond rock pads | R22: 886.2033 | S22: m2 | T22: 154.856862 | U22: 137234.6621 | V22: 137234.6621 | W22: 715.3378857 | Y22: 137234.6621 | AB22: 15_Bldgs & Equip | AC22: =IF(AB22="","",COUNTIFS(AssignmentSummary!$G:$G,AB22)) -> 1 | AD22: =IFERROR(MATCH($AB22,AssignmentSummary!$G:$G,0),"") -> 188 | AE22: =IFERROR(IF(AE$4>$AC22,"",MATCH($AB22,INDIRECT("AssignmentSummary!G"&AD22&":G10000"),0))+AD22,"") ->  | AL22: =IFERROR(IF(AL$4>$AC22,"",MATCH($AB22,INDIRECT("AssignmentSummary!G"&AK22&":G10000"),0))+AK22,"") ->  | AQ22: SRK_19.2.9 | AX22: =IFERROR(INDIRECT("AssignmentSummary!L"&AK22),"") ->  | BD22: 137234.6621
A23: 16 | C23: mechanical demolition | D23: m³ | E23: 3480 | F23: TMAC | G23: 11.23 | H23: 39080.4 | I23: 0.5 | J23: 19540.2 | K23: 19540.2 | O23: SRK_19.2.10 | P23: 0 | Q23: mechanical demolition on rock pads | R23: 3479.062327 | S23: m3 | T23: 11.23410812 | U23: 39084.16234 | V23: 39084.16234 | W23: -3.762343374 | Y23: 39084.16234 | AB23: 16_Bldgs & Equip | AC23: =IF(AB23="","",COUNTIFS(AssignmentSummary!$G:$G,AB23)) -> 1 | AD23: =IFERROR(MATCH($AB23,AssignmentSummary!$G:$G,0),"") -> 189 | AE23: =IFERROR(IF(AE$4>$AC23,"",MATCH($AB23,INDIRECT("AssignmentSummary!G"&AD23&":G10000"),0))+AD23,"") ->  | AL23: =IFERROR(IF(AL$4>$AC23,"",MATCH($AB23,INDIRECT("AssignmentSummary!G"&AK23&":G10000"),0))+AK23,"") ->  | AQ23: SRK_19.2.10 | AX23: =IFERROR(INDIRECT("AssignmentSummary!L"&AK23),"") ->  | BD23: 39084.16234
A24: 17 | C24: laod and haul waste | D24: m³ | E24: 1895 | F24: TMAC | G24: =10.23+4.92 -> 15.15 | H24: 28709.25 | I24: 0.5 | J24: 14354.625 | K24: 14354.625 | O24: SRK_19.2.11 | P24: 0 | Q24: load waste into containers | R24: 1891.348456 | S24: m3 | T24: 10.22791667 | U24: 19344.5544 | V24: 28641.88518 | W24: 67.36482368 | Y24: 28641.88518 | AB24: 17_Bldgs & Equip | AC24: =IF(AB24="","",COUNTIFS(AssignmentSummary!$G:$G,AB24)) -> 2 | AD24: =IFERROR(MATCH($AB24,AssignmentSummary!$G:$G,0),"") -> 190 | AE24: =IFERROR(IF(AE$4>$AC24,"",MATCH($AB24,INDIRECT("AssignmentSummary!G"&AD24&":G10000"),0))+AD24,"") -> 191 | AL24: =IFERROR(IF(AL$4>$AC24,"",MATCH($AB24,INDIRECT("AssignmentSummary!G"&AK24&":G10000"),0))+AK24,"") ->  | AQ24: SRK_19.2.11 | AR24: SRK_19.2.12 | AX24: =IFERROR(INDIRECT("AssignmentSummary!L"&AK24),"") ->  | BD24: 19344.5544 | BE24: 9297.330778
